Workbook

Sheet Template (hidden)

Sheet FrontPage

Sheet Summary_Sht
C16: Trust | J16: London Average
C17: =Lists!L2 -> Barnet, Enfield and Haringey Mental Health Trust | I17: =Lists!M2 -> 10 | J17: =IFERROR(AVERAGE($I$17:$I$25),"") -> 12.33333333
C18: =Lists!L3 -> Camden and Islington NHS FT | I18: =Lists!M3 ->  | J18: =AVERAGE($I$17:$I$25) -> 12.33333333
C19: =Lists!L4 -> Central and North West London NHS Foundation Trust | I19: =Lists!M4 ->  | J19: 12.33333333
C20: =Lists!L5 -> East London NHS Foundation Trust | I20: =Lists!M5 ->  | J20: 12.33333333
C21: =Lists!L6 -> North East London NHS Foundation Trust | I21: =Lists!M6 ->  | J21: 12.33333333
C22: =Lists!L7 -> Oxleas NHS FT | I22: =Lists!M7 ->  | J22: 12.33333333
C23: =Lists!L8 -> South London and Maudsley NHS FT | I23: =Lists!M8 -> 26 | J23: 12.33333333
C24: =Lists!L9 -> South West London & St George's Mental Health NHS Trust | I24: =Lists!M9 -> 1 | J24: 12.33333333
C25: =Lists!L10 -> West London Trust | I25: =Lists!M10 ->  | J25: 12.33333333
G26: Total | I26: =SUM(I17:I25) -> 37
B27: =IF((ROW()-26)>MAX(Lists!$I$2:$I$10),"",ROW()-26) -> 1 | C27: =IF(B27="","",INDEX(Lists!$K$2:$K$10,MATCH(Summary_Sht!$B27,Lists!$I$2:$I$10,0))) -> SLAM | D27: =IF(B27="","",INDEX(Lists!$M$2:$M$10,MATCH(Summary_Sht!$B27,Lists!$I$2:$I$10,0))) -> 26 | E27: =$J$17 -> 12.33333333
B28: =IF((ROW()-26)>MAX(Lists!$I$2:$I$10),"",ROW()-26) -> 2 | C28: =IF(B28="","",INDEX(Lists!$K$2:$K$10,MATCH(Summary_Sht!$B28,Lists!$I$2:$I$10,0))) -> BEH | D28: =IF(B28="","",INDEX(Lists!$M$2:$M$10,MATCH(Summary_Sht!$B28,Lists!$I$2:$I$10,0))) -> 10 | E28: =$J$17 -> 12.33333333
B29: =IF((ROW()-26)>MAX(Lists!$I$2:$I$10),"",ROW()-26) -> 3 | C29: =IF(B29="","",INDEX(Lists!$K$2:$K$10,MATCH(Summary_Sht!$B29,Lists!$I$2:$I$10,0))) -> SWLStG | D29: =IF(B29="","",INDEX(Lists!$M$2:$M$10,MATCH(Summary_Sht!$B29,Lists!$I$2:$I$10,0))) -> 1 | E29: 12.33333333
B30: =IF((ROW()-26)>MAX(Lists!$I$2:$I$10),"",ROW()-26) ->  | C30: =IF(B30="","",INDEX(Lists!$K$2:$K$10,MATCH(Summary_Sht!$B30,Lists!$I$2:$I$10,0))) ->  | D30: =IF(B30="","",INDEX(Lists!$M$2:$M$10,MATCH(Summary_Sht!$B30,Lists!$I$2:$I$10,0))) ->  | E30: 12.33333333
B31: =IF((ROW()-26)>MAX(Lists!$I$2:$I$10),"",ROW()-26) ->  | C31: =IF(B31="","",INDEX(Lists!$K$2:$K$10,MATCH(Summary_Sht!$B31,Lists!$I$2:$I$10,0))) ->  | D31: =IF(B31="","",INDEX(Lists!$M$2:$M$10,MATCH(Summary_Sht!$B31,Lists!$I$2:$I$10,0))) ->  | E31: 12.33333333
B32: =IF((ROW()-26)>MAX(Lists!$I$2:$I$10),"",ROW()-26) ->  | C32: =IF(B32="","",INDEX(Lists!$K$2:$K$10,MATCH(Summary_Sht!$B32,Lists!$I$2:$I$10,0))) ->  | D32: =IF(B32="","",INDEX(Lists!$M$2:$M$10,MATCH(Summary_Sht!$B32,Lists!$I$2:$I$10,0))) ->  | E32: 12.33333333
B33: =IF((ROW()-26)>MAX(Lists!$I$2:$I$10),"",ROW()-26) ->  | C33: =IF(B33="","",INDEX(Lists!$K$2:$K$10,MATCH(Summary_Sht!$B33,Lists!$I$2:$I$10,0))) ->  | D33: =IF(B33="","",INDEX(Lists!$M$2:$M$10,MATCH(Summary_Sht!$B33,Lists!$I$2:$I$10,0))) ->  | E33: 12.33333333
B34: =IF((ROW()-26)>MAX(Lists!$I$2:$I$10),"",ROW()-26) ->  | C34: =IF(B34="","",INDEX(Lists!$K$2:$K$10,MATCH(Summary_Sht!$B34,Lists!$I$2:$I$10,0))) ->  | D34: =IF(B34="","",INDEX(Lists!$M$2:$M$10,MATCH(Summary_Sht!$B34,Lists!$I$2:$I$10,0))) ->  | E34: 12.33333333
B35: =IF((ROW()-26)>MAX(Lists!$I$2:$I$10),"",ROW()-26) ->  | C35: =IF(B35="","",INDEX(Lists!$K$2:$K$10,MATCH(Summary_Sht!$B35,Lists!$I$2:$I$10,0))) ->  | D35: =IF(B35="","",INDEX(Lists!$M$2:$M$10,MATCH(Summary_Sht!$B35,Lists!$I$2:$I$10,0))) ->  | E35: 12.33333333

Sheet Comm_Gap
C16: Trust | I16: Total caseload per 100k weighted pop | J16: National average caseload per 100k weighted pop | K16: Difference per 100k weighted pop | L16: Difference absolute number
C17: =Lists!L2 -> Barnet, Enfield and Haringey Mental Health Trust | I17: =(INDEX(CalcSheet!$6:$6,1,MATCH(Lists!$J2,CalcSheet!$4:$4,0))/INDEX(Org_Baseline!$21:$21,1,MATCH(Lists!$J2,Org_Baseline!$4:$4,0)))*100000 -> 760.8519284 | J17: 1314 | K17: =J17-I17 -> 553.1480716 | L17: =(K17/100000)*INDEX(Org_Baseline!$21:$21,1,MATCH(Lists!$J2,Org_Baseline!$4:$4,0)) -> 6272.65488
C18: =Lists!L3 -> Camden and Islington NHS FT | I18: =(INDEX(CalcSheet!$6:$6,1,MATCH(Lists!$J3,CalcSheet!$4:$4,0))/INDEX(Org_Baseline!$21:$21,1,MATCH(Lists!$J3,Org_Baseline!$4:$4,0)))*100000 -> 817.5850306 | J18: 1314 | K18: =J18-I18 -> 496.4149694 | L18: =(K18/100000)*INDEX(Org_Baseline!$21:$21,1,MATCH(Lists!$J3,Org_Baseline!$4:$4,0)) -> 3891.36716
C19: =Lists!L4 -> Central and North West London NHS Foundation Trust | I19: =(INDEX(CalcSheet!$6:$6,1,MATCH(Lists!$J4,CalcSheet!$4:$4,0))/INDEX(Org_Baseline!$21:$21,1,MATCH(Lists!$J4,Org_Baseline!$4:$4,0)))*100000 -> 963.6859761 | J19: 1314 | K19: 350.3140239 | L19: =(K19/100000)*INDEX(Org_Baseline!$21:$21,1,MATCH(Lists!$J4,Org_Baseline!$4:$4,0)) -> 5205.8941
C20: =Lists!L5 -> East London NHS Foundation Trust | I20: =(INDEX(CalcSheet!$6:$6,1,MATCH(Lists!$J5,CalcSheet!$4:$4,0))/INDEX(Org_Baseline!$21:$21,1,MATCH(Lists!$J5,Org_Baseline!$4:$4,0)))*100000 -> 1825.128428 | J20: 1314 | K20: =J20-I20 -> -511.1284276 | L20: =(K20/100000)*INDEX(Org_Baseline!$21:$21,1,MATCH(Lists!$J5,Org_Baseline!$4:$4,0)) -> -10319.86696
C21: =Lists!L6 -> North East London NHS Foundation Trust | I21: =(INDEX(CalcSheet!$6:$6,1,MATCH(Lists!$J6,CalcSheet!$4:$4,0))/INDEX(Org_Baseline!$21:$21,1,MATCH(Lists!$J6,Org_Baseline!$4:$4,0)))*100000 -> 1633.783365 | J21: 1314 | K21: -319.7833649 | L21: =(K21/100000)*INDEX(Org_Baseline!$21:$21,1,MATCH(Lists!$J6,Org_Baseline!$4:$4,0)) -> -3167.52778
C22: =Lists!L7 -> Oxleas NHS FT | I22: =(INDEX(CalcSheet!$6:$6,1,MATCH(Lists!$J7,CalcSheet!$4:$4,0))/INDEX(Org_Baseline!$21:$21,1,MATCH(Lists!$J7,Org_Baseline!$4:$4,0)))*100000 -> 1802.323341 | J22: 1314 | K22: -488.3233413 | L22: =(K22/100000)*INDEX(Org_Baseline!$21:$21,1,MATCH(Lists!$J7,Org_Baseline!$4:$4,0)) -> -5069.5776
C23: =Lists!L8 -> South London and Maudsley NHS FT | I23: =(INDEX(CalcSheet!$6:$6,1,MATCH(Lists!$J8,CalcSheet!$4:$4,0))/INDEX(Org_Baseline!$21:$21,1,MATCH(Lists!$J8,Org_Baseline!$4:$4,0)))*100000 -> 819.7626213 | J23: 1314 | K23: 494.2373787 | L23: =(K23/100000)*INDEX(Org_Baseline!$21:$21,1,MATCH(Lists!$J8,Org_Baseline!$4:$4,0)) -> 10699.7203
C24: =Lists!L9 -> South West London & St George's Mental Health NHS Trust | I24: =(INDEX(CalcSheet!$6:$6,1,MATCH(Lists!$J9,CalcSheet!$4:$4,0))/INDEX(Org_Baseline!$21:$21,1,MATCH(Lists!$J9,Org_Baseline!$4:$4,0)))*100000 -> 939.0513743 | J24: 1314 | K24: 374.9486257 | L24: =(K24/100000)*INDEX(Org_Baseline!$21:$21,1,MATCH(Lists!$J9,Org_Baseline!$4:$4,0)) -> 5161.55028
C25: =Lists!L10 -> West London Trust | I25: =(INDEX(CalcSheet!$6:$6,1,MATCH(Lists!$J10,CalcSheet!$4:$4,0))/INDEX(Org_Baseline!$21:$21,1,MATCH(Lists!$J10,Org_Baseline!$4:$4,0)))*100000 -> 1175.304864 | J25: 1314 | K25: 138.695136 | L25: =(K25/100000)*INDEX(Org_Baseline!$21:$21,1,MATCH(Lists!$J10,Org_Baseline!$4:$4,0)) -> 1504.7174
L26: =SUMIF(L17:L25,">0") -> 32735.90412
C29: London Trusts have a needs weighting for population which suggests services within the city are supporting levels of need higher than the national average. However, when compared on a weighted population basis London Trusts are supporting fewer patients in the community than their peers. The table above shows how this gap applies in each Trust. 6 of the 9 London Trusts report caseloads smaller than the national average, relative to population size, with a range from 1505 to 10,700 additional patients needed, per Trust, to bring community caseload levels up to the national level. In total there are 32,000 fewer patients on caseload across these 6 Trusts than is to be expected from the levels of need locally.

Sheet Map (hidden)
B2: =Data!$C$2 -> Test_Data | U2: ="© NHS Benchmarking Network "&YEAR(NOW()) -> © NHS Benchmarking Network 2019

Sheet Data (hidden)
B1: Data Format --->> | C1: ##,#0
A2: Org Code | B2: Org Name | C2: Test_Data
A3: MH44 | B3: Barnet, Enfield and Haringey Mental Health Trust | C3: =IF(Lists!$M2=0,"",Lists!$M2) -> 10
A4: MH11 | B4: Camden and Islington NHS FT | C4: =IF(Lists!$M3=0,"",Lists!$M3) -> 
A5: MH23 | B5: Central and North West London NHS Foundation Trust | C5: =IF(Lists!$M4=0,"",Lists!$M4) -> 
A6: MH48 | B6: East London NHS Foundation Trust | C6: =IF(Lists!$M5=0,"",Lists!$M5) -> 
A7: MH65 | B7: North East London NHS Foundation Trust | C7: =IF(Lists!$M6=0,"",Lists!$M6) -> 
A8: MH35 | B8: Oxleas NHS FT | C8: =IF(Lists!$M7=0,"",Lists!$M7) -> 
A9: MH09 | B9: South London and Maudsley NHS FT | C9: =IF(Lists!$M8=0,"",Lists!$M8) -> 26
A10: MH22 | B10: South West London & St George's Mental Health NHS Trust | C10: =IF(Lists!$M9=0,"",Lists!$M9) -> 1
A11: MH52 | B11: West London Mental Health Trust | C11: =IF(Lists!$M10=0,"",Lists!$M10) -> 

Sheet CalcSheet (hidden)
F4: MH30 | G4: MH04 | H4: MH44 | I4: MH33 | J4: MH10 | K4: MH34 | L4: MH29 | M4: MH63 | N4: MH11 | O4: MH38 | P4: MH23 | Q4: MH12 | R4: MH40 | S4: MH39 | T4: MH56 | U4: MH27 | V4: MH05 | W4: MH53 | X4: MH48 | Y4: MH72 | Z4: MH74 | AA4: MH21 | AB4: MH06 | AC4: MH61 | AD4: MH25 | AE4: MH41 | AF4: MH57 | AG4: MH36 | AH4: MH02 | AI4: MH43 | AJ4: MH37 | AK4: MH18 | AL4: MH15 | AM4: MH65 | AN4: MH60 | AO4: MH42 | AP4: MH54 | AQ4: MH28 | AR4: MH24 | AS4: MH17 | AT4: MH35 | AU4: MH26 | AV4: MH66 | AW4: MH07 | AX4: MH09 | AY4: MH45 | AZ4: MH19 | BA4: MH22 | BB4: MH32 | BC4: MH20 | BD4: MH50 | BE4: MH03 | BF4: MH08 | BG4: MH52 | BH4: MH64 | BI4: MH69 | BJ4: MH68 | BK4: MH70 | BL4: MH84 | BM4: MH80 | BN4: MH81 | BO4: MH82 | BP4: MH31 | BQ4: MH16 | BR4: MH01 | BS4: MH55 | BT4: MH67 | BU4: MH51 | BV4: MH58 | BW4: MH59 | BX4: MH71
A5: Unique Ref. | B5: Cell Ref | C5: Title | D5: Sub Title | E5: Line | F5: Q39 | G5: Q39 | H5: Q36 | I5: Q38 | J5: Q34 | K5: Q34 | L5: Q32 | M5: Q35 | N5: Q36 | O5: Q31 | P5: Q36 | Q5: Q39 | R5: Q34 | S5: Q31 | T5: Q33 | U5: Q39 | V5: Q39 | W5: Q34 | X5: Q36 | Y5: Q35 | Z5: Q31 | AA5: Q35 | AB5: Q32 | AC5: Q38 | AD5: Q37 | AE5: Q31 | AF5: Q32 | AG5: Q33 | AH5: Q33 | AI5: Q39 | AJ5: Q31 | AK5: Q34 | AL5: Q35 | AM5: Q36 | AN5: Q34 | AO5: Q31 | AP5: Q33 | AQ5: Q32 | AR5: Q33 | AS5: Q38 | AT5: Q36 | AU5: Q31 | AV5: Q32 | AW5: Q32 | AX5: Q36 | AY5: Q38 | AZ5: Q39 | BA5: Q36 | BB5: Q32 | BC5: Q38 | BD5: Q37 | BE5: Q37 | BF5: Q32 | BG5: Q36 | BH5: Q34 | BI5: Q80 | BJ5: Q97 | BK5: Q97 | BL5: Q97 | BM5: Q70 | BN5: Q70 | BO5: Q70 | BP5: Q71 | BQ5: Q98 | BR5: Q99 | BS5: Q99 | BT5: Q99 | BU5: Q99 | BV5: Q99 | BW5: Q99 | BX5: Q99
C6: Community Based Mental Health Teams - Profiles | D6: Caseload | E6: Total CMHTs | F6: =SUMIF(CM!F$30:F$41,">0") -> 15186 | G6: =SUMIF(CM!G$30:G$41,">0") -> 13451 | H6: =SUMIF(CM!H$30:H$41,">0") -> 8628 | I6: =SUMIF(CM!I$30:I$41,">0") -> 14776 | J6: =SUMIF(CM!J$30:J$41,">0") -> 25494 | K6: =SUMIF(CM!K$30:K$41,">0") -> 4940 | L6: =SUMIF(CM!L$30:L$41,">0") -> 11354 | M6: =SUMIF(CM!M$30:M$41,">0") -> 9791 | N6: =SUMIF(CM!N$30:N$41,">0") -> 6409 | O6: =SUMIF(CM!O$30:O$41,">0") -> 15299 | P6: =SUMIF(CM!P$30:P$41,">0") -> 14321 | Q6: =SUMIF(CM!Q$30:Q$41,">0") -> 5813 | R6: =SUMIF(CM!R$30:R$41,">0") -> 17756 | S6: =SUMIF(CM!S$30:S$41,">0") -> 7123 | T6: =SUMIF(CM!T$30:T$41,">0") -> 11811 | U6: =SUMIF(CM!U$30:U$41,">0") -> 7951 | V6: =SUMIF(CM!V$30:V$41,">0") -> 11779 | W6: =SUMIF(CM!W$30:W$41,">0") -> 8459 | X6: =SUMIF(CM!X$30:X$41,">0") -> 36850 | Y6: =SUMIF(CM!Y$30:Y$41,">0") -> 23806 | Z6: =SUMIF(CM!Z$30:Z$41,">0") -> 18446 | AA6: =SUMIF(CM!AA$30:AA$41,">0") -> 11328 | AB6: =SUMIF(CM!AB$30:AB$41,">0") -> 4711 | AC6: =SUMIF(CM!AC$30:AC$41,">0") -> 2589 | AD6: =SUMIF(CM!AD$30:AD$41,">0") -> 21867 | AE6: =SUMIF(CM!AE$30:AE$41,">0") -> 21120 | AF6: =SUMIF(CM!AF$30:AF$41,">0") -> 10713 | AG6: =SUMIF(CM!AG$30:AG$41,">0") -> 15177 | AH6: =SUMIF(CM!AH$30:AH$41,">0") -> 5854 | AI6: =SUMIF(CM!AI$30:AI$41,">0") -> 2804 | AJ6: =SUMIF(CM!AJ$30:AJ$41,">0") -> 22149 | AK6: =SUMIF(CM!AK$30:AK$41,">0") -> 16103 | AL6: =SUMIF(CM!AL$30:AL$41,">0") -> 11907 | AM6: =SUMIF(CM!AM$30:AM$41,">0") -> 16183 | AN6: =SUMIF(CM!AN$30:AN$41,">0") -> 11987 | AO6: =SUMIF(CM!AO$30:AO$41,">0") -> 18076 | AP6: =SUMIF(CM!AP$30:AP$41,">0") -> 8684 | AQ6: =SUMIF(CM!AQ$30:AQ$41,">0") -> 17455 | AR6: =SUMIF(CM!AR$30:AR$41,">0") -> 12629 | AS6: =SUMIF(CM!AS$30:AS$41,">0") -> 8447 | AT6: =SUMIF(CM!AT$30:AT$41,">0") -> 18711 | AU6: =SUMIF(CM!AU$30:AU$41,">0") -> 14378 | AV6: =SUMIF(CM!AV$30:AV$41,">0") -> 11867 | AW6: =SUMIF(CM!AW$30:AW$41,">0") -> 5448 | AX6: =SUMIF(CM!AX$30:AX$41,">0") -> 17747 | AY6: =SUMIF(CM!AY$30:AY$41,">0") -> 3388 | AZ6: =SUMIF(CM!AZ$30:AZ$41,">0") -> 4958 | BA6: =SUMIF(CM!BA$30:BA$41,">0") -> 12927 | BB6: =SUMIF(CM!BB$30:BB$41,">0") -> 15792 | BC6: =SUMIF(CM!BC$30:BC$41,">0") -> 15260 | BD6: =SUMIF(CM!BD$30:BD$41,">0") -> 9999 | BE6: =SUMIF(CM!BE$30:BE$41,">0") -> 21524 | BF6: =SUMIF(CM!BF$30:BF$41,">0") -> 31245 | BG6: =SUMIF(CM!BG$30:BG$41,">0") -> 12751 | BH6: =SUMIF(CM!BH$30:BH$41,">0") -> 4969 | BI6: =SUMIF(CM!BI$30:BI$41,">0") -> 1630 | BJ6: =SUMIF(CM!BJ$30:BJ$41,">0") -> 8779 | BK6: =SUMIF(CM!BK$30:BK$41,">0") -> 10224 | BL6: =SUMIF(CM!BL$30:BL$41,">0") -> 1869 | BM6: =SUMIF(CM!BM$30:BM$41,">0") -> 0 | BN6: =SUMIF(CM!BN$30:BN$41,">0") -> 0 | BO6: =SUMIF(CM!BO$30:BO$41,">0") -> 0 | BP6: =SUMIF(CM!BP$30:BP$41,">0") -> 0 | BQ6: =SUMIF(CM!BQ$30:BQ$41,">0") -> 24445 | BR6: =SUMIF(CM!BR$30:BR$41,">0") -> 7684 | BS6: =SUMIF(CM!BS$30:BS$41,">0") -> 10079 | BT6: =SUMIF(CM!BT$30:BT$41,">0") -> 5806 | BU6: =SUMIF(CM!BU$30:BU$41,">0") -> 7244 | BV6: =SUMIF(CM!BV$30:BV$41,">0") -> 2009 | BW6: =SUMIF(CM!BW$30:BW$41,">0") -> 8276 | BX6: =SUMIF(CM!BX$30:BX$41,">0") -> 982
C7: Community Based Mental Health Teams - Profiles | D7: Total cost | E7: Total CMHTs | F7: =IFERROR(CFW!F512/F$6,"") -> 2745.158699 | G7: =IFERROR(CFW!G512/G$6,"") -> 0 | H7: =IFERROR(CFW!H512/H$6,"") -> 6147.654381 | I7: =IFERROR(CFW!I512/I$6,"") -> 2601.756632 | J7: =IFERROR(CFW!J512/J$6,"") -> 3009.68875 | K7: =IFERROR(CFW!K512/K$6,"") -> 4762.873684 | L7: =IFERROR(CFW!L512/L$6,"") -> 2674.869914 | M7: =IFERROR(CFW!M512/M$6,"") -> 3599.850519 | N7: =IFERROR(CFW!N512/N$6,"") -> 4424.440318 | O7: =IFERROR(CFW!O512/O$6,"") -> 2822.349827 | P7: =IFERROR(CFW!P512/P$6,"") -> 4889.378693 | Q7: =IFERROR(CFW!Q512/Q$6,"") -> 3562.590401 | R7: =IFERROR(CFW!R512/R$6,"") -> 2417.333296 | S7: =IFERROR(CFW!S512/S$6,"") -> 3343.94966 | T7: =IFERROR(CFW!T512/T$6,"") -> 4195.28846 | U7: =IFERROR(CFW!U512/U$6,"") -> 6121.036096 | V7: =IFERROR(CFW!V512/V$6,"") -> 2866.194888 | W7: =IFERROR(CFW!W512/W$6,"") -> 2840.663081 | X7: =IFERROR(CFW!X512/X$6,"") -> 3713.06597 | Y7: =IFERROR(CFW!Y512/Y$6,"") -> 0 | Z7: =IFERROR(CFW!Z512/Z$6,"") -> 3310.299373 | AA7: =IFERROR(CFW!AA512/AA$6,"") -> 4876.59119 | AB7: =IFERROR(CFW!AB512/AB$6,"") -> 5508.880492 | AC7: =IFERROR(CFW!AC512/AC$6,"") -> 915.4113557 | AD7: =IFERROR(CFW!AD512/AD$6,"") -> 2804.214256 | AE7: =IFERROR(CFW!AE512/AE$6,"") -> 4204.583857 | AF7: =IFERROR(CFW!AF512/AF$6,"") -> 3892.126785 | AG7: =IFERROR(CFW!AG512/AG$6,"") -> 2686.365257 | AH7: =IFERROR(CFW!AH512/AH$6,"") -> 5325.101811 | AI7: =IFERROR(CFW!AI512/AI$6,"") -> 4742.083096 | AJ7: =IFERROR(CFW!AJ512/AJ$6,"") -> 2264.62373 | AK7: =IFERROR(CFW!AK512/AK$6,"") -> 2242.348778 | AL7: =IFERROR(CFW!AL512/AL$6,"") -> 6840.278886 | AM7: =IFERROR(CFW!AM512/AM$6,"") -> 3497.110733 | AN7: =IFERROR(CFW!AN512/AN$6,"") -> 1532.950266 | AO7: =IFERROR(CFW!AO512/AO$6,"") -> 2930.356884 | AP7: =IFERROR(CFW!AP512/AP$6,"") -> 2410.28708 | AQ7: =IFERROR(CFW!AQ512/AQ$6,"") -> 4369.939502 | AR7: =IFERROR(CFW!AR512/AR$6,"") -> 3843.672373 | AS7: =IFERROR(CFW!AS512/AS$6,"") -> 5557.635374 | AT7: =IFERROR(CFW!AT512/AT$6,"") -> 2662.409064 | AU7: =IFERROR(CFW!AU512/AU$6,"") -> 0 | AV7: =IFERROR(CFW!AV512/AV$6,"") -> 3080.954917 | AW7: =IFERROR(CFW!AW512/AW$6,"") -> 4288.489139 | AX7: =IFERROR(CFW!AX512/AX$6,"") -> 5029.238594 | AY7: =IFERROR(CFW!AY512/AY$6,"") -> 2564.999959 | AZ7: =IFERROR(CFW!AZ512/AZ$6,"") -> 3483.881807 | BA7: =IFERROR(CFW!BA512/BA$6,"") -> 3990.396049 | BB7: =IFERROR(CFW!BB512/BB$6,"") -> 4359.849101 | BC7: =IFERROR(CFW!BC512/BC$6,"") -> 3162.839012 | BD7: =IFERROR(CFW!BD512/BD$6,"") -> 4145.760176 | BE7: =IFERROR(CFW!BE512/BE$6,"") -> 4123.743589 | BF7: =IFERROR(CFW!BF512/BF$6,"") -> 3220.896559 | BG7: =IFERROR(CFW!BG512/BG$6,"") -> 3409.313701 | BH7: =IFERROR(CFW!BH512/BH$6,"") -> 0 | BI7: =IFERROR(CFW!BI512/BI$6,"") -> 5517.588583 | BJ7: =IFERROR(CFW!BJ512/BJ$6,"") -> 0 | BK7: =IFERROR(CFW!BK512/BK$6,"") -> 1982.50939 | BL7: =IFERROR(CFW!BL512/BL$6,"") -> 5165.050294 | BM7: =IFERROR(CFW!BM512/BM$6,"") ->  | BN7: =IFERROR(CFW!BN512/BN$6,"") ->  | BO7: =IFERROR(CFW!BO512/BO$6,"") ->  | BP7: =IFERROR(CFW!BP512/BP$6,"") ->  | BQ7: =IFERROR(CFW!BQ512/BQ$6,"") -> 3927.11361 | BR7: =IFERROR(CFW!BR512/BR$6,"") -> 3347.328475 | BS7: =IFERROR(CFW!BS512/BS$6,"") -> 0 | BT7: =IFERROR(CFW!BT512/BT$6,"") -> 5213.943958 | BU7: =IFERROR(CFW!BU512/BU$6,"") -> 3510.476538 | BV7: =IFERROR(CFW!BV512/BV$6,"") -> 8323.575411 | BW7: =IFERROR(CFW!BW512/BW$6,"") -> 1373.721605 | BX7: =IFERROR(CFW!BX512/BX$6,"") -> 9454.010468

Sheet Bed_Status (hidden)
F1: 'Bed_Status_R1'!N6:N1436 | G1: 'Bed_Status_R1'!N165:N1436 | H1: 'Bed_Status_R1'!N324:N1436 | I1: 'Bed_Status_R1'!N483:N1436 | J1: 'Bed_Status_R1'!N642:N1436 | K1: 'Bed_Status_R1'!N801:N1436 | L1: 'Bed_Status_R1'!N960:N1436 | M1: 'Bed_Status_R1'!N1119:N1436 | N1: 'Bed_Status_R1'!N1278:N1436
F2: 'Bed_Status_R1'!A6:A1436 | G2: 'Bed_Status_R1'!A165:A1436 | H2: 'Bed_Status_R1'!A324:A1436 | I2: 'Bed_Status_R1'!A483:A1436 | J2: 'Bed_Status_R1'!A642:A1436 | K2: 'Bed_Status_R1'!A801:A1436 | L2: 'Bed_Status_R1'!A960:A1436 | M2: 'Bed_Status_R1'!A1119:A1436 | N2: 'Bed_Status_R1'!A1278:A1436
F3: BEH Bed status.xlsx | G3: CANDI Bed status.xlsx | H3: CNWL Bed status.xlsx | I3: ELFT_Paul C.xlsx | J3: NELFT Bed Status.xlsx | K3: Oxleas.xlsx | L3: SLAM.xlsx | M3: SWLSTG Bed Status.xlsx | N3: West London Bed status.xlsx
F4: MH44 | G4: MH11 | H4: MH23 | I4: MH48 | J4: MH65 | K4: MH35 | L4: MH09 | M4: MH22 | N4: MH52
A5: Unique Ref. | B5: Cell Ref | C5: Title | D5: Sub Title | E5: Line
A6: BEDSTAT1 | B6: D4 | C6: Trust name | E6: Trust name | F6: Barnet Enfiled and Haringey Mental Health Trust | G6: Camden and Islington Foundation Trust | H6: CNWL NHS FOUNDATION TRUST | I6: East London Foudnation Trust | J6: North East London Foundation Trust | K6: Oxleas NHS Foundation Trust | L6: South London and Maudsley Foundation Trust | M6: South West London & St George's Mental Health NHS Trust | N6: West London NHS Trust
A7: BEDSTAT2 | B7: D5 | C7: Trust name | E7: Lead contact for this submission (in case of queries) - name | F7: Carol Moyo | G7: Jeffrey Boateng | H7: Carina Sheridan | I7: Paul Calaminus | J7: Caroline O'Donnell | K7: Simon Henley-Castleden | L7: Mark Polczyk-Przybyla | M7: Fenna Kwaks | N7: Alex Tickell
A8: BEDSTAT3 | B8: D6 | C8: Trust name | E8: Lead contact - email address | F8: carol.moyo@nhs.net | G8: Jeffrey.Boateng@Candi.nhs.uk | H8: carina.sheridan@nhs.net | I8: Paul.Calaminus@nhs.net | J8: caroline.odonnell@nelft.nhs.uk | K8: simon.hc@nhs.net | L8: mark.polczyk-przybyla@slam.nhs.uk | M8: fenna.kwaks@swlstg.nhs.uk | N8: alex.tickell@westlondon.nhs.uk
A9: BEDSTAT4 | B9: D9 | C9: Please answer these questions as of the position on Friday 1st February at 13.00 hrs | D9: Total number of beds in your Trust | E9: Adult Acute | F9: 142 | G9: 140 | H9: 270 | I9: 266 | J9: 101 | K9: 151 | L9: 308 | M9: 157 | N9: 178
A10: BEDSTAT5 | B10: E9 | C10: Please answer these questions as of the position on Friday 1st February at 13.00 hrs | D10: Total number of beds in your Trust | E10: Older Adult | F10: 21 | G10: 26 | H10: 72 | I10: 58 | J10: 51 | K10: 63 | L10: 82 | M10: 35 | N10: 18
A11: BEDSTAT6 | B11: F9 | C11: Please answer these questions as of the position on Friday 1st February at 13.00 hrs | D11: Total number of beds in your Trust | E11: Male PICU | F11: 16 | G11: 12 | H11: 35 | I11: 29 | J11: 15 | K11: 16 | L11: 20 | M11: 13 | N11: 12
A12: BEDSTAT7 | B12: G9 | C12: Please answer these questions as of the position on Friday 1st February at 13.00 hrs | D12: Total number of beds in your Trust | E12: Female PICU | G12: 11 | H12: 12 | I12: 11 | L12: 10
A13: BEDSTAT8 | B13: H9 | C13: Please answer these questions as of the position on Friday 1st February at 13.00 hrs | D13: Total number of beds in your Trust | E13: Eating Disorders | F13: 20 | H13: 15 | L13: 18 | M13: 20
A14: BEDSTAT9 | B14: I9 | C14: Please answer these questions as of the position on Friday 1st February at 13.00 hrs | D14: Total number of beds in your Trust | E14: Mother and Baby | H14: 8 | I14: 12 | L14: 13
A15: BEDSTAT10 | B15: J9 | C15: Please answer these questions as of the position on Friday 1st February at 13.00 hrs | D15: Total number of beds in your Trust | E15: Low Secure | F15: 67 | H15: 23 | I15: 95 | J15: 15 | L15: 29 | M15: 16 | N15: 86
A16: BEDSTAT11 | B16: K9 | C16: Please answer these questions as of the position on Friday 1st February at 13.00 hrs | D16: Total number of beds in your Trust | E16: Medium Secure | F16: 154 | I16: 107 | L16: 70 | M16: 45 | N16: 179
A17: BEDSTAT12 | B17: L9 | C17: Please answer these questions as of the position on Friday 1st February at 13.00 hrs | D17: Total number of beds in your Trust | E17: High Secure | N17: 212
A18: BEDSTAT13 | B18: M9 | C18: Please answer these questions as of the position on Friday 1st February at 13.00 hrs | D18: Total number of beds in your Trust | E18: High Dependency Rehabilitation | F18: 13 | G18: 30 | H18: 89 | L18: 33 | M18: 44 | N18: 37
A19: BEDSTAT14 | B19: N9 | C19: Please answer these questions as of the position on Friday 1st February at 13.00 hrs | D19: Total number of beds in your Trust | E19: Longer Term Complex / Continuing Care | F19: 40 | G19: 2 | H19: 24 | L19: 16 | N19: 20
A20: BEDSTAT15 | B20: O9 | C20: Please answer these questions as of the position on Friday 1st February at 13.00 hrs | D20: Total number of beds in your Trust | E20: Other adult mental health beds | F20: 13 | L20: 26 | M20: 28 | N20: 15
A21: BEDSTAT16 | B21: P9 | C21: Please answer these questions as of the position on Friday 1st February at 13.00 hrs | D21: Total number of beds in your Trust | E21: CAMHS | F21: 16 | H21: 24 | I21: 28 | J21: 15 | L21: 68 | M21: 30
A22: BEDSTAT17 | B22: D10 | C22: Please answer these questions as of the position on Friday 1st February at 13.00 hrs | D22: Total patients in your Trust beds Friday 1st Feb 13.00 hrs (all patients, regardless of 'home' Trust) | E22: Adult Acute | F22: 142 | G22: 131 | H22: 262 | I22: 229 | J22: 89 | K22: 149 | L22: 304 | M22: 155 | N22: 145
A23: BEDSTAT18 | B23: E10 | C23: Please answer these questions as of the position on Friday 1st February at 13.00 hrs | D23: Total patients in your Trust beds Friday 1st Feb 13.00 hrs (all patients, regardless of 'home' Trust) | E23: Older Adult | F23: 21 | G23: 20 | H23: 68 | I23: 50 | J23: 37 | K23: 59 | L23: 71 | M23: 29 | N23: 9
A24: BEDSTAT19 | B24: F10 | C24: Please answer these questions as of the position on Friday 1st February at 13.00 hrs | D24: Total patients in your Trust beds Friday 1st Feb 13.00 hrs (all patients, regardless of 'home' Trust) | E24: Male PICU | F24: 16 | G24: 12 | H24: 29 | I24: 15 | J24: 9 | K24: 15 | L24: 19 | M24: 12 | N24: 4
A25: BEDSTAT20 | B25: G10 | C25: Please answer these questions as of the position on Friday 1st February at 13.00 hrs | D25: Total patients in your Trust beds Friday 1st Feb 13.00 hrs (all patients, regardless of 'home' Trust) | E25: Female PICU | G25: 8 | H25: 9 | I25: 8 | L25: 10
A26: BEDSTAT21 | B26: H10 | C26: Please answer these questions as of the position on Friday 1st February at 13.00 hrs | D26: Total patients in your Trust beds Friday 1st Feb 13.00 hrs (all patients, regardless of 'home' Trust) | E26: Eating Disorders | F26: 17 | H26: 14 | L26: 18 | M26: 15
A27: BEDSTAT22 | B27: I10 | C27: Please answer these questions as of the position on Friday 1st February at 13.00 hrs | D27: Total patients in your Trust beds Friday 1st Feb 13.00 hrs (all patients, regardless of 'home' Trust) | E27: Mother and Baby | H27: 6 | I27: 12 | L27: 13
A28: BEDSTAT23 | B28: J10 | C28: Please answer these questions as of the position on Friday 1st February at 13.00 hrs | D28: Total patients in your Trust beds Friday 1st Feb 13.00 hrs (all patients, regardless of 'home' Trust) | E28: Low Secure | F28: 67 | H28: 23 | I28: 91 | J28: 14 | L28: 29 | M28: 15 | N28: 85
A29: BEDSTAT24 | B29: K10 | C29: Please answer these questions as of the position on Friday 1st February at 13.00 hrs | D29: Total patients in your Trust beds Friday 1st Feb 13.00 hrs (all patients, regardless of 'home' Trust) | E29: Medium Secure | F29: 134 | I29: 103 | L29: 68 | M29: 43 | N29: 157
A30: BEDSTAT25 | B30: L10 | C30: Please answer these questions as of the position on Friday 1st February at 13.00 hrs | D30: Total patients in your Trust beds Friday 1st Feb 13.00 hrs (all patients, regardless of 'home' Trust) | E30: High Secure | N30: 191
A31: BEDSTAT26 | B31: M10 | C31: Please answer these questions as of the position on Friday 1st February at 13.00 hrs | D31: Total patients in your Trust beds Friday 1st Feb 13.00 hrs (all patients, regardless of 'home' Trust) | E31: High Dependency Rehabilitation | F31: 11 | G31: 30 | H31: 85 | L31: 27 | M31: 32 | N31: 27
A32: BEDSTAT27 | B32: N10 | C32: Please answer these questions as of the position on Friday 1st February at 13.00 hrs | D32: Total patients in your Trust beds Friday 1st Feb 13.00 hrs (all patients, regardless of 'home' Trust) | E32: Longer Term Complex / Continuing Care | F32: 38 | G32: 2 | H32: 21 | L32: 16 | N32: 15
A33: BEDSTAT28 | B33: O10 | C33: Please answer these questions as of the position on Friday 1st February at 13.00 hrs | D33: Total patients in your Trust beds Friday 1st Feb 13.00 hrs (all patients, regardless of 'home' Trust) | E33: Other adult mental health beds | F33: 13 | L33: 24 | M33: 24 | N33: 10
A34: BEDSTAT29 | B34: P10 | C34: Please answer these questions as of the position on Friday 1st February at 13.00 hrs | D34: Total patients in your Trust beds Friday 1st Feb 13.00 hrs (all patients, regardless of 'home' Trust) | E34: CAMHS | F34: 16 | H34: 21 | I34: 27 | J34: 14 | L34: 52 | M34: 16
A35: BEDSTAT30 | B35: D11 | C35: Please answer these questions as of the position on Friday 1st February at 13.00 hrs | D35: Total patients in your Trust beds who were medically optimised for discharge as at Friday 1st Feb 13.00 hrs | E35: Adult Acute | F35: 12 | G35: 16 | H35: 12 | I35: 2 | J35: 1 | L35: 9 | M35: 4 | N35: 23
A36: BEDSTAT31 | B36: E11 | C36: Please answer these questions as of the position on Friday 1st February at 13.00 hrs | D36: Total patients in your Trust beds who were medically optimised for discharge as at Friday 1st Feb 13.00 hrs | E36: Older Adult | G36: 6 | H36: 7 | I36: 1 | J36: 1 | L36: 3 | N36: 2
A37: BEDSTAT32 | B37: F11 | C37: Please answer these questions as of the position on Friday 1st February at 13.00 hrs | D37: Total patients in your Trust beds who were medically optimised for discharge as at Friday 1st Feb 13.00 hrs | E37: Male PICU | G37: 1 | I37: 1 | L37: 1
A38: BEDSTAT33 | B38: G11 | C38: Please answer these questions as of the position on Friday 1st February at 13.00 hrs | D38: Total patients in your Trust beds who were medically optimised for discharge as at Friday 1st Feb 13.00 hrs | E38: Female PICU | I38: 3
A39: BEDSTAT34 | B39: H11 | C39: Please answer these questions as of the position on Friday 1st February at 13.00 hrs | D39: Total patients in your Trust beds who were medically optimised for discharge as at Friday 1st Feb 13.00 hrs | E39: Eating Disorders | M39: 1
A40: BEDSTAT35 | B40: I11 | C40: Please answer these questions as of the position on Friday 1st February at 13.00 hrs | D40: Total patients in your Trust beds who were medically optimised for discharge as at Friday 1st Feb 13.00 hrs | E40: Mother and Baby
A41: BEDSTAT36 | B41: J11 | C41: Please answer these questions as of the position on Friday 1st February at 13.00 hrs | D41: Total patients in your Trust beds who were medically optimised for discharge as at Friday 1st Feb 13.00 hrs | E41: Low Secure | H41: 3 | L41: 1 | N41: 10
A42: BEDSTAT37 | B42: K11 | C42: Please answer these questions as of the position on Friday 1st February at 13.00 hrs | D42: Total patients in your Trust beds who were medically optimised for discharge as at Friday 1st Feb 13.00 hrs | E42: Medium Secure | L42: 8 | N42: 2
A43: BEDSTAT38 | B43: L11 | C43: Please answer these questions as of the position on Friday 1st February at 13.00 hrs | D43: Total patients in your Trust beds who were medically optimised for discharge as at Friday 1st Feb 13.00 hrs | E43: High Secure | N43: 3
A44: BEDSTAT39 | B44: M11 | C44: Please answer these questions as of the position on Friday 1st February at 13.00 hrs | D44: Total patients in your Trust beds who were medically optimised for discharge as at Friday 1st Feb 13.00 hrs | E44: High Dependency Rehabilitation
A45: BEDSTAT40 | B45: N11 | C45: Please answer these questions as of the position on Friday 1st February at 13.00 hrs | D45: Total patients in your Trust beds who were medically optimised for discharge as at Friday 1st Feb 13.00 hrs | E45: Longer Term Complex / Continuing Care
A46: BEDSTAT41 | B46: O11 | C46: Please answer these questions as of the position on Friday 1st February at 13.00 hrs | D46: Total patients in your Trust beds who were medically optimised for discharge as at Friday 1st Feb 13.00 hrs | E46: Other adult mental health beds
A47: BEDSTAT42 | B47: P11 | C47: Please answer these questions as of the position on Friday 1st February at 13.00 hrs | D47: Total patients in your Trust beds who were medically optimised for discharge as at Friday 1st Feb 13.00 hrs | E47: CAMHS | H47: 1 | I47: 3 | J47: 0 | L47: 3
A48: BEDSTAT43 | B48: D15 | C48: Out of Area patients | D48: Total patients from your Trust area, in an out of area bed - NHS provider | E48: Adult Acute | F48: 10 | L48: 26 | M48: 1
A49: BEDSTAT44 | B49: E15 | C49: Out of Area patients | D49: Total patients from your Trust area, in an out of area bed - NHS provider | E49: Older Adult
A50: BEDSTAT45 | B50: F15 | C50: Out of Area patients | D50: Total patients from your Trust area, in an out of area bed - NHS provider | E50: Male PICU
A51: BEDSTAT46 | B51: G15 | C51: Out of Area patients | D51: Total patients from your Trust area, in an out of area bed - NHS provider | E51: Female PICU | M51: 2
A52: BEDSTAT47 | B52: H15 | C52: Out of Area patients | D52: Total patients from your Trust area, in an out of area bed - NHS provider | E52: Eating Disorders
A53: BEDSTAT48 | B53: I15 | C53: Out of Area patients | D53: Total patients from your Trust area, in an out of area bed - NHS provider | E53: Mother and Baby
A54: BEDSTAT49 | B54: J15 | C54: Out of Area patients | D54: Total patients from your Trust area, in an out of area bed - NHS provider | E54: Low Secure | N54: 10
A55: BEDSTAT50 | B55: K15 | C55: Out of Area patients | D55: Total patients from your Trust area, in an out of area bed - NHS provider | E55: Medium Secure | J55: 1 | N55: 11
A56: BEDSTAT51 | B56: L15 | C56: Out of Area patients | D56: Total patients from your Trust area, in an out of area bed - NHS provider | E56: High Secure
A57: BEDSTAT52 | B57: M15 | C57: Out of Area patients | D57: Total patients from your Trust area, in an out of area bed - NHS provider | E57: High Dependency Rehabilitation
A58: BEDSTAT53 | B58: N15 | C58: Out of Area patients | D58: Total patients from your Trust area, in an out of area bed - NHS provider | E58: Longer Term Complex / Continuing Care | J58: 1
A59: BEDSTAT54 | B59: O15 | C59: Out of Area patients | D59: Total patients from your Trust area, in an out of area bed - NHS provider | E59: Other adult mental health beds
A60: BEDSTAT55 | B60: P15 | C60: Out of Area patients | D60: Total patients from your Trust area, in an out of area bed - NHS provider | E60: CAMHS | H60: 10
A61: BEDSTAT56 | B61: D16 | C61: Out of Area patients | D61: total patients in an NHS bed in London | E61: Adult Acute | F61: 10 | L61: 26 | M61: 1
A62: BEDSTAT57 | B62: E16 | C62: Out of Area patients | D62: total patients in an NHS bed in London | E62: Older Adult
A63: BEDSTAT58 | B63: F16 | C63: Out of Area patients | D63: total patients in an NHS bed in London | E63: Male PICU
A64: BEDSTAT59 | B64: G16 | C64: Out of Area patients | D64: total patients in an NHS bed in London | E64: Female PICU | M64: 2
A65: BEDSTAT60 | B65: H16 | C65: Out of Area patients | D65: total patients in an NHS bed in London | E65: Eating Disorders
A66: BEDSTAT61 | B66: I16 | C66: Out of Area patients | D66: total patients in an NHS bed in London | E66: Mother and Baby
A67: BEDSTAT62 | B67: J16 | C67: Out of Area patients | D67: total patients in an NHS bed in London | E67: Low Secure | N67: 5
A68: BEDSTAT63 | B68: K16 | C68: Out of Area patients | D68: total patients in an NHS bed in London | E68: Medium Secure | J68: 1 | N68: 5
A69: BEDSTAT64 | B69: L16 | C69: Out of Area patients | D69: total patients in an NHS bed in London | E69: High Secure
A70: BEDSTAT65 | B70: M16 | C70: Out of Area patients | D70: total patients in an NHS bed in London | E70: High Dependency Rehabilitation
A71: BEDSTAT66 | B71: N16 | C71: Out of Area patients | D71: total patients in an NHS bed in London | E71: Longer Term Complex / Continuing Care | J71: 1
A72: BEDSTAT67 | B72: O16 | C72: Out of Area patients | D72: total patients in an NHS bed in London | E72: Other adult mental health beds
A73: BEDSTAT68 | B73: P16 | C73: Out of Area patients | D73: total patients in an NHS bed in London | E73: CAMHS | H73: 8
A74: BEDSTAT69 | B74: D17 | C74: Out of Area patients | D74: total patients in an NHS bed outside London | E74: Adult Acute
A75: BEDSTAT70 | B75: E17 | C75: Out of Area patients | D75: total patients in an NHS bed outside London | E75: Older Adult
A76: BEDSTAT71 | B76: F17 | C76: Out of Area patients | D76: total patients in an NHS bed outside London | E76: Male PICU
A77: BEDSTAT72 | B77: G17 | C77: Out of Area patients | D77: total patients in an NHS bed outside London | E77: Female PICU
A78: BEDSTAT73 | B78: H17 | C78: Out of Area patients | D78: total patients in an NHS bed outside London | E78: Eating Disorders
A79: BEDSTAT74 | B79: I17 | C79: Out of Area patients | D79: total patients in an NHS bed outside London | E79: Mother and Baby
A80: BEDSTAT75 | B80: J17 | C80: Out of Area patients | D80: total patients in an NHS bed outside London | E80: Low Secure | N80: 5
A81: BEDSTAT76 | B81: K17 | C81: Out of Area patients | D81: total patients in an NHS bed outside London | E81: Medium Secure | N81: 6
A82: BEDSTAT77 | B82: L17 | C82: Out of Area patients | D82: total patients in an NHS bed outside London | E82: High Secure
A83: BEDSTAT78 | B83: M17 | C83: Out of Area patients | D83: total patients in an NHS bed outside London | E83: High Dependency Rehabilitation
A84: BEDSTAT79 | B84: N17 | C84: Out of Area patients | D84: total patients in an NHS bed outside London | E84: Longer Term Complex / Continuing Care
A85: BEDSTAT80 | B85: O17 | C85: Out of Area patients | D85: total patients in an NHS bed outside London | E85: Other adult mental health beds
A86: BEDSTAT81 | B86: P17 | C86: Out of Area patients | D86: total patients in an NHS bed outside London | E86: CAMHS | H86: 2
A87: BEDSTAT82 | B87: D18 | C87: Out of Area patients | D87: Total patients from your Trust area, in an out of area bed - Independent Sector provider | E87: Adult Acute | F87: 13 | J87: 9 | K87: 2 | M87: 1 | N87: 2
A88: BEDSTAT83 | B88: E18 | C88: Out of Area patients | D88: Total patients from your Trust area, in an out of area bed - Independent Sector provider | E88: Older Adult
A89: BEDSTAT84 | B89: F18 | C89: Out of Area patients | D89: Total patients from your Trust area, in an out of area bed - Independent Sector provider | E89: Male PICU | K89: 4
A90: BEDSTAT85 | B90: G18 | C90: Out of Area patients | D90: Total patients from your Trust area, in an out of area bed - Independent Sector provider | E90: Female PICU | K90: 12
A91: BEDSTAT86 | B91: H18 | C91: Out of Area patients | D91: Total patients from your Trust area, in an out of area bed - Independent Sector provider | E91: Eating Disorders
A92: BEDSTAT87 | B92: I18 | C92: Out of Area patients | D92: Total patients from your Trust area, in an out of area bed - Independent Sector provider | E92: Mother and Baby
A93: BEDSTAT88 | B93: J18 | C93: Out of Area patients | D93: Total patients from your Trust area, in an out of area bed - Independent Sector provider | E93: Low Secure | H93: 7 | J93: 5 | N93: 46
A94: BEDSTAT89 | B94: K18 | C94: Out of Area patients | D94: Total patients from your Trust area, in an out of area bed - Independent Sector provider | E94: Medium Secure | N94: 21
A95: BEDSTAT90 | B95: L18 | C95: Out of Area patients | D95: Total patients from your Trust area, in an out of area bed - Independent Sector provider | E95: High Secure
A96: BEDSTAT91 | B96: M18 | C96: Out of Area patients | D96: Total patients from your Trust area, in an out of area bed - Independent Sector provider | E96: High Dependency Rehabilitation | J96: 1
A97: BEDSTAT92 | B97: N18 | C97: Out of Area patients | D97: Total patients from your Trust area, in an out of area bed - Independent Sector provider | E97: Longer Term Complex / Continuing Care | G97: 6
A98: BEDSTAT93 | B98: O18 | C98: Out of Area patients | D98: Total patients from your Trust area, in an out of area bed - Independent Sector provider | E98: Other adult mental health beds
A99: BEDSTAT94 | B99: P18 | C99: Out of Area patients | D99: Total patients from your Trust area, in an out of area bed - Independent Sector provider | E99: CAMHS | H99: 10
A100: BEDSTAT95 | B100: D19 | C100: Out of Area patients | D100: total patients in an Independent Sector bed in London | E100: Adult Acute | J100: 5 | N100: 2
A101: BEDSTAT96 | B101: E19 | C101: Out of Area patients | D101: total patients in an Independent Sector bed in London | E101: Older Adult
A102: BEDSTAT97 | B102: F19 | C102: Out of Area patients | D102: total patients in an Independent Sector bed in London | E102: Male PICU | K102: 1
A103: BEDSTAT98 | B103: G19 | C103: Out of Area patients | D103: total patients in an Independent Sector bed in London | E103: Female PICU | K103: 6
A104: BEDSTAT99 | B104: H19 | C104: Out of Area patients | D104: total patients in an Independent Sector bed in London | E104: Eating Disorders
A105: BEDSTAT100 | B105: I19 | C105: Out of Area patients | D105: total patients in an Independent Sector bed in London | E105: Mother and Baby
A106: BEDSTAT101 | B106: J19 | C106: Out of Area patients | D106: total patients in an Independent Sector bed in London | E106: Low Secure | H106: 6 | J106: 3 | N106: 13
A107: BEDSTAT102 | B107: K19 | C107: Out of Area patients | D107: total patients in an Independent Sector bed in London | E107: Medium Secure | N107: 9
A108: BEDSTAT103 | B108: L19 | C108: Out of Area patients | D108: total patients in an Independent Sector bed in London | E108: High Secure
A109: BEDSTAT104 | B109: M19 | C109: Out of Area patients | D109: total patients in an Independent Sector bed in London | E109: High Dependency Rehabilitation
A110: BEDSTAT105 | B110: N19 | C110: Out of Area patients | D110: total patients in an Independent Sector bed in London | E110: Longer Term Complex / Continuing Care | G110: 2
A111: BEDSTAT106 | B111: O19 | C111: Out of Area patients | D111: total patients in an Independent Sector bed in London | E111: Other adult mental health beds
A112: BEDSTAT107 | B112: P19 | C112: Out of Area patients | D112: total patients in an Independent Sector bed in London | E112: CAMHS | H112: 8
A113: BEDSTAT108 | B113: D20 | C113: Out of Area patients | D113: total patients in an Independent Sector bed outside London | E113: Adult Acute | F113: 13 | H113: 3 | J113: 4 | K113: 2 | L113: 31 | M113: 1
A114: BEDSTAT109 | B114: E20 | C114: Out of Area patients | D114: total patients in an Independent Sector bed outside London | E114: Older Adult
A115: BEDSTAT110 | B115: F20 | C115: Out of Area patients | D115: total patients in an Independent Sector bed outside London | E115: Male PICU | K115: 3 | L115: 4
A116: BEDSTAT111 | B116: G20 | C116: Out of Area patients | D116: total patients in an Independent Sector bed outside London | E116: Female PICU | K116: 6 | L116: 1
A117: BEDSTAT112 | B117: H20 | C117: Out of Area patients | D117: total patients in an Independent Sector bed outside London | E117: Eating Disorders
A118: BEDSTAT113 | B118: I20 | C118: Out of Area patients | D118: total patients in an Independent Sector bed outside London | E118: Mother and Baby
A119: BEDSTAT114 | B119: J20 | C119: Out of Area patients | D119: total patients in an Independent Sector bed outside London | E119: Low Secure | H119: 1 | J119: 2 | N119: 33
A120: BEDSTAT115 | B120: K20 | C120: Out of Area patients | D120: total patients in an Independent Sector bed outside London | E120: Medium Secure | N120: 12
A121: BEDSTAT116 | B121: L20 | C121: Out of Area patients | D121: total patients in an Independent Sector bed outside London | E121: High Secure
A122: BEDSTAT117 | B122: M20 | C122: Out of Area patients | D122: total patients in an Independent Sector bed outside London | E122: High Dependency Rehabilitation | J122: 1
A123: BEDSTAT118 | B123: N20 | C123: Out of Area patients | D123: total patients in an Independent Sector bed outside London | E123: Longer Term Complex / Continuing Care | G123: 4
A124: BEDSTAT119 | B124: O20 | C124: Out of Area patients | D124: total patients in an Independent Sector bed outside London | E124: Other adult mental health beds
A125: BEDSTAT120 | B125: P20 | C125: Out of Area patients | D125: total patients in an Independent Sector bed outside London | E125: CAMHS | H125: 2
A126: BEDSTAT121 | B126: D21 | C126: Out of Area patients | D126: Total patients in your Trust beds who were from outside your catchment area | E126: Adult Acute | I126: 31 | K126: 3 | L126: 58 | M126: 7 | N126: 5
A127: BEDSTAT122 | B127: E21 | C127: Out of Area patients | D127: Total patients in your Trust beds who were from outside your catchment area | E127: Older Adult | L127: 1
A128: BEDSTAT123 | B128: F21 | C128: Out of Area patients | D128: Total patients in your Trust beds who were from outside your catchment area | E128: Male PICU | L128: 2 | M128: 1
A129: BEDSTAT124 | B129: G21 | C129: Out of Area patients | D129: Total patients in your Trust beds who were from outside your catchment area | E129: Female PICU | G129: 6 | L129: 4
A130: BEDSTAT125 | B130: H21 | C130: Out of Area patients | D130: Total patients in your Trust beds who were from outside your catchment area | E130: Eating Disorders | L130: 10 | M130: 8
A131: BEDSTAT126 | B131: I21 | C131: Out of Area patients | D131: Total patients in your Trust beds who were from outside your catchment area | E131: Mother and Baby | L131: 12
A132: BEDSTAT127 | B132: J21 | C132: Out of Area patients | D132: Total patients in your Trust beds who were from outside your catchment area | E132: Low Secure | L132: 2 | M132: 6 | N132: 2
A133: BEDSTAT128 | B133: K21 | C133: Out of Area patients | D133: Total patients in your Trust beds who were from outside your catchment area | E133: Medium Secure | L133: 16 | M133: 11 | N133: 3
A134: BEDSTAT129 | B134: L21 | C134: Out of Area patients | D134: Total patients in your Trust beds who were from outside your catchment area | E134: High Secure | L134: 0
A135: BEDSTAT130 | B135: M21 | C135: Out of Area patients | D135: Total patients in your Trust beds who were from outside your catchment area | E135: High Dependency Rehabilitation | L135: 2
A136: BEDSTAT131 | B136: N21 | C136: Out of Area patients | D136: Total patients in your Trust beds who were from outside your catchment area | E136: Longer Term Complex / Continuing Care | L136: 0
A137: BEDSTAT132 | B137: O21 | C137: Out of Area patients | D137: Total patients in your Trust beds who were from outside your catchment area | E137: Other adult mental health beds | L137: 24 | M137: 18
A138: BEDSTAT133 | B138: P21 | C138: Out of Area patients | D138: Total patients in your Trust beds who were from outside your catchment area | E138: CAMHS | J138: 4 | L138: 23 | M138: 12
A139: BEDSTAT134 | B139: D22 | C139: Out of Area patients | D139: total patients from the London area (but not your own Trust area) | E139: Adult Acute | I139: 25 | J139: 1 | K139: 3 | L139: 10 | M139: 6 | N139: 3
A140: BEDSTAT135 | B140: E22 | C140: Out of Area patients | D140: total patients from the London area (but not your own Trust area) | E140: Older Adult | L140: 1
A141: BEDSTAT136 | B141: F22 | C141: Out of Area patients | D141: total patients from the London area (but not your own Trust area) | E141: Male PICU | M141: 1
A142: BEDSTAT137 | B142: G22 | C142: Out of Area patients | D142: total patients from the London area (but not your own Trust area) | E142: Female PICU | G142: 4
A143: BEDSTAT138 | B143: H22 | C143: Out of Area patients | D143: total patients from the London area (but not your own Trust area) | E143: Eating Disorders | L143: 5
A144: BEDSTAT139 | B144: I22 | C144: Out of Area patients | D144: total patients from the London area (but not your own Trust area) | E144: Mother and Baby | I144: 4 | L144: 6
A145: BEDSTAT140 | B145: J22 | C145: Out of Area patients | D145: total patients from the London area (but not your own Trust area) | E145: Low Secure | L145: 1 | N145: 2
A146: BEDSTAT141 | B146: K22 | C146: Out of Area patients | D146: total patients from the London area (but not your own Trust area) | E146: Medium Secure | L146: 8 | M146: 8 | N146: 1
A147: BEDSTAT142 | B147: L22 | C147: Out of Area patients | D147: total patients from the London area (but not your own Trust area) | E147: High Secure
A148: BEDSTAT143 | B148: M22 | C148: Out of Area patients | D148: total patients from the London area (but not your own Trust area) | E148: High Dependency Rehabilitation | L148: 1
A149: BEDSTAT144 | B149: N22 | C149: Out of Area patients | D149: total patients from the London area (but not your own Trust area) | E149: Longer Term Complex / Continuing Care
A150: BEDSTAT145 | B150: O22 | C150: Out of Area patients | D150: total patients from the London area (but not your own Trust area) | E150: Other adult mental health beds | L150: 10 | M150: 5
A151: BEDSTAT146 | B151: P22 | C151: Out of Area patients | D151: total patients from the London area (but not your own Trust area) | E151: CAMHS | J151: 3 | L151: 4 | M151: 8
A152: BEDSTAT147 | B152: D23 | C152: Out of Area patients | D152: total patients from outside the London area | E152: Adult Acute | I152: 6 | L152: 48 | M152: 1 | N152: 2
A153: BEDSTAT148 | B153: E23 | C153: Out of Area patients | D153: total patients from outside the London area | E153: Older Adult
A154: BEDSTAT149 | B154: F23 | C154: Out of Area patients | D154: total patients from outside the London area | E154: Male PICU | L154: 2
A155: BEDSTAT150 | B155: G23 | C155: Out of Area patients | D155: total patients from outside the London area | E155: Female PICU | G155: 2 | L155: 4
A156: BEDSTAT151 | B156: H23 | C156: Out of Area patients | D156: total patients from outside the London area | E156: Eating Disorders | L156: 5 | M156: 8
A157: BEDSTAT152 | B157: I23 | C157: Out of Area patients | D157: total patients from outside the London area | E157: Mother and Baby | I157: 1 | L157: 6
A158: BEDSTAT153 | B158: J23 | C158: Out of Area patients | D158: total patients from outside the London area | E158: Low Secure | L158: 1 | M158: 6
A159: BEDSTAT154 | B159: K23 | C159: Out of Area patients | D159: total patients from outside the London area | E159: Medium Secure | L159: 8 | M159: 3 | N159: 2
A160: BEDSTAT155 | B160: L23 | C160: Out of Area patients | D160: total patients from outside the London area | E160: High Secure
A161: BEDSTAT156 | B161: M23 | C161: Out of Area patients | D161: total patients from outside the London area | E161: High Dependency Rehabilitation | L161: 1
A162: BEDSTAT157 | B162: N23 | C162: Out of Area patients | D162: total patients from outside the London area | E162: Longer Term Complex / Continuing Care
A163: BEDSTAT158 | B163: O23 | C163: Out of Area patients | D163: total patients from outside the London area | E163: Other adult mental health beds | L163: 14 | M163: 13
A164: BEDSTAT159 | B164: P23 | C164: Out of Area patients | D164: total patients from outside the London area | E164: CAMHS | J164: 1 | L164: 19 | M164: 4

Sheet Org_Baseline (hidden)
F4: MH30 | G4: MH04 | H4: MH44 | I4: MH33 | J4: MH10 | K4: MH34 | L4: MH29 | M4: MH63 | N4: MH11 | O4: MH38 | P4: MH23 | Q4: MH12 | R4: MH40 | S4: MH39 | T4: MH56 | U4: MH27 | V4: MH05 | W4: MH53 | X4: MH48 | Y4: MH72 | Z4: MH74 | AA4: MH21 | AB4: MH06 | AC4: MH61 | AD4: MH25 | AE4: MH41 | AF4: MH57 | AG4: MH36 | AH4: MH02 | AI4: MH43 | AJ4: MH37 | AK4: MH18 | AL4: MH15 | AM4: MH65 | AN4: MH60 | AO4: MH42 | AP4: MH54 | AQ4: MH28 | AR4: MH24 | AS4: MH17 | AT4: MH35 | AU4: MH26 | AV4: MH66 | AW4: MH07 | AX4: MH09 | AY4: MH45 | AZ4: MH19 | BA4: MH22 | BB4: MH32 | BC4: MH20 | BD4: MH50 | BE4: MH03 | BF4: MH08 | BG4: MH52 | BH4: MH64 | BI4: MH69 | BJ4: MH68 | BK4: MH70 | BL4: MH84 | BM4: MH80 | BN4: MH81 | BO4: MH82 | BP4: MH31 | BQ4: MH16 | BR4: MH01 | BS4: MH55 | BT4: MH67 | BU4: MH51 | BV4: MH58 | BW4: MH59 | BX4: MH71
A5: Unique Ref. | B5: Cell Ref | C5: Title | D5: Sub Title | E5: Line | F5: Q39 | G5: Q39 | H5: Q36 | I5: Q38 | J5: Q34 | K5: Q34 | L5: Q32 | M5: Q35 | N5: Q36 | O5: Q31 | P5: Q36 | Q5: Q39 | R5: Q34 | S5: Q31 | T5: Q33 | U5: Q39 | V5: Q39 | W5: Q34 | X5: Q36 | Y5: Q35 | Z5: Q31 | AA5: Q35 | AB5: Q32 | AC5: Q38 | AD5: Q37 | AE5: Q31 | AF5: Q32 | AG5: Q33 | AH5: Q33 | AI5: Q39 | AJ5: Q31 | AK5: Q34 | AL5: Q35 | AM5: Q36 | AN5: Q34 | AO5: Q31 | AP5: Q33 | AQ5: Q32 | AR5: Q33 | AS5: Q38 | AT5: Q36 | AU5: Q31 | AV5: Q32 | AW5: Q32 | AX5: Q36 | AY5: Q38 | AZ5: Q39 | BA5: Q36 | BB5: Q32 | BC5: Q38 | BD5: Q37 | BE5: Q37 | BF5: Q32 | BG5: Q36 | BH5: Q34 | BI5: Q80 | BJ5: Q97 | BK5: Q97 | BL5: Q97 | BM5: Q70 | BN5: Q70 | BO5: Q70 | BP5: Q71 | BQ5: Q98 | BR5: Q99 | BS5: Q99 | BT5: Q99 | BU5: Q99 | BV5: Q99 | BW5: Q99 | BX5: Q99
A6: OB1 | B6: C8 | C6: ORGANISATIONAL BASELINE | D6: Organisation details questions
A7: OB2 | B7: C9 | C7: ORGANISATIONAL BASELINE | D7: Organisation details questions
A8: OB3 | B8: C10 | C8: ORGANISATIONAL BASELINE | D8: Organisation details questions
A9: OB4 | B9: C11 | C9: ORGANISATIONAL BASELINE | D9: Organisation details questions
A10: OB5 | B10: C12 | C10: ORGANISATIONAL BASELINE | D10: Organisation details questions
A11: OB6 | B11: C13 | C11: ORGANISATIONAL BASELINE | D11: Organisation details questions | E11: Does your Organisation wish to remain anonymous in any subsequent good practice analysis? | F11: No | G11: No | H11: No | I11: No | J11: Yes | K11: No | L11: Yes | M11: Yes | N11: No | O11: No | P11: Yes | Q11: No | R11: ^^^ | S11: No | T11: Yes | U11: Yes | V11: No | W11: No | X11: No | Y11: Yes | Z11: ^^^ | AA11: No | AB11: No | AC11: Yes | AD11: Yes | AE11: No | AF11: Yes | AG11: Yes | AH11: No | AI11: No | AJ11: Yes | AK11: No | AL11: No | AM11: No | AN11: Yes | AO11: No | AP11: Yes | AQ11: No | AR11: Yes | AS11: Yes | AT11: Yes | AU11: Yes | AV11: Yes | AW11: No | AX11: Yes | AY11: Yes | AZ11: Yes | BA11: Yes | BB11: No | BC11: Yes | BD11: No | BE11: No | BF11: No | BG11: Yes | BH11: ^^^ | BI11: Yes | BJ11: No | BK11: No | BL11: Yes | BM11: No | BN11: No | BO11: No | BP11: Yes | BQ11: No | BR11: No | BS11: No | BT11: No | BU11: No | BV11: No | BW11: Yes | BX11: No
A12: OB7 | B12: C14 | C12: ORGANISATIONAL BASELINE | D12: Organisation details questions | E12: Organisation turnover 2017/18 | F12: 119589000 | G12: 220212000 | H12: 227973974 | I12: 250681558 | J12: 235332963 | K12: 99640878 | L12: 132606707 | M12: 224961000 | N12: 150800000 | O12: 163238000 | P12: 490022186.4 | Q12: 180533000 | R12: 213700000 | S12: 180157000 | T12: 141119000 | U12: 153948000 | V12: 246622000 | W12: 67560000 | X12: 390543000 | Y12: ^^^ | Z12: 268178769 | AA12: 229847000 | AB12: 115715146 | AC12: 171126000 | AD12: 168931241.3 | AE12: 345940000 | AF12: 156513000 | AG12: 274503000 | AH12: 104023000 | AI12: 126657000 | AJ12: 276581168 | AK12: 206565805 | AL12: 227211000 | AM12: 370268399 | AN12: 72812233 | AO12: 180262000 | AP12: 186736000 | AQ12: 315510000 | AR12: 438045000 | AS12: 317838000 | AT12: 257400000 | AU12: 267469000 | AV12: 163235000 | AW12: 124496000 | AX12: 381066000 | AY12: 178922246 | AZ12: 174212000 | BA12: 166004000 | BB12: 222748000 | BC12: ^^^ | BD12: 193474000 | BE12: 251099449 | BF12: 326538000 | BG12: 263126000 | BH12: 179527000 | BI12: ^^^ | BJ12: 1317610792 | BK12: 758735000 | BL12: 641779756 | BM12: 107977904 | BN12: 107977904 | BO12: 107977904 | BP12: 179252678.8 | BQ12: 3264751000 | BR12: 1326000000 | BS12: 908172000 | BT12: 1344415000 | BU12: 1280000000 | BV12: 645338000 | BW12: 833501190 | BX12: 293730000
A13: OB8 | B13: C15 | C13: ORGANISATIONAL BASELINE | D13: Organisation details questions | E13: Organisation turnover 2017/18 relating to mental health provision | F13: ^^^ | G13: 220212000 | H13: 104104603 | I13: 102340000 | J13: 218546196 | K13: 55106438 | L13: 72429274 | M13: 111747000 | N13: 114201000 | O13: 78967565 | P13: 304056530.4 | Q13: ^^^ | R13: 134490000 | S13: 64330000 | T13: 107921000 | U13: 121371391 | V13: 61158000 | W13: 59050000 | X13: 306500000 | Y13: ^^^ | Z13: 225890410 | AA13: ^^^ | AB13: 59800097 | AC13: 22628039 | AD13: 168931241.3 | AE13: 184182000 | AF13: ^^^ | AG13: 88149000 | AH13: 96079000 | AI13: 35464000 | AJ13: 204016154 | AK13: 95071346.11 | AL13: ^^^ | AM13: 157569697 | AN13: ^^^ | AO13: 116408795 | AP13: 68072000 | AQ13: 172706605.7 | AR13: 101684000 | AS13: 170414000 | AT13: 111000000 | AU13: 144262000 | AV13: 63425200 | AW13: 64946738.75 | AX13: ^^^ | AY13: 21538779 | AZ13: 56736701 | BA13: 117973482.4 | BB13: 162180000 | BC13: ^^^ | BD13: 72601501 | BE13: 156858989 | BF13: 210988627 | BG13: 257778000 | BH13: 59295159 | BI13: ^^^ | BJ13: 35147070 | BK13: 110495971.9 | BL13: 35026966 | BM13: 21111630 | BN13: 21111630 | BO13: 21111630 | BP13: 106206808.7 | BQ13: 234891437 | BR13: 64534761 | BS13: ^^^ | BT13: 77145684 | BU13: 84493000 | BV13: 26469898 | BW13: 23648992 | BX13: 11696766
A14: OB9 | B14: C16 | C14: ORGANISATIONAL BASELINE | D14: Organisation details questions | E14: Organisation WTE staff employed | F14: 1945.92 | G14: 3533 | H14: 2859.7 | I14: 3914.8 | J14: 3563.45 | K14: 1733 | L14: 2574 | M14: 3530.3 | N14: 1533.56 | O14: 3110 | P14: 7018.265369 | Q14: 3105 | R14: 3408.68 | S14: ^^^ | T14: 2347.34 | U14: 2371 | V14: ^^^ | W14: 1031 | X14: 5687.56 | Y14: 5133.7 | Z14: 5257.96 | AA14: 3432 | AB14: 2163.1 | AC14: 622.7 | AD14: 2933.52465 | AE14: 6435.71 | AF14: 2294.14 | AG14: 4581 | AH14: 1787.74 | AI14: 2364.12 | AJ14: 4541.11 | AK14: 3356.52 | AL14: 4103 | AM14: 6045.81 | AN14: 1295.6 | AO14: 3535.62 | AP14: 3140.98 | AQ14: 6289.05 | AR14: 7707.8 | AS14: 4605 | AT14: ^^^ | AU14: 4860.71 | AV14: 2998.28 | AW14: 2341 | AX14: 5237 | AY14: 2937.4 | AZ14: 2981.3 | BA14: 2369 | BB14: 4196.32 | BC14: ^^^ | BD14: 2252.3 | BE14: 4483.27 | BF14: 6080.01 | BG14: 3799 | BH14: 2990.9 | BI14: 2336 | BJ14: 20647.19 | BK14: 9642 | BL14: 8462.54 | BM14: ^^^ | BN14: ^^^ | BO14: ^^^ | BP14: 3268.7 | BQ14: 38126 | BR14: 1633 | BS14: 11218.25 | BT14: 15966.83 | BU14: 12695 | BV14: 7326.5451 | BW14: 8685.71 | BX14: 1741.89
A15: OB10 | B15: C17 | C15: ORGANISATIONAL BASELINE | D15: Organisation details questions | E15: Organisation WTE staff employed relating to mental health provision | F15: ^^^ | G15: 3533 | H15: 2029.7 | I15: 881.5 | J15: 2604.49 | K15: 778 | L15: 912.2 | M15: 1052 | N15: 253.29 | O15: 1254.4 | P15: 4577.616762 | Q15: 626.4 | R15: 1367.92 | S15: ^^^ | T15: 1290.72 | U15: 1841 | V15: 1109.12 | W15: 860 | X15: 2967.04 | Y15: 2557.2 | Z15: 4434.83 | AA15: 1425 | AB15: 1014.4 | AC15: ^^^ | AD15: 1969.7 | AE15: 3770.92 | AF15: ^^^ | AG15: 1125.7 | AH15: 1288.55 | AI15: 521.11 | AJ15: 3154.03 | AK15: 1066.01 | AL15: 2238.59 | AM15: 1342.7 | AN15: 427 | AO15: 1411.82 | AP15: 625.68 | AQ15: 2893.602415 | AR15: 4642.5 | AS15: 1395.89 | AT15: ^^^ | AU15: 2385.71 | AV15: 1021.2 | AW15: 995 | AX15: ^^^ | AY15: 291.4 | AZ15: 657.1 | BA15: 1436.44 | BB15: 1384.7 | BC15: ^^^ | BD15: ^^^ | BE15: 2210.62 | BF15: 3035.39 | BG15: 3721 | BH15: 481.9 | BI15: 211 | BJ15: 798.9 | BK15: 865.55 | BL15: 439 | BM15: ^^^ | BN15: ^^^ | BO15: ^^^ | BP15: 1594.36 | BQ15: 3463.6 | BR15: 1617 | BS15: 902 | BT15: 1332.13 | BU15: 1258.87 | BV15: 569.31269 | BW15: 624.12 | BX15: 272.4
A16: OB11 | B16: C19 | C16: ORGANISATIONAL BASELINE | D16: Baseline demographic questions | E16: Core Registered population covered by service - Adults of working age (16-64) | F16: 512323 | G16: 1211736 | H16: 712618 | I16: 647217 | J16: 960259 | K16: 395406 | L16: 396893 | M16: 614721 | N16: 388011 | O16: 679206 | P16: 1189943 | Q16: 340386 | R16: 620877 | S16: 320377 | T16: 659802 | U16: 537602 | V16: 480926 | W16: 370048 | X16: 1180137 | Y16: 1160641 | Z16: 950188.3064 | AA16: 797183 | AB16: 373795.7085 | AC16: 82989 | AD16: 1151698.54 | AE16: 968915 | AF16: 579020 | AG16: 711023 | AH16: 584791 | AI16: 178011 | AJ16: 551865 | AK16: 698402.4079 | AL16: 1028610 | AM16: 733165 | AN16: 318112 | AO16: 662188.4083 | AP16: 479344 | AQ16: 967735 | AR16: 760770 | AS16: 822336 | AT16: 570477 | AU16: 783814 | AV16: 469883 | AW16: 389893 | AX16: 1036628 | AY16: 178819 | AZ16: 340443 | BA16: 859688 | BB16: 821732 | BC16: 930516 | BD16: 890618 | BE16: 1087533 | BF16: 1235733 | BG16: 680824 | BH16: 363000 | BI16: 70074 | BJ16: 292155 | BK16: 295502 | BL16: 220568 | BM16: ^^^ | BN16: ^^^ | BO16: ^^^ | BP16: ^^^ | BQ16: 912786 | BR16: 351691 | BS16: 381278 | BT16: 431021 | BU16: 343016 | BV16: 193014 | BW16: 231624 | BX16: 74238
A17: OB12 | B17: C20 | C17: ORGANISATIONAL BASELINE | D17: Baseline demographic questions | E17: Core Weighted population covered by the service (adults of working age 16-64) | F17: 413536 | G17: 988996 | H17: 878945 | I17: 686827 | J17: 1515558 | K17: 506673 | L17: 489552 | M17: 491632 | N17: 651117 | O17: 828468 | P17: 1175340 | Q17: 231639 | R17: 674399 | S17: 285892 | T17: 720061 | U17: 519347 | V17: 523478 | W17: 376785 | X17: 1636789 | Y17: 1062782 | Z17: 1392706.237 | AA17: 786230 | AB17: 289957.4347 | AC17: 61776 | AD17: 993236.9812 | AE17: 1061071 | AF17: 584812 | AG17: 710605 | AH17: 492050 | AI17: ^^^ | AJ17: 796315 | AK17: 546934.0604 | AL17: 872511 | AM17: 754745 | AN17: 470190 | AO17: 680451.0515 | AP17: 586148 | AQ17: 950987 | AR17: 775369 | AS17: 741914 | AT17: 796872 | AU17: 981656 | AV17: 444045 | AW17: 444078 | AX17: 1827998 | AY17: 182245 | AZ17: 323284 | BA17: 1067974 | BB17: 630733 | BC17: 865174 | BD17: 662344 | BE17: 1145834 | BF17: 1262996 | BG17: 884603 | BH17: 215430 | BI17: ^^^ | BJ17: ^^^ | BK17: ^^^ | BL17: 190572x | BM17: ^^^ | BN17: ^^^ | BO17: ^^^ | BP17: ^^^ | BQ17: 1495261 | BR17: ^^^ | BS17: ^^^ | BT17: ^^^ | BU17: ^^^ | BV17: ^^^ | BW17: ^^^ | BX17: ^^^
A18: OB13 | B18: C21 | C18: ORGANISATIONAL BASELINE | D18: Baseline demographic questions | E18: Core Registered population covered by service - Older People ( aged 65+) | F18: 174650 | G18: 334386 | H18: 129983 | I18: 140492 | J18: 204627 | K18: 86169 | L18: 91974 | M18: 152259 | N18: 46187 | O18: 221361 | P18: 202562 | Q18: 134839 | R18: 170058 | S18: 117757 | T18: 202676 | U18: 223447 | V18: 188689 | W18: 111808 | X18: 171616 | Y18: 357786 | Z18: 187288.0669 | AA18: 202722 | AB18: 118797.7396 | AC18: 37569 | AD18: 352314.9449 | AE18: 276982 | AF18: 127461 | AG18: 185251 | AH18: 210889 | AI18: 49455 | AJ18: 141726 | AK18: 231172.9798 | AL18: 382733 | AM18: 136681 | AN18: 94984 | AO18: 183337.1454 | AP18: 123274 | AQ18: 237912 | AR18: 202985 | AS18: 218710 | AT18: 131065 | AU18: 207072 | AV18: 141265 | AW18: 95627 | AX18: 138389 | AY18: 32070 | AZ18: 130287 | BA18: 145709 | BB18: 221582 | BC18: 290467 | BD18: 251118 | BE18: 368306 | BF18: 412961 | BG18: 98489 | BH18: 124828 | BI18: 17099 | BJ18: 61980 | BK18: 81651 | BL18: 67207 | BM18: ^^^ | BN18: ^^^ | BO18: ^^^ | BP18: ^^^ | BQ18: 208302 | BR18: 107523 | BS18: 119090 | BT18: 158064 | BU18: 79186 | BV18: 57827 | BW18: 92879 | BX18: 32742
A19: OB14 | B19: C22 | C19: ORGANISATIONAL BASELINE | D19: Baseline demographic questions | E19: Core Weighted population covered by the service - Older People (aged 65+) | F19: 318192 | G19: 536078 | H19: 255047 | I19: 344421 | J19: 467285 | K19: 169439 | L19: 171068 | M19: 239548 | N19: 132777 | O19: 450140 | P19: 310725 | Q19: 164488 | R19: 331171 | S19: 155295 | T19: 347468 | U19: 317362 | V19: 279905 | W19: 167744 | X19: 382247 | Y19: 616423 | Z19: 429746.8606 | AA19: 381920 | AB19: 140284.6101 | AC19: 40169 | AD19: 518213.7241 | AE19: 411398 | AF19: 254818 | AG19: 285213 | AH19: 296246 | AI19: ^^^ | AJ19: 291160 | AK19: 323292.3906 | AL19: 528790 | AM19: 235778 | AN19: 178731 | AO19: 342990.9715 | AP19: 251755 | AQ19: 493196 | AR19: 374914 | AS19: 329814 | AT19: 241288 | AU19: 358291 | AV19: 228501 | AW19: 185143 | AX19: 336897 | AY19: 62670 | AZ19: 206707 | BA19: 308628 | BB19: 351652 | BC19: 411492 | BD19: 419384 | BE19: 591875 | BF19: 848239 | BG19: 200307 | BH19: 164145 | BI19: ^^^ | BJ19: ^^^ | BK19: ^^^ | BL19: 61554x | BM19: ^^^ | BN19: ^^^ | BO19: ^^^ | BP19: ^^^ | BQ19: 501581 | BR19: ^^^ | BS19: ^^^ | BT19: ^^^ | BU19: ^^^ | BV19: ^^^ | BW19: ^^^ | BX19: ^^^
A20: OB15 | E20: Total Registered Population | F20: 686973 | G20: 1546122 | H20: 842601 | I20: 787709 | J20: 1164886 | K20: 481575 | L20: 488867 | M20: 766980 | N20: 434198 | O20: 900567 | P20: 1392505 | Q20: 475225 | R20: 790935 | S20: 438134 | T20: 862478 | U20: 761049 | V20: 669615 | W20: 481856 | X20: 1351753 | Y20: 1518427 | Z20: 1137476.373 | AA20: 999905 | AB20: 492593.4481 | AC20: 120558 | AD20: 1504013.485 | AE20: 1245897 | AF20: 706481 | AG20: 896274 | AH20: 795680 | AI20: 227466 | AJ20: 693591 | AK20: 929575.3877 | AL20: 1411343 | AM20: 869846 | AN20: 413096 | AO20: 845525.5538 | AP20: 602618 | AQ20: 1205647 | AR20: 963755 | AS20: 1041046 | AT20: 701542 | AU20: 990886 | AV20: 611148 | AW20: 485520 | AX20: 1175017 | AY20: 210889 | AZ20: 470730 | BA20: 1005397 | BB20: 1043314 | BC20: 1220983 | BD20: 1141736 | BE20: 1455839 | BF20: 1648694 | BG20: 779313 | BH20: 487828 | BI20: 87173 | BJ20: 354135 | BK20: 377153 | BL20: 287775 | BM20: ^^^ | BN20: ^^^ | BO20: ^^^ | BP20: ^^^ | BQ20: 1121088 | BR20: 459214 | BS20: 500368 | BT20: 589085 | BU20: 422202 | BV20: 250841 | BW20: 324503 | BX20: 106980
A21: OB16 | E21: Total Weighted Population | F21: 731728 | G21: 1525074 | H21: 1133992 | I21: 1031248 | J21: 1982843 | K21: 676112 | L21: 660620 | M21: 731180 | N21: 783894 | O21: 1278608 | P21: 1486065 | Q21: 396127 | R21: 1005570 | S21: 441187 | T21: 1067529 | U21: 836709 | V21: 803383 | W21: 544529 | X21: 2019036 | Y21: 1679205 | Z21: 1822453.098 | AA21: 1168150 | AB21: 430242.0448 | AC21: 101945 | AD21: 1511450.705 | AE21: 1472469 | AF21: 839630 | AG21: 995818 | AH21: 788296 | AI21: ^^^ | AJ21: 1087475 | AK21: 870226.451 | AL21: 1401301 | AM21: 990523 | AN21: 648921 | AO21: 1023442.023 | AP21: 837903 | AQ21: 1444183 | AR21: 1150283 | AS21: 1071728 | AT21: 1038160 | AU21: 1339947 | AV21: 672546 | AW21: 629221 | AX21: 2164895 | AY21: 244915 | AZ21: 529991 | BA21: 1376602 | BB21: 982385 | BC21: 1276666 | BD21: 1081728 | BE21: 1737709 | BF21: 2111235 | BG21: 1084910 | BH21: 379575 | BI21: ^^^ | BJ21: ^^^ | BK21: ^^^ | BM21: ^^^ | BN21: ^^^ | BO21: ^^^ | BP21: ^^^ | BQ21: 1996842 | BR21: ^^^ | BS21: ^^^ | BT21: ^^^ | BU21: ^^^ | BV21: ^^^ | BW21: ^^^ | BX21: ^^^

Sheet CFW (hidden)
F4: MH30 | G4: MH04 | H4: MH44 | I4: MH33 | J4: MH10 | K4: MH34 | L4: MH29 | M4: MH63 | N4: MH11 | O4: MH38 | P4: MH23 | Q4: MH12 | R4: MH40 | S4: MH39 | T4: MH56 | U4: MH27 | V4: MH05 | W4: MH53 | X4: MH48 | Y4: MH72 | Z4: MH74 | AA4: MH21 | AB4: MH06 | AC4: MH61 | AD4: MH25 | AE4: MH41 | AF4: MH57 | AG4: MH36 | AH4: MH02 | AI4: MH43 | AJ4: MH37 | AK4: MH18 | AL4: MH15 | AM4: MH65 | AN4: MH60 | AO4: MH42 | AP4: MH54 | AQ4: MH28 | AR4: MH24 | AS4: MH17 | AT4: MH35 | AU4: MH26 | AV4: MH66 | AW4: MH07 | AX4: MH09 | AY4: MH45 | AZ4: MH19 | BA4: MH22 | BB4: MH32 | BC4: MH20 | BD4: MH50 | BE4: MH03 | BF4: MH08 | BG4: MH52 | BH4: MH64 | BI4: MH69 | BJ4: MH68 | BK4: MH70 | BL4: MH84 | BM4: MH80 | BN4: MH81 | BO4: MH82 | BP4: MH31 | BQ4: MH16 | BR4: MH01 | BS4: MH55 | BT4: MH67 | BU4: MH51 | BV4: MH58 | BW4: MH59 | BX4: MH71
A5: Unique Ref. | B5: Cell Ref | C5: Title | D5: Sub Title | E5: Line | F5: Q39 | G5: Q39 | H5: Q36 | I5: Q38 | J5: Q34 | K5: Q34 | L5: Q32 | M5: Q35 | N5: Q36 | O5: Q31 | P5: Q36 | Q5: Q39 | R5: Q34 | S5: Q31 | T5: Q33 | U5: Q39 | V5: Q39 | W5: Q34 | X5: Q36 | Y5: Q35 | Z5: Q31 | AA5: Q35 | AB5: Q32 | AC5: Q38 | AD5: Q37 | AE5: Q31 | AF5: Q32 | AG5: Q33 | AH5: Q33 | AI5: Q39 | AJ5: Q31 | AK5: Q34 | AL5: Q35 | AM5: Q36 | AN5: Q34 | AO5: Q31 | AP5: Q33 | AQ5: Q32 | AR5: Q33 | AS5: Q38 | AT5: Q36 | AU5: Q31 | AV5: Q32 | AW5: Q32 | AX5: Q36 | AY5: Q38 | AZ5: Q39 | BA5: Q36 | BB5: Q32 | BC5: Q38 | BD5: Q37 | BE5: Q37 | BF5: Q32 | BG5: Q36 | BH5: Q34 | BI5: Q80 | BJ5: Q97 | BK5: Q97 | BL5: Q97 | BM5: Q70 | BN5: Q70 | BO5: Q70 | BP5: Q71 | BQ5: Q98 | BR5: Q99 | BS5: Q99 | BT5: Q99 | BU5: Q99 | BV5: Q99 | BW5: Q99 | BX5: Q99
A6: CFW79 | B6: B7 | C6: Community Based Mental Health Teams - Team Composition WTE | D6: Community Psychiatric Nurses (CPN) - Band 5 | E6: Generic CMHT | F6: ^^^ | G6: 20.44 | H6: 6 | I6: ^^^ | J6: 29.42 | K6: 8.18 | L6: 1 | M6: 3 | N6: 2 | O6: 5.33 | P6: 29.83 | Q6: 19.79 | R6: 7.36 | S6: ^^^ | T6: 44.16 | U6: 8.11 | V6: 0.6 | W6: 1.6 | X6: 14.82 | Y6: 6.6 | Z6: 40.11 | AA6: 22.47 | AB6: 26.1 | AC6: ^^^ | AD6: 17.2 | AE6: 10.51 | AF6: 25.62 | AG6: 4.02 | AH6: 22.76 | AI6: 7.48 | AJ6: 28.6 | AK6: 49.82 | AL6: 51.28 | AM6: 6.95 | AN6: 19.81 | AO6: 17.8 | AP6: 7.6 | AQ6: 49.27 | AR6: 19.13 | AS6: 4.65 | AT6: 0.43 | AU6: 14.3 | AV6: 3 | AW6: 7.23 | AX6: 2.01 | AY6: 1.96 | AZ6: 1.65 | BA6: 3.66 | BB6: 36.67 | BC6: 21.94 | BD6: 7.92 | BE6: 22.74 | BF6: 62.2 | BG6: 8 | BH6: ^^^ | BI6: 14.48 | BJ6: 0 | BK6: 0 | BL6: 0 | BM6: ^^^ | BN6: ^^^ | BO6: ^^^ | BP6: ^^^ | BQ6: 88.4 | BR6: 3.85 | BS6: 3.4 | BT6: 24.49 | BU6: 2.04 | BV6: ^^^ | BW6: 0 | BX6: ^^^
A7: CFW80 | B7: C7 | C7: Community Based Mental Health Teams - Team Composition WTE | D7: Community Psychiatric Nurses (CPN) - Band 5 | E7: CRHT | F7: 10.29 | G7: 7 | H7: 9 | I7: 1.08 | J7: 8.83 | K7: 12.29 | L7: 4 | M7: 1.8 | N7: 6.46 | O7: 3.65 | P7: 34.09 | Q7: 8.38 | R7: 2 | S7: ^^^ | T7: 4 | U7: 1 | V7: 5.44 | W7: 7.6 | X7: 9.59 | Y7: 5.6 | Z7: 34.44 | AA7: 0.34 | AB7: 8.7 | AC7: ^^^ | AD7: 9.91 | AE7: 1.67 | AF7: 19.63 | AG7: 6.28 | AH7: ^^^ | AI7: 0.9 | AJ7: ^^^ | AK7: 14.95 | AL7: 19.22 | AM7: 7 | AN7: 3.8 | AO7: ^^^ | AP7: 11.9 | AQ7: 15.58 | AR7: 0.01 | AS7: ^^^ | AT7: 1 | AU7: 2 | AV7: 1 | AW7: 9.56 | AX7: 21.59 | AY7: 0 | AZ7: 1 | BA7: 4.2 | BB7: 20.07 | BC7: 8.56 | BD7: 3.96 | BE7: 12.6 | BF7: 18.78 | BG7: 6.05 | BH7: ^^^ | BI7: ^^^ | BJ7: 4.5 | BK7: 0 | BL7: 1 | BM7: ^^^ | BN7: ^^^ | BO7: ^^^ | BP7: ^^^ | BQ7: 37 | BR7: 2.8 | BS7: ^^^ | BT7: 3.8 | BU7: 4.65 | BV7: ^^^ | BW7: ^^^ | BX7: ^^^
A8: CFW81 | B8: D7 | C8: Community Based Mental Health Teams - Team Composition WTE | D8: Community Psychiatric Nurses (CPN) - Band 5 | E8: Assertive Outreach | F8: 2.38 | G8: 0 | H8: ^^^ | I8: ^^^ | J8: 2.67 | K8: ^^^ | L8: ^^^ | M8: ^^^ | N8: ^^^ | O8: ^^^ | P8: ^^^ | Q8: ^^^ | R8: ^^^ | S8: ^^^ | T8: ^^^ | U8: ^^^ | V8: 0.27 | W8: ^^^ | X8: 1 | Y8: ^^^ | Z8: 0 | AA8: ^^^ | AB8: ^^^ | AC8: ^^^ | AD8: 0 | AE8: ^^^ | AF8: ^^^ | AG8: ^^^ | AH8: ^^^ | AI8: 1 | AJ8: ^^^ | AK8: ^^^ | AL8: ^^^ | AM8: ^^^ | AN8: 0 | AO8: ^^^ | AP8: ^^^ | AQ8: 0 | AR8: 4.4 | AS8: ^^^ | AT8: 0 | AU8: ^^^ | AV8: 0 | AW8: 0 | AX8: ^^^ | AY8: ^^^ | AZ8: 0.8 | BA8: ^^^ | BB8: ^^^ | BC8: ^^^ | BD8: ^^^ | BE8: 1 | BF8: ^^^ | BG8: ^^^ | BH8: ^^^ | BI8: ^^^ | BJ8: ^^^ | BK8: ^^^ | BL8: ^^^ | BM8: ^^^ | BN8: ^^^ | BO8: ^^^ | BP8: ^^^ | BQ8: ^^^ | BR8: ^^^ | BS8: ^^^ | BT8: ^^^ | BU8: 0 | BV8: ^^^ | BW8: ^^^ | BX8: ^^^
A9: CFW82 | B9: E7 | C9: Community Based Mental Health Teams - Team Composition WTE | D9: Community Psychiatric Nurses (CPN) - Band 5 | E9: Early Intervention (incl Early Onset Psychosis) | F9: 5.91 | G9: 6 | H9: 1 | I9: ^^^ | J9: 0 | K9: 0.12 | L9: 4.64 | M9: 1 | N9: 3 | O9: 3.68 | P9: 2.39 | Q9: 5.47 | R9: 9 | S9: ^^^ | T9: ^^^ | U9: ^^^ | V9: ^^^ | W9: ^^^ | X9: 1 | Y9: 12.08 | Z9: 2.82 | AA9: ^^^ | AB9: 4.8 | AC9: ^^^ | AD9: 2 | AE9: 6.72 | AF9: ^^^ | AG9: 0.8 | AH9: 2.82 | AI9: ^^^ | AJ9: 4.8 | AK9: ^^^ | AL9: ^^^ | AM9: 1 | AN9: 2.8 | AO9: 1 | AP9: 0 | AQ9: 1.23 | AR9: 4.04 | AS9: 1 | AT9: 0 | AU9: 12 | AV9: 0 | AW9: 5 | AX9: 1.31 | AY9: ^^^ | AZ9: 0.4 | BA9: ^^^ | BB9: 7.8 | BC9: 5.43 | BD9: 0.4 | BE9: 8.25 | BF9: 13.4 | BG9: ^^^ | BH9: ^^^ | BI9: ^^^ | BJ9: 0 | BK9: 0 | BL9: ^^^ | BM9: ^^^ | BN9: ^^^ | BO9: ^^^ | BP9: ^^^ | BQ9: 6.1 | BR9: ^^^ | BS9: ^^^ | BT9: ^^^ | BU9: 0 | BV9: ^^^ | BW9: ^^^ | BX9: ^^^
A10: CFW83 | B10: F7 | C10: Community Based Mental Health Teams - Team Composition WTE | D10: Community Psychiatric Nurses (CPN) - Band 5 | E10: Assessment & Brief Intervention (incl PMHT) | F10: 2.77 | G10: 2.6 | H10: 2 | I10: 0.5 | J10: ^^^ | K10: ^^^ | L10: ^^^ | M10: ^^^ | N10: ^^^ | O10: 0.88 | P10: ^^^ | Q10: ^^^ | R10: ^^^ | S10: ^^^ | T10: ^^^ | U10: 1 | V10: ^^^ | W10: ^^^ | X10: ^^^ | Y10: 0.76 | Z10: 1.02 | AA10: ^^^ | AB10: 6.7 | AC10: ^^^ | AD10: 0 | AE10: 10.37 | AF10: ^^^ | AG10: 0.96 | AH10: ^^^ | AI10: ^^^ | AJ10: 9.8 | AK10: ^^^ | AL10: 12.51 | AM10: 8 | AN10: 17.65 | AO10: ^^^ | AP10: 2 | AQ10: 5.3 | AR10: ^^^ | AS10: 5 | AT10: 0.4 | AU10: ^^^ | AV10: 0 | AW10: 0 | AX10: 11.01 | AY10: 1 | AZ10: ^^^ | BA10: 13.61 | BB10: ^^^ | BC10: ^^^ | BD10: ^^^ | BE10: 0 | BF10: 2.06 | BG10: ^^^ | BH10: ^^^ | BI10: ^^^ | BJ10: 3.62 | BK10: 0 | BL10: 0 | BM10: ^^^ | BN10: ^^^ | BO10: ^^^ | BP10: ^^^ | BQ10: 5.2 | BR10: ^^^ | BS10: 1 | BT10: ^^^ | BU10: 1.38 | BV10: 3 | BW10: 4.53 | BX10: ^^^
A11: CFW84 | B11: G7 | C11: Community Based Mental Health Teams - Team Composition WTE | D11: Community Psychiatric Nurses (CPN) - Band 5 | E11: Rehabilitation and Recovery | F11: 4.4 | G11: 0 | H11: ^^^ | I11: ^^^ | J11: ^^^ | K11: ^^^ | L11: ^^^ | M11: ^^^ | N11: 10 | O11: ^^^ | P11: ^^^ | Q11: ^^^ | R11: 13 | S11: ^^^ | T11: ^^^ | U11: ^^^ | V11: ^^^ | W11: ^^^ | X11: 0 | Y11: 3 | Z11: 0 | AA11: ^^^ | AB11: ^^^ | AC11: ^^^ | AD11: 0 | AE11: 1 | AF11: ^^^ | AG11: 2.4 | AH11: ^^^ | AI11: 1 | AJ11: ^^^ | AK11: ^^^ | AL11: ^^^ | AM11: ^^^ | AN11: 0 | AO11: ^^^ | AP11: ^^^ | AQ11: 0 | AR11: ^^^ | AS11: ^^^ | AT11: 0 | AU11: 2 | AV11: ^^^ | AW11: ^^^ | AX11: 0 | AY11: ^^^ | AZ11: 1 | BA11: 4.49 | BB11: 1 | BC11: 1 | BD11: ^^^ | BE11: ^^^ | BF11: 1 | BG11: ^^^ | BH11: ^^^ | BI11: 3.62 | BJ11: 2.93 | BK11: 0 | BL11: ^^^ | BM11: ^^^ | BN11: ^^^ | BO11: ^^^ | BP11: ^^^ | BQ11: ^^^ | BR11: ^^^ | BS11: ^^^ | BT11: 3 | BU11: 7.44 | BV11: ^^^ | BW11: ^^^ | BX11: ^^^
A12: CFW85 | B12: H7 | C12: Community Based Mental Health Teams - Team Composition WTE | D12: Community Psychiatric Nurses (CPN) - Band 5 | E12: Forensic | F12: ^^^ | G12: 0 | H12: ^^^ | I12: ^^^ | J12: 0 | K12: ^^^ | L12: ^^^ | M12: ^^^ | N12: ^^^ | O12: ^^^ | P12: 0.98 | Q12: 2 | R12: ^^^ | S12: ^^^ | T12: ^^^ | U12: ^^^ | V12: ^^^ | W12: ^^^ | X12: ^^^ | Y12: 6.66667 | Z12: 0 | AA12: ^^^ | AB12: 2 | AC12: ^^^ | AD12: 0 | AE12: 22.87 | AF12: ^^^ | AG12: ^^^ | AH12: ^^^ | AI12: ^^^ | AJ12: ^^^ | AK12: ^^^ | AL12: 0.53 | AM12: ^^^ | AN12: 0 | AO12: ^^^ | AP12: 0 | AQ12: 0.33 | AR12: ^^^ | AS12: ^^^ | AT12: 24.43 | AU12: ^^^ | AV12: ^^^ | AW12: 0 | AX12: 2.44 | AY12: ^^^ | AZ12: ^^^ | BA12: 0.23 | BB12: 0.8 | BC12: ^^^ | BD12: 0 | BE12: 0 | BF12: ^^^ | BG12: ^^^ | BH12: ^^^ | BI12: ^^^ | BJ12: 0 | BK12: 0 | BL12: ^^^ | BM12: ^^^ | BN12: ^^^ | BO12: ^^^ | BP12: ^^^ | BQ12: 0.7 | BR12: 0.64 | BS12: ^^^ | BT12: ^^^ | BU12: 0 | BV12: ^^^ | BW12: ^^^ | BX12: ^^^
A13: CFW86 | B13: I7 | C13: Community Based Mental Health Teams - Team Composition WTE | D13: Community Psychiatric Nurses (CPN) - Band 5 | E13: Eating Disorders | F13: 1.29 | G13: 1.4 | H13: ^^^ | I13: ^^^ | J13: 1.04 | K13: ^^^ | L13: ^^^ | M13: ^^^ | N13: ^^^ | O13: ^^^ | P13: 0.12 | Q13: 0 | R13: 0.012 | S13: ^^^ | T13: ^^^ | U13: 1.5 | V13: 0.7325 | W13: ^^^ | X13: ^^^ | Y13: 1.66667 | Z13: 0 | AA13: ^^^ | AB13: ^^^ | AC13: ^^^ | AD13: 0 | AE13: ^^^ | AF13: ^^^ | AG13: ^^^ | AH13: 1 | AI13: ^^^ | AJ13: ^^^ | AK13: ^^^ | AL13: 3.74 | AM13: 0 | AN13: 0 | AO13: ^^^ | AP13: 0 | AQ13: 0 | AR13: ^^^ | AS13: ^^^ | AT13: 0 | AU13: ^^^ | AV13: ^^^ | AW13: 0 | AX13: 1.08 | AY13: ^^^ | AZ13: ^^^ | BA13: ^^^ | BB13: ^^^ | BC13: 1 | BD13: 0 | BE13: 3.72 | BF13: 2 | BG13: ^^^ | BH13: ^^^ | BI13: ^^^ | BJ13: 1 | BK13: 0 | BL13: ^^^ | BM13: ^^^ | BN13: ^^^ | BO13: ^^^ | BP13: ^^^ | BQ13: 0 | BR13: ^^^ | BS13: ^^^ | BT13: ^^^ | BU13: 0 | BV13: ^^^ | BW13: ^^^ | BX13: ^^^
A14: CFW87 | B14: J7 | C14: Community Based Mental Health Teams - Team Composition WTE | D14: Community Psychiatric Nurses (CPN) - Band 5 | E14: Mother and Baby | F14: ^^^ | G14: 0 | H14: ^^^ | I14: 0.9 | J14: 1 | K14: ^^^ | L14: ^^^ | M14: ^^^ | N14: ^^^ | O14: ^^^ | P14: 0.14 | Q14: ^^^ | R14: ^^^ | S14: ^^^ | T14: ^^^ | U14: ^^^ | V14: ^^^ | W14: ^^^ | X14: 0 | Y14: 0.4 | Z14: 2.98 | AA14: ^^^ | AB14: ^^^ | AC14: ^^^ | AD14: 0 | AE14: ^^^ | AF14: ^^^ | AG14: ^^^ | AH14: ^^^ | AI14: ^^^ | AJ14: ^^^ | AK14: ^^^ | AL14: 0 | AM14: 0 | AN14: 0 | AO14: ^^^ | AP14: ^^^ | AQ14: 0.03 | AR14: ^^^ | AS14: ^^^ | AT14: 0 | AU14: ^^^ | AV14: ^^^ | AW14: 0 | AX14: 1.61 | AY14: ^^^ | AZ14: ^^^ | BA14: ^^^ | BB14: 2 | BC14: ^^^ | BD14: ^^^ | BE14: ^^^ | BF14: ^^^ | BG14: ^^^ | BH14: ^^^ | BI14: ^^^ | BJ14: 0 | BK14: ^^^ | BL14: ^^^ | BM14: ^^^ | BN14: ^^^ | BO14: ^^^ | BP14: ^^^ | BQ14: ^^^ | BR14: ^^^ | BS14: ^^^ | BT14: ^^^ | BU14: 0 | BV14: ^^^ | BW14: ^^^ | BX14: ^^^
A15: CFW88 | B15: K7 | C15: Community Based Mental Health Teams - Team Composition WTE | D15: Community Psychiatric Nurses (CPN) - Band 5 | E15: Older People | F15: 10.1 | G15: 1.6 | H15: 2.73 | I15: 8.07 | J15: 12.79 | K15: 6.65 | L15: 3 | M15: 6.13 | N15: ^^^ | O15: 4.82 | P15: 9.83 | Q15: 13.4 | R15: ^^^ | S15: ^^^ | T15: 8.8 | U15: 9.32 | V15: 1.44 | W15: ^^^ | X15: 11.54 | Y15: 1 | Z15: 15.71 | AA15: 3.24 | AB15: 25.6 | AC15: ^^^ | AD15: 4.27 | AE15: 9.68 | AF15: 2.73 | AG15: 10 | AH15: 1.27 | AI15: 2.4 | AJ15: 8.4 | AK15: ^^^ | AL15: 19.386 | AM15: 2 | AN15: 7.8 | AO15: 6.6 | AP15: 9.3 | AQ15: 25.9 | AR15: 10.03 | AS15: 2 | AT15: 0 | AU15: 8.8 | AV15: 6 | AW15: 4.8 | AX15: 0.08 | AY15: 0 | AZ15: 11.46 | BA15: 6.82 | BB15: 17.98 | BC15: 22.84 | BD15: 11.41 | BE15: ^^^ | BF15: 53.8 | BG15: ^^^ | BH15: ^^^ | BI15: 5 | BJ15: ^^^ | BK15: 1 | BL15: 0 | BM15: ^^^ | BN15: ^^^ | BO15: ^^^ | BP15: ^^^ | BQ15: 46 | BR15: 13.06 | BS15: 0.42 | BT15: 8.56 | BU15: 2.37 | BV15: 2.6 | BW15: 0.8 | BX15: 1
A16: CFW89 | B16: L7 | C16: Community Based Mental Health Teams - Team Composition WTE | D16: Community Psychiatric Nurses (CPN) - Band 5 | E16: Memory Services | F16: 12.07 | G16: 1.73 | H16: 2 | I16: ^^^ | J16: 0 | K16: 0.75 | L16: ^^^ | M16: ^^^ | N16: 1.8 | O16: ^^^ | P16: 2.01 | Q16: ^^^ | R16: 8.47 | S16: ^^^ | T16: ^^^ | U16: ^^^ | V16: 5.02 | W16: ^^^ | X16: ^^^ | Y16: 3.6 | Z16: 6.88 | AA16: ^^^ | AB16: 0.6 | AC16: ^^^ | AD16: 0 | AE16: 3.38 | AF16: 11.69 | AG16: ^^^ | AH16: ^^^ | AI16: 7.31 | AJ16: ^^^ | AK16: 19.8 | AL16: 12.924 | AM16: 4.6 | AN16: 1 | AO16: ^^^ | AP16: 4 | AQ16: 0.3 | AR16: ^^^ | AS16: ^^^ | AT16: 0 | AU16: 7.3 | AV16: 1.84 | AW16: 8.37 | AX16: 0.58 | AY16: ^^^ | AZ16: ^^^ | BA16: ^^^ | BB16: 11.09 | BC16: ^^^ | BD16: ^^^ | BE16: ^^^ | BF16: ^^^ | BG16: ^^^ | BH16: ^^^ | BI16: 0.6 | BJ16: ^^^ | BK16: ^^^ | BL16: ^^^ | BM16: ^^^ | BN16: ^^^ | BO16: ^^^ | BP16: ^^^ | BQ16: ^^^ | BR16: ^^^ | BS16: 9.4 | BT16: 8.17 | BU16: ^^^ | BV16: ^^^ | BW16: ^^^ | BX16: 2.04
A17: CFW90 | B17: M7 | C17: Community Based Mental Health Teams - Team Composition WTE | D17: Community Psychiatric Nurses (CPN) - Band 5 | E17: Other Adult CMHTs | F17: ^^^ | G17: 0 | H17: ^^^ | I17: ^^^ | J17: 2.74 | K17: 2.76 | L17: ^^^ | M17: 1.93 | N17: ^^^ | O17: 0.09 | P17: ^^^ | Q17: ^^^ | R17: ^^^ | S17: ^^^ | T17: ^^^ | U17: ^^^ | V17: 2.43 | W17: 2 | X17: 40.72 | Y17: 1.04 | Z17: 0 | AA17: 1.02 | AB17: 0.6 | AC17: ^^^ | AD17: 1 | AE17: ^^^ | AF17: 0.6 | AG17: 1 | AH17: 0.59 | AI17: 2 | AJ17: 1.6 | AK17: ^^^ | AL17: 1.97 | AM17: 2.6 | AN17: 0 | AO17: ^^^ | AP17: ^^^ | AQ17: 0.09 | AR17: ^^^ | AS17: ^^^ | AT17: 0 | AU17: ^^^ | AV17: 0 | AW17: 0 | AX17: 0.66 | AY17: ^^^ | AZ17: ^^^ | BA17: ^^^ | BB17: 5.4 | BC17: ^^^ | BD17: 0 | BE17: 4.2 | BF17: 1 | BG17: 1.65 | BH17: ^^^ | BI17: ^^^ | BJ17: 3.62 | BK17: 0 | BL17: ^^^ | BM17: ^^^ | BN17: ^^^ | BO17: ^^^ | BP17: ^^^ | BQ17: 7.3 | BR17: ^^^ | BS17: ^^^ | BT17: ^^^ | BU17: 0.01 | BV17: ^^^ | BW17: ^^^ | BX17: ^^^
A18: CFW91 | B18: N7 | C18: Community Based Mental Health Teams - Team Composition WTE | D18: Community Psychiatric Nurses (CPN) - Band 5 | E18: Totals | F18: 49.21 | G18: 40.77 | H18: 22.73 | I18: 10.55 | J18: 58.49 | K18: 30.75 | L18: 12.64 | M18: 13.86 | N18: 23.26 | O18: 18.45 | P18: 79.39 | Q18: 49.04 | R18: 39.842 | S18: 0 | T18: 56.96 | U18: 20.93 | V18: 15.9325 | W18: 11.2 | X18: 78.67 | Y18: 42.41334 | Z18: 103.96 | AA18: 27.07 | AB18: 75.1 | AC18: 0 | AD18: 34.38 | AE18: 66.2 | AF18: 60.27 | AG18: 25.46 | AH18: 28.44 | AI18: 22.09 | AJ18: 53.2 | AK18: 84.57 | AL18: 121.56 | AM18: 32.15 | AN18: 52.86 | AO18: 25.4 | AP18: 34.8 | AQ18: 98.03 | AR18: 37.61 | AS18: 12.65 | AT18: 26.26 | AU18: 46.4 | AV18: 11.84 | AW18: 34.96 | AX18: 42.37 | AY18: 2.96 | AZ18: 16.31 | BA18: 33.01 | BB18: 102.81 | BC18: 60.77 | BD18: 23.69 | BE18: 52.51 | BF18: 154.24 | BG18: 15.7 | BH18: 0 | BI18: 23.7 | BJ18: 15.67 | BK18: 1 | BL18: 1 | BM18: 0 | BN18: 0 | BO18: 0 | BP18: 0 | BQ18: 190.7 | BR18: 20.35 | BS18: 14.22 | BT18: 48.02 | BU18: 17.89 | BV18: 5.6 | BW18: 5.33 | BX18: 3.04
A19: CFW92 | B19: B8 | C19: Community Based Mental Health Teams - Team Composition WTE | D19: Community Psychiatric Nurses (CPN) - Band 6 | E19: Generic CMHT | F19: ^^^ | G19: 83.9 | H19: 23 | I19: 30 | J19: 108.99 | K19: 36.49 | L19: 62.83 | M19: 28.35 | N19: 15.4 | O19: 50.49 | P19: 84.56 | Q19: 31.33 | R19: 27.56 | S19: ^^^ | T19: 151.46 | U19: 69.44 | V19: 64.51 | W19: 38.99 | X19: 144.47 | Y19: 17.24667 | Z19: 102.03 | AA19: 72.17 | AB19: 17.8 | AC19: ^^^ | AD19: 77.17 | AE19: 97.47 | AF19: 46.51 | AG19: 40.79 | AH19: 47.34 | AI19: 8 | AJ19: 90.49 | AK19: 86.6 | AL19: 109.51 | AM19: 49.56 | AN19: 17.51 | AO19: 73.87 | AP19: 17.98 | AQ19: 150.83 | AR19: 82.3 | AS19: 35.06 | AT19: 60.16 | AU19: 77 | AV19: 73.79 | AW19: 15.43 | AX19: 108.99 | AY19: 14.32 | AZ19: 6.1 | BA19: 58.69 | BB19: 105 | BC19: 103.11 | BD19: 40.66 | BE19: 168.41 | BF19: 134.56 | BG19: 48.67 | BH19: ^^^ | BI19: 5.3 | BJ19: 0.36 | BK19: 35.63 | BL19: 21.96 | BM19: ^^^ | BN19: ^^^ | BO19: ^^^ | BP19: ^^^ | BQ19: 98.6 | BR19: 45.8 | BS19: 40.98 | BT19: 100.22 | BU19: 45.61 | BV19: 18 | BW19: 55.61 | BX19: 17.52
A20: CFW93 | B20: C8 | C20: Community Based Mental Health Teams - Team Composition WTE | D20: Community Psychiatric Nurses (CPN) - Band 6 | E20: CRHT | F20: 36.86 | G20: 46.05 | H20: 26.81 | I20: 19.42 | J20: 112.3 | K20: 39.38 | L20: 38.28 | M20: 32.29 | N20: 47.29 | O20: 45.61 | P20: 91.48 | Q20: 11.8 | R20: 42.71 | S20: ^^^ | T20: 44.37 | U20: 50.99 | V20: 25.47 | W20: 17.8 | X20: 63.31 | Y20: 80.61733 | Z20: 57.37 | AA20: 54.59 | AB20: 4 | AC20: ^^^ | AD20: 58.83 | AE20: 42.53 | AF20: 55.65 | AG20: 28.89 | AH20: 5.44x | AI20: 28.2 | AJ20: ^^^ | AK20: 44.9 | AL20: 46.32 | AM20: 56.28 | AN20: 7.48 | AO20: 74.85 | AP20: 19.48 | AQ20: 102.28 | AR20: 49.62 | AS20: ^^^ | AT20: 50.29 | AU20: 52.2 | AV20: 42.1 | AW20: 23.99 | AX20: 76.74 | AY20: 8.7 | AZ20: 32.6 | BA20: 60.83 | BB20: 122.5 | BC20: 52.39 | BD20: 24.54 | BE20: 114.25 | BF20: 130.69 | BG20: 55.71 | BH20: ^^^ | BI20: ^^^ | BJ20: 14.59 | BK20: 8 | BL20: 10.91 | BM20: ^^^ | BN20: ^^^ | BO20: ^^^ | BP20: ^^^ | BQ20: 35.4 | BR20: 27.02 | BS20: 34.94 | BT20: 31 | BU20: 35.66 | BV20: 21.91947 | BW20: 45.06 | BX20: 16.76
A21: CFW94 | B21: D8 | C21: Community Based Mental Health Teams - Team Composition WTE | D21: Community Psychiatric Nurses (CPN) - Band 6 | E21: Assertive Outreach | F21: 11.92 | G21: 0 | H21: ^^^ | I21: ^^^ | J21: 35.19 | K21: ^^^ | L21: 7 | M21: ^^^ | N21: 5 | O21: ^^^ | P21: ^^^ | Q21: ^^^ | R21: ^^^ | S21: ^^^ | T21: ^^^ | U21: ^^^ | V21: 5.34 | W21: ^^^ | X21: 4.05 | Y21: 5.8 | Z21: 0 | AA21: ^^^ | AB21: ^^^ | AC21: ^^^ | AD21: 0 | AE21: ^^^ | AF21: 12.83 | AG21: 20.44 | AH21: ^^^ | AI21: 4.05 | AJ21: ^^^ | AK21: ^^^ | AL21: ^^^ | AM21: ^^^ | AN21: 0 | AO21: ^^^ | AP21: ^^^ | AQ21: 0 | AR21: 22 | AS21: 14.47 | AT21: 0 | AU21: ^^^ | AV21: 16.5 | AW21: 0 | AX21: ^^^ | AY21: ^^^ | AZ21: 6.5 | BA21: ^^^ | BB21: ^^^ | BC21: 2.49 | BD21: ^^^ | BE21: 24.02 | BF21: ^^^ | BG21: ^^^ | BH21: ^^^ | BI21: ^^^ | BJ21: ^^^ | BK21: ^^^ | BL21: ^^^ | BM21: ^^^ | BN21: ^^^ | BO21: ^^^ | BP21: ^^^ | BQ21: ^^^ | BR21: 9.4 | BS21: 6 | BT21: ^^^ | BU21: 0 | BV21: 7.4 | BW21: ^^^ | BX21: ^^^
A22: CFW95 | B22: E8 | C22: Community Based Mental Health Teams - Team Composition WTE | D22: Community Psychiatric Nurses (CPN) - Band 6 | E22: Early Intervention (incl Early Onset Psychosis) | F22: 8.67 | G22: 24.49 | H22: 11.4 | I22: 8.95 | J22: 3.21 | K22: 10.74 | L22: 16.18 | M22: 7 | N22: 7.6 | O22: 22.8 | P22: 22.94 | Q22: 5.57 | R22: 13.26 | S22: ^^^ | T22: 22.75 | U22: 15.9 | V22: 3.8 | W22: 13.61 | X22: 35.16 | Y22: 38.04 | Z22: 34.22 | AA22: ^^^ | AB22: 3.8 | AC22: ^^^ | AD22: 21.41 | AE22: 32.76 | AF22: ^^^ | AG22: 16.87 | AH22: 10.4 | AI22: ^^^ | AJ22: 20 | AK22: ^^^ | AL22: ^^^ | AM22: 15 | AN22: 11.9 | AO22: 28.09 | AP22: 10.6 | AQ22: 26.42 | AR22: 17.45 | AS22: 6.2 | AT22: 11 | AU22: 26.4 | AV22: 30.64 | AW22: 5.8 | AX22: 41.05 | AY22: 1.2 | AZ22: 3 | BA22: 20.64 | BB22: 34.38 | BC22: 16.85 | BD22: 13.4 | BE22: 25.59 | BF22: 36.9 | BG22: 3.24 | BH22: ^^^ | BI22: ^^^ | BJ22: 4 | BK22: 0 | BL22: ^^^ | BM22: ^^^ | BN22: ^^^ | BO22: ^^^ | BP22: ^^^ | BQ22: 9.4 | BR22: 4.18 | BS22: 6.9 | BT22: ^^^ | BU22: 0 | BV22: ^^^ | BW22: 5.77 | BX22: ^^^
A23: CFW96 | B23: F8 | C23: Community Based Mental Health Teams - Team Composition WTE | D23: Community Psychiatric Nurses (CPN) - Band 6 | E23: Assessment & Brief Intervention (incl PMHT) | F23: 27.11 | G23: 47.94 | H23: 7 | I23: ^^^ | J23: ^^^ | K23: ^^^ | L23: 7.6 | M23: 33.3 | N23: 3.8 | O23: 50.24 | P23: ^^^ | Q23: ^^^ | R23: ^^^ | S23: ^^^ | T23: ^^^ | U23: 34.2 | V23: ^^^ | W23: 20.72 | X23: ^^^ | Y23: 23.2 | Z23: 11.1 | AA23: ^^^ | AB23: 27.1 | AC23: ^^^ | AD23: 0 | AE23: 82.56 | AF23: ^^^ | AG23: 13.24 | AH23: ^^^ | AI23: ^^^ | AJ23: 36.07 | AK23: ^^^ | AL23: 28.72 | AM23: 22.66 | AN23: 6 | AO23: 38.83 | AP23: 14.9 | AQ23: 8.46 | AR23: ^^^ | AS23: 68.99 | AT23: 0.03 | AU23: ^^^ | AV23: 12.6 | AW23: 15.07 | AX23: 25.73 | AY23: 5.5 | AZ23: 0.4 | BA23: 25.72 | BB23: 0.15 | BC23: ^^^ | BD23: ^^^ | BE23: 34.28 | BF23: 62.02 | BG23: ^^^ | BH23: ^^^ | BI23: ^^^ | BJ23: 14.45 | BK23: 0.85 | BL23: 7 | BM23: ^^^ | BN23: ^^^ | BO23: ^^^ | BP23: ^^^ | BQ23: 22.5 | BR23: ^^^ | BS23: 19.5 | BT23: ^^^ | BU23: 9.16 | BV23: 14 | BW23: 9.58 | BX23: 5.09
A24: CFW97 | B24: G8 | C24: Community Based Mental Health Teams - Team Composition WTE | D24: Community Psychiatric Nurses (CPN) - Band 6 | E24: Rehabilitation and Recovery | F24: 37.74 | G24: 0 | H24: 3 | I24: ^^^ | J24: ^^^ | K24: ^^^ | L24: ^^^ | M24: ^^^ | N24: 3 | O24: 8.92 | P24: ^^^ | Q24: ^^^ | R24: 30.94 | S24: ^^^ | T24: ^^^ | U24: ^^^ | V24: ^^^ | W24: ^^^ | X24: 0.8 | Y24: 22.86667 | Z24: 0 | AA24: ^^^ | AB24: ^^^ | AC24: ^^^ | AD24: 0 | AE24: 3.8 | AF24: 2.8 | AG24: 2.38 | AH24: ^^^ | AI24: ^^^ | AJ24: ^^^ | AK24: ^^^ | AL24: ^^^ | AM24: ^^^ | AN24: 0 | AO24: ^^^ | AP24: ^^^ | AQ24: 0 | AR24: ^^^ | AS24: ^^^ | AT24: 7.6 | AU24: 3.7 | AV24: ^^^ | AW24: ^^^ | AX24: 16.92 | AY24: ^^^ | AZ24: 29.84 | BA24: 3.08 | BB24: 1.02 | BC24: 2.87 | BD24: ^^^ | BE24: ^^^ | BF24: 2 | BG24: ^^^ | BH24: ^^^ | BI24: 1.33 | BJ24: 36.32 | BK24: 0 | BL24: ^^^ | BM24: ^^^ | BN24: ^^^ | BO24: ^^^ | BP24: ^^^ | BQ24: ^^^ | BR24: ^^^ | BS24: ^^^ | BT24: 6.6 | BU24: 3.17 | BV24: ^^^ | BW24: ^^^ | BX24: ^^^
A25: CFW98 | B25: H8 | C25: Community Based Mental Health Teams - Team Composition WTE | D25: Community Psychiatric Nurses (CPN) - Band 6 | E25: Forensic | F25: ^^^ | G25: 0 | H25: ^^^ | I25: ^^^ | J25: 12 | K25: 4.81 | L25: ^^^ | M25: 4.4 | N25: ^^^ | O25: 7.52 | P25: 5.43 | Q25: 10.6 | R25: 7.42 | S25: ^^^ | T25: 10.08 | U25: ^^^ | V25: 2 | W25: ^^^ | X25: ^^^ | Y25: 7 | Z25: 3.85 | AA25: 2.09 | AB25: 2 | AC25: ^^^ | AD25: 0 | AE25: 48.08 | AF25: 4.8 | AG25: 4 | AH25: 3.07 | AI25: 1 | AJ25: ^^^ | AK25: 2 | AL25: 21.29 | AM25: ^^^ | AN25: 0 | AO25: 11.6 | AP25: 5.8 | AQ25: 23.43 | AR25: 25.6 | AS25: 6 | AT25: 4.07 | AU25: ^^^ | AV25: ^^^ | AW25: 0 | AX25: 16.42 | AY25: ^^^ | AZ25: 0.6 | BA25: 2.27 | BB25: 3.2 | BC25: 1.23 | BD25: 2.08 | BE25: 21 | BF25: 3 | BG25: 2.8 | BH25: ^^^ | BI25: 0.23 | BJ25: 0 | BK25: 0 | BL25: ^^^ | BM25: ^^^ | BN25: ^^^ | BO25: ^^^ | BP25: ^^^ | BQ25: 13.759 | BR25: 5.91 | BS25: 3 | BT25: 2 | BU25: 6.54 | BV25: ^^^ | BW25: 3 | BX25: ^^^
A26: CFW99 | B26: I8 | C26: Community Based Mental Health Teams - Team Composition WTE | D26: Community Psychiatric Nurses (CPN) - Band 6 | E26: Eating Disorders | F26: 2.48 | G26: 1 | H26: 6 | I26: ^^^ | J26: 1.19 | K26: 3.43 | L26: ^^^ | M26: 0.75 | N26: ^^^ | O26: 7.92 | P26: 3.08 | Q26: 0 | R26: 0.119 | S26: ^^^ | T26: 2.43 | U26: 1 | V26: 7.255 | W26: 1 | X26: ^^^ | Y26: 1.8 | Z26: 0 | AA26: 1.42 | AB26: ^^^ | AC26: ^^^ | AD26: 0 | AE26: 9 | AF26: 3.6 | AG26: 0.67 | AH26: 1 | AI26: ^^^ | AJ26: ^^^ | AK26: 0.82 | AL26: 6.19 | AM26: 0 | AN26: 0 | AO26: 3.91 | AP26: 1.4 | AQ26: 0 | AR26: 1.4 | AS26: ^^^ | AT26: 0 | AU26: ^^^ | AV26: ^^^ | AW26: 1.8 | AX26: 0.56 | AY26: ^^^ | AZ26: ^^^ | BA26: 4.6 | BB26: ^^^ | BC26: 0.6 | BD26: 5.29 | BE26: 4 | BF26: 2 | BG26: ^^^ | BH26: ^^^ | BI26: 0.57 | BJ26: 1 | BK26: 0 | BL26: ^^^ | BM26: ^^^ | BN26: ^^^ | BO26: ^^^ | BP26: ^^^ | BQ26: 7.2 | BR26: ^^^ | BS26: 1 | BT26: ^^^ | BU26: 0.01 | BV26: ^^^ | BW26: ^^^ | BX26: ^^^
A27: CFW100 | B27: J8 | C27: Community Based Mental Health Teams - Team Composition WTE | D27: Community Psychiatric Nurses (CPN) - Band 6 | E27: Mother and Baby | F27: 3.34 | G27: 0 | H27: ^^^ | I27: ^^^ | J27: 6.14 | K27: ^^^ | L27: 2.8 | M27: ^^^ | N27: ^^^ | O27: 3.04 | P27: 1.39 | Q27: ^^^ | R27: 5.1 | S27: ^^^ | T27: 4 | U27: 6.7 | V27: 5.4 | W27: ^^^ | X27: 1.5 | Y27: 2.76667 | Z27: 0 | AA27: 3.45 | AB27: 2.8 | AC27: ^^^ | AD27: 3.88 | AE27: ^^^ | AF27: 3.4 | AG27: 4.63 | AH27: 3.8 | AI27: 1.88 | AJ27: 3.8 | AK27: 1.97 | AL27: 6.08 | AM27: 2.8 | AN27: 2 | AO27: 3 | AP27: ^^^ | AQ27: 5.83 | AR27: 7.79 | AS27: 0.87 | AT27: 0 | AU27: ^^^ | AV27: ^^^ | AW27: 2.29 | AX27: 5.99 | AY27: ^^^ | AZ27: ^^^ | BA27: ^^^ | BB27: 3.63 | BC27: 7.76 | BD27: ^^^ | BE27: 13.2 | BF27: ^^^ | BG27: ^^^ | BH27: ^^^ | BI27: 0.57 | BJ27: 0 | BK27: ^^^ | BL27: ^^^ | BM27: ^^^ | BN27: ^^^ | BO27: ^^^ | BP27: ^^^ | BQ27: 0.1 | BR27: 2.4 | BS27: ^^^ | BT27: 3.14 | BU27: 3.22 | BV27: ^^^ | BW27: 1.4 | BX27: ^^^
A28: CFW101 | B28: K8 | C28: Community Based Mental Health Teams - Team Composition WTE | D28: Community Psychiatric Nurses (CPN) - Band 6 | E28: Older People | F28: 14.94 | G28: 17.32 | H28: 23 | I28: 45.3 | J28: 35.08 | K28: 10.54 | L28: 32.29 | M28: 29.81 | N28: 6 | O28: 36.24 | P28: 27.28 | Q28: 33.2 | R28: ^^^ | S28: ^^^ | T28: 14.84 | U28: 28.6 | V28: 43.98 | W28: 9 | X28: 17.89 | Y28: 13.8 | Z28: 49.52 | AA28: 59.89 | AB28: 9.8 | AC28: ^^^ | AD28: 66.92 | AE28: 86.43 | AF28: 2.8 | AG28: 37.6 | AH28: 21.02 | AI28: 2 | AJ28: 19.12 | AK28: ^^^ | AL28: 53.286 | AM28: 10.6 | AN28: 26.1 | AO28: 71.41 | AP28: 7.93 | AQ28: 70.5 | AR28: 57.94 | AS28: 21.01 | AT28: 19.63 | AU28: 33.2 | AV28: 37.64 | AW28: 10.6 | AX28: 37.71 | AY28: 13.8 | AZ28: 21.25 | BA28: 24.48 | BB28: 55.93 | BC28: 51.38 | BD28: 39.17 | BE28: 6 | BF28: 107.4 | BG28: ^^^ | BH28: ^^^ | BI28: 6 | BJ28: ^^^ | BK28: 11.89 | BL28: 16 | BM28: ^^^ | BN28: ^^^ | BO28: ^^^ | BP28: ^^^ | BQ28: 66.4 | BR28: 14.86 | BS28: 36.42 | BT28: 32 | BU28: 13.22 | BV28: 15.9 | BW28: 20.62 | BX28: 13.41
A29: CFW102 | B29: L8 | C29: Community Based Mental Health Teams - Team Composition WTE | D29: Community Psychiatric Nurses (CPN) - Band 6 | E29: Memory Services | F29: 20.54 | G29: 12.44 | H29: 6 | I29: ^^^ | J29: 16.24 | K29: 6.95 | L29: ^^^ | M29: ^^^ | N29: 4.4 | O29: 5 | P29: 21.61 | Q29: ^^^ | R29: 16.25 | S29: ^^^ | T29: 5.97x | U29: ^^^ | V29: 22.43 | W29: 5.8 | X29: ^^^ | Y29: 41.72 | Z29: 10.05 | AA29: 16.09 | AB29: 2.8 | AC29: ^^^ | AD29: 0 | AE29: 20.67 | AF29: 4.4 | AG29: 9.2 | AH29: ^^^ | AI29: 2 | AJ29: ^^^ | AK29: 37.61 | AL29: 35.524 | AM29: 9.65 | AN29: 7.66 | AO29: ^^^ | AP29: 7.48 | AQ29: 17.34 | AR29: 1.6 | AS29: ^^^ | AT29: 10.1 | AU29: 8.5 | AV29: 25.96 | AW29: 2.2 | AX29: 10.87 | AY29: ^^^ | AZ29: 0.93 | BA29: 4.29 | BB29: 14.9 | BC29: ^^^ | BD29: ^^^ | BE29: 30.75 | BF29: ^^^ | BG29: 25.31 | BH29: ^^^ | BI29: 1 | BJ29: ^^^ | BK29: ^^^ | BL29: ^^^ | BM29: ^^^ | BN29: ^^^ | BO29: ^^^ | BP29: ^^^ | BQ29: ^^^ | BR29: 9.6 | BS29: 11.38 | BT29: 10.2 | BU29: ^^^ | BV29: 2 | BW29: 10.71 | BX29: 4.67
A30: CFW103 | B30: M8 | C30: Community Based Mental Health Teams - Team Composition WTE | D30: Community Psychiatric Nurses (CPN) - Band 6 | E30: Other Adult CMHTs | F30: 6.12 | G30: 0 | H30: ^^^ | I30: ^^^ | J30: 10.39 | K30: 8.23 | L30: ^^^ | M30: 15.71 | N30: 6.4 | O30: 2 | P30: ^^^ | Q30: ^^^ | R30: 18.83 | S30: ^^^ | T30: 2.65 | U30: 3.15 | V30: 0.8 | W30: 7.9 | X30: 36.58 | Y30: 19.51 | Z30: 2 | AA30: 20.75 | AB30: 1.2 | AC30: ^^^ | AD30: 19.51 | AE30: 1 | AF30: 29.2 | AG30: 8.35 | AH30: 21 | AI30: 4.2 | AJ30: 17.5 | AK30: ^^^ | AL30: 37.85 | AM30: 20.4 | AN30: 0 | AO30: 1 | AP30: ^^^ | AQ30: 15.33 | AR30: 1 | AS30: ^^^ | AT30: 0 | AU30: ^^^ | AV30: 3.2 | AW30: 7.8 | AX30: 35.1 | AY30: ^^^ | AZ30: 4.2 | BA30: 13.46 | BB30: 5.57 | BC30: ^^^ | BD30: 0.75 | BE30: 12.6 | BF30: 18.19 | BG30: 8.37 | BH30: ^^^ | BI30: ^^^ | BJ30: 14.45 | BK30: 0 | BL30: ^^^ | BM30: ^^^ | BN30: ^^^ | BO30: ^^^ | BP30: ^^^ | BQ30: 52.2 | BR30: 26.26 | BS30: 8.6 | BT30: ^^^ | BU30: 0.83 | BV30: ^^^ | BW30: ^^^ | BX30: ^^^
A31: CFW104 | B31: N8 | C31: Community Based Mental Health Teams - Team Composition WTE | D31: Community Psychiatric Nurses (CPN) - Band 6 | E31: Totals | F31: 169.72 | G31: 233.14 | H31: 106.21 | I31: 105.65 | J31: 340.73 | K31: 120.57 | L31: 166.98 | M31: 151.61 | N31: 98.89 | O31: 239.78 | P31: 257.77 | Q31: 92.5 | R31: 162.189 | S31: 0 | T31: 252.58 | U31: 209.98 | V31: 180.985 | W31: 114.82 | X31: 303.76 | Y31: 274.36734 | Z31: 270.14 | AA31: 230.45 | AB31: 71.3 | AC31: 0 | AD31: 247.72 | AE31: 424.3 | AF31: 165.99 | AG31: 187.06 | AH31: 107.63 | AI31: 51.33 | AJ31: 186.98 | AK31: 173.9 | AL31: 344.77 | AM31: 186.95 | AN31: 78.65 | AO31: 306.56 | AP31: 85.57 | AQ31: 420.42 | AR31: 266.7 | AS31: 152.6 | AT31: 162.88 | AU31: 201 | AV31: 242.43 | AW31: 84.98 | AX31: 376.08 | AY31: 43.52 | AZ31: 105.42 | BA31: 218.06 | BB31: 346.28 | BC31: 238.68 | BD31: 125.89 | BE31: 454.1 | BF31: 496.76 | BG31: 144.1 | BH31: 0 | BI31: 15 | BJ31: 85.17 | BK31: 56.37 | BL31: 55.87 | BM31: 0 | BN31: 0 | BO31: 0 | BP31: 0 | BQ31: 305.559 | BR31: 145.43 | BS31: 168.72 | BT31: 185.16 | BU31: 117.42 | BV31: 79.21947 | BW31: 151.75 | BX31: 57.45
A32: CFW105 | B32: B9 | C32: Community Based Mental Health Teams - Team Composition WTE | D32: Community Psychiatric Nurses (CPN) - Band 7 | E32: Generic CMHT | F32: ^^^ | G32: 11.44 | H32: 9.4 | I32: 14.38 | J32: 15.36 | K32: 3.23 | L32: 10 | M32: 13.4 | N32: 2 | O32: 15.86 | P32: 22.23 | Q32: 12.8 | R32: 5.12 | S32: ^^^ | T32: 26.39 | U32: 1.2 | V32: 15.45 | W32: 5.8 | X32: 41.65 | Y32: 7.70667 | Z32: 29.6 | AA32: 11.64 | AB32: 7 | AC32: ^^^ | AD32: 37.49 | AE32: 30.56 | AF32: 13.82 | AG32: 13.45 | AH32: 10.31 | AI32: 5 | AJ32: 10.2 | AK32: 27.77 | AL32: 24.39 | AM32: 9 | AN32: 6.8 | AO32: ^^^ | AP32: 5 | AQ32: 35.51 | AR32: ^^^ | AS32: 27.05 | AT32: 9.18 | AU32: 9.6 | AV32: 4 | AW32: 0 | AX32: 22.8 | AY32: ^^^ | AZ32: 1 | BA32: 7.92 | BB32: 20.48 | BC32: 21.12 | BD32: 14.85 | BE32: 47.77 | BF32: 24.04 | BG32: 10.17 | BH32: ^^^ | BI32: ^^^ | BJ32: 3 | BK32: 10.91 | BL32: 14 | BM32: ^^^ | BN32: ^^^ | BO32: ^^^ | BP32: ^^^ | BQ32: 25 | BR32: 6.8 | BS32: 8.4 | BT32: 31.2 | BU32: 12.6 | BV32: 9.16 | BW32: ^^^ | BX32: 5.42
A33: CFW106 | B33: C9 | C33: Community Based Mental Health Teams - Team Composition WTE | D33: Community Psychiatric Nurses (CPN) - Band 7 | E33: CRHT | F33: 0.5 | G33: 6.52 | H33: 10 | I33: 18.97 | J33: 6.3 | K33: 2.88 | L33: 12.55 | M33: 10.72 | N33: 1 | O33: 7.4 | P33: 11.96 | Q33: 2 | R33: 5.09 | S33: ^^^ | T33: 4.52 | U33: 7.84 | V33: 4.15 | W33: ^^^ | X33: 12.79 | Y33: 15.8 | Z33: 13.75 | AA33: 5.03 | AB33: ^^^ | AC33: ^^^ | AD33: 14 | AE33: 4.52 | AF33: 11.76 | AG33: 4.35 | AH33: ^^^ | AI33: 3 | AJ33: ^^^ | AK33: 6 | AL33: 8.15 | AM33: 6 | AN33: 4.36 | AO33: 5.57 | AP33: 0 | AQ33: 14.84 | AR33: 3.16 | AS33: ^^^ | AT33: 11.42 | AU33: 8.9 | AV33: 3 | AW33: 2 | AX33: 17.33 | AY33: ^^^ | AZ33: 3 | BA33: 3.94 | BB33: 10.21 | BC33: 7.12 | BD33: 4.75 | BE33: 33.44 | BF33: 7 | BG33: 10.4 | BH33: ^^^ | BI33: ^^^ | BJ33: 3 | BK33: 14.43 | BL33: 6 | BM33: ^^^ | BN33: ^^^ | BO33: ^^^ | BP33: ^^^ | BQ33: 4.8 | BR33: 6 | BS33: ^^^ | BT33: 3 | BU33: 7.32 | BV33: 2 | BW33: ^^^ | BX33: 3.19
A34: CFW107 | B34: D9 | C34: Community Based Mental Health Teams - Team Composition WTE | D34: Community Psychiatric Nurses (CPN) - Band 7 | E34: Assertive Outreach | F34: 0.5 | G34: 0 | H34: ^^^ | I34: ^^^ | J34: 5.04 | K34: ^^^ | L34: ^^^ | M34: ^^^ | N34: 0.5 | O34: ^^^ | P34: ^^^ | Q34: ^^^ | R34: ^^^ | S34: ^^^ | T34: ^^^ | U34: ^^^ | V34: 2.09 | W34: ^^^ | X34: 1 | Y34: ^^^ | Z34: 0 | AA34: ^^^ | AB34: ^^^ | AC34: ^^^ | AD34: 0 | AE34: ^^^ | AF34: 1 | AG34: 3.57 | AH34: ^^^ | AI34: ^^^ | AJ34: ^^^ | AK34: ^^^ | AL34: ^^^ | AM34: ^^^ | AN34: 0 | AO34: ^^^ | AP34: ^^^ | AQ34: 0 | AR34: ^^^ | AS34: 3 | AT34: 0 | AU34: ^^^ | AV34: 1 | AW34: 0 | AX34: ^^^ | AY34: ^^^ | AZ34: 1 | BA34: ^^^ | BB34: ^^^ | BC34: 0 | BD34: ^^^ | BE34: 5 | BF34: ^^^ | BG34: ^^^ | BH34: ^^^ | BI34: ^^^ | BJ34: ^^^ | BK34: ^^^ | BL34: ^^^ | BM34: ^^^ | BN34: ^^^ | BO34: ^^^ | BP34: ^^^ | BQ34: ^^^ | BR34: ^^^ | BS34: 3 | BT34: ^^^ | BU34: 0 | BV34: 4.7 | BW34: ^^^ | BX34: ^^^
A35: CFW108 | B35: E9 | C35: Community Based Mental Health Teams - Team Composition WTE | D35: Community Psychiatric Nurses (CPN) - Band 7 | E35: Early Intervention (incl Early Onset Psychosis) | F35: 0.5 | G35: 10.13 | H35: 2 | I35: 6.76 | J35: 1.02 | K35: 2.84 | L35: 1 | M35: 3.89 | N35: ^^^ | O35: 7.96 | P35: 4.3 | Q35: 2 | R35: 3.19 | S35: ^^^ | T35: 4 | U35: 1 | V35: 3.5 | W35: 2 | X35: 8.2 | Y35: 9.6 | Z35: 6.04 | AA35: ^^^ | AB35: 1 | AC35: ^^^ | AD35: 6.6 | AE35: 2.73 | AF35: ^^^ | AG35: 2.98 | AH35: 1.8 | AI35: ^^^ | AJ35: 2 | AK35: ^^^ | AL35: ^^^ | AM35: 3 | AN35: 8.95 | AO35: ^^^ | AP35: 0 | AQ35: 4 | AR35: ^^^ | AS35: ^^^ | AT35: 2.03 | AU35: 6 | AV35: 1 | AW35: 1.8 | AX35: 7.66 | AY35: ^^^ | AZ35: ^^^ | BA35: 1.11 | BB35: 4.7 | BC35: 2.45 | BD35: 1 | BE35: 4.05 | BF35: 7 | BG35: 2 | BH35: ^^^ | BI35: ^^^ | BJ35: 0 | BK35: 0 | BL35: ^^^ | BM35: ^^^ | BN35: ^^^ | BO35: ^^^ | BP35: ^^^ | BQ35: 1.6 | BR35: 1 | BS35: 1 | BT35: ^^^ | BU35: 0.01x | BV35: ^^^ | BW35: ^^^ | BX35: ^^^
A36: CFW109 | B36: F9 | C36: Community Based Mental Health Teams - Team Composition WTE | D36: Community Psychiatric Nurses (CPN) - Band 7 | E36: Assessment & Brief Intervention (incl PMHT) | F36: ^^^ | G36: 6.05 | H36: 6 | I36: 10.72 | J36: ^^^ | K36: ^^^ | L36: ^^^ | M36: 19.42 | N36: ^^^ | O36: 12.6 | P36: ^^^ | Q36: ^^^ | R36: ^^^ | S36: ^^^ | T36: ^^^ | U36: 2 | V36: ^^^ | W36: 4 | X36: ^^^ | Y36: 5.58667 | Z36: 1.52 | AA36: ^^^ | AB36: 8 | AC36: ^^^ | AD36: 0 | AE36: 48.25 | AF36: ^^^ | AG36: 1.2 | AH36: ^^^ | AI36: ^^^ | AJ36: 4.6 | AK36: ^^^ | AL36: 4.56 | AM36: 4 | AN36: 9 | AO36: ^^^ | AP36: 0 | AQ36: 23.15 | AR36: ^^^ | AS36: 8.6 | AT36: 0.61 | AU36: ^^^ | AV36: 1 | AW36: 3 | AX36: 22.42 | AY36: ^^^ | AZ36: ^^^ | BA36: 2.66 | BB36: 4.73 | BC36: ^^^ | BD36: ^^^ | BE36: 3 | BF36: 1 | BG36: ^^^ | BH36: ^^^ | BI36: ^^^ | BJ36: 17.63 | BK36: 0 | BL36: 3 | BM36: ^^^ | BN36: ^^^ | BO36: ^^^ | BP36: ^^^ | BQ36: 9.3 | BR36: ^^^ | BS36: 7 | BT36: ^^^ | BU36: 2.28 | BV36: 5.34 | BW36: 0.25 | BX36: 1
A37: CFW110 | B37: G9 | C37: Community Based Mental Health Teams - Team Composition WTE | D37: Community Psychiatric Nurses (CPN) - Band 7 | E37: Rehabilitation and Recovery | F37: 1 | G37: 0 | H37: 1.5 | I37: ^^^ | J37: ^^^ | K37: ^^^ | L37: ^^^ | M37: ^^^ | N37: 1 | O37: 1 | P37: ^^^ | Q37: ^^^ | R37: 4.13 | S37: ^^^ | T37: ^^^ | U37: 1 | V37: ^^^ | W37: ^^^ | X37: 0 | Y37: 4.8 | Z37: 0 | AA37: ^^^ | AB37: ^^^ | AC37: ^^^ | AD37: 0 | AE37: 2 | AF37: 0 | AG37: 0.91 | AH37: ^^^ | AI37: 1 | AJ37: ^^^ | AK37: ^^^ | AL37: ^^^ | AM37: ^^^ | AN37: 0 | AO37: ^^^ | AP37: ^^^ | AQ37: 0 | AR37: ^^^ | AS37: ^^^ | AT37: 1.07 | AU37: 0 | AV37: ^^^ | AW37: ^^^ | AX37: 6.85 | AY37: ^^^ | AZ37: 3.75 | BA37: 1 | BB37: 2.02 | BC37: 1.07 | BD37: ^^^ | BE37: ^^^ | BF37: ^^^ | BG37: ^^^ | BH37: ^^^ | BI37: ^^^ | BJ37: 13.49 | BK37: 0 | BL37: ^^^ | BM37: ^^^ | BN37: ^^^ | BO37: ^^^ | BP37: ^^^ | BQ37: ^^^ | BR37: ^^^ | BS37: ^^^ | BT37: 3 | BU37: 3.39 | BV37: ^^^ | BW37: ^^^ | BX37: ^^^
A38: CFW111 | B38: H9 | C38: Community Based Mental Health Teams - Team Composition WTE | D38: Community Psychiatric Nurses (CPN) - Band 7 | E38: Forensic | F38: ^^^ | G38: 0 | H38: ^^^ | I38: ^^^ | J38: 2 | K38: 2.18 | L38: ^^^ | M38: 0.51 | N38: ^^^ | O38: 7 | P38: 5.88 | Q38: 0 | R38: 2.07 | S38: ^^^ | T38: 1 | U38: ^^^ | V38: 1 | W38: ^^^ | X38: 10 | Y38: ^^^ | Z38: 1 | AA38: 2.82 | AB38: 1 | AC38: ^^^ | AD38: 0 | AE38: 16.16 | AF38: 1 | AG38: 1.8 | AH38: 1 | AI38: 0.8 | AJ38: ^^^ | AK38: 1 | AL38: 4.8 | AM38: ^^^ | AN38: 0 | AO38: ^^^ | AP38: 0 | AQ38: 8 | AR38: 7.2 | AS38: ^^^ | AT38: 1.6 | AU38: ^^^ | AV38: ^^^ | AW38: 0 | AX38: 3.05 | AY38: ^^^ | AZ38: 0.4 | BA38: ^^^ | BB38: 1.01 | BC38: 2 | BD38: 1 | BE38: 4 | BF38: 2 | BG38: 1 | BH38: ^^^ | BI38: ^^^ | BJ38: 3 | BK38: 4 | BL38: ^^^ | BM38: ^^^ | BN38: ^^^ | BO38: ^^^ | BP38: ^^^ | BQ38: 2.9 | BR38: 8 | BS38: 5 | BT38: ^^^ | BU38: 4.08 | BV38: ^^^ | BW38: ^^^ | BX38: ^^^
A39: CFW112 | B39: I9 | C39: Community Based Mental Health Teams - Team Composition WTE | D39: Community Psychiatric Nurses (CPN) - Band 7 | E39: Eating Disorders | F39: 0.93 | G39: 1.8 | H39: 1 | I39: 0.8 | J39: 0 | K39: 1.83 | L39: ^^^ | M39: ^^^ | N39: ^^^ | O39: 3.8 | P39: 0.6 | Q39: 0 | R39: 0.048 | S39: ^^^ | T39: 0.51 | U39: ^^^ | V39: 3.1255 | W39: 1 | X39: 1.4 | Y39: 3.90667 | Z39: 0.6 | AA39: 1.01 | AB39: ^^^ | AC39: ^^^ | AD39: 0 | AE39: 0.5 | AF39: 1 | AG39: 0.36 | AH39: 1 | AI39: ^^^ | AJ39: ^^^ | AK39: 3.97 | AL39: 2.17 | AM39: 1.1 | AN39: 0 | AO39: ^^^ | AP39: 0 | AQ39: 0 | AR39: 3.09 | AS39: 0.8 | AT39: 0 | AU39: ^^^ | AV39: ^^^ | AW39: 0 | AX39: 0.81 | AY39: ^^^ | AZ39: 3.7 | BA39: 1 | BB39: ^^^ | BC39: 1.01 | BD39: 1.1 | BE39: 3 | BF39: 4.61 | BG39: ^^^ | BH39: ^^^ | BI39: ^^^ | BJ39: 5 | BK39: 4 | BL39: ^^^ | BM39: ^^^ | BN39: ^^^ | BO39: ^^^ | BP39: ^^^ | BQ39: 1.1 | BR39: 0.2 | BS39: 0.8 | BT39: 2 | BU39: 0.04 | BV39: ^^^ | BW39: ^^^ | BX39: ^^^
A40: CFW113 | B40: J9 | C40: Community Based Mental Health Teams - Team Composition WTE | D40: Community Psychiatric Nurses (CPN) - Band 7 | E40: Mother and Baby | F40: 0.8 | G40: 0 | H40: ^^^ | I40: 2.29 | J40: 1.05 | K40: ^^^ | L40: ^^^ | M40: 2.6 | N40: ^^^ | O40: ^^^ | P40: 3.19 | Q40: ^^^ | R40: 1.13 | S40: ^^^ | T40: ^^^ | U40: 1.35 | V40: 0.67 | W40: ^^^ | X40: 4.6 | Y40: 0.94667 | Z40: 0 | AA40: 1 | AB40: 1.6 | AC40: ^^^ | AD40: 5.2 | AE40: ^^^ | AF40: 0 | AG40: 1 | AH40: 1 | AI40: ^^^ | AJ40: 1 | AK40: 1 | AL40: 1 | AM40: 1 | AN40: 0 | AO40: ^^^ | AP40: ^^^ | AQ40: 1 | AR40: 0.4 | AS40: 0.6 | AT40: 0.05 | AU40: ^^^ | AV40: ^^^ | AW40: 0.8 | AX40: 10.81 | AY40: ^^^ | AZ40: ^^^ | BA40: 1 | BB40: 1.01 | BC40: 2.16 | BD40: ^^^ | BE40: 3.4 | BF40: ^^^ | BG40: 6 | BH40: ^^^ | BI40: ^^^ | BJ40: 1 | BK40: ^^^ | BL40: ^^^ | BM40: ^^^ | BN40: ^^^ | BO40: ^^^ | BP40: ^^^ | BQ40: 0.1 | BR40: 1 | BS40: ^^^ | BT40: 2 | BU40: 1.04 | BV40: 2 | BW40: ^^^ | BX40: ^^^
A41: CFW114 | B41: K9 | C41: Community Based Mental Health Teams - Team Composition WTE | D41: Community Psychiatric Nurses (CPN) - Band 7 | E41: Older People | F41: ^^^ | G41: 5 | H41: 4.85 | I41: 4.89 | J41: 0.15 | K41: 1.87 | L41: 2 | M41: 6 | N41: 2 | O41: 9.71 | P41: 6.34 | Q41: 1 | R41: ^^^ | S41: ^^^ | T41: 3.6 | U41: 1.8 | V41: 11.5 | W41: ^^^ | X41: 11 | Y41: 5 | Z41: 12.57 | AA41: 2.15 | AB41: 3 | AC41: ^^^ | AD41: 13.23 | AE41: 11.5 | AF41: 1 | AG41: 4.8 | AH41: 2.08 | AI41: ^^^ | AJ41: 5 | AK41: ^^^ | AL41: 9.72 | AM41: 1 | AN41: 13.8 | AO41: 2 | AP41: 0 | AQ41: 22.48 | AR41: 2.4 | AS41: 3.8 | AT41: 5.5 | AU41: 4 | AV41: 2 | AW41: 1.8 | AX41: 7.27 | AY41: 1.243740113 | AZ41: 1.3 | BA41: 7.17 | BB41: 13.17 | BC41: 10.15 | BD41: 6.6 | BE41: 5 | BF41: 23.47 | BG41: ^^^ | BH41: ^^^ | BI41: 1 | BJ41: ^^^ | BK41: 1 | BL41: 0 | BM41: ^^^ | BN41: ^^^ | BO41: ^^^ | BP41: ^^^ | BQ41: 10.4 | BR41: 17.8 | BS41: 7 | BT41: 6.8 | BU41: 5.15 | BV41: 6 | BW41: ^^^ | BX41: 3.25
A42: CFW115 | B42: L9 | C42: Community Based Mental Health Teams - Team Composition WTE | D42: Community Psychiatric Nurses (CPN) - Band 7 | E42: Memory Services | F42: 1 | G42: 2.8 | H42: 2.89 | I42: ^^^ | J42: 0.5 | K42: 1.03 | L42: ^^^ | M42: ^^^ | N42: ^^^ | O42: 0.99 | P42: 4.99 | Q42: ^^^ | R42: 3.54 | S42: ^^^ | T42: 1x | U42: ^^^ | V42: 3.49 | W42: 0.8 | X42: ^^^ | Y42: 27.8 | Z42: 6.55 | AA42: 1.04 | AB42: ^^^ | AC42: ^^^ | AD42: 0 | AE42: 8.3 | AF42: 1 | AG42: 2.4 | AH42: ^^^ | AI42: 1 | AJ42: ^^^ | AK42: 14.9 | AL42: 6.48 | AM42: 3.8 | AN42: 3 | AO42: ^^^ | AP42: 0 | AQ42: 2.04 | AR42: 4 | AS42: 2x | AT42: 4.4 | AU42: 4.8 | AV42: 1 | AW42: 0.9 | AX42: 3.76 | AY42: ^^^ | AZ42: ^^^ | BA42: 4 | BB42: 5.49 | BC42: ^^^ | BD42: ^^^ | BE42: 3.3 | BF42: ^^^ | BG42: 3.63 | BH42: ^^^ | BI42: ^^^ | BJ42: ^^^ | BK42: ^^^ | BL42: ^^^ | BM42: ^^^ | BN42: ^^^ | BO42: ^^^ | BP42: ^^^ | BQ42: ^^^ | BR42: 1 | BS42: 5 | BT42: 3.6 | BU42: ^^^ | BV42: 4 | BW42: ^^^ | BX42: 2.02
A43: CFW116 | B43: M9 | C43: Community Based Mental Health Teams - Team Composition WTE | D43: Community Psychiatric Nurses (CPN) - Band 7 | E43: Other Adult CMHTs | F43: 2.3 | G43: 0 | H43: ^^^ | I43: ^^^ | J43: 5.33 | K43: 1.05 | L43: ^^^ | M43: 3 | N43: ^^^ | O43: 5.2 | P43: ^^^ | Q43: ^^^ | R43: 6.74 | S43: ^^^ | T43: 3.43 | U43: ^^^ | V43: 0.8 | W43: 1 | X43: 56.05 | Y43: 7.42 | Z43: 1.53 | AA43: 3.35 | AB43: 1 | AC43: ^^^ | AD43: 4 | AE43: 11.76 | AF43: 4.54 | AG43: 7.11 | AH43: 3.27 | AI43: 3 | AJ43: 4.8 | AK43: ^^^ | AL43: 7.08 | AM43: 5.5 | AN43: 0 | AO43: ^^^ | AP43: ^^^ | AQ43: 10.94 | AR43: ^^^ | AS43: ^^^ | AT43: 1 | AU43: ^^^ | AV43: 0 | AW43: 1 | AX43: 11.7 | AY43: ^^^ | AZ43: 3 | BA43: 4.01 | BB43: 0 | BC43: ^^^ | BD43: 0 | BE43: 3 | BF43: 7.2 | BG43: 2.59 | BH43: ^^^ | BI43: ^^^ | BJ43: 17.35 | BK43: 3 | BL43: ^^^ | BM43: ^^^ | BN43: ^^^ | BO43: ^^^ | BP43: ^^^ | BQ43: 11.7 | BR43: 2 | BS43: 5.93 | BT43: 1 | BU43: 8.45 | BV43: ^^^ | BW43: ^^^ | BX43: ^^^
A44: CFW117 | B44: N9 | C44: Community Based Mental Health Teams - Team Composition WTE | D44: Community Psychiatric Nurses (CPN) - Band 7 | E44: Totals | F44: 7.53 | G44: 43.74 | H44: 37.64 | I44: 58.81 | J44: 36.75 | K44: 16.91 | L44: 25.55 | M44: 59.54 | N44: 6.5 | O44: 71.52 | P44: 59.49 | Q44: 17.8 | R44: 31.058 | S44: 0 | T44: 43.45 | U44: 16.19 | V44: 45.7755 | W44: 14.6 | X44: 146.69 | Y44: 88.56668 | Z44: 73.16 | AA44: 28.04 | AB44: 22.6 | AC44: 0 | AD44: 80.52 | AE44: 136.28 | AF44: 35.12 | AG44: 43.93 | AH44: 20.46 | AI44: 13.8 | AJ44: 27.6 | AK44: 54.64 | AL44: 68.35 | AM44: 34.4 | AN44: 45.91 | AO44: 7.57 | AP44: 5 | AQ44: 121.96 | AR44: 20.25 | AS44: 43.85 | AT44: 36.86 | AU44: 33.3 | AV44: 13 | AW44: 11.3 | AX44: 114.46 | AY44: 1.243740113 | AZ44: 17.15 | BA44: 33.81 | BB44: 62.82 | BC44: 47.08 | BD44: 29.3 | BE44: 114.96 | BF44: 76.32 | BG44: 35.79 | BH44: 0 | BI44: 1 | BJ44: 63.47 | BK44: 37.34 | BL44: 23 | BM44: 0 | BN44: 0 | BO44: 0 | BP44: 0 | BQ44: 66.9 | BR44: 43.8 | BS44: 43.13 | BT44: 52.6 | BU44: 44.35 | BV44: 33.2 | BW44: 0.25 | BX44: 14.88
A45: CFW118 | B45: B10 | C45: Community Based Mental Health Teams - Team Composition WTE | D45: Community Psychiatric Nurses (CPN) - Band 8 | E45: Generic CMHT | F45: ^^^ | G45: 0.5 | H45: 2 | I45: 2.74 | J45: 0 | K45: ^^^ | L45: ^^^ | M45: ^^^ | N45: 1.8 | O45: ^^^ | P45: 2.69 | Q45: 0 | R45: ^^^ | S45: ^^^ | T45: 2.1 | U45: ^^^ | V45: 2 | W45: ^^^ | X45: 5 | Y45: 3 | Z45: 21.94 | AA45: 3.06 | AB45: ^^^ | AC45: ^^^ | AD45: 5 | AE45: 3 | AF45: ^^^ | AG45: ^^^ | AH45: 1 | AI45: 0 | AJ45: 9 | AK45: 1 | AL45: ^^^ | AM45: 0 | AN45: 3 | AO45: ^^^ | AP45: 0 | AQ45: 11.07 | AR45: ^^^ | AS45: 9.8 | AT45: 5.8 | AU45: 2 | AV45: 0 | AW45: 1 | AX45: 3.9 | AY45: 1.21 | AZ45: ^^^ | BA45: 0.7 | BB45: 2.96 | BC45: 2.27 | BD45: 0 | BE45: ^^^ | BF45: 1 | BG45: ^^^ | BH45: ^^^ | BI45: ^^^ | BJ45: 1.91 | BK45: 0 | BL45: 0 | BM45: ^^^ | BN45: ^^^ | BO45: ^^^ | BP45: ^^^ | BQ45: 3.2 | BR45: ^^^ | BS45: 1 | BT45: 3 | BU45: 0.24 | BV45: 0.71 | BW45: ^^^ | BX45: ^^^
A46: CFW119 | B46: C10 | C46: Community Based Mental Health Teams - Team Composition WTE | D46: Community Psychiatric Nurses (CPN) - Band 8 | E46: CRHT | F46: ^^^ | G46: 0 | H46: 4 | I46: 3.92 | J46: 0 | K46: ^^^ | L46: ^^^ | M46: ^^^ | N46: ^^^ | O46: ^^^ | P46: 4.49 | Q46: 0 | R46: 0.14 | S46: ^^^ | T46: ^^^ | U46: ^^^ | V46: 0.6 | W46: ^^^ | X46: 4.96 | Y46: 2 | Z46: 1.91 | AA46: 2.27 | AB46: ^^^ | AC46: ^^^ | AD46: 0 | AE46: ^^^ | AF46: ^^^ | AG46: ^^^ | AH46: ^^^ | AI46: ^^^ | AJ46: ^^^ | AK46: 0 | AL46: ^^^ | AM46: 0 | AN46: 0 | AO46: ^^^ | AP46: 0 | AQ46: 2.95 | AR46: ^^^ | AS46: ^^^ | AT46: 3.56 | AU46: 0 | AV46: 2 | AW46: 1 | AX46: 3.18 | AY46: 0.07721996543 | AZ46: ^^^ | BA46: ^^^ | BB46: 1.99 | BC46: 0.8 | BD46: 0 | BE46: ^^^ | BF46: ^^^ | BG46: 1.74 | BH46: ^^^ | BI46: ^^^ | BJ46: 0 | BK46: 0 | BL46: 0 | BM46: ^^^ | BN46: ^^^ | BO46: ^^^ | BP46: ^^^ | BQ46: 0.1 | BR46: ^^^ | BS46: 2 | BT46: 1 | BU46: 0.3 | BV46: ^^^ | BW46: ^^^ | BX46: ^^^
A47: CFW120 | B47: D10 | C47: Community Based Mental Health Teams - Team Composition WTE | D47: Community Psychiatric Nurses (CPN) - Band 8 | E47: Assertive Outreach | F47: ^^^ | G47: 0 | H47: ^^^ | I47: ^^^ | J47: 0 | K47: ^^^ | L47: ^^^ | M47: ^^^ | N47: 1 | O47: ^^^ | P47: ^^^ | Q47: ^^^ | R47: ^^^ | S47: ^^^ | T47: ^^^ | U47: ^^^ | V47: ^^^ | W47: ^^^ | X47: ^^^ | Y47: ^^^ | Z47: 0 | AA47: ^^^ | AB47: ^^^ | AC47: ^^^ | AD47: 0 | AE47: ^^^ | AF47: ^^^ | AG47: ^^^ | AH47: ^^^ | AI47: ^^^ | AJ47: ^^^ | AK47: ^^^ | AL47: ^^^ | AM47: ^^^ | AN47: 0 | AO47: ^^^ | AP47: ^^^ | AQ47: 0 | AR47: ^^^ | AS47: 1 | AT47: 0 | AU47: ^^^ | AV47: 0 | AW47: 0 | AX47: ^^^ | AY47: ^^^ | AZ47: ^^^ | BA47: ^^^ | BB47: ^^^ | BC47: 0.06 | BD47: ^^^ | BE47: 0 | BF47: ^^^ | BG47: ^^^ | BH47: ^^^ | BI47: ^^^ | BJ47: ^^^ | BK47: ^^^ | BL47: ^^^ | BM47: ^^^ | BN47: ^^^ | BO47: ^^^ | BP47: ^^^ | BQ47: ^^^ | BR47: ^^^ | BS47: ^^^ | BT47: ^^^ | BU47: 0 | BV47: 1.7 | BW47: ^^^ | BX47: ^^^
A48: CFW121 | B48: E10 | C48: Community Based Mental Health Teams - Team Composition WTE | D48: Community Psychiatric Nurses (CPN) - Band 8 | E48: Early Intervention (incl Early Onset Psychosis) | F48: ^^^ | G48: 0 | H48: 1 | I48: 0.13 | J48: 0 | K48: ^^^ | L48: ^^^ | M48: ^^^ | N48: ^^^ | O48: ^^^ | P48: 0.2 | Q48: 0 | R48: ^^^ | S48: ^^^ | T48: ^^^ | U48: ^^^ | V48: ^^^ | W48: ^^^ | X48: 0.8 | Y48: 3 | Z48: 1.11 | AA48: ^^^ | AB48: ^^^ | AC48: ^^^ | AD48: 1.1 | AE48: ^^^ | AF48: ^^^ | AG48: ^^^ | AH48: 1 | AI48: ^^^ | AJ48: ^^^ | AK48: ^^^ | AL48: ^^^ | AM48: ^^^ | AN48: 1 | AO48: ^^^ | AP48: 0 | AQ48: 0.84 | AR48: ^^^ | AS48: ^^^ | AT48: 1.21 | AU48: 1 | AV48: 0 | AW48: 0 | AX48: 1.31 | AY48: 0.02 | AZ48: ^^^ | BA48: ^^^ | BB48: 0.25 | BC48: 0.58 | BD48: 1 | BE48: ^^^ | BF48: 1 | BG48: ^^^ | BH48: ^^^ | BI48: ^^^ | BJ48: 0 | BK48: 0 | BL48: ^^^ | BM48: ^^^ | BN48: ^^^ | BO48: ^^^ | BP48: ^^^ | BQ48: 0.5 | BR48: ^^^ | BS48: ^^^ | BT48: ^^^ | BU48: 0 | BV48: ^^^ | BW48: ^^^ | BX48: ^^^
A49: CFW122 | B49: F10 | C49: Community Based Mental Health Teams - Team Composition WTE | D49: Community Psychiatric Nurses (CPN) - Band 8 | E49: Assessment & Brief Intervention (incl PMHT) | F49: ^^^ | G49: 0 | H49: 1 | I49: 1 | J49: ^^^ | K49: ^^^ | L49: ^^^ | M49: ^^^ | N49: 1 | O49: ^^^ | P49: ^^^ | Q49: ^^^ | R49: ^^^ | S49: ^^^ | T49: ^^^ | U49: ^^^ | V49: ^^^ | W49: ^^^ | X49: ^^^ | Y49: 1 | Z49: 0 | AA49: ^^^ | AB49: ^^^ | AC49: ^^^ | AD49: 0 | AE49: 0.08 | AF49: ^^^ | AG49: ^^^ | AH49: ^^^ | AI49: ^^^ | AJ49: 1 | AK49: ^^^ | AL49: ^^^ | AM49: 0 | AN49: 0 | AO49: ^^^ | AP49: 0 | AQ49: 1.61 | AR49: ^^^ | AS49: 2 | AT49: 0 | AU49: ^^^ | AV49: 0 | AW49: 0 | AX49: 2.88 | AY49: 0.06 | AZ49: ^^^ | BA49: ^^^ | BB49: 1.42 | BC49: ^^^ | BD49: ^^^ | BE49: 0 | BF49: ^^^ | BG49: ^^^ | BH49: ^^^ | BI49: ^^^ | BJ49: 1 | BK49: 0 | BL49: 0 | BM49: ^^^ | BN49: ^^^ | BO49: ^^^ | BP49: ^^^ | BQ49: 0.5 | BR49: ^^^ | BS49: ^^^ | BT49: ^^^ | BU49: 0.07 | BV49: 0.73 | BW49: ^^^ | BX49: ^^^
A50: CFW123 | B50: G10 | C50: Community Based Mental Health Teams - Team Composition WTE | D50: Community Psychiatric Nurses (CPN) - Band 8 | E50: Rehabilitation and Recovery | F50: ^^^ | G50: 0 | H50: 0 | I50: ^^^ | J50: ^^^ | K50: ^^^ | L50: ^^^ | M50: ^^^ | N50: ^^^ | O50: ^^^ | P50: ^^^ | Q50: ^^^ | R50: ^^^ | S50: ^^^ | T50: ^^^ | U50: ^^^ | V50: ^^^ | W50: ^^^ | X50: 1 | Y50: 4.82667 | Z50: 0 | AA50: ^^^ | AB50: ^^^ | AC50: ^^^ | AD50: 0 | AE50: 1 | AF50: ^^^ | AG50: ^^^ | AH50: ^^^ | AI50: ^^^ | AJ50: ^^^ | AK50: ^^^ | AL50: ^^^ | AM50: ^^^ | AN50: 0 | AO50: ^^^ | AP50: ^^^ | AQ50: 0 | AR50: ^^^ | AS50: ^^^ | AT50: 0.47 | AU50: 0 | AV50: ^^^ | AW50: ^^^ | AX50: 9.1 | AY50: ^^^ | AZ50: ^^^ | BA50: ^^^ | BB50: 0.03 | BC50: 0.01 | BD50: ^^^ | BE50: ^^^ | BF50: ^^^ | BG50: ^^^ | BH50: ^^^ | BI50: ^^^ | BJ50: 0 | BK50: 0 | BL50: ^^^ | BM50: ^^^ | BN50: ^^^ | BO50: ^^^ | BP50: ^^^ | BQ50: ^^^ | BR50: ^^^ | BS50: ^^^ | BT50: ^^^ | BU50: 0.07 | BV50: ^^^ | BW50: ^^^ | BX50: ^^^
A51: CFW124 | B51: H10 | C51: Community Based Mental Health Teams - Team Composition WTE | D51: Community Psychiatric Nurses (CPN) - Band 8 | E51: Forensic | F51: ^^^ | G51: 0 | H51: ^^^ | I51: ^^^ | J51: 0 | K51: ^^^ | L51: ^^^ | M51: ^^^ | N51: ^^^ | O51: ^^^ | P51: 0.82 | Q51: 0 | R51: 0.02 | S51: ^^^ | T51: ^^^ | U51: ^^^ | V51: 0.25 | W51: ^^^ | X51: 1 | Y51: 1 | Z51: 0 | AA51: 0.13 | AB51: ^^^ | AC51: ^^^ | AD51: 0 | AE51: 4.24 | AF51: 1 | AG51: ^^^ | AH51: ^^^ | AI51: 0.2 | AJ51: ^^^ | AK51: ^^^ | AL51: ^^^ | AM51: ^^^ | AN51: 0 | AO51: 0.6 | AP51: 0 | AQ51: 2.51 | AR51: 0 | AS51: 1 | AT51: ^^^ | AU51: ^^^ | AV51: ^^^ | AW51: 0 | AX51: 0.46 | AY51: ^^^ | AZ51: ^^^ | BA51: ^^^ | BB51: 0.02 | BC51: ^^^ | BD51: 1 | BE51: 1 | BF51: ^^^ | BG51: 1.04 | BH51: ^^^ | BI51: ^^^ | BJ51: 1 | BK51: 1 | BL51: ^^^ | BM51: ^^^ | BN51: ^^^ | BO51: ^^^ | BP51: ^^^ | BQ51: 0.7 | BR51: ^^^ | BS51: ^^^ | BT51: ^^^ | BU51: 0.03 | BV51: ^^^ | BW51: ^^^ | BX51: ^^^
A52: CFW125 | B52: I10 | C52: Community Based Mental Health Teams - Team Composition WTE | D52: Community Psychiatric Nurses (CPN) - Band 8 | E52: Eating Disorders | F52: 0.6 | G52: 0 | H52: 1 | I52: ^^^ | J52: 0 | K52: ^^^ | L52: ^^^ | M52: ^^^ | N52: ^^^ | O52: ^^^ | P52: 0.97 | Q52: 0 | R52: 0.017 | S52: ^^^ | T52: ^^^ | U52: ^^^ | V52: ^^^ | W52: ^^^ | X52: ^^^ | Y52: 1 | Z52: 0 | AA52: 0.03 | AB52: ^^^ | AC52: ^^^ | AD52: 0 | AE52: ^^^ | AF52: ^^^ | AG52: ^^^ | AH52: ^^^ | AI52: ^^^ | AJ52: ^^^ | AK52: 0.8 | AL52: ^^^ | AM52: 0 | AN52: 0.5 | AO52: ^^^ | AP52: 0 | AQ52: 0 | AR52: ^^^ | AS52: ^^^ | AT52: 0 | AU52: ^^^ | AV52: ^^^ | AW52: 0 | AX52: 1.16 | AY52: ^^^ | AZ52: ^^^ | BA52: ^^^ | BB52: ^^^ | BC52: 1 | BD52: 1 | BE52: ^^^ | BF52: ^^^ | BG52: ^^^ | BH52: ^^^ | BI52: ^^^ | BJ52: 1 | BK52: 1 | BL52: ^^^ | BM52: ^^^ | BN52: ^^^ | BO52: ^^^ | BP52: ^^^ | BQ52: 0.1 | BR52: ^^^ | BS52: 1 | BT52: ^^^ | BU52: 0.01 | BV52: ^^^ | BW52: 1 | BX52: ^^^
A53: CFW126 | B53: J10 | C53: Community Based Mental Health Teams - Team Composition WTE | D53: Community Psychiatric Nurses (CPN) - Band 8 | E53: Mother and Baby | F53: ^^^ | G53: 0 | H53: ^^^ | I53: ^^^ | J53: 0 | K53: ^^^ | L53: ^^^ | M53: ^^^ | N53: ^^^ | O53: ^^^ | P53: 1.04 | Q53: ^^^ | R53: ^^^ | S53: ^^^ | T53: ^^^ | U53: ^^^ | V53: ^^^ | W53: ^^^ | X53: 0.4 | Y53: ^^^ | Z53: 0.8 | AA53: ^^^ | AB53: ^^^ | AC53: ^^^ | AD53: 2 | AE53: ^^^ | AF53: ^^^ | AG53: ^^^ | AH53: ^^^ | AI53: ^^^ | AJ53: 1 | AK53: 0.47 | AL53: ^^^ | AM53: 0 | AN53: 0 | AO53: ^^^ | AP53: ^^^ | AQ53: 0.11 | AR53: ^^^ | AS53: ^^^ | AT53: 0.31 | AU53: ^^^ | AV53: ^^^ | AW53: 0 | AX53: 0.59 | AY53: ^^^ | AZ53: ^^^ | BA53: ^^^ | BB53: 0.56 | BC53: ^^^ | BD53: ^^^ | BE53: ^^^ | BF53: ^^^ | BG53: ^^^ | BH53: ^^^ | BI53: ^^^ | BJ53: 0 | BK53: ^^^ | BL53: ^^^ | BM53: ^^^ | BN53: ^^^ | BO53: ^^^ | BP53: ^^^ | BQ53: 0.1 | BR53: ^^^ | BS53: ^^^ | BT53: ^^^ | BU53: 0.02 | BV53: ^^^ | BW53: ^^^ | BX53: ^^^
A54: CFW127 | B54: K10 | C54: Community Based Mental Health Teams - Team Composition WTE | D54: Community Psychiatric Nurses (CPN) - Band 8 | E54: Older People | F54: ^^^ | G54: 0 | H54: 1 | I54: 2 | J54: 0 | K54: ^^^ | L54: 1 | M54: 1 | N54: ^^^ | O54: ^^^ | P54: 2.74 | Q54: 0 | R54: ^^^ | S54: ^^^ | T54: ^^^ | U54: ^^^ | V54: ^^^ | W54: ^^^ | X54: 2.8 | Y54: ^^^ | Z54: 4.11 | AA54: 0.4 | AB54: 1 | AC54: ^^^ | AD54: 0 | AE54: ^^^ | AF54: ^^^ | AG54: ^^^ | AH54: ^^^ | AI54: ^^^ | AJ54: 2.74 | AK54: ^^^ | AL54: ^^^ | AM54: 0 | AN54: 0 | AO54: 2.23 | AP54: 0 | AQ54: 3.12 | AR54: ^^^ | AS54: 3 | AT54: 2.99 | AU54: 1 | AV54: 0 | AW54: 0 | AX54: 2.88 | AY54: 0.465172768 | AZ54: 0.25 | BA54: 0.92 | BB54: 0.47 | BC54: 1.71 | BD54: 2 | BE54: ^^^ | BF54: ^^^ | BG54: ^^^ | BH54: ^^^ | BI54: ^^^ | BJ54: ^^^ | BK54: 0 | BL54: 0 | BM54: ^^^ | BN54: ^^^ | BO54: ^^^ | BP54: ^^^ | BQ54: 1.9 | BR54: ^^^ | BS54: 6 | BT54: ^^^ | BU54: 0.07 | BV54: 0.7 | BW54: ^^^ | BX54: ^^^
A55: CFW128 | B55: L10 | C55: Community Based Mental Health Teams - Team Composition WTE | D55: Community Psychiatric Nurses (CPN) - Band 8 | E55: Memory Services | F55: ^^^ | G55: 0 | H55: ^^^ | I55: ^^^ | J55: 0 | K55: ^^^ | L55: ^^^ | M55: ^^^ | N55: ^^^ | O55: ^^^ | P55: 1.46 | Q55: ^^^ | R55: ^^^ | S55: ^^^ | T55: ^^^ | U55: ^^^ | V55: ^^^ | W55: ^^^ | X55: ^^^ | Y55: 5 | Z55: 0.11 | AA55: 0.07 | AB55: ^^^ | AC55: ^^^ | AD55: 0 | AE55: ^^^ | AF55: ^^^ | AG55: ^^^ | AH55: ^^^ | AI55: ^^^ | AJ55: ^^^ | AK55: 1.8 | AL55: ^^^ | AM55: 0 | AN55: 0 | AO55: ^^^ | AP55: 0 | AQ55: 0.71 | AR55: ^^^ | AS55: ^^^ | AT55: 1.02 | AU55: 0 | AV55: 0 | AW55: 0 | AX55: 0.45 | AY55: ^^^ | AZ55: ^^^ | BA55: ^^^ | BB55: 2.12 | BC55: ^^^ | BD55: ^^^ | BE55: ^^^ | BF55: ^^^ | BG55: ^^^ | BH55: ^^^ | BI55: ^^^ | BJ55: ^^^ | BK55: ^^^ | BL55: ^^^ | BM55: ^^^ | BN55: ^^^ | BO55: ^^^ | BP55: ^^^ | BQ55: ^^^ | BR55: ^^^ | BS55: ^^^ | BT55: ^^^ | BU55: ^^^ | BV55: ^^^ | BW55: ^^^ | BX55: ^^^
A56: CFW129 | B56: M10 | C56: Community Based Mental Health Teams - Team Composition WTE | D56: Community Psychiatric Nurses (CPN) - Band 8 | E56: Other Adult CMHTs | F56: ^^^ | G56: 0 | H56: ^^^ | I56: ^^^ | J56: 3 | K56: ^^^ | L56: ^^^ | M56: ^^^ | N56: ^^^ | O56: ^^^ | P56: ^^^ | Q56: ^^^ | R56: 0.07 | S56: ^^^ | T56: 7.27 | U56: ^^^ | V56: ^^^ | W56: ^^^ | X56: 5.76 | Y56: 10.47 | Z56: 0 | AA56: 1.11 | AB56: ^^^ | AC56: ^^^ | AD56: 1 | AE56: ^^^ | AF56: 1.8 | AG56: ^^^ | AH56: ^^^ | AI56: ^^^ | AJ56: 1.2 | AK56: ^^^ | AL56: ^^^ | AM56: 2.56 | AN56: 0 | AO56: ^^^ | AP56: ^^^ | AQ56: 3.7 | AR56: 4 | AS56: ^^^ | AT56: 0 | AU56: ^^^ | AV56: 0 | AW56: 0 | AX56: 8.79 | AY56: ^^^ | AZ56: ^^^ | BA56: ^^^ | BB56: 0.11 | BC56: ^^^ | BD56: 0 | BE56: ^^^ | BF56: 1.4 | BG56: 0.15 | BH56: ^^^ | BI56: ^^^ | BJ56: 1 | BK56: 0 | BL56: ^^^ | BM56: ^^^ | BN56: ^^^ | BO56: ^^^ | BP56: ^^^ | BQ56: 7.1 | BR56: ^^^ | BS56: ^^^ | BT56: ^^^ | BU56: 0.06 | BV56: ^^^ | BW56: ^^^ | BX56: ^^^
A57: CFW130 | B57: N10 | C57: Community Based Mental Health Teams - Team Composition WTE | D57: Community Psychiatric Nurses (CPN) - Band 8 | E57: Totals | F57: 0.6 | G57: 0.5 | H57: 10 | I57: 9.79 | J57: 3 | K57: 0 | L57: 1 | M57: 1 | N57: 3.8 | O57: 0 | P57: 14.41 | Q57: 0 | R57: 0.247 | S57: 0 | T57: 9.37 | U57: 0 | V57: 2.85 | W57: 0 | X57: 21.72 | Y57: 31.29667 | Z57: 29.98 | AA57: 7.07 | AB57: 1 | AC57: 0 | AD57: 9.1 | AE57: 8.32 | AF57: 2.8 | AG57: 0 | AH57: 2 | AI57: 0.2 | AJ57: 14.94 | AK57: 4.07 | AL57: 0 | AM57: 2.56 | AN57: 4.5 | AO57: 2.83 | AP57: 0 | AQ57: 26.62 | AR57: 4 | AS57: 16.8 | AT57: 15.36 | AU57: 4 | AV57: 2 | AW57: 2 | AX57: 34.7 | AY57: 1.832392733 | AZ57: 0.25 | BA57: 1.62 | BB57: 9.93 | BC57: 6.43 | BD57: 5 | BE57: 1 | BF57: 3.4 | BG57: 2.93 | BH57: 0 | BI57: 0 | BJ57: 5.91 | BK57: 2 | BL57: 0 | BM57: 0 | BN57: 0 | BO57: 0 | BP57: 0 | BQ57: 14.2 | BR57: 0 | BS57: 10 | BT57: 4 | BU57: 0.87 | BV57: 3.84 | BW57: 1 | BX57: 0
A58: CFW1 | B58: B11 | C58: Community Based Mental Health Teams - Team Composition WTE | D58: Total Nursing | E58: Generic CMHT | F58: 0 | G58: 116.28 | H58: 40.4 | I58: 47.12 | J58: 153.77 | K58: 47.9 | L58: 73.83 | M58: 44.75 | N58: 21.2 | O58: 71.68 | P58: 139.31 | Q58: 63.92 | R58: 40.04 | S58: 0 | T58: 224.11 | U58: 78.75 | V58: 82.56 | W58: 46.39 | X58: 205.94 | Y58: 34.55334 | Z58: 193.68 | AA58: 109.34 | AB58: 50.9 | AC58: 0 | AD58: 136.86 | AE58: 141.54 | AF58: 85.95 | AG58: 58.26 | AH58: 81.41 | AI58: 20.48 | AJ58: 138.29 | AK58: 165.19 | AL58: 185.18 | AM58: 65.51 | AN58: 47.12 | AO58: 91.67 | AP58: 30.58 | AQ58: 246.68 | AR58: 101.43 | AS58: 76.56 | AT58: 75.57 | AU58: 102.9 | AV58: 80.79 | AW58: 23.66 | AX58: 137.7 | AY58: 17.49 | AZ58: 8.75 | BA58: 70.97 | BB58: 165.11 | BC58: 148.44 | BD58: 63.43 | BE58: 238.92 | BF58: 221.8 | BG58: 66.84 | BH58: 0 | BI58: 19.78 | BJ58: 5.27 | BK58: 46.54 | BL58: 35.96 | BM58: 0 | BN58: 0 | BO58: 0 | BP58: 0 | BQ58: 215.2 | BR58: 56.45 | BS58: 53.78 | BT58: 158.91 | BU58: 60.49 | BV58: 27.87 | BW58: 55.61 | BX58: 22.94
A59: CFW2 | B59: C11 | C59: Community Based Mental Health Teams - Team Composition WTE | D59: Total Nursing | E59: CRHT | F59: 47.65 | G59: 59.57 | H59: 49.81 | I59: 43.39 | J59: 127.43 | K59: 54.55 | L59: 54.83 | M59: 44.81 | N59: 54.75 | O59: 56.66 | P59: 142.02 | Q59: 22.18 | R59: 49.94 | S59: 0 | T59: 52.89 | U59: 59.83 | V59: 35.66 | W59: 25.4 | X59: 90.65 | Y59: 104.01733 | Z59: 107.47 | AA59: 62.23 | AB59: 12.7 | AC59: 0 | AD59: 82.74 | AE59: 48.72 | AF59: 87.04 | AG59: 39.52 | AH59: 0 | AI59: 32.1 | AJ59: 0 | AK59: 65.85 | AL59: 73.69 | AM59: 69.28 | AN59: 15.64 | AO59: 80.42 | AP59: 31.38 | AQ59: 135.65 | AR59: 52.79 | AS59: 0 | AT59: 66.27 | AU59: 63.1 | AV59: 48.1 | AW59: 36.55 | AX59: 118.84 | AY59: 8.777219965 | AZ59: 36.6 | BA59: 68.97 | BB59: 154.77 | BC59: 68.87 | BD59: 33.25 | BE59: 160.29 | BF59: 156.47 | BG59: 73.9 | BH59: 0 | BI59: 0 | BJ59: 22.09 | BK59: 22.43 | BL59: 17.91 | BM59: 0 | BN59: 0 | BO59: 0 | BP59: 0 | BQ59: 77.3 | BR59: 35.82 | BS59: 36.94 | BT59: 38.8 | BU59: 47.93 | BV59: 23.91947 | BW59: 45.06 | BX59: 19.95
A60: CFW3 | B60: D11 | C60: Community Based Mental Health Teams - Team Composition WTE | D60: Total Nursing | E60: Assertive Outreach | F60: 14.8 | G60: 0 | H60: 0 | I60: 0 | J60: 42.9 | K60: 0 | L60: 7 | M60: 0 | N60: 6.5 | O60: 0 | P60: 0 | Q60: 0 | R60: 0 | S60: 0 | T60: 0 | U60: 0 | V60: 7.7 | W60: 0 | X60: 6.05 | Y60: 5.8 | Z60: 0 | AA60: 0 | AB60: 0 | AC60: 0 | AD60: 0 | AE60: 0 | AF60: 13.83 | AG60: 24.01 | AH60: 0 | AI60: 5.05 | AJ60: 0 | AK60: 0 | AL60: 0 | AM60: 0 | AN60: 0 | AO60: 0 | AP60: 0 | AQ60: 0 | AR60: 26.4 | AS60: 18.47 | AT60: 0 | AU60: 0 | AV60: 17.5 | AW60: 0 | AX60: 0 | AY60: 0 | AZ60: 8.3 | BA60: 0 | BB60: 0 | BC60: 2.55 | BD60: 0 | BE60: 30.02 | BF60: 0 | BG60: 0 | BH60: 0 | BI60: 0 | BJ60: 0 | BK60: 0 | BL60: 0 | BM60: 0 | BN60: 0 | BO60: 0 | BP60: 0 | BQ60: 0 | BR60: 9.4 | BS60: 9 | BT60: 0 | BU60: 0 | BV60: 13.8 | BW60: 0 | BX60: 0
A61: CFW4 | B61: E11 | C61: Community Based Mental Health Teams - Team Composition WTE | D61: Total Nursing | E61: Early Intervention (incl Early Onset Psychosis) | F61: 15.08 | G61: 40.62 | H61: 15.4 | I61: 15.84 | J61: 4.23 | K61: 13.7 | L61: 21.82 | M61: 11.89 | N61: 10.6 | O61: 34.44 | P61: 29.83 | Q61: 13.04 | R61: 25.45 | S61: 0 | T61: 26.75 | U61: 16.9 | V61: 7.3 | W61: 15.61 | X61: 45.16 | Y61: 62.72 | Z61: 44.19 | AA61: 0 | AB61: 9.6 | AC61: 0 | AD61: 31.11 | AE61: 42.21 | AF61: 0 | AG61: 20.65 | AH61: 16.02 | AI61: 0 | AJ61: 26.8 | AK61: 0 | AL61: 0 | AM61: 19 | AN61: 24.65 | AO61: 29.09 | AP61: 10.6 | AQ61: 32.49 | AR61: 21.49 | AS61: 7.2 | AT61: 14.24 | AU61: 45.4 | AV61: 31.64 | AW61: 12.6 | AX61: 51.33 | AY61: 1.22 | AZ61: 3.4 | BA61: 21.75 | BB61: 47.13 | BC61: 25.31 | BD61: 15.8 | BE61: 37.89 | BF61: 58.3 | BG61: 5.24 | BH61: 0 | BI61: 0 | BJ61: 4 | BK61: 0 | BL61: 0 | BM61: 0 | BN61: 0 | BO61: 0 | BP61: 0 | BQ61: 17.6 | BR61: 5.18 | BS61: 7.9 | BT61: 0 | BU61: 0 | BV61: 0 | BW61: 5.77 | BX61: 0
A62: CFW5 | B62: F11 | C62: Community Based Mental Health Teams - Team Composition WTE | D62: Total Nursing | E62: Assessment & Brief Intervention (incl PMHT) | F62: 29.88 | G62: 56.59 | H62: 16 | I62: 12.22 | J62: 0 | K62: 0 | L62: 7.6 | M62: 52.72 | N62: 4.8 | O62: 63.72 | P62: 0 | Q62: 0 | R62: 0 | S62: 0 | T62: 0 | U62: 37.2 | V62: 0 | W62: 24.72 | X62: 0 | Y62: 30.54667 | Z62: 13.64 | AA62: 0 | AB62: 41.8 | AC62: 0 | AD62: 0 | AE62: 141.26 | AF62: 0 | AG62: 15.4 | AH62: 0 | AI62: 0 | AJ62: 51.47 | AK62: 0 | AL62: 45.79 | AM62: 34.66 | AN62: 32.65 | AO62: 38.83 | AP62: 16.9 | AQ62: 38.52 | AR62: 0 | AS62: 84.59 | AT62: 1.04 | AU62: 0 | AV62: 13.6 | AW62: 18.07 | AX62: 62.04 | AY62: 6.56 | AZ62: 0.4 | BA62: 41.99 | BB62: 6.3 | BC62: 0 | BD62: 0 | BE62: 37.28 | BF62: 65.08 | BG62: 0 | BH62: 0 | BI62: 0 | BJ62: 36.7 | BK62: 0.85 | BL62: 10 | BM62: 0 | BN62: 0 | BO62: 0 | BP62: 0 | BQ62: 37.5 | BR62: 0 | BS62: 27.5 | BT62: 0 | BU62: 12.89 | BV62: 23.07 | BW62: 14.36 | BX62: 6.09
A63: CFW6 | B63: G11 | C63: Community Based Mental Health Teams - Team Composition WTE | D63: Total Nursing | E63: Rehabilitation and Recovery | F63: 43.14 | G63: 0 | H63: 4.5 | I63: 0 | J63: 0 | K63: 0 | L63: 0 | M63: 0 | N63: 14 | O63: 9.92 | P63: 0 | Q63: 0 | R63: 48.07 | S63: 0 | T63: 0 | U63: 1 | V63: 0 | W63: 0 | X63: 1.8 | Y63: 35.49334 | Z63: 0 | AA63: 0 | AB63: 0 | AC63: 0 | AD63: 0 | AE63: 7.8 | AF63: 2.8 | AG63: 5.69 | AH63: 0 | AI63: 2 | AJ63: 0 | AK63: 0 | AL63: 0 | AM63: 0 | AN63: 0 | AO63: 0 | AP63: 0 | AQ63: 0 | AR63: 0 | AS63: 0 | AT63: 9.14 | AU63: 5.7 | AV63: 0 | AW63: 0 | AX63: 32.87 | AY63: 0 | AZ63: 34.59 | BA63: 8.57 | BB63: 4.07 | BC63: 4.95 | BD63: 0 | BE63: 0 | BF63: 3 | BG63: 0 | BH63: 0 | BI63: 4.95 | BJ63: 52.74 | BK63: 0 | BL63: 0 | BM63: 0 | BN63: 0 | BO63: 0 | BP63: 0 | BQ63: 0 | BR63: 0 | BS63: 0 | BT63: 12.6 | BU63: 14.07 | BV63: 0 | BW63: 0 | BX63: 0
A64: CFW7 | B64: H11 | C64: Community Based Mental Health Teams - Team Composition WTE | D64: Total Nursing | E64: Forensic | F64: 0 | G64: 0 | H64: 0 | I64: 0 | J64: 14 | K64: 6.99 | L64: 0 | M64: 4.91 | N64: 0 | O64: 14.52 | P64: 13.11 | Q64: 12.6 | R64: 9.51 | S64: 0 | T64: 11.08 | U64: 0 | V64: 3.25 | W64: 0 | X64: 11 | Y64: 14.66667 | Z64: 4.85 | AA64: 5.04 | AB64: 5 | AC64: 0 | AD64: 0 | AE64: 91.35 | AF64: 6.8 | AG64: 5.8 | AH64: 4.07 | AI64: 2 | AJ64: 0 | AK64: 3 | AL64: 26.62 | AM64: 0 | AN64: 0 | AO64: 12.2 | AP64: 5.8 | AQ64: 34.27 | AR64: 32.8 | AS64: 7 | AT64: 30.1 | AU64: 0 | AV64: 0 | AW64: 0 | AX64: 22.37 | AY64: 0 | AZ64: 1 | BA64: 2.5 | BB64: 5.03 | BC64: 3.23 | BD64: 4.08 | BE64: 26 | BF64: 5 | BG64: 4.84 | BH64: 0 | BI64: 0.23 | BJ64: 4 | BK64: 5 | BL64: 0 | BM64: 0 | BN64: 0 | BO64: 0 | BP64: 0 | BQ64: 18.059 | BR64: 14.55 | BS64: 8 | BT64: 2 | BU64: 10.65 | BV64: 0 | BW64: 3 | BX64: 0
A65: CFW8 | B65: I11 | C65: Community Based Mental Health Teams - Team Composition WTE | D65: Total Nursing | E65: Eating Disorders | F65: 5.3 | G65: 4.2 | H65: 8 | I65: 0.8 | J65: 2.23 | K65: 5.26 | L65: 0 | M65: 0.75 | N65: 0 | O65: 11.72 | P65: 4.77 | Q65: 0 | R65: 0.196 | S65: 0 | T65: 2.94 | U65: 2.5 | V65: 11.113 | W65: 2 | X65: 1.4 | Y65: 8.37334 | Z65: 0.6 | AA65: 2.46 | AB65: 0 | AC65: 0 | AD65: 0 | AE65: 9.5 | AF65: 4.6 | AG65: 1.03 | AH65: 3 | AI65: 0 | AJ65: 0 | AK65: 5.59 | AL65: 12.1 | AM65: 1.1 | AN65: 0.5 | AO65: 3.91 | AP65: 1.4 | AQ65: 0 | AR65: 4.49 | AS65: 0.8 | AT65: 0 | AU65: 0 | AV65: 0 | AW65: 1.8 | AX65: 3.61 | AY65: 0 | AZ65: 3.7 | BA65: 5.6 | BB65: 0 | BC65: 3.61 | BD65: 7.39 | BE65: 10.72 | BF65: 8.61 | BG65: 0 | BH65: 0 | BI65: 0.57 | BJ65: 8 | BK65: 5 | BL65: 0 | BM65: 0 | BN65: 0 | BO65: 0 | BP65: 0 | BQ65: 8.4 | BR65: 0.2 | BS65: 2.8 | BT65: 2 | BU65: 0.06 | BV65: 0 | BW65: 1 | BX65: 0
A66: CFW9 | B66: J11 | C66: Community Based Mental Health Teams - Team Composition WTE | D66: Total Nursing | E66: Mother and Baby | F66: 4.14 | G66: 0 | H66: 0 | I66: 5.17 | J66: 8.19 | K66: 0 | L66: 2.8 | M66: 2.6 | N66: 0 | O66: 3.04 | P66: 5.76 | Q66: 0 | R66: 6.23 | S66: 0 | T66: 4 | U66: 8.05 | V66: 6.07 | W66: 0 | X66: 6.5 | Y66: 4.11334 | Z66: 3.78 | AA66: 4.45 | AB66: 4.4 | AC66: 0 | AD66: 11.08 | AE66: 0 | AF66: 3.4 | AG66: 5.63 | AH66: 4.8 | AI66: 1.88 | AJ66: 5.8 | AK66: 3.44 | AL66: 7.08 | AM66: 3.8 | AN66: 2 | AO66: 3 | AP66: 0 | AQ66: 6.97 | AR66: 8.19 | AS66: 1.47 | AT66: 0.36 | AU66: 0 | AV66: 0 | AW66: 3.09 | AX66: 19 | AY66: 0 | AZ66: 0 | BA66: 1 | BB66: 7.2 | BC66: 9.92 | BD66: 0 | BE66: 16.6 | BF66: 0 | BG66: 6 | BH66: 0 | BI66: 0.57 | BJ66: 1 | BK66: 0 | BL66: 0 | BM66: 0 | BN66: 0 | BO66: 0 | BP66: 0 | BQ66: 0.3 | BR66: 3.4 | BS66: 0 | BT66: 5.14 | BU66: 4.28 | BV66: 2 | BW66: 1.4 | BX66: 0
A67: CFW10 | B67: K11 | C67: Community Based Mental Health Teams - Team Composition WTE | D67: Total Nursing | E67: Older People | F67: 25.04 | G67: 23.92 | H67: 31.58 | I67: 60.26 | J67: 48.02 | K67: 19.06 | L67: 38.29 | M67: 42.94 | N67: 8 | O67: 50.77 | P67: 46.19 | Q67: 47.6 | R67: 0 | S67: 0 | T67: 27.24 | U67: 39.72 | V67: 56.92 | W67: 9 | X67: 43.23 | Y67: 19.8 | Z67: 81.91 | AA67: 65.68 | AB67: 39.4 | AC67: 0 | AD67: 84.42 | AE67: 107.61 | AF67: 6.53 | AG67: 52.4 | AH67: 24.37 | AI67: 4.4 | AJ67: 35.26 | AK67: 0 | AL67: 82.392 | AM67: 13.6 | AN67: 47.7 | AO67: 82.24 | AP67: 17.23 | AQ67: 122 | AR67: 70.37 | AS67: 29.81 | AT67: 28.12 | AU67: 47 | AV67: 45.64 | AW67: 17.2 | AX67: 47.94 | AY67: 15.50891288 | AZ67: 34.26 | BA67: 39.39 | BB67: 87.55 | BC67: 86.08 | BD67: 59.18 | BE67: 11 | BF67: 184.67 | BG67: 0 | BH67: 0 | BI67: 12 | BJ67: 0 | BK67: 13.89 | BL67: 16 | BM67: 0 | BN67: 0 | BO67: 0 | BP67: 0 | BQ67: 124.7 | BR67: 45.72 | BS67: 49.84 | BT67: 47.36 | BU67: 20.81 | BV67: 25.2 | BW67: 21.42 | BX67: 17.66
A68: CFW11 | B68: L11 | C68: Community Based Mental Health Teams - Team Composition WTE | D68: Total Nursing | E68: Memory Services | F68: 33.61 | G68: 16.97 | H68: 10.89 | I68: 0 | J68: 16.74 | K68: 8.73 | L68: 0 | M68: 0 | N68: 6.2 | O68: 5.99 | P68: 30.07 | Q68: 0 | R68: 28.26 | S68: 0 | T68: 0 | U68: 0 | V68: 30.94 | W68: 6.6 | X68: 0 | Y68: 78.12 | Z68: 23.59 | AA68: 17.2 | AB68: 3.4 | AC68: 0 | AD68: 0 | AE68: 32.35 | AF68: 17.09 | AG68: 11.6 | AH68: 0 | AI68: 10.31 | AJ68: 0 | AK68: 74.11 | AL68: 54.928 | AM68: 18.05 | AN68: 11.66 | AO68: 0 | AP68: 11.48 | AQ68: 20.39 | AR68: 5.6 | AS68: 0 | AT68: 15.52 | AU68: 20.6 | AV68: 28.8 | AW68: 11.47 | AX68: 15.66 | AY68: 0 | AZ68: 0.93 | BA68: 8.29 | BB68: 33.6 | BC68: 0 | BD68: 0 | BE68: 34.05 | BF68: 0 | BG68: 28.94 | BH68: 0 | BI68: 1.6 | BJ68: 0 | BK68: 0 | BL68: 0 | BM68: 0 | BN68: 0 | BO68: 0 | BP68: 0 | BQ68: 0 | BR68: 10.6 | BS68: 25.78 | BT68: 21.97 | BU68: 0 | BV68: 6 | BW68: 10.71 | BX68: 8.73
A69: CFW12 | B69: M11 | C69: Community Based Mental Health Teams - Team Composition WTE | D69: Total Nursing | E69: Other Adult CMHTs | F69: 8.42 | G69: 0 | H69: 0 | I69: 0 | J69: 21.46 | K69: 12.04 | L69: 0 | M69: 20.64 | N69: 6.4 | O69: 7.29 | P69: 0 | Q69: 0 | R69: 25.64 | S69: 0 | T69: 13.35 | U69: 3.15 | V69: 4.03 | W69: 10.9 | X69: 139.11 | Y69: 38.44 | Z69: 3.53 | AA69: 26.23 | AB69: 2.8 | AC69: 0 | AD69: 25.51 | AE69: 12.76 | AF69: 36.14 | AG69: 16.46 | AH69: 24.86 | AI69: 9.2 | AJ69: 25.1 | AK69: 0 | AL69: 46.9 | AM69: 31.06 | AN69: 0 | AO69: 1 | AP69: 0 | AQ69: 30.06 | AR69: 5 | AS69: 0 | AT69: 1 | AU69: 0 | AV69: 3.2 | AW69: 8.8 | AX69: 56.25 | AY69: 0 | AZ69: 7.2 | BA69: 17.47 | BB69: 11.08 | BC69: 0 | BD69: 0.75 | BE69: 19.8 | BF69: 27.79 | BG69: 12.76 | BH69: 0 | BI69: 0 | BJ69: 36.42 | BK69: 3 | BL69: 0 | BM69: 0 | BN69: 0 | BO69: 0 | BP69: 0 | BQ69: 78.3 | BR69: 28.26 | BS69: 14.53 | BT69: 1 | BU69: 9.35 | BV69: 0 | BW69: 0 | BX69: 0
A70: CFW13 | B70: N11 | C70: Community Based Mental Health Teams - Team Composition WTE | D70: Total Nursing | E70: Totals | F70: 227.06 | G70: 318.15 | H70: 176.58 | I70: 184.8 | J70: 438.97 | K70: 168.23 | L70: 206.17 | M70: 226.01 | N70: 132.45 | O70: 329.75 | P70: 411.06 | Q70: 159.34 | R70: 233.336 | S70: 0 | T70: 362.36 | U70: 247.1 | V70: 245.543 | W70: 140.62 | X70: 550.84 | Y70: 436.64403 | Z70: 477.24 | AA70: 292.63 | AB70: 170 | AC70: 0 | AD70: 371.72 | AE70: 635.1 | AF70: 264.18 | AG70: 256.45 | AH70: 158.53 | AI70: 87.42 | AJ70: 282.72 | AK70: 317.18 | AL70: 534.68 | AM70: 256.06 | AN70: 181.92 | AO70: 342.36 | AP70: 125.37 | AQ70: 667.03 | AR70: 328.56 | AS70: 225.9 | AT70: 241.36 | AU70: 284.7 | AV70: 269.27 | AW70: 133.24 | AX70: 567.61 | AY70: 49.55613285 | AZ70: 139.13 | BA70: 286.5 | BB70: 521.84 | BC70: 352.96 | BD70: 183.88 | BE70: 622.57 | BF70: 730.72 | BG70: 198.52 | BH70: 0 | BI70: 39.7 | BJ70: 170.22 | BK70: 96.71 | BL70: 79.87 | BM70: 0 | BN70: 0 | BO70: 0 | BP70: 0 | BQ70: 577.359 | BR70: 209.58 | BS70: 236.07 | BT70: 289.78 | BU70: 180.53 | BV70: 121.85947 | BW70: 158.33 | BX70: 75.37
A71: CFW131 | B71: B12 | C71: Community Based Mental Health Teams - Team Composition WTE | D71: Nursing Associates - Band 4 | E71: Generic CMHT | F71: ^^^ | G71: 32.69 | H71: 12 | I71: 3.97 | J71: 0 | K71: ^^^ | L71: 2 | M71: ^^^ | N71: ^^^ | O71: ^^^ | P71: 0.03 | Q71: 1.2 | R71: ^^^ | S71: ^^^ | T71: ^^^ | U71: 2 | V71: 1.76 | W71: ^^^ | X71: 25.33 | Y71: 5 | Z71: 0 | AA71: ^^^ | AB71: ^^^ | AC71: ^^^ | AD71: 1 | AE71: ^^^ | AF71: ^^^ | AG71: ^^^ | AH71: ^^^ | AI71: 2 | AJ71: ^^^ | AK71: ^^^ | AL71: 0 | AM71: 9.98 | AN71: 0 | AO71: ^^^ | AP71: 0 | AQ71: 7.87 | AR71: ^^^ | AS71: ^^^ | AT71: 0 | AU71: ^^^ | AV71: 1 | AW71: 2 | AX71: 0 | AY71: ^^^ | AZ71: ^^^ | BA71: ^^^ | BB71: 0 | BC71: ^^^ | BD71: 0.79 | BE71: ^^^ | BF71: ^^^ | BG71: 3 | BH71: ^^^ | BI71: ^^^ | BJ71: 1 | BK71: 0 | BL71: 0 | BM71: ^^^ | BN71: ^^^ | BO71: ^^^ | BP71: ^^^ | BQ71: ^^^ | BR71: ^^^ | BS71: 1 | BT71: 7.74 | BU71: 0 | BV71: 1 | BW71: 5.02 | BX71: ^^^
A72: CFW132 | B72: C12 | C72: Community Based Mental Health Teams - Team Composition WTE | D72: Nursing Associates - Band 4 | E72: CRHT | F72: ^^^ | G72: 38.01 | H72: 17.85 | I72: 3.9 | J72: 0 | K72: ^^^ | L72: 1 | M72: ^^^ | N72: ^^^ | O72: ^^^ | P72: 2.86 | Q72: 6.91 | R72: ^^^ | S72: ^^^ | T72: ^^^ | U72: ^^^ | V72: ^^^ | W72: ^^^ | X72: 12.4 | Y72: 4 | Z72: 0 | AA72: ^^^ | AB72: ^^^ | AC72: ^^^ | AD72: 0 | AE72: ^^^ | AF72: ^^^ | AG72: ^^^ | AH72: ^^^ | AI72: ^^^ | AJ72: ^^^ | AK72: ^^^ | AL72: 1.73 | AM72: 47.32 | AN72: 0 | AO72: ^^^ | AP72: 0 | AQ72: 1 | AR72: ^^^ | AS72: ^^^ | AT72: 0 | AU72: 0.6 | AV72: 2 | AW72: 0 | AX72: 9.63 | AY72: ^^^ | AZ72: ^^^ | BA72: ^^^ | BB72: 0 | BC72: ^^^ | BD72: 0 | BE72: ^^^ | BF72: ^^^ | BG72: 0.31 | BH72: ^^^ | BI72: ^^^ | BJ72: 0 | BK72: 0 | BL72: 0 | BM72: ^^^ | BN72: ^^^ | BO72: ^^^ | BP72: ^^^ | BQ72: 7 | BR72: ^^^ | BS72: ^^^ | BT72: 1 | BU72: 0.07 | BV72: ^^^ | BW72: ^^^ | BX72: ^^^
A73: CFW133 | B73: D12 | C73: Community Based Mental Health Teams - Team Composition WTE | D73: Nursing Associates - Band 4 | E73: Assertive Outreach | F73: ^^^ | G73: 0 | H73: ^^^ | I73: ^^^ | J73: 5 | K73: ^^^ | L73: ^^^ | M73: ^^^ | N73: ^^^ | O73: ^^^ | P73: ^^^ | Q73: ^^^ | R73: ^^^ | S73: ^^^ | T73: ^^^ | U73: ^^^ | V73: 2.05 | W73: ^^^ | X73: ^^^ | Y73: 0.8 | Z73: 0 | AA73: ^^^ | AB73: ^^^ | AC73: ^^^ | AD73: 0 | AE73: ^^^ | AF73: ^^^ | AG73: ^^^ | AH73: ^^^ | AI73: 2 | AJ73: ^^^ | AK73: ^^^ | AL73: ^^^ | AM73: ^^^ | AN73: 0 | AO73: ^^^ | AP73: ^^^ | AQ73: 0 | AR73: ^^^ | AS73: ^^^ | AT73: 0 | AU73: ^^^ | AV73: 0 | AW73: 0 | AX73: ^^^ | AY73: ^^^ | AZ73: ^^^ | BA73: ^^^ | BB73: ^^^ | BC73: ^^^ | BD73: ^^^ | BE73: ^^^ | BF73: ^^^ | BG73: ^^^ | BH73: ^^^ | BI73: ^^^ | BJ73: ^^^ | BK73: ^^^ | BL73: ^^^ | BM73: ^^^ | BN73: ^^^ | BO73: ^^^ | BP73: ^^^ | BQ73: ^^^ | BR73: ^^^ | BS73: ^^^ | BT73: ^^^ | BU73: 0 | BV73: ^^^ | BW73: ^^^ | BX73: ^^^
A74: CFW134 | B74: E12 | C74: Community Based Mental Health Teams - Team Composition WTE | D74: Nursing Associates - Band 4 | E74: Early Intervention (incl Early Onset Psychosis) | F74: ^^^ | G74: 13 | H74: 3 | I74: ^^^ | J74: 0 | K74: 0.85 | L74: 4.4 | M74: ^^^ | N74: ^^^ | O74: ^^^ | P74: 1.84 | Q74: 0 | R74: ^^^ | S74: ^^^ | T74: ^^^ | U74: ^^^ | V74: ^^^ | W74: ^^^ | X74: 7 | Y74: 5.9 | Z74: 0 | AA74: ^^^ | AB74: ^^^ | AC74: ^^^ | AD74: 0 | AE74: ^^^ | AF74: ^^^ | AG74: 4.2 | AH74: ^^^ | AI74: ^^^ | AJ74: ^^^ | AK74: ^^^ | AL74: ^^^ | AM74: 2.32 | AN74: 0 | AO74: ^^^ | AP74: 1.4 | AQ74: 0.8 | AR74: ^^^ | AS74: ^^^ | AT74: 0 | AU74: ^^^ | AV74: 0 | AW74: 2 | AX74: 0 | AY74: ^^^ | AZ74: ^^^ | BA74: ^^^ | BB74: 0 | BC74: ^^^ | BD74: 0 | BE74: ^^^ | BF74: ^^^ | BG74: ^^^ | BH74: ^^^ | BI74: ^^^ | BJ74: 0 | BK74: 0 | BL74: ^^^ | BM74: ^^^ | BN74: ^^^ | BO74: ^^^ | BP74: ^^^ | BQ74: ^^^ | BR74: ^^^ | BS74: ^^^ | BT74: ^^^ | BU74: 0 | BV74: ^^^ | BW74: ^^^ | BX74: ^^^
A75: CFW135 | B75: F12 | C75: Community Based Mental Health Teams - Team Composition WTE | D75: Nursing Associates - Band 4 | E75: Assessment & Brief Intervention (incl PMHT) | F75: ^^^ | G75: 3.04 | H75: 2 | I75: ^^^ | J75: ^^^ | K75: ^^^ | L75: ^^^ | M75: ^^^ | N75: ^^^ | O75: ^^^ | P75: ^^^ | Q75: ^^^ | R75: ^^^ | S75: ^^^ | T75: ^^^ | U75: 1 | V75: ^^^ | W75: ^^^ | X75: ^^^ | Y75: ^^^ | Z75: 0 | AA75: ^^^ | AB75: 1 | AC75: ^^^ | AD75: 0 | AE75: ^^^ | AF75: ^^^ | AG75: 1 | AH75: ^^^ | AI75: ^^^ | AJ75: ^^^ | AK75: ^^^ | AL75: 0 | AM75: 7.65 | AN75: 0 | AO75: ^^^ | AP75: 1 | AQ75: 0 | AR75: ^^^ | AS75: ^^^ | AT75: 0 | AU75: ^^^ | AV75: 0 | AW75: 0 | AX75: 1 | AY75: ^^^ | AZ75: ^^^ | BA75: ^^^ | BB75: 0 | BC75: ^^^ | BD75: ^^^ | BE75: ^^^ | BF75: ^^^ | BG75: ^^^ | BH75: ^^^ | BI75: ^^^ | BJ75: 0 | BK75: 0 | BL75: 0 | BM75: ^^^ | BN75: ^^^ | BO75: ^^^ | BP75: ^^^ | BQ75: ^^^ | BR75: ^^^ | BS75: 7.6 | BT75: ^^^ | BU75: 1.07 | BV75: ^^^ | BW75: ^^^ | BX75: ^^^
A76: CFW136 | B76: G12 | C76: Community Based Mental Health Teams - Team Composition WTE | D76: Nursing Associates - Band 4 | E76: Rehabilitation and Recovery | F76: ^^^ | G76: 0 | H76: 1 | I76: ^^^ | J76: ^^^ | K76: ^^^ | L76: ^^^ | M76: ^^^ | N76: ^^^ | O76: ^^^ | P76: ^^^ | Q76: ^^^ | R76: ^^^ | S76: ^^^ | T76: ^^^ | U76: ^^^ | V76: ^^^ | W76: ^^^ | X76: 3.45 | Y76: 1 | Z76: 0 | AA76: ^^^ | AB76: ^^^ | AC76: ^^^ | AD76: 0 | AE76: ^^^ | AF76: ^^^ | AG76: 1 | AH76: ^^^ | AI76: 2 | AJ76: ^^^ | AK76: ^^^ | AL76: ^^^ | AM76: ^^^ | AN76: 0 | AO76: ^^^ | AP76: ^^^ | AQ76: 0 | AR76: ^^^ | AS76: ^^^ | AT76: 0 | AU76: ^^^ | AV76: ^^^ | AW76: ^^^ | AX76: 0.29 | AY76: ^^^ | AZ76: ^^^ | BA76: ^^^ | BB76: 0.87 | BC76: ^^^ | BD76: ^^^ | BE76: ^^^ | BF76: ^^^ | BG76: ^^^ | BH76: ^^^ | BI76: ^^^ | BJ76: 0 | BK76: 0 | BL76: ^^^ | BM76: ^^^ | BN76: ^^^ | BO76: ^^^ | BP76: ^^^ | BQ76: ^^^ | BR76: ^^^ | BS76: ^^^ | BT76: 2.67 | BU76: 2 | BV76: ^^^ | BW76: ^^^ | BX76: ^^^
A77: CFW137 | B77: H12 | C77: Community Based Mental Health Teams - Team Composition WTE | D77: Nursing Associates - Band 4 | E77: Forensic | F77: ^^^ | G77: 0 | H77: ^^^ | I77: ^^^ | J77: 0 | K77: ^^^ | L77: ^^^ | M77: ^^^ | N77: ^^^ | O77: ^^^ | P77: 0 | Q77: 1.46 | R77: ^^^ | S77: ^^^ | T77: ^^^ | U77: ^^^ | V77: 0.6 | W77: ^^^ | X77: ^^^ | Y77: ^^^ | Z77: 0 | AA77: ^^^ | AB77: 1 | AC77: ^^^ | AD77: 0 | AE77: ^^^ | AF77: ^^^ | AG77: ^^^ | AH77: ^^^ | AI77: ^^^ | AJ77: ^^^ | AK77: ^^^ | AL77: 0 | AM77: ^^^ | AN77: 0 | AO77: ^^^ | AP77: 1 | AQ77: 2.4 | AR77: ^^^ | AS77: ^^^ | AT77: 2.33 | AU77: ^^^ | AV77: ^^^ | AW77: 0 | AX77: 0.01 | AY77: ^^^ | AZ77: ^^^ | BA77: ^^^ | BB77: 2 | BC77: ^^^ | BD77: 0 | BE77: ^^^ | BF77: ^^^ | BG77: ^^^ | BH77: ^^^ | BI77: ^^^ | BJ77: 0 | BK77: 0 | BL77: ^^^ | BM77: ^^^ | BN77: ^^^ | BO77: ^^^ | BP77: ^^^ | BQ77: ^^^ | BR77: ^^^ | BS77: ^^^ | BT77: ^^^ | BU77: 0 | BV77: ^^^ | BW77: ^^^ | BX77: ^^^
A78: CFW138 | B78: I12 | C78: Community Based Mental Health Teams - Team Composition WTE | D78: Nursing Associates - Band 4 | E78: Eating Disorders | F78: ^^^ | G78: 0 | H78: 2 | I78: ^^^ | J78: 0 | K78: ^^^ | L78: ^^^ | M78: ^^^ | N78: ^^^ | O78: ^^^ | P78: 0 | Q78: 0 | R78: ^^^ | S78: ^^^ | T78: ^^^ | U78: ^^^ | V78: 2.3918 | W78: ^^^ | X78: ^^^ | Y78: ^^^ | Z78: 0 | AA78: ^^^ | AB78: ^^^ | AC78: ^^^ | AD78: 0 | AE78: ^^^ | AF78: ^^^ | AG78: ^^^ | AH78: ^^^ | AI78: ^^^ | AJ78: ^^^ | AK78: ^^^ | AL78: 0 | AM78: 0.3 | AN78: 0 | AO78: ^^^ | AP78: 0 | AQ78: 0 | AR78: ^^^ | AS78: ^^^ | AT78: 0 | AU78: ^^^ | AV78: ^^^ | AW78: 0 | AX78: 0 | AY78: ^^^ | AZ78: ^^^ | BA78: ^^^ | BB78: ^^^ | BC78: ^^^ | BD78: 1.53 | BE78: ^^^ | BF78: ^^^ | BG78: ^^^ | BH78: ^^^ | BI78: ^^^ | BJ78: 0 | BK78: 0 | BL78: ^^^ | BM78: ^^^ | BN78: ^^^ | BO78: ^^^ | BP78: ^^^ | BQ78: ^^^ | BR78: ^^^ | BS78: 0.8 | BT78: ^^^ | BU78: 0 | BV78: ^^^ | BW78: ^^^ | BX78: ^^^
A79: CFW139 | B79: J12 | C79: Community Based Mental Health Teams - Team Composition WTE | D79: Nursing Associates - Band 4 | E79: Mother and Baby | F79: ^^^ | G79: 0 | H79: ^^^ | I79: ^^^ | J79: 0 | K79: ^^^ | L79: ^^^ | M79: ^^^ | N79: ^^^ | O79: ^^^ | P79: 0 | Q79: ^^^ | R79: ^^^ | S79: ^^^ | T79: ^^^ | U79: ^^^ | V79: ^^^ | W79: ^^^ | X79: ^^^ | Y79: ^^^ | Z79: 0 | AA79: ^^^ | AB79: ^^^ | AC79: ^^^ | AD79: 4 | AE79: ^^^ | AF79: ^^^ | AG79: 0.8 | AH79: ^^^ | AI79: ^^^ | AJ79: ^^^ | AK79: ^^^ | AL79: 0 | AM79: 0 | AN79: 0 | AO79: ^^^ | AP79: ^^^ | AQ79: 0 | AR79: 2 | AS79: ^^^ | AT79: 0 | AU79: ^^^ | AV79: ^^^ | AW79: 0 | AX79: 0 | AY79: ^^^ | AZ79: ^^^ | BA79: ^^^ | BB79: 0 | BC79: ^^^ | BD79: ^^^ | BE79: ^^^ | BF79: ^^^ | BG79: ^^^ | BH79: ^^^ | BI79: ^^^ | BJ79: 0 | BK79: ^^^ | BL79: ^^^ | BM79: ^^^ | BN79: ^^^ | BO79: ^^^ | BP79: ^^^ | BQ79: ^^^ | BR79: ^^^ | BS79: ^^^ | BT79: ^^^ | BU79: 1.29 | BV79: ^^^ | BW79: ^^^ | BX79: ^^^
A80: CFW140 | B80: K12 | C80: Community Based Mental Health Teams - Team Composition WTE | D80: Nursing Associates - Band 4 | E80: Older People | F80: ^^^ | G80: 13.88 | H80: 1 | I80: 3.45 | J80: 0 | K80: ^^^ | L80: ^^^ | M80: ^^^ | N80: ^^^ | O80: ^^^ | P80: 1.01 | Q80: 0 | R80: ^^^ | S80: ^^^ | T80: ^^^ | U80: ^^^ | V80: 0.5 | W80: ^^^ | X80: 1.5 | Y80: ^^^ | Z80: 0 | AA80: ^^^ | AB80: ^^^ | AC80: ^^^ | AD80: 0 | AE80: ^^^ | AF80: ^^^ | AG80: ^^^ | AH80: ^^^ | AI80: ^^^ | AJ80: ^^^ | AK80: ^^^ | AL80: 0 | AM80: 1.49 | AN80: 0 | AO80: ^^^ | AP80: 0 | AQ80: 3 | AR80: ^^^ | AS80: ^^^ | AT80: 0 | AU80: ^^^ | AV80: 0 | AW80: 0 | AX80: 0 | AY80: ^^^ | AZ80: 2.6 | BA80: ^^^ | BB80: 0 | BC80: ^^^ | BD80: 10.55 | BE80: ^^^ | BF80: ^^^ | BG80: ^^^ | BH80: ^^^ | BI80: ^^^ | BJ80: ^^^ | BK80: 0 | BL80: 0 | BM80: ^^^ | BN80: ^^^ | BO80: ^^^ | BP80: ^^^ | BQ80: 3.8 | BR80: ^^^ | BS80: 1 | BT80: 1 | BU80: 0 | BV80: 0.7 | BW80: ^^^ | BX80: ^^^
A81: CFW141 | B81: L12 | C81: Community Based Mental Health Teams - Team Composition WTE | D81: Nursing Associates - Band 4 | E81: Memory Services | F81: ^^^ | G81: 2.14 | H81: 1.8 | I81: ^^^ | J81: 0 | K81: ^^^ | L81: ^^^ | M81: ^^^ | N81: ^^^ | O81: ^^^ | P81: 1 | Q81: ^^^ | R81: ^^^ | S81: ^^^ | T81: ^^^ | U81: ^^^ | V81: ^^^ | W81: ^^^ | X81: ^^^ | Y81: 15.6 | Z81: 0 | AA81: ^^^ | AB81: ^^^ | AC81: ^^^ | AD81: 0 | AE81: ^^^ | AF81: ^^^ | AG81: ^^^ | AH81: ^^^ | AI81: ^^^ | AJ81: ^^^ | AK81: ^^^ | AL81: 0 | AM81: 0 | AN81: 0 | AO81: ^^^ | AP81: 0 | AQ81: 0 | AR81: ^^^ | AS81: ^^^ | AT81: 0 | AU81: ^^^ | AV81: 1 | AW81: 0 | AX81: 0 | AY81: ^^^ | AZ81: ^^^ | BA81: ^^^ | BB81: ^^^ | BC81: ^^^ | BD81: ^^^ | BE81: ^^^ | BF81: ^^^ | BG81: 6.81 | BH81: ^^^ | BI81: ^^^ | BJ81: ^^^ | BK81: ^^^ | BL81: ^^^ | BM81: ^^^ | BN81: ^^^ | BO81: ^^^ | BP81: ^^^ | BQ81: ^^^ | BR81: 6.4 | BS81: ^^^ | BT81: 1 | BU81: ^^^ | BV81: ^^^ | BW81: ^^^ | BX81: ^^^
A82: CFW142 | B82: M12 | C82: Community Based Mental Health Teams - Team Composition WTE | D82: Nursing Associates - Band 4 | E82: Other Adult CMHTs | F82: ^^^ | G82: 0 | H82: ^^^ | I82: ^^^ | J82: 0 | K82: ^^^ | L82: ^^^ | M82: ^^^ | N82: ^^^ | O82: ^^^ | P82: ^^^ | Q82: ^^^ | R82: ^^^ | S82: ^^^ | T82: ^^^ | U82: ^^^ | V82: ^^^ | W82: ^^^ | X82: 9.49 | Y82: 4 | Z82: 0 | AA82: ^^^ | AB82: ^^^ | AC82: ^^^ | AD82: 0 | AE82: ^^^ | AF82: ^^^ | AG82: ^^^ | AH82: ^^^ | AI82: ^^^ | AJ82: ^^^ | AK82: ^^^ | AL82: 0 | AM82: 5.42 | AN82: 0 | AO82: ^^^ | AP82: ^^^ | AQ82: 0 | AR82: ^^^ | AS82: ^^^ | AT82: 0 | AU82: ^^^ | AV82: 0 | AW82: 3 | AX82: 0 | AY82: ^^^ | AZ82: ^^^ | BA82: ^^^ | BB82: 0 | BC82: ^^^ | BD82: 0 | BE82: ^^^ | BF82: ^^^ | BG82: 10.69 | BH82: ^^^ | BI82: ^^^ | BJ82: 0 | BK82: 0 | BL82: ^^^ | BM82: ^^^ | BN82: ^^^ | BO82: ^^^ | BP82: ^^^ | BQ82: ^^^ | BR82: 2 | BS82: ^^^ | BT82: ^^^ | BU82: 0 | BV82: ^^^ | BW82: ^^^ | BX82: ^^^
A83: CFW143 | B83: N12 | C83: Community Based Mental Health Teams - Team Composition WTE | D83: Nursing Associates - Band 4 | E83: Totals | F83: 0 | G83: 102.76 | H83: 40.65 | I83: 11.32 | J83: 5 | K83: 0.85 | L83: 7.4 | M83: 0 | N83: 0 | O83: 0 | P83: 6.74 | Q83: 9.57 | R83: 0 | S83: 0 | T83: 0 | U83: 3 | V83: 7.3018 | W83: 0 | X83: 59.17 | Y83: 36.3 | Z83: 0 | AA83: 0 | AB83: 2 | AC83: 0 | AD83: 5 | AE83: 0 | AF83: 0 | AG83: 7 | AH83: 0 | AI83: 6 | AJ83: 0 | AK83: 0 | AL83: 1.73 | AM83: 74.48 | AN83: 0 | AO83: 0 | AP83: 3.4 | AQ83: 15.07 | AR83: 2 | AS83: 0 | AT83: 2.33 | AU83: 0.6 | AV83: 4 | AW83: 7 | AX83: 10.93 | AY83: 0 | AZ83: 2.6 | BA83: 0 | BB83: 2.87 | BC83: 0 | BD83: 12.87 | BE83: 0 | BF83: 0 | BG83: 20.81 | BH83: 0 | BI83: 0 | BJ83: 1 | BK83: 0 | BL83: 0 | BM83: 0 | BN83: 0 | BO83: 0 | BP83: 0 | BQ83: 10.8 | BR83: 8.4 | BS83: 10.4 | BT83: 13.41 | BU83: 4.43 | BV83: 1.7 | BW83: 5.02 | BX83: 0
A84: CFW157 | B84: B13 | C84: Community Based Mental Health Teams - Team Composition WTE | D84: Support Workers and Other Unqualified Clinical Staff | E84: Generic CMHT | F84: ^^^ | G84: 2.6 | H84: 12.5 | I84: ^^^ | J84: 13.43 | K84: 10.61 | L84: 6.67 | M84: 19.39 | N84: 10.36 | O84: 19.89 | P84: 35.67 | Q84: 46.51 | R84: 9.05 | S84: ^^^ | T84: 42.23 | U84: 26.25 | V84: 12.74 | W84: 8.82 | X84: 33.54 | Y84: 23.01 | Z84: 61.54 | AA84: 65.8 | AB84: 18.8 | AC84: ^^^ | AD84: 32.34 | AE84: 28.46 | AF84: 15.23 | AG84: 5.42 | AH84: 39.13 | AI84: 15.03 | AJ84: 42 | AK84: 50.88 | AL84: 113.73 | AM84: 14.42 | AN84: 25.2 | AO84: 38.73 | AP84: 13.26 | AQ84: 101.81 | AR84: 26.33 | AS84: 43.12 | AT84: 10.74 | AU84: 25.1 | AV84: 23.6 | AW84: 9.67 | AX84: 6.99 | AY84: 0 | AZ84: 2.7 | BA84: 21.66 | BB84: 35.53 | BC84: 51.74 | BD84: 0 | BE84: 35.82 | BF84: 77.86 | BG84: 5.19 | BH84: ^^^ | BI84: 16 | BJ84: 0 | BK84: 17.34 | BL84: 6.83 | BM84: ^^^ | BN84: ^^^ | BO84: ^^^ | BP84: ^^^ | BQ84: 45.9 | BR84: 15.6 | BS84: 13.28 | BT84: 19.97 | BU84: 15.11 | BV84: 4.93 | BW84: 14.41 | BX84: 5.66
A85: CFW158 | B85: C13 | C85: Community Based Mental Health Teams - Team Composition WTE | D85: Support Workers and Other Unqualified Clinical Staff | E85: CRHT | F85: 23 | G85: 0.8 | H85: 11.8 | I85: ^^^ | J85: 29.06 | K85: 11.07 | L85: 5 | M85: 15.2 | N85: 31.8 | O85: 15.73 | P85: 24.59 | Q85: 2 | R85: 20.51 | S85: ^^^ | T85: 6.92 | U85: 14.39 | V85: 21.28 | W85: 4 | X85: 18.08 | Y85: 13 | Z85: 24.65 | AA85: 15.97 | AB85: 4.4 | AC85: ^^^ | AD85: 62.95 | AE85: 7.60614366 | AF85: 14.49 | AG85: 16.5 | AH85: 3.42x | AI85: 6.47 | AJ85: ^^^ | AK85: 35.12 | AL85: 45.26 | AM85: 13.47 | AN85: 4.4 | AO85: 22.6 | AP85: 8.88 | AQ85: 17.46 | AR85: 18.82 | AS85: ^^^ | AT85: 20.8 | AU85: 37.2 | AV85: 8.4 | AW85: 9.5 | AX85: 6.19 | AY85: 10.8 | AZ85: 9 | BA85: 16.82 | BB85: 20.09 | BC85: 25.43 | BD85: 12.02 | BE85: 29.89 | BF85: 27.54 | BG85: 17 | BH85: ^^^ | BI85: ^^^ | BJ85: 5.14 | BK85: 5.13 | BL85: 3.8 | BM85: ^^^ | BN85: ^^^ | BO85: ^^^ | BP85: ^^^ | BQ85: 1.7 | BR85: 13 | BS85: 0.9 | BT85: 16.52 | BU85: 20.21 | BV85: 5.8 | BW85: 13.64 | BX85: 3.28
A86: CFW159 | B86: D13 | C86: Community Based Mental Health Teams - Team Composition WTE | D86: Support Workers and Other Unqualified Clinical Staff | E86: Assertive Outreach | F86: 8.91 | G86: 0 | H86: ^^^ | I86: ^^^ | J86: 12.67 | K86: ^^^ | L86: 3 | M86: ^^^ | N86: 4.8 | O86: ^^^ | P86: ^^^ | Q86: ^^^ | R86: ^^^ | S86: ^^^ | T86: ^^^ | U86: ^^^ | V86: 3 | W86: ^^^ | X86: 2.05 | Y86: 2.6 | Z86: 0 | AA86: ^^^ | AB86: ^^^ | AC86: ^^^ | AD86: 0 | AE86: ^^^ | AF86: 6.8 | AG86: 10.32 | AH86: ^^^ | AI86: 3.8 | AJ86: ^^^ | AK86: ^^^ | AL86: ^^^ | AM86: ^^^ | AN86: 0 | AO86: ^^^ | AP86: ^^^ | AQ86: 0 | AR86: 10.85 | AS86: 8.51 | AT86: 0 | AU86: ^^^ | AV86: 6 | AW86: 0 | AX86: ^^^ | AY86: ^^^ | AZ86: 6.81 | BA86: ^^^ | BB86: ^^^ | BC86: 0.8 | BD86: ^^^ | BE86: 9.97 | BF86: ^^^ | BG86: ^^^ | BH86: ^^^ | BI86: ^^^ | BJ86: ^^^ | BK86: ^^^ | BL86: ^^^ | BM86: ^^^ | BN86: ^^^ | BO86: ^^^ | BP86: ^^^ | BQ86: ^^^ | BR86: 8 | BS86: 5.2 | BT86: ^^^ | BU86: 0 | BV86: 8 | BW86: ^^^ | BX86: ^^^
A87: CFW160 | B87: E13 | C87: Community Based Mental Health Teams - Team Composition WTE | D87: Support Workers and Other Unqualified Clinical Staff | E87: Early Intervention (incl Early Onset Psychosis) | F87: 4.69 | G87: 0 | H87: 1 | I87: ^^^ | J87: 2 | K87: 0.42 | L87: 6.48 | M87: 6.67 | N87: 6 | O87: 8.32 | P87: 3.11 | Q87: 4.4 | R87: 4.8 | S87: ^^^ | T87: 6.28 | U87: 4 | V87: ^^^ | W87: 2.6 | X87: 0.04x | Y87: 20.8 | Z87: 11.97 | AA87: ^^^ | AB87: 7.9 | AC87: ^^^ | AD87: 4.56 | AE87: 8.36 | AF87: ^^^ | AG87: ^^^ | AH87: ^^^ | AI87: ^^^ | AJ87: 9 | AK87: ^^^ | AL87: ^^^ | AM87: 2.6 | AN87: 0 | AO87: 8.44 | AP87: 0.4 | AQ87: 5.69 | AR87: 2.09 | AS87: 8.4 | AT87: 1.37 | AU87: 13.2 | AV87: 5 | AW87: 1 | AX87: 5.34 | AY87: ^^^ | AZ87: 1 | BA87: 2.03 | BB87: 17.83 | BC87: 6.43 | BD87: 2 | BE87: 3.89 | BF87: 22.23 | BG87: 0.92 | BH87: ^^^ | BI87: ^^^ | BJ87: 0 | BK87: 0 | BL87: ^^^ | BM87: ^^^ | BN87: ^^^ | BO87: ^^^ | BP87: ^^^ | BQ87: 1 | BR87: 2 | BS87: 1 | BT87: ^^^ | BU87: 0 | BV87: ^^^ | BW87: ^^^ | BX87: ^^^
A88: CFW161 | B88: F13 | C88: Community Based Mental Health Teams - Team Composition WTE | D88: Support Workers and Other Unqualified Clinical Staff | E88: Assessment & Brief Intervention (incl PMHT) | F88: ^^^ | G88: 0.8 | H88: ^^^ | I88: ^^^ | J88: ^^^ | K88: ^^^ | L88: ^^^ | M88: 1 | N88: 1.69 | O88: 0.72 | P88: ^^^ | Q88: ^^^ | R88: ^^^ | S88: ^^^ | T88: ^^^ | U88: 4.45 | V88: ^^^ | W88: 10.1 | X88: ^^^ | Y88: 3.93 | Z88: 1.66 | AA88: ^^^ | AB88: 16.2 | AC88: ^^^ | AD88: 0 | AE88: 58.39385634 | AF88: ^^^ | AG88: 0.8 | AH88: ^^^ | AI88: ^^^ | AJ88: 25 | AK88: ^^^ | AL88: 0 | AM88: 5.6 | AN88: 4.29 | AO88: 37.68 | AP88: 0 | AQ88: 0 | AR88: ^^^ | AS88: 19.54 | AT88: 0 | AU88: ^^^ | AV88: 2 | AW88: 0 | AX88: 15.22 | AY88: 0 | AZ88: ^^^ | BA88: 8.36 | BB88: 15.35 | BC88: ^^^ | BD88: ^^^ | BE88: 2.89 | BF88: 2 | BG88: ^^^ | BH88: ^^^ | BI88: ^^^ | BJ88: 3.1 | BK88: 0.8 | BL88: 0 | BM88: ^^^ | BN88: ^^^ | BO88: ^^^ | BP88: ^^^ | BQ88: ^^^ | BR88: ^^^ | BS88: ^^^ | BT88: ^^^ | BU88: 20.16 | BV88: 3.84 | BW88: 2.43 | BX88: ^^^
A89: CFW162 | B89: G13 | C89: Community Based Mental Health Teams - Team Composition WTE | D89: Support Workers and Other Unqualified Clinical Staff | E89: Rehabilitation and Recovery | F89: 15.07 | G89: 0 | H89: 2 | I89: ^^^ | J89: ^^^ | K89: ^^^ | L89: ^^^ | M89: ^^^ | N89: 17.37 | O89: ^^^ | P89: ^^^ | Q89: ^^^ | R89: 23.32 | S89: ^^^ | T89: ^^^ | U89: ^^^ | V89: ^^^ | W89: ^^^ | X89: 2.6 | Y89: 5.4 | Z89: 17.03 | AA89: ^^^ | AB89: ^^^ | AC89: ^^^ | AD89: 0 | AE89: 39.3 | AF89: 1 | AG89: 0.9 | AH89: ^^^ | AI89: 3 | AJ89: ^^^ | AK89: ^^^ | AL89: ^^^ | AM89: ^^^ | AN89: 17.68 | AO89: ^^^ | AP89: ^^^ | AQ89: 0 | AR89: 2.44x | AS89: ^^^ | AT89: 6.64 | AU89: 4.2 | AV89: ^^^ | AW89: ^^^ | AX89: 2.2 | AY89: ^^^ | AZ89: 12.28 | BA89: 34.16 | BB89: 4.09 | BC89: 0.4 | BD89: ^^^ | BE89: ^^^ | BF89: 14.64 | BG89: ^^^ | BH89: ^^^ | BI89: 4 | BJ89: 0 | BK89: 0 | BL89: ^^^ | BM89: ^^^ | BN89: ^^^ | BO89: ^^^ | BP89: ^^^ | BQ89: ^^^ | BR89: 0.48 | BS89: ^^^ | BT89: 5.6 | BU89: 14.83 | BV89: ^^^ | BW89: ^^^ | BX89: ^^^
A90: CFW163 | B90: H13 | C90: Community Based Mental Health Teams - Team Composition WTE | D90: Support Workers and Other Unqualified Clinical Staff | E90: Forensic | F90: ^^^ | G90: 0 | H90: ^^^ | I90: ^^^ | J90: 7.6 | K90: ^^^ | L90: ^^^ | M90: 2 | N90: ^^^ | O90: 3 | P90: 3.14 | Q90: 1 | R90: 1.99 | S90: ^^^ | T90: 6.94 | U90: ^^^ | V90: 0.07x | W90: ^^^ | X90: ^^^ | Y90: ^^^ | Z90: 0 | AA90: 0.85 | AB90: ^^^ | AC90: ^^^ | AD90: 0 | AE90: 26.69 | AF90: 2 | AG90: ^^^ | AH90: 0.2 | AI90: ^^^ | AJ90: ^^^ | AK90: 1 | AL90: 6.11 | AM90: ^^^ | AN90: 0 | AO90: 7 | AP90: 0 | AQ90: 1.03 | AR90: 2 | AS90: 3.5 | AT90: ^^^ | AU90: ^^^ | AV90: ^^^ | AW90: 0 | AX90: 1.23 | AY90: ^^^ | AZ90: ^^^ | BA90: ^^^ | BB90: 1.85 | BC90: ^^^ | BD90: 0 | BE90: 4.6 | BF90: 0.6 | BG90: ^^^ | BH90: ^^^ | BI90: ^^^ | BJ90: 1 | BK90: 0 | BL90: ^^^ | BM90: ^^^ | BN90: ^^^ | BO90: ^^^ | BP90: ^^^ | BQ90: ^^^ | BR90: ^^^ | BS90: 2 | BT90: 1 | BU90: 0.5 | BV90: ^^^ | BW90: ^^^ | BX90: ^^^
A91: CFW164 | B91: I13 | C91: Community Based Mental Health Teams - Team Composition WTE | D91: Support Workers and Other Unqualified Clinical Staff | E91: Eating Disorders | F91: ^^^ | G91: 0 | H91: 2.6 | I91: ^^^ | J91: 0.58 | K91: ^^^ | L91: ^^^ | M91: 3.8 | N91: ^^^ | O91: ^^^ | P91: 0.85 | Q91: 0 | R91: 1.44 | S91: ^^^ | T91: ^^^ | U91: 2.5 | V91: 2.2395 | W91: ^^^ | X91: ^^^ | Y91: 3.6 | Z91: 0 | AA91: 2.04 | AB91: ^^^ | AC91: ^^^ | AD91: 0 | AE91: 0.3 | AF91: 1 | AG91: ^^^ | AH91: 2 | AI91: ^^^ | AJ91: ^^^ | AK91: ^^^ | AL91: 6.11 | AM91: 0 | AN91: 0 | AO91: ^^^ | AP91: 0 | AQ91: 0 | AR91: ^^^ | AS91: 6.5 | AT91: 0 | AU91: ^^^ | AV91: ^^^ | AW91: 0 | AX91: 0.03x | AY91: ^^^ | AZ91: ^^^ | BA91: 1.75 | BB91: ^^^ | BC91: 3.93 | BD91: 0 | BE91: 4.6 | BF91: 6 | BG91: ^^^ | BH91: ^^^ | BI91: ^^^ | BJ91: 1 | BK91: 0 | BL91: ^^^ | BM91: ^^^ | BN91: ^^^ | BO91: ^^^ | BP91: ^^^ | BQ91: ^^^ | BR91: ^^^ | BS91: ^^^ | BT91: ^^^ | BU91: 0 | BV91: ^^^ | BW91: ^^^ | BX91: ^^^
A92: CFW165 | B92: J13 | C92: Community Based Mental Health Teams - Team Composition WTE | D92: Support Workers and Other Unqualified Clinical Staff | E92: Mother and Baby | F92: 0.91 | G92: 0 | H92: ^^^ | I92: ^^^ | J92: 1.22 | K92: ^^^ | L92: ^^^ | M92: ^^^ | N92: ^^^ | O92: ^^^ | P92: 0.24 | Q92: ^^^ | R92: 1 | S92: ^^^ | T92: 0.4 | U92: ^^^ | V92: ^^^ | W92: ^^^ | X92: ^^^ | Y92: ^^^ | Z92: 0 | AA92: 1 | AB92: 1.4 | AC92: ^^^ | AD92: 0 | AE92: ^^^ | AF92: 0.4 | AG92: 1 | AH92: ^^^ | AI92: 2 | AJ92: ^^^ | AK92: 0.4 | AL92: 5.08 | AM92: 0 | AN92: 3 | AO92: 1 | AP92: ^^^ | AQ92: 0 | AR92: ^^^ | AS92: ^^^ | AT92: 0 | AU92: ^^^ | AV92: ^^^ | AW92: 0 | AX92: 0.16x | AY92: ^^^ | AZ92: ^^^ | BA92: 0 | BB92: 0 | BC92: ^^^ | BD92: ^^^ | BE92: 3.36 | BF92: ^^^ | BG92: ^^^ | BH92: ^^^ | BI92: ^^^ | BJ92: 0 | BK92: ^^^ | BL92: ^^^ | BM92: ^^^ | BN92: ^^^ | BO92: ^^^ | BP92: ^^^ | BQ92: ^^^ | BR92: ^^^ | BS92: ^^^ | BT92: ^^^ | BU92: 0.51 | BV92: ^^^ | BW92: ^^^ | BX92: ^^^
A93: CFW166 | B93: K13 | C93: Community Based Mental Health Teams - Team Composition WTE | D93: Support Workers and Other Unqualified Clinical Staff | E93: Older People | F93: 5.56 | G93: 0 | H93: 9.73 | I93: ^^^ | J93: 27.43 | K93: 5.43 | L93: 4.4 | M93: 9.14 | N93: 1.6 | O93: 15.69 | P93: 6.92 | Q93: 8 | R93: ^^^ | S93: ^^^ | T93: 20.75 | U93: 15.27 | V93: 19.45 | W93: 1.5 | X93: 23.39 | Y93: 11.56 | Z93: 38.99 | AA93: 50.19 | AB93: 17.5 | AC93: ^^^ | AD93: 47.26 | AE93: 26.99 | AF93: ^^^ | AG93: 16.34 | AH93: 0.02x | AI93: 4.2 | AJ93: 18.06 | AK93: ^^^ | AL93: 28.596 | AM93: 2.28 | AN93: 6.16 | AO93: 30.24 | AP93: 5.34 | AQ93: 36.52 | AR93: 78.22 | AS93: 11.4 | AT93: 4.4 | AU93: 18.6 | AV93: 7.9 | AW93: 6.4 | AX93: 0.02x | AY93: 7.02 | AZ93: 18.15 | BA93: 13.71 | BB93: 25.49 | BC93: 31.66 | BD93: 3.44 | BE93: ^^^ | BF93: 68.63 | BG93: ^^^ | BH93: ^^^ | BI93: 12.25 | BJ93: ^^^ | BK93: 7 | BL93: 3 | BM93: ^^^ | BN93: ^^^ | BO93: ^^^ | BP93: ^^^ | BQ93: 30.1 | BR93: 35.19 | BS93: 11.6 | BT93: 23.4 | BU93: 7.79 | BV93: 14.56 | BW93: 23.96 | BX93: 6.47
A94: CFW167 | B94: L13 | C94: Community Based Mental Health Teams - Team Composition WTE | D94: Support Workers and Other Unqualified Clinical Staff | E94: Memory Services | F94: 2.35 | G94: 0 | H94: 1.29 | I94: ^^^ | J94: 0.8 | K94: ^^^ | L94: ^^^ | M94: ^^^ | N94: 13.2 | O94: ^^^ | P94: 2.29 | Q94: ^^^ | R94: 6.5 | S94: ^^^ | T94: ^^^ | U94: ^^^ | V94: 29.93 | W94: ^^^ | X94: ^^^ | Y94: 19.89 | Z94: 11.44 | AA94: 6.33 | AB94: 1.2 | AC94: ^^^ | AD94: 0 | AE94: 7.4 | AF94: 1.8 | AG94: ^^^ | AH94: ^^^ | AI94: 2.6 | AJ94: ^^^ | AK94: 44.41 | AL94: 19.064 | AM94: 2 | AN94: 2 | AO94: ^^^ | AP94: 3.24 | AQ94: 2.73 | AR94: 0.4 | AS94: ^^^ | AT94: 0 | AU94: 8.1 | AV94: 9.39 | AW94: 3.58 | AX94: 0 | AY94: ^^^ | AZ94: 0.5 | BA94: ^^^ | BB94: 7.8 | BC94: ^^^ | BD94: ^^^ | BE94: 2.9 | BF94: ^^^ | BG94: 2.03 | BH94: ^^^ | BI94: ^^^ | BJ94: ^^^ | BK94: ^^^ | BL94: ^^^ | BM94: ^^^ | BN94: ^^^ | BO94: ^^^ | BP94: ^^^ | BQ94: ^^^ | BR94: 0.4 | BS94: 9.32 | BT94: 10.18 | BU94: ^^^ | BV94: 3.8 | BW94: ^^^ | BX94: 5.5
A95: CFW168 | B95: M13 | C95: Community Based Mental Health Teams - Team Composition WTE | D95: Support Workers and Other Unqualified Clinical Staff | E95: Other Adult CMHTs | F95: 7.56 | G95: 0 | H95: ^^^ | I95: ^^^ | J95: 16.89 | K95: 0.09 | L95: ^^^ | M95: 8.29 | N95: 4 | O95: 3.75 | P95: ^^^ | Q95: ^^^ | R95: 2.15 | S95: ^^^ | T95: 2.74 | U95: ^^^ | V95: 4.84 | W95: 1.64 | X95: 24.67 | Y95: 39.35 | Z95: 0.43 | AA95: 1.21 | AB95: 3.5 | AC95: ^^^ | AD95: 19.8 | AE95: 0.14 | AF95: 1.4 | AG95: 2.38 | AH95: 3.94 | AI95: 3.4 | AJ95: 20 | AK95: ^^^ | AL95: 7.72 | AM95: 0.4 | AN95: 0 | AO95: ^^^ | AP95: ^^^ | AQ95: 1.4 | AR95: 1.95 | AS95: ^^^ | AT95: 2.8 | AU95: 0 | AV95: 1 | AW95: 32.93 | AX95: 6.01 | AY95: ^^^ | AZ95: 9.99 | BA95: 2.38 | BB95: 4 | BC95: ^^^ | BD95: 0 | BE95: ^^^ | BF95: 9.67 | BG95: 2.04 | BH95: ^^^ | BI95: ^^^ | BJ95: 2 | BK95: 0 | BL95: ^^^ | BM95: ^^^ | BN95: ^^^ | BO95: ^^^ | BP95: ^^^ | BQ95: 3 | BR95: 3.6 | BS95: 0.5 | BT95: ^^^ | BU95: 1.97 | BV95: ^^^ | BW95: ^^^ | BX95: ^^^
A96: CFW169 | B96: N13 | C96: Community Based Mental Health Teams - Team Composition WTE | D96: Support Workers and Other Unqualified Clinical Staff | E96: Totals | F96: 68.05 | G96: 4.2 | H96: 40.92 | I96: 0 | J96: 111.68 | K96: 27.62 | L96: 25.55 | M96: 65.49 | N96: 90.82 | O96: 67.1 | P96: 76.81 | Q96: 61.91 | R96: 70.76 | S96: 0 | T96: 86.26 | U96: 66.86 | V96: 93.4795 | W96: 28.66 | X96: 104.33 | Y96: 143.14 | Z96: 167.71 | AA96: 143.39 | AB96: 70.9 | AC96: 0 | AD96: 166.91 | AE96: 203.64 | AF96: 44.12 | AG96: 53.66 | AH96: 45.27 | AI96: 40.5 | AJ96: 114.06 | AK96: 131.81 | AL96: 231.67 | AM96: 40.77 | AN96: 62.73 | AO96: 145.69 | AP96: 31.12 | AQ96: 166.64 | AR96: 140.66 | AS96: 100.97 | AT96: 46.75 | AU96: 106.4 | AV96: 63.29 | AW96: 63.08 | AX96: 43.18 | AY96: 17.82 | AZ96: 60.43 | BA96: 100.87 | BB96: 132.03 | BC96: 120.39 | BD96: 17.46 | BE96: 97.92 | BF96: 229.17 | BG96: 27.18 | BH96: 0 | BI96: 32.25 | BJ96: 12.24 | BK96: 30.27 | BL96: 13.63 | BM96: 0 | BN96: 0 | BO96: 0 | BP96: 0 | BQ96: 81.7 | BR96: 78.27 | BS96: 43.8 | BT96: 76.67 | BU96: 81.08 | BV96: 40.93 | BW96: 54.44 | BX96: 20.91
A97: CFW14 | B97: B14 | C97: Community Based Mental Health Teams - Team Composition WTE | D97: Social Workers | E97: Generic CMHT | F97: ^^^ | G97: 21.62 | H97: ^^^ | I97: ^^^ | J97: 0 | K97: ^^^ | L97: ^^^ | M97: 3.48 | N97: ^^^ | O97: 2 | P97: 11.08 | Q97: 0 | R97: 1.51 | S97: ^^^ | T97: ^^^ | U97: 14.62 | V97: ^^^ | W97: ^^^ | X97: 39.62 | Y97: 13.41 | Z97: 44.36 | AA97: 54.49 | AB97: 11.6 | AC97: ^^^ | AD97: 1 | AE97: 2.36 | AF97: ^^^ | AG97: ^^^ | AH97: ^^^ | AI97: 0.6 | AJ97: ^^^ | AK97: 2.02 | AL97: 16.15 | AM97: 7.6 | AN97: 17.68 | AO97: ^^^ | AP97: 1 | AQ97: 3.13 | AR97: ^^^ | AS97: 28.86 | AT97: 8.31 | AU97: ^^^ | AV97: 18.48 | AW97: 21.43 | AX97: 10.22 | AY97: 3.14 | AZ97: ^^^ | BA97: 1.28 | BB97: 1 | BC97: 4.67 | BD97: 0 | BE97: 1 | BF97: ^^^ | BG97: ^^^ | BH97: ^^^ | BI97: 0.64 | BJ97: 0 | BK97: 41.65 | BL97: 13 | BM97: ^^^ | BN97: ^^^ | BO97: ^^^ | BP97: ^^^ | BQ97: ^^^ | BR97: ^^^ | BS97: ^^^ | BT97: 1.4 | BU97: 0 | BV97: ^^^ | BW97: 2 | BX97: ^^^
A98: CFW15 | B98: C14 | C98: Community Based Mental Health Teams - Team Composition WTE | D98: Social Workers | E98: CRHT | F98: 6.16 | G98: 13.6 | H98: ^^^ | I98: ^^^ | J98: 0 | K98: ^^^ | L98: ^^^ | M98: 3.6 | N98: ^^^ | O98: ^^^ | P98: 1.72 | Q98: 0 | R98: ^^^ | S98: ^^^ | T98: 0.36 | U98: 1 | V98: 1.38 | W98: ^^^ | X98: 5.2 | Y98: 5 | Z98: 23.08 | AA98: 12.22 | AB98: ^^^ | AC98: ^^^ | AD98: 0 | AE98: 2.973969035 | AF98: 1 | AG98: 4.24 | AH98: ^^^ | AI98: ^^^ | AJ98: ^^^ | AK98: 4 | AL98: 6.06 | AM98: 8 | AN98: 0 | AO98: ^^^ | AP98: 4.48 | AQ98: 2 | AR98: ^^^ | AS98: ^^^ | AT98: 1.02 | AU98: ^^^ | AV98: 11.3 | AW98: 2 | AX98: 6.15 | AY98: 2.05182548 | AZ98: 2 | BA98: 1.08 | BB98: 0 | BC98: 2.08 | BD98: 0 | BE98: 3.35 | BF98: ^^^ | BG98: 1.46 | BH98: ^^^ | BI98: ^^^ | BJ98: 3 | BK98: 4.74 | BL98: 5 | BM98: ^^^ | BN98: ^^^ | BO98: ^^^ | BP98: ^^^ | BQ98: ^^^ | BR98: ^^^ | BS98: 1 | BT98: 4 | BU98: 0 | BV98: ^^^ | BW98: 2.04 | BX98: 0.6
A99: CFW16 | B99: D14 | C99: Community Based Mental Health Teams - Team Composition WTE | D99: Social Workers | E99: Assertive Outreach | F99: 3.45 | G99: 0 | H99: ^^^ | I99: ^^^ | J99: 3 | K99: ^^^ | L99: ^^^ | M99: ^^^ | N99: ^^^ | O99: ^^^ | P99: ^^^ | Q99: ^^^ | R99: ^^^ | S99: ^^^ | T99: ^^^ | U99: ^^^ | V99: ^^^ | W99: ^^^ | X99: 4.25 | Y99: ^^^ | Z99: 0 | AA99: ^^^ | AB99: ^^^ | AC99: ^^^ | AD99: 0 | AE99: ^^^ | AF99: ^^^ | AG99: 2 | AH99: ^^^ | AI99: 1 | AJ99: ^^^ | AK99: ^^^ | AL99: ^^^ | AM99: ^^^ | AN99: 0 | AO99: ^^^ | AP99: ^^^ | AQ99: 0 | AR99: ^^^ | AS99: 6.5 | AT99: 0 | AU99: ^^^ | AV99: 2 | AW99: 0 | AX99: ^^^ | AY99: ^^^ | AZ99: 1 | BA99: ^^^ | BB99: ^^^ | BC99: 0.01x | BD99: ^^^ | BE99: 1 | BF99: ^^^ | BG99: ^^^ | BH99: ^^^ | BI99: ^^^ | BJ99: ^^^ | BK99: ^^^ | BL99: ^^^ | BM99: ^^^ | BN99: ^^^ | BO99: ^^^ | BP99: ^^^ | BQ99: ^^^ | BR99: ^^^ | BS99: ^^^ | BT99: ^^^ | BU99: 0 | BV99: ^^^ | BW99: ^^^ | BX99: ^^^
A100: CFW17 | B100: E14 | C100: Community Based Mental Health Teams - Team Composition WTE | D100: Social Workers | E100: Early Intervention (incl Early Onset Psychosis) | F100: 2 | G100: 1 | H100: ^^^ | I100: ^^^ | J100: 0 | K100: ^^^ | L100: 6 | M100: 1 | N100: 2.4 | O100: 0.53 | P100: 5.81 | Q100: 0 | R100: 1.203 | S100: ^^^ | T100: ^^^ | U100: 0.4 | V100: ^^^ | W100: ^^^ | X100: 13.8 | Y100: 13.4 | Z100: 11.87 | AA100: ^^^ | AB100: ^^^ | AC100: ^^^ | AD100: 3 | AE100: 5 | AF100: ^^^ | AG100: ^^^ | AH100: ^^^ | AI100: ^^^ | AJ100: 3.4 | AK100: ^^^ | AL100: ^^^ | AM100: 1.8 | AN100: 0 | AO100: ^^^ | AP100: 0 | AQ100: 0.1 | AR100: ^^^ | AS100: 8.55 | AT100: 0.03 | AU100: ^^^ | AV100: 1.5 | AW100: 1 | AX100: 3 | AY100: 0.01 | AZ100: ^^^ | BA100: 0.94 | BB100: 1 | BC100: 4.64 | BD100: 0 | BE100: ^^^ | BF100: ^^^ | BG100: ^^^ | BH100: ^^^ | BI100: ^^^ | BJ100: 2 | BK100: 0 | BL100: ^^^ | BM100: ^^^ | BN100: ^^^ | BO100: ^^^ | BP100: ^^^ | BQ100: ^^^ | BR100: ^^^ | BS100: ^^^ | BT100: ^^^ | BU100: 0 | BV100: ^^^ | BW100: ^^^ | BX100: ^^^
A101: CFW18 | B101: F14 | C101: Community Based Mental Health Teams - Team Composition WTE | D101: Social Workers | E101: Assessment & Brief Intervention (incl PMHT) | F101: 0.8 | G101: 1.5 | H101: ^^^ | I101: ^^^ | J101: ^^^ | K101: ^^^ | L101: ^^^ | M101: 6 | N101: ^^^ | O101: ^^^ | P101: ^^^ | Q101: ^^^ | R101: ^^^ | S101: ^^^ | T101: ^^^ | U101: 2.7 | V101: ^^^ | W101: ^^^ | X101: ^^^ | Y101: 1.8 | Z101: 0 | AA101: ^^^ | AB101: 14 | AC101: ^^^ | AD101: 0 | AE101: 2.556030965 | AF101: ^^^ | AG101: ^^^ | AH101: ^^^ | AI101: ^^^ | AJ101: 2 | AK101: ^^^ | AL101: 0 | AM101: 1 | AN101: 1 | AO101: ^^^ | AP101: 0 | AQ101: 0 | AR101: ^^^ | AS101: 50.48 | AT101: 0 | AU101: ^^^ | AV101: 0 | AW101: 44.31 | AX101: 1.96 | AY101: 1.64 | AZ101: 0.8 | BA101: ^^^ | BB101: 0 | BC101: ^^^ | BD101: ^^^ | BE101: ^^^ | BF101: ^^^ | BG101: ^^^ | BH101: ^^^ | BI101: ^^^ | BJ101: 25.83 | BK101: 0 | BL101: 3 | BM101: ^^^ | BN101: ^^^ | BO101: ^^^ | BP101: ^^^ | BQ101: 0.6 | BR101: ^^^ | BS101: 1.75 | BT101: ^^^ | BU101: 0 | BV101: ^^^ | BW101: 2 | BX101: ^^^
A102: CFW19 | B102: G14 | C102: Community Based Mental Health Teams - Team Composition WTE | D102: Social Workers | E102: Rehabilitation and Recovery | F102: 1 | G102: 0 | H102: ^^^ | I102: ^^^ | J102: ^^^ | K102: ^^^ | L102: ^^^ | M102: ^^^ | N102: ^^^ | O102: ^^^ | P102: ^^^ | Q102: ^^^ | R102: 0.538 | S102: ^^^ | T102: ^^^ | U102: ^^^ | V102: ^^^ | W102: ^^^ | X102: 1 | Y102: ^^^ | Z102: 0 | AA102: ^^^ | AB102: ^^^ | AC102: ^^^ | AD102: 0 | AE102: 1 | AF102: ^^^ | AG102: ^^^ | AH102: ^^^ | AI102: ^^^ | AJ102: ^^^ | AK102: ^^^ | AL102: ^^^ | AM102: ^^^ | AN102: 1 | AO102: ^^^ | AP102: ^^^ | AQ102: 0 | AR102: ^^^ | AS102: ^^^ | AT102: 0.07 | AU102: ^^^ | AV102: ^^^ | AW102: ^^^ | AX102: 0 | AY102: ^^^ | AZ102: 2.4 | BA102: ^^^ | BB102: 0 | BC102: ^^^ | BD102: ^^^ | BE102: ^^^ | BF102: ^^^ | BG102: ^^^ | BH102: ^^^ | BI102: 0.16 | BJ102: 30.31 | BK102: 0 | BL102: ^^^ | BM102: ^^^ | BN102: ^^^ | BO102: ^^^ | BP102: ^^^ | BQ102: ^^^ | BR102: ^^^ | BS102: ^^^ | BT102: 2 | BU102: 0 | BV102: ^^^ | BW102: ^^^ | BX102: ^^^
A103: CFW20 | B103: H14 | C103: Community Based Mental Health Teams - Team Composition WTE | D103: Social Workers | E103: Forensic | F103: ^^^ | G103: 0 | H103: ^^^ | I103: ^^^ | J103: 0 | K103: ^^^ | L103: ^^^ | M103: 3.6 | N103: ^^^ | O103: ^^^ | P103: 0.96 | Q103: 0 | R103: 1 | S103: ^^^ | T103: ^^^ | U103: ^^^ | V103: ^^^ | W103: ^^^ | X103: ^^^ | Y103: ^^^ | Z103: 0 | AA103: 1.82 | AB103: ^^^ | AC103: ^^^ | AD103: 0 | AE103: ^^^ | AF103: ^^^ | AG103: ^^^ | AH103: ^^^ | AI103: ^^^ | AJ103: ^^^ | AK103: 1 | AL103: 1 | AM103: ^^^ | AN103: 0 | AO103: 1.85 | AP103: 0 | AQ103: 1.14 | AR103: ^^^ | AS103: 1.8 | AT103: ^^^ | AU103: ^^^ | AV103: ^^^ | AW103: 3.81 | AX103: 1.78 | AY103: ^^^ | AZ103: ^^^ | BA103: 0.5 | BB103: 0 | BC103: 0.02 | BD103: 0 | BE103: 1.61 | BF103: ^^^ | BG103: 3 | BH103: ^^^ | BI103: ^^^ | BJ103: 3 | BK103: 0 | BL103: ^^^ | BM103: ^^^ | BN103: ^^^ | BO103: ^^^ | BP103: ^^^ | BQ103: ^^^ | BR103: ^^^ | BS103: 1 | BT103: 4.36 | BU103: 0 | BV103: ^^^ | BW103: ^^^ | BX103: ^^^
A104: CFW21 | B104: I14 | C104: Community Based Mental Health Teams - Team Composition WTE | D104: Social Workers | E104: Eating Disorders | F104: 0.66 | G104: 0 | H104: ^^^ | I104: ^^^ | J104: 0 | K104: ^^^ | L104: ^^^ | M104: ^^^ | N104: ^^^ | O104: ^^^ | P104: 0.05x | Q104: 0 | R104: ^^^ | S104: ^^^ | T104: ^^^ | U104: ^^^ | V104: ^^^ | W104: ^^^ | X104: ^^^ | Y104: ^^^ | Z104: 0 | AA104: ^^^ | AB104: ^^^ | AC104: ^^^ | AD104: 0 | AE104: ^^^ | AF104: ^^^ | AG104: ^^^ | AH104: ^^^ | AI104: ^^^ | AJ104: ^^^ | AK104: ^^^ | AL104: 1 | AM104: 0 | AN104: 0 | AO104: ^^^ | AP104: 0 | AQ104: 0 | AR104: ^^^ | AS104: ^^^ | AT104: 0 | AU104: ^^^ | AV104: ^^^ | AW104: 0 | AX104: 0 | AY104: ^^^ | AZ104: ^^^ | BA104: ^^^ | BB104: ^^^ | BC104: 1 | BD104: 0 | BE104: ^^^ | BF104: ^^^ | BG104: ^^^ | BH104: ^^^ | BI104: ^^^ | BJ104: 2 | BK104: 1 | BL104: ^^^ | BM104: ^^^ | BN104: ^^^ | BO104: ^^^ | BP104: ^^^ | BQ104: ^^^ | BR104: ^^^ | BS104: ^^^ | BT104: ^^^ | BU104: 0 | BV104: ^^^ | BW104: ^^^ | BX104: ^^^
A105: CFW22 | B105: J14 | C105: Community Based Mental Health Teams - Team Composition WTE | D105: Social Workers | E105: Mother and Baby | F105: 0.75 | G105: 0 | H105: ^^^ | I105: ^^^ | J105: 0 | K105: ^^^ | L105: ^^^ | M105: ^^^ | N105: ^^^ | O105: ^^^ | P105: 0.58 | Q105: ^^^ | R105: 0.051 | S105: ^^^ | T105: ^^^ | U105: ^^^ | V105: ^^^ | W105: ^^^ | X105: ^^^ | Y105: ^^^ | Z105: 0 | AA105: 1.8 | AB105: ^^^ | AC105: ^^^ | AD105: 0 | AE105: ^^^ | AF105: ^^^ | AG105: ^^^ | AH105: ^^^ | AI105: ^^^ | AJ105: ^^^ | AK105: ^^^ | AL105: 0 | AM105: 1 | AN105: 0 | AO105: ^^^ | AP105: ^^^ | AQ105: 0 | AR105: ^^^ | AS105: ^^^ | AT105: 0.05 | AU105: ^^^ | AV105: ^^^ | AW105: 0 | AX105: 0.19 | AY105: ^^^ | AZ105: ^^^ | BA105: ^^^ | BB105: 1 | BC105: 4.4 | BD105: ^^^ | BE105: 0.6 | BF105: ^^^ | BG105: ^^^ | BH105: ^^^ | BI105: ^^^ | BJ105: 0.81 | BK105: ^^^ | BL105: ^^^ | BM105: ^^^ | BN105: ^^^ | BO105: ^^^ | BP105: ^^^ | BQ105: ^^^ | BR105: ^^^ | BS105: ^^^ | BT105: ^^^ | BU105: 0 | BV105: ^^^ | BW105: ^^^ | BX105: ^^^
A106: CFW23 | B106: K14 | C106: Community Based Mental Health Teams - Team Composition WTE | D106: Social Workers | E106: Older People | F106: ^^^ | G106: 2.9 | H106: 0 | I106: ^^^ | J106: 0 | K106: ^^^ | L106: ^^^ | M106: 0.53 | N106: ^^^ | O106: ^^^ | P106: 0.39 | Q106: 0 | R106: ^^^ | S106: ^^^ | T106: ^^^ | U106: 2 | V106: ^^^ | W106: ^^^ | X106: 4 | Y106: ^^^ | Z106: 14.2 | AA106: 4.81 | AB106: 7.7 | AC106: ^^^ | AD106: 0 | AE106: 0.6 | AF106: ^^^ | AG106: ^^^ | AH106: ^^^ | AI106: ^^^ | AJ106: 0.7 | AK106: ^^^ | AL106: 0.36 | AM106: 1.91 | AN106: 0 | AO106: ^^^ | AP106: 0 | AQ106: 0.24 | AR106: ^^^ | AS106: 8.8 | AT106: 2.33 | AU106: ^^^ | AV106: 6 | AW106: 0 | AX106: 0 | AY106: 1.043740113 | AZ106: 0 | BA106: ^^^ | BB106: 0 | BC106: ^^^ | BD106: 0 | BE106: ^^^ | BF106: ^^^ | BG106: ^^^ | BH106: ^^^ | BI106: ^^^ | BJ106: ^^^ | BK106: 43.27 | BL106: 5.5 | BM106: ^^^ | BN106: ^^^ | BO106: ^^^ | BP106: ^^^ | BQ106: ^^^ | BR106: ^^^ | BS106: ^^^ | BT106: ^^^ | BU106: 0 | BV106: ^^^ | BW106: 1.8 | BX106: ^^^
A107: CFW24 | B107: L14 | C107: Community Based Mental Health Teams - Team Composition WTE | D107: Social Workers | E107: Memory Services | F107: ^^^ | G107: 0 | H107: ^^^ | I107: ^^^ | J107: 0 | K107: ^^^ | L107: ^^^ | M107: ^^^ | N107: ^^^ | O107: ^^^ | P107: 0.48 | Q107: ^^^ | R107: 0.7 | S107: ^^^ | T107: ^^^ | U107: ^^^ | V107: ^^^ | W107: ^^^ | X107: ^^^ | Y107: 1 | Z107: 0.11 | AA107: ^^^ | AB107: ^^^ | AC107: ^^^ | AD107: 0 | AE107: ^^^ | AF107: ^^^ | AG107: ^^^ | AH107: ^^^ | AI107: 1 | AJ107: ^^^ | AK107: ^^^ | AL107: 0.24 | AM107: 0 | AN107: 0 | AO107: ^^^ | AP107: 0 | AQ107: 0.05 | AR107: ^^^ | AS107: ^^^ | AT107: 0.34 | AU107: ^^^ | AV107: 0 | AW107: 0 | AX107: 0 | AY107: ^^^ | AZ107: ^^^ | BA107: ^^^ | BB107: 0 | BC107: ^^^ | BD107: ^^^ | BE107: ^^^ | BF107: ^^^ | BG107: ^^^ | BH107: ^^^ | BI107: 1 | BJ107: ^^^ | BK107: ^^^ | BL107: ^^^ | BM107: ^^^ | BN107: ^^^ | BO107: ^^^ | BP107: ^^^ | BQ107: ^^^ | BR107: ^^^ | BS107: 1 | BT107: ^^^ | BU107: ^^^ | BV107: ^^^ | BW107: ^^^ | BX107: ^^^
A108: CFW25 | B108: M14 | C108: Community Based Mental Health Teams - Team Composition WTE | D108: Social Workers | E108: Other Adult CMHTs | F108: 1 | G108: 0 | H108: ^^^ | I108: ^^^ | J108: 0 | K108: ^^^ | L108: ^^^ | M108: ^^^ | N108: ^^^ | O108: 1 | P108: ^^^ | Q108: ^^^ | R108: ^^^ | S108: ^^^ | T108: ^^^ | U108: 1 | V108: ^^^ | W108: ^^^ | X108: 18.56 | Y108: 13.03 | Z108: 0 | AA108: 2.92 | AB108: ^^^ | AC108: ^^^ | AD108: 0.64 | AE108: ^^^ | AF108: ^^^ | AG108: ^^^ | AH108: ^^^ | AI108: 1 | AJ108: 3.8 | AK108: ^^^ | AL108: 1 | AM108: 0 | AN108: 0 | AO108: ^^^ | AP108: ^^^ | AQ108: 0 | AR108: ^^^ | AS108: ^^^ | AT108: 2 | AU108: ^^^ | AV108: 0 | AW108: 0 | AX108: 1.59 | AY108: ^^^ | AZ108: ^^^ | BA108: 2.04 | BB108: 0.88 | BC108: ^^^ | BD108: 0 | BE108: ^^^ | BF108: ^^^ | BG108: ^^^ | BH108: ^^^ | BI108: ^^^ | BJ108: 33.06 | BK108: 0 | BL108: ^^^ | BM108: ^^^ | BN108: ^^^ | BO108: ^^^ | BP108: ^^^ | BQ108: ^^^ | BR108: 0.4 | BS108: ^^^ | BT108: ^^^ | BU108: 0 | BV108: ^^^ | BW108: ^^^ | BX108: ^^^
A109: CFW26 | B109: N14 | C109: Community Based Mental Health Teams - Team Composition WTE | D109: Social Workers | E109: Totals | F109: 15.82 | G109: 40.62 | H109: 0 | I109: 0 | J109: 3 | K109: 0 | L109: 6 | M109: 18.21 | N109: 2.4 | O109: 3.53 | P109: 21.02 | Q109: 0 | R109: 5.002 | S109: 0 | T109: 0.36 | U109: 21.72 | V109: 1.38 | W109: 0 | X109: 86.43 | Y109: 47.64 | Z109: 93.62 | AA109: 78.06 | AB109: 33.3 | AC109: 0 | AD109: 4.64 | AE109: 14.49 | AF109: 1 | AG109: 6.24 | AH109: 0 | AI109: 3.6 | AJ109: 9.9 | AK109: 7.02 | AL109: 25.81 | AM109: 21.31 | AN109: 19.68 | AO109: 1.85 | AP109: 5.48 | AQ109: 6.66 | AR109: 0 | AS109: 104.99 | AT109: 14.15 | AU109: 0 | AV109: 39.28 | AW109: 72.55 | AX109: 24.89 | AY109: 7.885565593 | AZ109: 6.2 | BA109: 5.84 | BB109: 3.88 | BC109: 16.81 | BD109: 0 | BE109: 7.56 | BF109: 0 | BG109: 4.46 | BH109: 0 | BI109: 1.8 | BJ109: 100.01 | BK109: 90.66 | BL109: 26.5 | BM109: 0 | BN109: 0 | BO109: 0 | BP109: 0 | BQ109: 0.6 | BR109: 0.4 | BS109: 4.75 | BT109: 11.76 | BU109: 0 | BV109: 0 | BW109: 7.84 | BX109: 0.6
A110: CFW27 | B110: B15 | C110: Community Based Mental Health Teams - Team Composition WTE | D110: Occupational Therapists (OT) | E110: Generic CMHT | F110: ^^^ | G110: 19.53 | H110: 0 | I110: 20.41 | J110: 21.77 | K110: 8.45 | L110: 3.86 | M110: 20.97 | N110: 1 | O110: 10.71 | P110: 36.4 | Q110: 8.11 | R110: 8.76 | S110: ^^^ | T110: 38.49 | U110: 18.15 | V110: 12.07 | W110: 4.4 | X110: 44.65 | Y110: 23.53 | Z110: 31.12 | AA110: 13.02 | AB110: 7.9 | AC110: ^^^ | AD110: 31.79 | AE110: 19.77 | AF110: 34 | AG110: 8.12 | AH110: ^^^ | AI110: 2.65 | AJ110: 8.08 | AK110: 25.95 | AL110: 16.02 | AM110: 17.43 | AN110: 5.85 | AO110: 11.36 | AP110: 8.17 | AQ110: 30.32 | AR110: 29.91 | AS110: 18.41 | AT110: 13.49 | AU110: 4.5 | AV110: 8.93 | AW110: 7.6 | AX110: 20.51 | AY110: 3.67 | AZ110: ^^^ | BA110: 14.2 | BB110: 29.25 | BC110: 9.36 | BD110: 19.22 | BE110: 54.45 | BF110: 29.16 | BG110: 14.2 | BH110: ^^^ | BI110: ^^^ | BJ110: 0 | BK110: 7.8 | BL110: 0 | BM110: ^^^ | BN110: ^^^ | BO110: ^^^ | BP110: ^^^ | BQ110: 47.9 | BR110: 16.43 | BS110: 12.5 | BT110: 7.6 | BU110: 15.5 | BV110: ^^^ | BW110: 10.78 | BX110: 1.77
A111: CFW28 | B111: C15 | C111: Community Based Mental Health Teams - Team Composition WTE | D111: Occupational Therapists (OT) | E111: CRHT | F111: 2.18 | G111: 7.04 | H111: 1 | I111: 0.93 | J111: 1 | K111: 0.18 | L111: 3 | M111: 1.2 | N111: 2 | O111: ^^^ | P111: 2.4 | Q111: 1 | R111: 0.8 | S111: ^^^ | T111: 3 | U111: 2.02 | V111: 1 | W111: 0.87 | X111: 1.55 | Y111: 4.29 | Z111: 2.73 | AA111: 2.1 | AB111: ^^^ | AC111: ^^^ | AD111: 5 | AE111: 3.055515073 | AF111: 18.49 | AG111: 1.17 | AH111: ^^^ | AI111: 1 | AJ111: ^^^ | AK111: 4.1 | AL111: 3.21 | AM111: 2.29 | AN111: 0 | AO111: 4 | AP111: 2.29 | AQ111: 2.19 | AR111: 7.03 | AS111: ^^^ | AT111: 15.77 | AU111: 1.8 | AV111: 0 | AW111: 0 | AX111: 1.2 | AY111: 0 | AZ111: 1 | BA111: 0.72 | BB111: 1.78 | BC111: 1 | BD111: 0 | BE111: 13.65 | BF111: 2 | BG111: 2.36 | BH111: ^^^ | BI111: ^^^ | BJ111: 4 | BK111: 1 | BL111: 5 | BM111: ^^^ | BN111: ^^^ | BO111: ^^^ | BP111: ^^^ | BQ111: 1.3 | BR111: 2 | BS111: ^^^ | BT111: ^^^ | BU111: 2.54 | BV111: ^^^ | BW111: 1 | BX111: ^^^
A112: CFW29 | B112: D15 | C112: Community Based Mental Health Teams - Team Composition WTE | D112: Occupational Therapists (OT) | E112: Assertive Outreach | F112: 3.17 | G112: 0 | H112: ^^^ | I112: ^^^ | J112: 5.8 | K112: ^^^ | L112: ^^^ | M112: ^^^ | N112: ^^^ | O112: ^^^ | P112: ^^^ | Q112: ^^^ | R112: ^^^ | S112: ^^^ | T112: ^^^ | U112: ^^^ | V112: 0.69 | W112: ^^^ | X112: 0.1 | Y112: ^^^ | Z112: 0 | AA112: ^^^ | AB112: ^^^ | AC112: ^^^ | AD112: 0 | AE112: ^^^ | AF112: 3 | AG112: 1 | AH112: ^^^ | AI112: 1 | AJ112: ^^^ | AK112: ^^^ | AL112: ^^^ | AM112: ^^^ | AN112: 0 | AO112: ^^^ | AP112: ^^^ | AQ112: 0 | AR112: 0.5 | AS112: 5.8 | AT112: 0 | AU112: ^^^ | AV112: 1.2 | AW112: 0 | AX112: ^^^ | AY112: ^^^ | AZ112: ^^^ | BA112: ^^^ | BB112: ^^^ | BC112: ^^^ | BD112: ^^^ | BE112: 0.88 | BF112: ^^^ | BG112: ^^^ | BH112: ^^^ | BI112: ^^^ | BJ112: ^^^ | BK112: ^^^ | BL112: ^^^ | BM112: ^^^ | BN112: ^^^ | BO112: ^^^ | BP112: ^^^ | BQ112: ^^^ | BR112: 3 | BS112: 2.4 | BT112: ^^^ | BU112: 0 | BV112: 1 | BW112: ^^^ | BX112: ^^^
A113: CFW30 | B113: E15 | C113: Community Based Mental Health Teams - Team Composition WTE | D113: Occupational Therapists (OT) | E113: Early Intervention (incl Early Onset Psychosis) | F113: 0.5 | G113: 7.4 | H113: 3 | I113: 2.8 | J113: 0 | K113: 4.63 | L113: ^^^ | M113: 2 | N113: 4 | O113: 1.58 | P113: 4.44 | Q113: 0 | R113: 3 | S113: ^^^ | T113: 2.52 | U113: 6.41 | V113: 1.4 | W113: 2 | X113: 4.44 | Y113: 7.3 | Z113: 5.72 | AA113: ^^^ | AB113: 1.8 | AC113: ^^^ | AD113: 11.41 | AE113: 0.84 | AF113: ^^^ | AG113: 3.4 | AH113: ^^^ | AI113: ^^^ | AJ113: 2 | AK113: ^^^ | AL113: ^^^ | AM113: 2.96 | AN113: 0 | AO113: 3 | AP113: 1 | AQ113: 0.03x | AR113: 5.28 | AS113: 6.55 | AT113: 3.22 | AU113: 0.4 | AV113: 0.52 | AW113: 1.17 | AX113: 5.95 | AY113: 1.8 | AZ113: 1 | BA113: 10.11 | BB113: 3.05 | BC113: 2.6 | BD113: 5 | BE113: 2.85 | BF113: 2 | BG113: 1.6 | BH113: ^^^ | BI113: ^^^ | BJ113: 2 | BK113: 0 | BL113: ^^^ | BM113: ^^^ | BN113: ^^^ | BO113: ^^^ | BP113: ^^^ | BQ113: 6.9 | BR113: ^^^ | BS113: 1.5 | BT113: ^^^ | BU113: 1 | BV113: ^^^ | BW113: 1 | BX113: ^^^
A114: CFW31 | B114: F15 | C114: Community Based Mental Health Teams - Team Composition WTE | D114: Occupational Therapists (OT) | E114: Assessment & Brief Intervention (incl PMHT) | F114: ^^^ | G114: 5.43 | H114: 0 | I114: 0.63 | J114: ^^^ | K114: ^^^ | L114: ^^^ | M114: ^^^ | N114: ^^^ | O114: 0.08 | P114: ^^^ | Q114: ^^^ | R114: ^^^ | S114: ^^^ | T114: ^^^ | U114: 2.95 | V114: ^^^ | W114: 1.8 | X114: ^^^ | Y114: 2 | Z114: 0 | AA114: ^^^ | AB114: 1 | AC114: ^^^ | AD114: 0 | AE114: 6.704484927 | AF114: ^^^ | AG114: 1 | AH114: ^^^ | AI114: ^^^ | AJ114: 1 | AK114: ^^^ | AL114: 0 | AM114: 2.77 | AN114: 0 | AO114: 1 | AP114: 0 | AQ114: 0.17 | AR114: ^^^ | AS114: 25.4 | AT114: 0 | AU114: ^^^ | AV114: 0 | AW114: 2.1 | AX114: 1.87 | AY114: 1 | AZ114: ^^^ | BA114: 1.19 | BB114: 1.04 | BC114: ^^^ | BD114: ^^^ | BE114: 1 | BF114: 2.3 | BG114: ^^^ | BH114: ^^^ | BI114: ^^^ | BJ114: 0 | BK114: 5.59 | BL114: 0 | BM114: ^^^ | BN114: ^^^ | BO114: ^^^ | BP114: ^^^ | BQ114: 6.8 | BR114: ^^^ | BS114: 9.5 | BT114: ^^^ | BU114: 3.54 | BV114: 1 | BW114: 1 | BX114: 2.8
A115: CFW32 | B115: G15 | C115: Community Based Mental Health Teams - Team Composition WTE | D115: Occupational Therapists (OT) | E115: Rehabilitation and Recovery | F115: 5.26 | G115: 0 | H115: ^^^ | I115: ^^^ | J115: ^^^ | K115: ^^^ | L115: ^^^ | M115: ^^^ | N115: 1 | O115: 2 | P115: ^^^ | Q115: ^^^ | R115: 10.99 | S115: ^^^ | T115: ^^^ | U115: 4.28 | V115: ^^^ | W115: ^^^ | X115: 6.71 | Y115: 2.6 | Z115: 10.28 | AA115: ^^^ | AB115: ^^^ | AC115: ^^^ | AD115: 0 | AE115: 19.66 | AF115: 1 | AG115: 5.4 | AH115: ^^^ | AI115: 2.8 | AJ115: ^^^ | AK115: ^^^ | AL115: ^^^ | AM115: ^^^ | AN115: 1 | AO115: ^^^ | AP115: ^^^ | AQ115: 0 | AR115: ^^^ | AS115: ^^^ | AT115: 5.8 | AU115: 5.1 | AV115: ^^^ | AW115: ^^^ | AX115: 5.83 | AY115: ^^^ | AZ115: 5.87 | BA115: 1.77 | BB115: 3.93 | BC115: 1 | BD115: ^^^ | BE115: ^^^ | BF115: 1 | BG115: ^^^ | BH115: ^^^ | BI115: ^^^ | BJ115: 8.7 | BK115: 1 | BL115: ^^^ | BM115: ^^^ | BN115: ^^^ | BO115: ^^^ | BP115: ^^^ | BQ115: ^^^ | BR115: 2.79 | BS115: ^^^ | BT115: ^^^ | BU115: 0.6 | BV115: ^^^ | BW115: ^^^ | BX115: ^^^
A116: CFW33 | B116: H15 | C116: Community Based Mental Health Teams - Team Composition WTE | D116: Occupational Therapists (OT) | E116: Forensic | F116: ^^^ | G116: 0 | H116: ^^^ | I116: ^^^ | J116: 2 | K116: 0.4 | L116: ^^^ | M116: ^^^ | N116: ^^^ | O116: 1 | P116: ^^^ | Q116: 0 | R116: ^^^ | S116: ^^^ | T116: ^^^ | U116: ^^^ | V116: 4.72 | W116: ^^^ | X116: 17.6 | Y116: ^^^ | Z116: 0 | AA116: ^^^ | AB116: ^^^ | AC116: ^^^ | AD116: 0 | AE116: 6 | AF116: ^^^ | AG116: 1.57 | AH116: ^^^ | AI116: 0.8 | AJ116: ^^^ | AK116: 2 | AL116: 3 | AM116: ^^^ | AN116: 0 | AO116: ^^^ | AP116: 2 | AQ116: 1.39 | AR116: ^^^ | AS116: 1.4 | AT116: 3 | AU116: ^^^ | AV116: ^^^ | AW116: 0 | AX116: 1.25 | AY116: ^^^ | AZ116: ^^^ | BA116: 0.98 | BB116: 0.64 | BC116: ^^^ | BD116: 0 | BE116: ^^^ | BF116: ^^^ | BG116: ^^^ | BH116: ^^^ | BI116: ^^^ | BJ116: 0 | BK116: 1 | BL116: ^^^ | BM116: ^^^ | BN116: ^^^ | BO116: ^^^ | BP116: ^^^ | BQ116: 7.175 | BR116: ^^^ | BS116: ^^^ | BT116: ^^^ | BU116: 2 | BV116: ^^^ | BW116: ^^^ | BX116: ^^^
A117: CFW34 | B117: I15 | C117: Community Based Mental Health Teams - Team Composition WTE | D117: Occupational Therapists (OT) | E117: Eating Disorders | F117: 1.85 | G117: 1.27 | H117: ^^^ | I117: 2.38 | J117: 1 | K117: 0.77 | L117: ^^^ | M117: ^^^ | N117: ^^^ | O117: 1.42 | P117: 2.38 | Q117: 0 | R117: 1.53 | S117: ^^^ | T117: 1.61 | U117: 1.1 | V117: 2.04 | W117: ^^^ | X117: ^^^ | Y117: 0.67 | Z117: 0 | AA117: 1.6 | AB117: ^^^ | AC117: ^^^ | AD117: 0 | AE117: ^^^ | AF117: ^^^ | AG117: 1.08 | AH117: ^^^ | AI117: ^^^ | AJ117: ^^^ | AK117: ^^^ | AL117: 3 | AM117: 0 | AN117: 0 | AO117: 0.6 | AP117: 0 | AQ117: 0 | AR117: 2 | AS117: ^^^ | AT117: 0 | AU117: ^^^ | AV117: ^^^ | AW117: 1.4 | AX117: 1.78 | AY117: ^^^ | AZ117: ^^^ | BA117: 2.55 | BB117: ^^^ | BC117: 0.8 | BD117: 1.17 | BE117: ^^^ | BF117: 2 | BG117: ^^^ | BH117: ^^^ | BI117: ^^^ | BJ117: 0 | BK117: 1 | BL117: ^^^ | BM117: ^^^ | BN117: ^^^ | BO117: ^^^ | BP117: ^^^ | BQ117: 0.3 | BR117: 0.6 | BS117: 1 | BT117: ^^^ | BU117: 0.5 | BV117: ^^^ | BW117: 0.2 | BX117: ^^^
A118: CFW35 | B118: J15 | C118: Community Based Mental Health Teams - Team Composition WTE | D118: Occupational Therapists (OT) | E118: Mother and Baby | F118: ^^^ | G118: 0 | H118: ^^^ | I118: 0.53 | J118: 1.4 | K118: ^^^ | L118: ^^^ | M118: ^^^ | N118: ^^^ | O118: 0.8 | P118: 0.23 | Q118: ^^^ | R118: 0.002x | S118: ^^^ | T118: 1 | U118: 2 | V118: ^^^ | W118: ^^^ | X118: ^^^ | Y118: ^^^ | Z118: 1 | AA118: 1.6 | AB118: ^^^ | AC118: ^^^ | AD118: 1.6 | AE118: ^^^ | AF118: 0.5 | AG118: ^^^ | AH118: ^^^ | AI118: ^^^ | AJ118: ^^^ | AK118: 0.59 | AL118: 1 | AM118: 0 | AN118: 1 | AO118: 1 | AP118: ^^^ | AQ118: 0 | AR118: 0.5 | AS118: ^^^ | AT118: 0 | AU118: ^^^ | AV118: ^^^ | AW118: 0 | AX118: 0.8 | AY118: ^^^ | AZ118: ^^^ | BA118: ^^^ | BB118: 2 | BC118: ^^^ | BD118: ^^^ | BE118: ^^^ | BF118: ^^^ | BG118: ^^^ | BH118: ^^^ | BI118: ^^^ | BJ118: 0 | BK118: ^^^ | BL118: ^^^ | BM118: ^^^ | BN118: ^^^ | BO118: ^^^ | BP118: ^^^ | BQ118: 0.3 | BR118: 1.6 | BS118: ^^^ | BT118: ^^^ | BU118: 0.5 | BV118: ^^^ | BW118: 0.6 | BX118: ^^^
A119: CFW36 | B119: K15 | C119: Community Based Mental Health Teams - Team Composition WTE | D119: Occupational Therapists (OT) | E119: Older People | F119: 9.13 | G119: 1.6 | H119: ^^^ | I119: 11.96 | J119: 5.8 | K119: 10.96 | L119: 2.8 | M119: 6.04 | N119: 2 | O119: 9.26 | P119: 9.98 | Q119: 6.03 | R119: ^^^ | S119: ^^^ | T119: 8.2 | U119: 10.8 | V119: 12.18 | W119: 0.8 | X119: 13.43 | Y119: 6.44 | Z119: 15.26 | AA119: 20.46 | AB119: 4.6 | AC119: ^^^ | AD119: 38.48 | AE119: 32.52 | AF119: 2.2 | AG119: 12.93 | AH119: ^^^ | AI119: 1.4 | AJ119: 6.7 | AK119: ^^^ | AL119: 5.238 | AM119: 2.84 | AN119: 3.6 | AO119: 19.1 | AP119: 1 | AQ119: 9.62 | AR119: 33.82 | AS119: 8.8 | AT119: 6.96 | AU119: 2.8 | AV119: 3.7 | AW119: 3.23 | AX119: 14.46 | AY119: 2.684 | AZ119: 7.18 | BA119: 6.41 | BB119: 8.01 | BC119: 12.19 | BD119: 12.32 | BE119: ^^^ | BF119: 29.31 | BG119: ^^^ | BH119: ^^^ | BI119: 3 | BJ119: ^^^ | BK119: 2.9 | BL119: 0 | BM119: ^^^ | BN119: ^^^ | BO119: ^^^ | BP119: ^^^ | BQ119: 26.8 | BR119: 25.2 | BS119: 9.41 | BT119: 9 | BU119: 3.55 | BV119: ^^^ | BW119: 6.41 | BX119: 1.6
A120: CFW37 | B120: L15 | C120: Community Based Mental Health Teams - Team Composition WTE | D120: Occupational Therapists (OT) | E120: Memory Services | F120: 1 | G120: 1.6 | H120: ^^^ | I120: ^^^ | J120: 4.4 | K120: 0.05 | L120: ^^^ | M120: ^^^ | N120: 1 | O120: ^^^ | P120: 6.81 | Q120: ^^^ | R120: 10.54 | S120: ^^^ | T120: ^^^ | U120: ^^^ | V120: 1.8 | W120: ^^^ | X120: ^^^ | Y120: 8.64 | Z120: 0.69 | AA120: 4.44 | AB120: 1 | AC120: ^^^ | AD120: 0 | AE120: 8.06 | AF120: 6.88 | AG120: ^^^ | AH120: ^^^ | AI120: 1.6 | AJ120: ^^^ | AK120: 4.41 | AL120: 3.492 | AM120: 5.4 | AN120: 0 | AO120: ^^^ | AP120: 2.68 | AQ120: 1.93 | AR120: ^^^ | AS120: ^^^ | AT120: 6 | AU120: 1.5 | AV120: 1.95 | AW120: 1.76 | AX120: 2.83 | AY120: ^^^ | AZ120: ^^^ | BA120: 2.11 | BB120: 3.46 | BC120: ^^^ | BD120: ^^^ | BE120: 2.85 | BF120: ^^^ | BG120: 6.9 | BH120: ^^^ | BI120: 1 | BJ120: ^^^ | BK120: ^^^ | BL120: ^^^ | BM120: ^^^ | BN120: ^^^ | BO120: ^^^ | BP120: ^^^ | BQ120: ^^^ | BR120: 1 | BS120: 1 | BT120: 3 | BU120: ^^^ | BV120: 1 | BW120: ^^^ | BX120: ^^^
A121: CFW38 | B121: M15 | C121: Community Based Mental Health Teams - Team Composition WTE | D121: Occupational Therapists (OT) | E121: Other Adult CMHTs | F121: 6 | G121: 0 | H121: ^^^ | I121: ^^^ | J121: 10.84 | K121: 0.23 | L121: ^^^ | M121: 4.59 | N121: 3 | O121: 1.6 | P121: ^^^ | Q121: ^^^ | R121: ^^^ | S121: ^^^ | T121: 3.86 | U121: 5.3 | V121: 0.6 | W121: 3.52 | X121: 11.08 | Y121: 5.6 | Z121: 0 | AA121: ^^^ | AB121: 1.9 | AC121: ^^^ | AD121: 5.79 | AE121: 1.31 | AF121: 6.83 | AG121: 3.27 | AH121: ^^^ | AI121: 5.44 | AJ121: 3 | AK121: ^^^ | AL121: 0 | AM121: 4.05 | AN121: 0 | AO121: ^^^ | AP121: ^^^ | AQ121: 0.99 | AR121: 1 | AS121: ^^^ | AT121: 0 | AU121: 0 | AV121: 0 | AW121: 1.8 | AX121: 13.27 | AY121: ^^^ | AZ121: 2.65 | BA121: 4.73 | BB121: 3.78 | BC121: ^^^ | BD121: 0 | BE121: 7.98 | BF121: 0.8 | BG121: 0.04x | BH121: ^^^ | BI121: ^^^ | BJ121: 2 | BK121: 0 | BL121: ^^^ | BM121: ^^^ | BN121: ^^^ | BO121: ^^^ | BP121: ^^^ | BQ121: 17.6 | BR121: 3 | BS121: 1 | BT121: 2 | BU121: 1.72 | BV121: ^^^ | BW121: ^^^ | BX121: ^^^
A122: CFW39 | B122: N15 | C122: Community Based Mental Health Teams - Team Composition WTE | D122: Occupational Therapists (OT) | E122: Totals | F122: 29.09 | G122: 43.87 | H122: 4 | I122: 39.64 | J122: 54.01 | K122: 25.67 | L122: 9.66 | M122: 34.8 | N122: 14 | O122: 28.45 | P122: 62.64 | Q122: 15.14 | R122: 35.62 | S122: 0 | T122: 58.68 | U122: 53.01 | V122: 36.5 | W122: 13.39 | X122: 99.56 | Y122: 61.07 | Z122: 66.8 | AA122: 43.22 | AB122: 18.2 | AC122: 0 | AD122: 94.07 | AE122: 97.92 | AF122: 72.9 | AG122: 38.94 | AH122: 0 | AI122: 16.69 | AJ122: 20.78 | AK122: 37.05 | AL122: 34.96 | AM122: 37.74 | AN122: 11.45 | AO122: 40.06 | AP122: 17.14 | AQ122: 46.61 | AR122: 80.04 | AS122: 66.36 | AT122: 54.24 | AU122: 16.1 | AV122: 16.3 | AW122: 19.06 | AX122: 69.75 | AY122: 9.154 | AZ122: 17.7 | BA122: 44.77 | BB122: 56.94 | BC122: 26.95 | BD122: 37.71 | BE122: 83.66 | BF122: 68.57 | BG122: 25.06 | BH122: 0 | BI122: 4 | BJ122: 16.7 | BK122: 20.29 | BL122: 5 | BM122: 0 | BN122: 0 | BO122: 0 | BP122: 0 | BQ122: 115.075 | BR122: 55.62 | BS122: 38.31 | BT122: 21.6 | BU122: 31.45 | BV122: 3 | BW122: 20.99 | BX122: 6.17
A123: CFW40 | B123: B16 | C123: Community Based Mental Health Teams - Team Composition WTE | D123: Clinical Psychologists | E123: Generic CMHT | F123: ^^^ | G123: 11.16 | H123: 6.4 | I123: 22.28 | J123: 30.69 | K123: 10.71 | L123: ^^^ | M123: 13.35 | N123: ^^^ | O123: 6.12 | P123: 23.49 | Q123: 8 | R123: 34.48 | S123: ^^^ | T123: 22.74 | U123: ^^^ | V123: 16.81 | W123: ^^^ | X123: 16.99 | Y123: 21.57 | Z123: 12.0835 | AA123: 34.48 | AB123: 7.53 | AC123: ^^^ | AD123: 0 | AE123: 5.53 | AF123: 32.31 | AG123: 4.92 | AH123: ^^^ | AI123: 3.8 | AJ123: 21.71 | AK123: 24.51 | AL123: 1.5 | AM123: 0.57 | AN123: 0 | AO123: 29.79 | AP123: 9.62 | AQ123: 44.1 | AR123: 8.58 | AS123: 79.07 | AT123: 34.71 | AU123: ^^^ | AV123: 3.9 | AW123: 7.6 | AX123: 24.71 | AY123: 1.7 | AZ123: 1.56 | BA123: 17.77 | BB123: 43.23 | BC123: 17.95 | BD123: 17.25 | BE123: 46.74 | BF123: 56.75 | BG123: ^^^ | BH123: ^^^ | BI123: ^^^ | BJ123: 0.4 | BK123: 0 | BL123: 0 | BM123: ^^^ | BN123: ^^^ | BO123: ^^^ | BP123: ^^^ | BQ123: 47.5 | BR123: 13.03 | BS123: 10.89 | BT123: 13.6 | BU123: 6.46 | BV123: 4.3 | BW123: ^^^ | BX123: 5.66
A124: CFW41 | B124: C16 | C124: Community Based Mental Health Teams - Team Composition WTE | D124: Clinical Psychologists | E124: CRHT | F124: ^^^ | G124: 1.4 | H124: ^^^ | I124: 6.52 | J124: 0 | K124: 2.05 | L124: 0.6 | M124: ^^^ | N124: ^^^ | O124: ^^^ | P124: 0.27 | Q124: 1 | R124: 2.7 | S124: ^^^ | T124: ^^^ | U124: ^^^ | V124: ^^^ | W124: ^^^ | X124: 2 | Y124: 4.1 | Z124: 2.2435 | AA124: 0.05x | AB124: ^^^ | AC124: ^^^ | AD124: 0 | AE124: 1.499833744 | AF124: 1 | AG124: ^^^ | AH124: ^^^ | AI124: ^^^ | AJ124: ^^^ | AK124: ^^^ | AL124: 0 | AM124: 0 | AN124: 0 | AO124: 1.8 | AP124: 0 | AQ124: 0.79 | AR124: 0.94 | AS124: ^^^ | AT124: 3.47 | AU124: ^^^ | AV124: 0.4 | AW124: 1.9 | AX124: 1.86 | AY124: 0 | AZ124: ^^^ | BA124: ^^^ | BB124: 3.23 | BC124: 6.1 | BD124: 0 | BE124: 1.22 | BF124: ^^^ | BG124: 3 | BH124: ^^^ | BI124: ^^^ | BJ124: 0 | BK124: 0 | BL124: 0 | BM124: ^^^ | BN124: ^^^ | BO124: ^^^ | BP124: ^^^ | BQ124: 0.3 | BR124: ^^^ | BS124: ^^^ | BT124: ^^^ | BU124: 6.25 | BV124: ^^^ | BW124: ^^^ | BX124: ^^^
A125: CFW42 | B125: D16 | C125: Community Based Mental Health Teams - Team Composition WTE | D125: Clinical Psychologists | E125: Assertive Outreach | F125: 2.04 | G125: 0 | H125: ^^^ | I125: ^^^ | J125: 6.28 | K125: ^^^ | L125: 1 | M125: ^^^ | N125: 0.2 | O125: ^^^ | P125: ^^^ | Q125: ^^^ | R125: ^^^ | S125: ^^^ | T125: ^^^ | U125: ^^^ | V125: ^^^ | W125: ^^^ | X125: ^^^ | Y125: 1 | Z125: 0 | AA125: ^^^ | AB125: ^^^ | AC125: ^^^ | AD125: 0 | AE125: ^^^ | AF125: 2.15 | AG125: 1.23 | AH125: ^^^ | AI125: ^^^ | AJ125: ^^^ | AK125: ^^^ | AL125: ^^^ | AM125: ^^^ | AN125: 0 | AO125: ^^^ | AP125: ^^^ | AQ125: 0 | AR125: 2 | AS125: 6.42 | AT125: 0 | AU125: ^^^ | AV125: 0.2 | AW125: 0 | AX125: ^^^ | AY125: ^^^ | AZ125: ^^^ | BA125: ^^^ | BB125: ^^^ | BC125: 0.01x | BD125: ^^^ | BE125: 2.51 | BF125: ^^^ | BG125: ^^^ | BH125: ^^^ | BI125: ^^^ | BJ125: ^^^ | BK125: ^^^ | BL125: ^^^ | BM125: ^^^ | BN125: ^^^ | BO125: ^^^ | BP125: ^^^ | BQ125: ^^^ | BR125: ^^^ | BS125: ^^^ | BT125: ^^^ | BU125: 0 | BV125: 3.8 | BW125: ^^^ | BX125: ^^^
A126: CFW43 | B126: E16 | C126: Community Based Mental Health Teams - Team Composition WTE | D126: Clinical Psychologists | E126: Early Intervention (incl Early Onset Psychosis) | F126: 1.8 | G126: 1.1 | H126: 1.8 | I126: 2.6 | J126: 0.8 | K126: 2.95 | L126: 3 | M126: 4.29 | N126: 2.3 | O126: 0.4 | P126: 1.87 | Q126: 1.6 | R126: 3.89 | S126: ^^^ | T126: 2.14 | U126: ^^^ | V126: 2 | W126: 2.91 | X126: 3 | Y126: 9.3 | Z126: 16.7035 | AA126: ^^^ | AB126: 0.8 | AC126: ^^^ | AD126: 2.36 | AE126: 2.21 | AF126: ^^^ | AG126: 2.12 | AH126: ^^^ | AI126: ^^^ | AJ126: ^^^ | AK126: ^^^ | AL126: ^^^ | AM126: 11.4 | AN126: 0 | AO126: 7.96 | AP126: 1.3 | AQ126: 1.9 | AR126: 2 | AS126: 4.03 | AT126: 3.6 | AU126: ^^^ | AV126: 1.2 | AW126: 4.2 | AX126: 20.35 | AY126: ^^^ | AZ126: ^^^ | BA126: 3.89 | BB126: 4.69 | BC126: 3.03 | BD126: 1.33 | BE126: 5 | BF126: 5.11 | BG126: 5.41 | BH126: ^^^ | BI126: ^^^ | BJ126: 1.25 | BK126: 1 | BL126: ^^^ | BM126: ^^^ | BN126: ^^^ | BO126: ^^^ | BP126: ^^^ | BQ126: 5.7 | BR126: ^^^ | BS126: 0.6 | BT126: 2.2 | BU126: 0.8 | BV126: ^^^ | BW126: ^^^ | BX126: ^^^
A127: CFW44 | B127: F16 | C127: Community Based Mental Health Teams - Team Composition WTE | D127: Clinical Psychologists | E127: Assessment & Brief Intervention (incl PMHT) | F127: 0.16 | G127: 0 | H127: ^^^ | I127: ^^^ | J127: ^^^ | K127: ^^^ | L127: ^^^ | M127: ^^^ | N127: 4.5 | O127: 0.87 | P127: ^^^ | Q127: ^^^ | R127: ^^^ | S127: ^^^ | T127: ^^^ | U127: ^^^ | V127: ^^^ | W127: ^^^ | X127: ^^^ | Y127: 2 | Z127: 0 | AA127: ^^^ | AB127: ^^^ | AC127: ^^^ | AD127: 0 | AE127: 2.710166256 | AF127: ^^^ | AG127: ^^^ | AH127: ^^^ | AI127: ^^^ | AJ127: 43.86 | AK127: ^^^ | AL127: 0 | AM127: 1 | AN127: 0 | AO127: 25.75 | AP127: 0 | AQ127: 2.03 | AR127: ^^^ | AS127: ^^^ | AT127: 0 | AU127: ^^^ | AV127: 0 | AW127: 0.8 | AX127: 0.12x | AY127: 0.85 | AZ127: ^^^ | BA127: ^^^ | BB127: 19.86 | BC127: ^^^ | BD127: ^^^ | BE127: ^^^ | BF127: 2.82 | BG127: ^^^ | BH127: ^^^ | BI127: ^^^ | BJ127: 3 | BK127: 0.01x | BL127: 0 | BM127: ^^^ | BN127: ^^^ | BO127: ^^^ | BP127: ^^^ | BQ127: 31.3 | BR127: ^^^ | BS127: 4.9 | BT127: ^^^ | BU127: 7.05 | BV127: 7.74 | BW127: 4.2 | BX127: 1
A128: CFW45 | B128: G16 | C128: Community Based Mental Health Teams - Team Composition WTE | D128: Clinical Psychologists | E128: Rehabilitation and Recovery | F128: ^^^ | G128: 0 | H128: ^^^ | I128: ^^^ | J128: ^^^ | K128: ^^^ | L128: ^^^ | M128: ^^^ | N128: ^^^ | O128: ^^^ | P128: ^^^ | Q128: ^^^ | R128: 5.56 | S128: ^^^ | T128: ^^^ | U128: ^^^ | V128: ^^^ | W128: ^^^ | X128: ^^^ | Y128: ^^^ | Z128: 0 | AA128: ^^^ | AB128: ^^^ | AC128: ^^^ | AD128: 0 | AE128: 0.35 | AF128: 1 | AG128: ^^^ | AH128: ^^^ | AI128: ^^^ | AJ128: ^^^ | AK128: ^^^ | AL128: ^^^ | AM128: ^^^ | AN128: 0 | AO128: ^^^ | AP128: ^^^ | AQ128: 0 | AR128: ^^^ | AS128: ^^^ | AT128: 4.53 | AU128: ^^^ | AV128: ^^^ | AW128: ^^^ | AX128: 21.09 | AY128: ^^^ | AZ128: ^^^ | BA128: 0.8 | BB128: ^^^ | BC128: 0.2 | BD128: ^^^ | BE128: ^^^ | BF128: ^^^ | BG128: ^^^ | BH128: ^^^ | BI128: ^^^ | BJ128: 3.85 | BK128: 0 | BL128: ^^^ | BM128: ^^^ | BN128: ^^^ | BO128: ^^^ | BP128: ^^^ | BQ128: ^^^ | BR128: ^^^ | BS128: ^^^ | BT128: ^^^ | BU128: 0 | BV128: ^^^ | BW128: ^^^ | BX128: ^^^
A129: CFW46 | B129: H16 | C129: Community Based Mental Health Teams - Team Composition WTE | D129: Clinical Psychologists | E129: Forensic | F129: ^^^ | G129: 0 | H129: ^^^ | I129: ^^^ | J129: 3.17 | K129: 0.35 | L129: ^^^ | M129: 1 | N129: ^^^ | O129: ^^^ | P129: 0.01x | Q129: 3 | R129: ^^^ | S129: ^^^ | T129: 0.4 | U129: ^^^ | V129: 6.91 | W129: ^^^ | X129: ^^^ | Y129: ^^^ | Z129: 0 | AA129: 0.72 | AB129: ^^^ | AC129: ^^^ | AD129: 0 | AE129: 3.66 | AF129: ^^^ | AG129: ^^^ | AH129: 3 | AI129: ^^^ | AJ129: ^^^ | AK129: ^^^ | AL129: 0 | AM129: ^^^ | AN129: 0 | AO129: 1 | AP129: 1 | AQ129: 1.85 | AR129: 4.86 | AS129: 5.31 | AT129: 2.59 | AU129: ^^^ | AV129: ^^^ | AW129: 0 | AX129: 1.28 | AY129: ^^^ | AZ129: ^^^ | BA129: 4.36 | BB129: 0.09 | BC129: ^^^ | BD129: 1.5 | BE129: 1.65 | BF129: 0.5 | BG129: 1.04 | BH129: ^^^ | BI129: ^^^ | BJ129: 0.5 | BK129: 0.75 | BL129: ^^^ | BM129: ^^^ | BN129: ^^^ | BO129: ^^^ | BP129: ^^^ | BQ129: 10.75 | BR129: ^^^ | BS129: 2 | BT129: ^^^ | BU129: 0.89 | BV129: ^^^ | BW129: ^^^ | BX129: ^^^
A130: CFW47 | B130: I16 | C130: Community Based Mental Health Teams - Team Composition WTE | D130: Clinical Psychologists | E130: Eating Disorders | F130: ^^^ | G130: 1.84 | H130: 1 | I130: 3.29 | J130: 0.8 | K130: 3.92 | L130: ^^^ | M130: 8.4 | N130: ^^^ | O130: 2.24 | P130: 2.18 | Q130: 4.4 | R130: 1.4 | S130: ^^^ | T130: 1.8 | U130: 0.6 | V130: 3.85 | W130: ^^^ | X130: ^^^ | Y130: 2 | Z130: 8.22 | AA130: 5.92 | AB130: ^^^ | AC130: ^^^ | AD130: 0 | AE130: 6.38 | AF130: 2.1 | AG130: 0.3 | AH130: 0.6 | AI130: 0.6 | AJ130: 5.51 | AK130: 0.2 | AL130: 0 | AM130: 2.2 | AN130: 1 | AO130: 3.5 | AP130: 3.9 | AQ130: 0 | AR130: 0.8 | AS130: 8.8 | AT130: 0 | AU130: ^^^ | AV130: ^^^ | AW130: 2.8 | AX130: 10.42 | AY130: ^^^ | AZ130: ^^^ | BA130: 1.79 | BB130: ^^^ | BC130: 3.2 | BD130: 0 | BE130: 7.4 | BF130: 2.44 | BG130: 3 | BH130: ^^^ | BI130: ^^^ | BJ130: 0 | BK130: 0 | BL130: ^^^ | BM130: ^^^ | BN130: ^^^ | BO130: ^^^ | BP130: ^^^ | BQ130: 3.9 | BR130: 0.2 | BS130: ^^^ | BT130: 1.8 | BU130: 1 | BV130: 0.8 | BW130: 0.6 | BX130: ^^^
A131: CFW48 | B131: J16 | C131: Community Based Mental Health Teams - Team Composition WTE | D131: Clinical Psychologists | E131: Mother and Baby | F131: 0.6 | G131: 0 | H131: ^^^ | I131: 0.42 | J131: 1.4 | K131: ^^^ | L131: 0.55 | M131: ^^^ | N131: ^^^ | O131: 1 | P131: 0.79 | Q131: ^^^ | R131: 1.53 | S131: ^^^ | T131: 0.65 | U131: 2.87 | V131: 0.4 | W131: ^^^ | X131: ^^^ | Y131: ^^^ | Z131: 0 | AA131: 1 | AB131: ^^^ | AC131: ^^^ | AD131: 2 | AE131: ^^^ | AF131: ^^^ | AG131: ^^^ | AH131: ^^^ | AI131: 0.6 | AJ131: 1 | AK131: ^^^ | AL131: 0.8 | AM131: 3.31 | AN131: 0 | AO131: 2.4 | AP131: ^^^ | AQ131: 1.01 | AR131: 0.89 | AS131: ^^^ | AT131: 0.06 | AU131: ^^^ | AV131: ^^^ | AW131: 0 | AX131: 2.73 | AY131: ^^^ | AZ131: ^^^ | BA131: ^^^ | BB131: 0.9 | BC131: 1.95 | BD131: ^^^ | BE131: 4.4 | BF131: ^^^ | BG131: 1.88 | BH131: ^^^ | BI131: ^^^ | BJ131: 0 | BK131: ^^^ | BL131: ^^^ | BM131: ^^^ | BN131: ^^^ | BO131: ^^^ | BP131: ^^^ | BQ131: 0.3 | BR131: 0.2 | BS131: ^^^ | BT131: 1 | BU131: 0.2 | BV131: ^^^ | BW131: 0.2 | BX131: ^^^
A132: CFW49 | B132: K16 | C132: Community Based Mental Health Teams - Team Composition WTE | D132: Clinical Psychologists | E132: Older People | F132: 4.13 | G132: 0 | H132: 13.59 | I132: 15.64 | J132: 4.94 | K132: 1.09 | L132: ^^^ | M132: 10.33 | N132: 1.8 | O132: 1.6 | P132: 7.08 | Q132: 0 | R132: ^^^ | S132: ^^^ | T132: 0.2 | U132: 5.5 | V132: ^^^ | W132: ^^^ | X132: 2 | Y132: 3.63 | Z132: 8.45 | AA132: 7.35 | AB132: 4.1 | AC132: ^^^ | AD132: 24 | AE132: 8.69 | AF132: 0.9 | AG132: 4.2 | AH132: ^^^ | AI132: 0.64 | AJ132: 5.9 | AK132: ^^^ | AL132: 0 | AM132: 0.9 | AN132: 0 | AO132: 1.49 | AP132: 3.6 | AQ132: 25.48 | AR132: 4.86 | AS132: ^^^ | AT132: 4.34 | AU132: ^^^ | AV132: 6.9 | AW132: 2.4 | AX132: 9.6 | AY132: 0.32 | AZ132: 3.6 | BA132: 8.34 | BB132: 3.25 | BC132: 1.74 | BD132: 7.1 | BE132: ^^^ | BF132: 16.42 | BG132: ^^^ | BH132: ^^^ | BI132: 4 | BJ132: ^^^ | BK132: 0 | BL132: 0 | BM132: ^^^ | BN132: ^^^ | BO132: ^^^ | BP132: ^^^ | BQ132: 22 | BR132: ^^^ | BS132: 4 | BT132: 4.3 | BU132: 4.94 | BV132: 3.7 | BW132: 1 | BX132: ^^^
A133: CFW50 | B133: L16 | C133: Community Based Mental Health Teams - Team Composition WTE | D133: Clinical Psychologists | E133: Memory Services | F133: ^^^ | G133: 0.7 | H133: 1.11 | I133: ^^^ | J133: 3.21 | K133: 1.19 | L133: ^^^ | M133: ^^^ | N133: 1.6 | O133: ^^^ | P133: 3.87 | Q133: ^^^ | R133: 10.8 | S133: ^^^ | T133: 2.19x | U133: 1 | V133: ^^^ | W133: ^^^ | X133: ^^^ | Y133: 12.34667 | Z133: 14.1535 | AA133: 1.89 | AB133: 0.8 | AC133: ^^^ | AD133: 0 | AE133: 0.85 | AF133: 3.45 | AG133: ^^^ | AH133: ^^^ | AI133: 0.8 | AJ133: ^^^ | AK133: 6.73 | AL133: 0 | AM133: 6.6 | AN133: 0 | AO133: ^^^ | AP133: 0 | AQ133: 3.53 | AR133: ^^^ | AS133: ^^^ | AT133: 8.79 | AU133: ^^^ | AV133: 0 | AW133: 0.5 | AX133: 2.11 | AY133: ^^^ | AZ133: ^^^ | BA133: 0.64 | BB133: 1.2 | BC133: ^^^ | BD133: ^^^ | BE133: 6.4 | BF133: ^^^ | BG133: 2.56 | BH133: ^^^ | BI133: ^^^ | BJ133: ^^^ | BK133: ^^^ | BL133: ^^^ | BM133: ^^^ | BN133: ^^^ | BO133: ^^^ | BP133: ^^^ | BQ133: ^^^ | BR133: ^^^ | BS133: ^^^ | BT133: 3.4 | BU133: ^^^ | BV133: 0.55 | BW133: ^^^ | BX133: ^^^
A134: CFW51 | B134: M16 | C134: Community Based Mental Health Teams - Team Composition WTE | D134: Clinical Psychologists | E134: Other Adult CMHTs | F134: 21.32 | G134: 0 | H134: ^^^ | I134: ^^^ | J134: 15.74 | K134: 0.19 | L134: ^^^ | M134: 6.27 | N134: 9.53 | O134: 4.19 | P134: ^^^ | Q134: ^^^ | R134: ^^^ | S134: ^^^ | T134: ^^^ | U134: 19.28 | V134: ^^^ | W134: 14.07 | X134: 2 | Y134: 5 | Z134: 3.95 | AA134: 3.53 | AB134: 5.5 | AC134: ^^^ | AD134: 31.21 | AE134: ^^^ | AF134: 3.25 | AG134: 7.6 | AH134: ^^^ | AI134: 2.7 | AJ134: 15.8 | AK134: ^^^ | AL134: 0 | AM134: 58.86 | AN134: 0 | AO134: ^^^ | AP134: ^^^ | AQ134: 0.66 | AR134: ^^^ | AS134: ^^^ | AT134: 23.43 | AU134: ^^^ | AV134: 0 | AW134: 2.6 | AX134: 22.51 | AY134: ^^^ | AZ134: 0.97 | BA134: 15.81 | BB134: 0 | BC134: ^^^ | BD134: 2.42 | BE134: 13.08 | BF134: 4.8 | BG134: ^^^ | BH134: ^^^ | BI134: ^^^ | BJ134: 2.8 | BK134: 0 | BL134: ^^^ | BM134: ^^^ | BN134: ^^^ | BO134: ^^^ | BP134: ^^^ | BQ134: 32.7 | BR134: 1 | BS134: 1.24 | BT134: 1.2 | BU134: 4.77 | BV134: ^^^ | BW134: ^^^ | BX134: ^^^
A135: CFW52 | B135: N16 | C135: Community Based Mental Health Teams - Team Composition WTE | D135: Clinical Psychologists | E135: Totals | F135: 30.05 | G135: 16.2 | H135: 23.9 | I135: 50.75 | J135: 67.03 | K135: 22.45 | L135: 5.15 | M135: 43.64 | N135: 19.93 | O135: 16.42 | P135: 39.55 | Q135: 18 | R135: 60.36 | S135: 0 | T135: 27.93 | U135: 29.25 | V135: 29.97 | W135: 16.98 | X135: 25.99 | Y135: 60.94667 | Z135: 65.804 | AA135: 54.89 | AB135: 18.73 | AC135: 0 | AD135: 59.57 | AE135: 31.88 | AF135: 46.16 | AG135: 20.37 | AH135: 3.6 | AI135: 9.14 | AJ135: 93.78 | AK135: 31.44 | AL135: 2.3 | AM135: 84.84 | AN135: 1 | AO135: 73.69 | AP135: 19.42 | AQ135: 81.35 | AR135: 24.93 | AS135: 103.63 | AT135: 85.52 | AU135: 0 | AV135: 12.6 | AW135: 22.8 | AX135: 116.66 | AY135: 2.87 | AZ135: 6.13 | BA135: 53.4 | BB135: 76.45 | BC135: 34.17 | BD135: 29.6 | BE135: 88.4 | BF135: 88.84 | BG135: 16.89 | BH135: 0 | BI135: 4 | BJ135: 11.8 | BK135: 1.75 | BL135: 0 | BM135: 0 | BN135: 0 | BO135: 0 | BP135: 0 | BQ135: 154.45 | BR135: 14.43 | BS135: 23.63 | BT135: 27.5 | BU135: 32.36 | BV135: 20.89 | BW135: 6 | BX135: 6.66
A136: CFW53 | B136: B17 | C136: Community Based Mental Health Teams - Team Composition WTE | D136: Psychology - Other | E136: Generic CMHT | F136: ^^^ | G136: 0 | H136: 12.73 | I136: ^^^ | J136: 5.6 | K136: ^^^ | L136: ^^^ | M136: ^^^ | N136: ^^^ | O136: 4.43 | P136: 11.98 | Q136: 0.92 | R136: 4.8 | S136: ^^^ | T136: ^^^ | U136: ^^^ | V136: ^^^ | W136: ^^^ | X136: 49.06 | Y136: 18.13 | Z136: 1 | AA136: ^^^ | AB136: ^^^ | AC136: ^^^ | AD136: 0 | AE136: 3.9 | AF136: ^^^ | AG136: ^^^ | AH136: 0.26 | AI136: ^^^ | AJ136: 1.12 | AK136: 0.62 | AL136: 0.6 | AM136: 9.36 | AN136: 0 | AO136: ^^^ | AP136: 0 | AQ136: 1 | AR136: ^^^ | AS136: 3.3 | AT136: 0 | AU136: ^^^ | AV136: 4.6 | AW136: 0 | AX136: ^^^ | AY136: 2.4 | AZ136: ^^^ | BA136: ^^^ | BB136: 3.03 | BC136: 6.71 | BD136: 5.94 | BE136: ^^^ | BF136: ^^^ | BG136: ^^^ | BH136: ^^^ | BI136: 1 | BJ136: 0 | BK136: 0 | BL136: 0 | BM136: ^^^ | BN136: ^^^ | BO136: ^^^ | BP136: ^^^ | BQ136: ^^^ | BR136: 5.5 | BS136: ^^^ | BT136: 2 | BU136: 0.27 | BV136: ^^^ | BW136: ^^^ | BX136: ^^^
A137: CFW54 | B137: C17 | C137: Community Based Mental Health Teams - Team Composition WTE | D137: Psychology - Other | E137: CRHT | F137: ^^^ | G137: 0 | H137: 1 | I137: ^^^ | J137: 0 | K137: ^^^ | L137: ^^^ | M137: ^^^ | N137: 13.01 | O137: ^^^ | P137: 0.01 | Q137: 0 | R137: 4.28 | S137: ^^^ | T137: ^^^ | U137: ^^^ | V137: ^^^ | W137: ^^^ | X137: 2.8 | Y137: 0.56 | Z137: 1 | AA137: ^^^ | AB137: ^^^ | AC137: ^^^ | AD137: 0 | AE137: 1.276592667 | AF137: ^^^ | AG137: ^^^ | AH137: ^^^ | AI137: ^^^ | AJ137: ^^^ | AK137: ^^^ | AL137: 0 | AM137: 3.3 | AN137: 0 | AO137: ^^^ | AP137: 0 | AQ137: 0 | AR137: ^^^ | AS137: ^^^ | AT137: 0 | AU137: ^^^ | AV137: 0 | AW137: 0 | AX137: ^^^ | AY137: 0.15 | AZ137: ^^^ | BA137: ^^^ | BB137: 0 | BC137: 3.02 | BD137: 0 | BE137: ^^^ | BF137: ^^^ | BG137: ^^^ | BH137: ^^^ | BI137: ^^^ | BJ137: 0 | BK137: 0 | BL137: 0 | BM137: ^^^ | BN137: ^^^ | BO137: ^^^ | BP137: ^^^ | BQ137: ^^^ | BR137: ^^^ | BS137: ^^^ | BT137: ^^^ | BU137: 1.69 | BV137: ^^^ | BW137: ^^^ | BX137: ^^^
A138: CFW55 | B138: D17 | C138: Community Based Mental Health Teams - Team Composition WTE | D138: Psychology - Other | E138: Assertive Outreach | F138: ^^^ | G138: 0 | H138: ^^^ | I138: ^^^ | J138: 0 | K138: ^^^ | L138: ^^^ | M138: ^^^ | N138: ^^^ | O138: ^^^ | P138: ^^^ | Q138: ^^^ | R138: ^^^ | S138: ^^^ | T138: ^^^ | U138: ^^^ | V138: ^^^ | W138: ^^^ | X138: ^^^ | Y138: ^^^ | Z138: 0 | AA138: ^^^ | AB138: ^^^ | AC138: ^^^ | AD138: 0 | AE138: ^^^ | AF138: ^^^ | AG138: ^^^ | AH138: ^^^ | AI138: ^^^ | AJ138: ^^^ | AK138: ^^^ | AL138: ^^^ | AM138: ^^^ | AN138: 0 | AO138: ^^^ | AP138: ^^^ | AQ138: 0 | AR138: ^^^ | AS138: ^^^ | AT138: 0 | AU138: ^^^ | AV138: 0 | AW138: 0 | AX138: ^^^ | AY138: ^^^ | AZ138: ^^^ | BA138: ^^^ | BB138: ^^^ | BC138: ^^^ | BD138: ^^^ | BE138: ^^^ | BF138: ^^^ | BG138: ^^^ | BH138: ^^^ | BI138: ^^^ | BJ138: ^^^ | BK138: ^^^ | BL138: ^^^ | BM138: ^^^ | BN138: ^^^ | BO138: ^^^ | BP138: ^^^ | BQ138: ^^^ | BR138: ^^^ | BS138: ^^^ | BT138: ^^^ | BU138: 0 | BV138: ^^^ | BW138: ^^^ | BX138: ^^^
A139: CFW56 | B139: E17 | C139: Community Based Mental Health Teams - Team Composition WTE | D139: Psychology - Other | E139: Early Intervention (incl Early Onset Psychosis) | F139: 0 | G139: 0 | H139: 6.5 | I139: ^^^ | J139: 0 | K139: ^^^ | L139: ^^^ | M139: ^^^ | N139: ^^^ | O139: 6.8 | P139: 1.57 | Q139: 0 | R139: 0.79 | S139: ^^^ | T139: ^^^ | U139: ^^^ | V139: ^^^ | W139: ^^^ | X139: 11.8 | Y139: 2 | Z139: 1.6 | AA139: ^^^ | AB139: ^^^ | AC139: ^^^ | AD139: 0 | AE139: 0.97 | AF139: ^^^ | AG139: ^^^ | AH139: ^^^ | AI139: ^^^ | AJ139: ^^^ | AK139: ^^^ | AL139: ^^^ | AM139: 1 | AN139: 0 | AO139: ^^^ | AP139: 0 | AQ139: 0 | AR139: ^^^ | AS139: ^^^ | AT139: 0 | AU139: ^^^ | AV139: 0 | AW139: 0 | AX139: ^^^ | AY139: ^^^ | AZ139: 3.2 | BA139: ^^^ | BB139: 0 | BC139: 3.62 | BD139: 0 | BE139: ^^^ | BF139: ^^^ | BG139: ^^^ | BH139: ^^^ | BI139: ^^^ | BJ139: 0 | BK139: 0 | BL139: ^^^ | BM139: ^^^ | BN139: ^^^ | BO139: ^^^ | BP139: ^^^ | BQ139: ^^^ | BR139: ^^^ | BS139: ^^^ | BT139: ^^^ | BU139: 0 | BV139: ^^^ | BW139: ^^^ | BX139: ^^^
A140: CFW57 | B140: F17 | C140: Community Based Mental Health Teams - Team Composition WTE | D140: Psychology - Other | E140: Assessment & Brief Intervention (incl PMHT) | F140: 3 | G140: 0 | H140: 1 | I140: 2.16 | J140: ^^^ | K140: ^^^ | L140: ^^^ | M140: ^^^ | N140: ^^^ | O140: 1 | P140: ^^^ | Q140: ^^^ | R140: ^^^ | S140: ^^^ | T140: ^^^ | U140: ^^^ | V140: ^^^ | W140: 11.93 | X140: ^^^ | Y140: ^^^ | Z140: 0 | AA140: ^^^ | AB140: ^^^ | AC140: ^^^ | AD140: 0 | AE140: 3.363407333 | AF140: ^^^ | AG140: ^^^ | AH140: ^^^ | AI140: ^^^ | AJ140: 0.4 | AK140: ^^^ | AL140: 0 | AM140: 6.47 | AN140: 0 | AO140: ^^^ | AP140: 0.5 | AQ140: 2.67 | AR140: ^^^ | AS140: ^^^ | AT140: 0 | AU140: ^^^ | AV140: 0 | AW140: 0 | AX140: ^^^ | AY140: 1 | AZ140: ^^^ | BA140: ^^^ | BB140: 7.59 | BC140: ^^^ | BD140: ^^^ | BE140: ^^^ | BF140: ^^^ | BG140: ^^^ | BH140: ^^^ | BI140: ^^^ | BJ140: 1 | BK140: 0 | BL140: 0 | BM140: ^^^ | BN140: ^^^ | BO140: ^^^ | BP140: ^^^ | BQ140: ^^^ | BR140: ^^^ | BS140: 18.16 | BT140: ^^^ | BU140: 1.69 | BV140: ^^^ | BW140: ^^^ | BX140: 7.41
A141: CFW58 | B141: G17 | C141: Community Based Mental Health Teams - Team Composition WTE | D141: Psychology - Other | E141: Rehabilitation and Recovery | F141: ^^^ | G141: 0 | H141: 1.5 | I141: ^^^ | J141: ^^^ | K141: ^^^ | L141: ^^^ | M141: ^^^ | N141: ^^^ | O141: ^^^ | P141: ^^^ | Q141: ^^^ | R141: 1.98 | S141: ^^^ | T141: ^^^ | U141: ^^^ | V141: ^^^ | W141: ^^^ | X141: ^^^ | Y141: ^^^ | Z141: 0 | AA141: ^^^ | AB141: ^^^ | AC141: ^^^ | AD141: 0 | AE141: ^^^ | AF141: ^^^ | AG141: ^^^ | AH141: ^^^ | AI141: ^^^ | AJ141: ^^^ | AK141: ^^^ | AL141: ^^^ | AM141: ^^^ | AN141: 0 | AO141: ^^^ | AP141: ^^^ | AQ141: 0 | AR141: ^^^ | AS141: ^^^ | AT141: 0 | AU141: ^^^ | AV141: ^^^ | AW141: ^^^ | AX141: ^^^ | AY141: ^^^ | AZ141: ^^^ | BA141: ^^^ | BB141: ^^^ | BC141: 0.8 | BD141: ^^^ | BE141: ^^^ | BF141: ^^^ | BG141: ^^^ | BH141: ^^^ | BI141: ^^^ | BJ141: 2 | BK141: 0 | BL141: ^^^ | BM141: ^^^ | BN141: ^^^ | BO141: ^^^ | BP141: ^^^ | BQ141: ^^^ | BR141: ^^^ | BS141: ^^^ | BT141: ^^^ | BU141: 0 | BV141: ^^^ | BW141: ^^^ | BX141: ^^^
A142: CFW59 | B142: H17 | C142: Community Based Mental Health Teams - Team Composition WTE | D142: Psychology - Other | E142: Forensic | F142: ^^^ | G142: 0 | H142: ^^^ | I142: ^^^ | J142: 2.63 | K142: ^^^ | L142: ^^^ | M142: ^^^ | N142: ^^^ | O142: ^^^ | P142: 2.84 | Q142: 1 | R142: ^^^ | S142: ^^^ | T142: ^^^ | U142: ^^^ | V142: ^^^ | W142: ^^^ | X142: ^^^ | Y142: ^^^ | Z142: 0 | AA142: ^^^ | AB142: ^^^ | AC142: ^^^ | AD142: 0 | AE142: 1.79 | AF142: ^^^ | AG142: ^^^ | AH142: ^^^ | AI142: ^^^ | AJ142: ^^^ | AK142: ^^^ | AL142: 0 | AM142: ^^^ | AN142: 0 | AO142: ^^^ | AP142: 1 | AQ142: 0.15 | AR142: ^^^ | AS142: ^^^ | AT142: ^^^ | AU142: ^^^ | AV142: ^^^ | AW142: 0 | AX142: ^^^ | AY142: ^^^ | AZ142: ^^^ | BA142: ^^^ | BB142: 0.2 | BC142: ^^^ | BD142: 0 | BE142: ^^^ | BF142: ^^^ | BG142: 0.07 | BH142: ^^^ | BI142: ^^^ | BJ142: 0 | BK142: 0 | BL142: ^^^ | BM142: ^^^ | BN142: ^^^ | BO142: ^^^ | BP142: ^^^ | BQ142: 0 | BR142: ^^^ | BS142: ^^^ | BT142: ^^^ | BU142: 0.23 | BV142: ^^^ | BW142: ^^^ | BX142: ^^^
A143: CFW60 | B143: I17 | C143: Community Based Mental Health Teams - Team Composition WTE | D143: Psychology - Other | E143: Eating Disorders | F143: 3 | G143: 0 | H143: 5.6 | I143: ^^^ | J143: 0 | K143: ^^^ | L143: ^^^ | M143: ^^^ | N143: ^^^ | O143: ^^^ | P143: 2.39 | Q143: 1 | R143: ^^^ | S143: ^^^ | T143: ^^^ | U143: ^^^ | V143: ^^^ | W143: ^^^ | X143: 4.6 | Y143: ^^^ | Z143: 0 | AA143: ^^^ | AB143: ^^^ | AC143: ^^^ | AD143: 0 | AE143: 0.47 | AF143: ^^^ | AG143: ^^^ | AH143: ^^^ | AI143: ^^^ | AJ143: 1.8 | AK143: ^^^ | AL143: 0 | AM143: 0 | AN143: 0 | AO143: ^^^ | AP143: 1 | AQ143: 0 | AR143: ^^^ | AS143: ^^^ | AT143: 0 | AU143: ^^^ | AV143: ^^^ | AW143: 0 | AX143: ^^^ | AY143: ^^^ | AZ143: 1.31 | BA143: ^^^ | BB143: ^^^ | BC143: 5 | BD143: 1.4 | BE143: ^^^ | BF143: ^^^ | BG143: 0.33 | BH143: ^^^ | BI143: ^^^ | BJ143: 0 | BK143: 0 | BL143: ^^^ | BM143: ^^^ | BN143: ^^^ | BO143: ^^^ | BP143: ^^^ | BQ143: ^^^ | BR143: ^^^ | BS143: ^^^ | BT143: 1 | BU143: 0 | BV143: ^^^ | BW143: 0.1 | BX143: ^^^
A144: CFW61 | B144: J17 | C144: Community Based Mental Health Teams - Team Composition WTE | D144: Psychology - Other | E144: Mother and Baby | F144: ^^^ | G144: 0 | H144: ^^^ | I144: ^^^ | J144: 1.79 | K144: ^^^ | L144: ^^^ | M144: ^^^ | N144: ^^^ | O144: 1 | P144: 1 | Q144: ^^^ | R144: ^^^ | S144: ^^^ | T144: ^^^ | U144: ^^^ | V144: ^^^ | W144: ^^^ | X144: 1 | Y144: ^^^ | Z144: 0 | AA144: ^^^ | AB144: ^^^ | AC144: ^^^ | AD144: 0 | AE144: ^^^ | AF144: ^^^ | AG144: ^^^ | AH144: ^^^ | AI144: ^^^ | AJ144: ^^^ | AK144: ^^^ | AL144: 0 | AM144: 1.05 | AN144: 0 | AO144: ^^^ | AP144: ^^^ | AQ144: 0 | AR144: ^^^ | AS144: ^^^ | AT144: 0 | AU144: ^^^ | AV144: ^^^ | AW144: 0 | AX144: ^^^ | AY144: ^^^ | AZ144: ^^^ | BA144: ^^^ | BB144: 0 | BC144: ^^^ | BD144: ^^^ | BE144: ^^^ | BF144: ^^^ | BG144: ^^^ | BH144: ^^^ | BI144: ^^^ | BJ144: 0 | BK144: ^^^ | BL144: ^^^ | BM144: ^^^ | BN144: ^^^ | BO144: ^^^ | BP144: ^^^ | BQ144: ^^^ | BR144: ^^^ | BS144: ^^^ | BT144: ^^^ | BU144: 0.6 | BV144: ^^^ | BW144: ^^^ | BX144: ^^^
A145: CFW62 | B145: K17 | C145: Community Based Mental Health Teams - Team Composition WTE | D145: Psychology - Other | E145: Older People | F145: 0.6 | G145: 0 | H145: 6.1 | I145: ^^^ | J145: 0.4 | K145: ^^^ | L145: ^^^ | M145: ^^^ | N145: ^^^ | O145: ^^^ | P145: 2.49 | Q145: 0 | R145: ^^^ | S145: ^^^ | T145: ^^^ | U145: 1.5 | V145: ^^^ | W145: ^^^ | X145: 5.8 | Y145: 1.5 | Z145: 0.9 | AA145: ^^^ | AB145: ^^^ | AC145: ^^^ | AD145: 0 | AE145: 2.98 | AF145: ^^^ | AG145: ^^^ | AH145: ^^^ | AI145: ^^^ | AJ145: 1.5 | AK145: ^^^ | AL145: 0 | AM145: 5.51 | AN145: 0 | AO145: ^^^ | AP145: 1 | AQ145: 0 | AR145: 1.8 | AS145: ^^^ | AT145: 0 | AU145: ^^^ | AV145: 0 | AW145: 0 | AX145: ^^^ | AY145: 0 | AZ145: 0.9 | BA145: ^^^ | BB145: 0 | BC145: 4.96 | BD145: 0 | BE145: ^^^ | BF145: ^^^ | BG145: ^^^ | BH145: ^^^ | BI145: 1 | BJ145: ^^^ | BK145: 0 | BL145: 0 | BM145: ^^^ | BN145: ^^^ | BO145: ^^^ | BP145: ^^^ | BQ145: ^^^ | BR145: 1.1 | BS145: ^^^ | BT145: 0.3 | BU145: 0 | BV145: ^^^ | BW145: ^^^ | BX145: ^^^
A146: CFW63 | B146: L17 | C146: Community Based Mental Health Teams - Team Composition WTE | D146: Psychology - Other | E146: Memory Services | F146: ^^^ | G146: 2 | H146: 0.77 | I146: ^^^ | J146: 4.33 | K146: ^^^ | L146: 2.5 | M146: ^^^ | N146: 1 | O146: ^^^ | P146: 3.1 | Q146: ^^^ | R146: 0.05x | S146: ^^^ | T146: ^^^ | U146: 5 | V146: ^^^ | W146: ^^^ | X146: ^^^ | Y146: 9 | Z146: 3.45 | AA146: ^^^ | AB146: ^^^ | AC146: ^^^ | AD146: 0 | AE146: ^^^ | AF146: ^^^ | AG146: ^^^ | AH146: ^^^ | AI146: ^^^ | AJ146: ^^^ | AK146: 3.86 | AL146: 0 | AM146: 0 | AN146: 0 | AO146: ^^^ | AP146: 4 | AQ146: 0 | AR146: ^^^ | AS146: ^^^ | AT146: 0 | AU146: ^^^ | AV146: 0 | AW146: 0 | AX146: ^^^ | AY146: ^^^ | AZ146: ^^^ | BA146: ^^^ | BB146: 0 | BC146: ^^^ | BD146: ^^^ | BE146: ^^^ | BF146: ^^^ | BG146: ^^^ | BH146: ^^^ | BI146: 1 | BJ146: ^^^ | BK146: ^^^ | BL146: ^^^ | BM146: ^^^ | BN146: ^^^ | BO146: ^^^ | BP146: ^^^ | BQ146: ^^^ | BR146: ^^^ | BS146: ^^^ | BT146: 0.3 | BU146: ^^^ | BV146: ^^^ | BW146: ^^^ | BX146: ^^^
A147: CFW64 | B147: M17 | C147: Community Based Mental Health Teams - Team Composition WTE | D147: Psychology - Other | E147: Other Adult CMHTs | F147: 2.6 | G147: 0 | H147: ^^^ | I147: ^^^ | J147: 8.1 | K147: ^^^ | L147: ^^^ | M147: ^^^ | N147: 0.6 | O147: 0.6 | P147: ^^^ | Q147: ^^^ | R147: 1.06 | S147: ^^^ | T147: ^^^ | U147: 15.58 | V147: ^^^ | W147: ^^^ | X147: 60.68 | Y147: 43.78 | Z147: 1.87 | AA147: ^^^ | AB147: 1 | AC147: ^^^ | AD147: 0 | AE147: ^^^ | AF147: 1.5 | AG147: ^^^ | AH147: ^^^ | AI147: ^^^ | AJ147: 1 | AK147: ^^^ | AL147: 0 | AM147: 0.07x | AN147: 0 | AO147: ^^^ | AP147: ^^^ | AQ147: 0.13 | AR147: ^^^ | AS147: ^^^ | AT147: 0 | AU147: ^^^ | AV147: 0 | AW147: 0 | AX147: ^^^ | AY147: ^^^ | AZ147: 0.6 | BA147: ^^^ | BB147: 0 | BC147: ^^^ | BD147: 0 | BE147: ^^^ | BF147: ^^^ | BG147: ^^^ | BH147: ^^^ | BI147: ^^^ | BJ147: 0 | BK147: 0 | BL147: ^^^ | BM147: ^^^ | BN147: ^^^ | BO147: ^^^ | BP147: ^^^ | BQ147: ^^^ | BR147: 2.8 | BS147: ^^^ | BT147: ^^^ | BU147: 0.54 | BV147: ^^^ | BW147: ^^^ | BX147: ^^^
A148: CFW65 | B148: N17 | C148: Community Based Mental Health Teams - Team Composition WTE | D148: Psychology - Other | E148: Totals | F148: 9.2 | G148: 2 | H148: 35.2 | I148: 2.16 | J148: 22.85 | K148: 0 | L148: 2.5 | M148: 0 | N148: 14.61 | O148: 13.83 | P148: 25.38 | Q148: 2.92 | R148: 12.91 | S148: 0 | T148: 0 | U148: 22.08 | V148: 0 | W148: 11.93 | X148: 135.74 | Y148: 74.97 | Z148: 9.82 | AA148: 0 | AB148: 1 | AC148: 0 | AD148: 0 | AE148: 14.75 | AF148: 1.5 | AG148: 0 | AH148: 0.26 | AI148: 0 | AJ148: 5.82 | AK148: 4.48 | AL148: 0.6 | AM148: 26.69 | AN148: 0 | AO148: 0 | AP148: 7.5 | AQ148: 3.95 | AR148: 1.8 | AS148: 3.3 | AT148: 0 | AU148: 0 | AV148: 4.6 | AW148: 0 | AX148: 0 | AY148: 3.55 | AZ148: 6.01 | BA148: 0 | BB148: 10.82 | BC148: 24.11 | BD148: 7.34 | BE148: 0 | BF148: 0 | BG148: 0.4 | BH148: 0 | BI148: 3 | BJ148: 3 | BK148: 0 | BL148: 0 | BM148: 0 | BN148: 0 | BO148: 0 | BP148: 0 | BQ148: 0 | BR148: 9.4 | BS148: 18.16 | BT148: 3.6 | BU148: 5.02 | BV148: 0 | BW148: 0.1 | BX148: 7.41
A149: CFW66 | B149: B18 | C149: Community Based Mental Health Teams - Team Composition WTE | D149: Psychiatry - Consultant | E149: Generic CMHT | F149: ^^^ | G149: 7.7 | H149: 3.2 | I149: 11.13 | J149: 22.9 | K149: 9.39 | L149: 14 | M149: ^^^ | N149: 2 | O149: 14.7 | P149: 30.29 | Q149: 2.8 | R149: 6.19 | S149: ^^^ | T149: 28.87 | U149: 14.88 | V149: 15.9325 | W149: 6 | X149: 12.3 | Y149: 10.7226549 | Z149: 35.67 | AA149: 20.93 | AB149: ^^^ | AC149: ^^^ | AD149: 21.9 | AE149: 20.84 | AF149: 11.42 | AG149: 17.82 | AH149: ^^^ | AI149: 5.5 | AJ149: ^^^ | AK149: 19.51 | AL149: 31.24 | AM149: 12.35 | AN149: 0 | AO149: 9 | AP149: 7.8 | AQ149: 38.48 | AR149: ^^^ | AS149: 36.75 | AT149: 15.94 | AU149: ^^^ | AV149: 9.5 | AW149: 3.6 | AX149: 20.05 | AY149: 1.58 | AZ149: 10.76 | BA149: 19.46 | BB149: 21.74 | BC149: 21.2 | BD149: 18.17 | BE149: 44.58 | BF149: 30.65 | BG149: 10.73 | BH149: ^^^ | BI149: 2.48 | BJ149: 0 | BK149: 9.55 | BL149: 2.8 | BM149: ^^^ | BN149: ^^^ | BO149: ^^^ | BP149: ^^^ | BQ149: 52.3 | BR149: 8 | BS149: 7.98 | BT149: 3.58 | BU149: 7.81 | BV149: 3.99 | BW149: ^^^ | BX149: 5.7
A150: CFW67 | B150: C18 | C150: Community Based Mental Health Teams - Team Composition WTE | D150: Psychiatry - Consultant | E150: CRHT | F150: 5.649808587 | G150: 3.4 | H150: ^^^ | I150: 2.97 | J150: 10.38 | K150: 7.79 | L150: ^^^ | M150: ^^^ | N150: 3 | O150: 1.49 | P150: 5.05 | Q150: 0 | R150: 7.58 | S150: ^^^ | T150: 4.03 | U150: 4.72 | V150: 1.66 | W150: 4 | X150: ^^^ | Y150: 9.351438131 | Z150: 8.435 | AA150: 4.17 | AB150: ^^^ | AC150: ^^^ | AD150: 0 | AE150: 9.45440899 | AF150: 6.94 | AG150: 4.52 | AH150: ^^^ | AI150: 2 | AJ150: ^^^ | AK150: 3 | AL150: 5.2 | AM150: 5 | AN150: 0 | AO150: ^^^ | AP150: 3 | AQ150: 9.52 | AR150: 2.26 | AS150: ^^^ | AT150: 4.65 | AU150: ^^^ | AV150: 3.6 | AW150: 2 | AX150: 5.67 | AY150: 0.08 | AZ150: ^^^ | BA150: 4.52 | BB150: 8.05 | BC150: 5.91 | BD150: 2.18 | BE150: 5.9 | BF150: 2.45 | BG150: 6.3 | BH150: ^^^ | BI150: ^^^ | BJ150: 5.75 | BK150: 2.5 | BL150: 1.35 | BM150: ^^^ | BN150: ^^^ | BO150: ^^^ | BP150: ^^^ | BQ150: ^^^ | BR150: ^^^ | BS150: ^^^ | BT150: ^^^ | BU150: 1.77 | BV150: ^^^ | BW150: ^^^ | BX150: 2.1
A151: CFW68 | B151: D18 | C151: Community Based Mental Health Teams - Team Composition WTE | D151: Psychiatry - Consultant | E151: Assertive Outreach | F151: 3.744310897 | G151: 0 | H151: ^^^ | I151: ^^^ | J151: 4.3 | K151: ^^^ | L151: 2.6 | M151: ^^^ | N151: 1 | O151: ^^^ | P151: ^^^ | Q151: ^^^ | R151: ^^^ | S151: ^^^ | T151: ^^^ | U151: ^^^ | V151: ^^^ | W151: ^^^ | X151: ^^^ | Y151: 0.1737212562 | Z151: 0 | AA151: ^^^ | AB151: ^^^ | AC151: ^^^ | AD151: 0 | AE151: ^^^ | AF151: 1 | AG151: 2.93 | AH151: ^^^ | AI151: 0.95 | AJ151: ^^^ | AK151: ^^^ | AL151: ^^^ | AM151: ^^^ | AN151: 0 | AO151: ^^^ | AP151: ^^^ | AQ151: 0 | AR151: ^^^ | AS151: ^^^ | AT151: 0 | AU151: ^^^ | AV151: 1.5 | AW151: 0.6x | AX151: ^^^ | AY151: ^^^ | AZ151: ^^^ | BA151: ^^^ | BB151: ^^^ | BC151: 0.35 | BD151: ^^^ | BE151: 4.4 | BF151: ^^^ | BG151: ^^^ | BH151: ^^^ | BI151: ^^^ | BJ151: ^^^ | BK151: ^^^ | BL151: ^^^ | BM151: ^^^ | BN151: ^^^ | BO151: ^^^ | BP151: ^^^ | BQ151: ^^^ | BR151: ^^^ | BS151: ^^^ | BT151: ^^^ | BU151: 0 | BV151: 1.47 | BW151: ^^^ | BX151: ^^^
A152: CFW69 | B152: E18 | C152: Community Based Mental Health Teams - Team Composition WTE | D152: Psychiatry - Consultant | E152: Early Intervention (incl Early Onset Psychosis) | F152: 1.2 | G152: 1.2 | H152: 1.7 | I152: 0.8 | J152: 0.8 | K152: 0.83 | L152: 0.65 | M152: 1 | N152: 1 | O152: 2.5 | P152: 3.41 | Q152: 0 | R152: 3.61 | S152: ^^^ | T152: 2.18 | U152: ^^^ | V152: ^^^ | W152: 1 | X152: ^^^ | Y152: 11.24798436 | Z152: 3.25 | AA152: ^^^ | AB152: ^^^ | AC152: ^^^ | AD152: 0 | AE152: 3.93 | AF152: ^^^ | AG152: 2 | AH152: 0.4 | AI152: ^^^ | AJ152: 3 | AK152: ^^^ | AL152: ^^^ | AM152: 3.1 | AN152: 0 | AO152: 1 | AP152: 1 | AQ152: 2.87 | AR152: ^^^ | AS152: 0.4 | AT152: 1.24 | AU152: ^^^ | AV152: 2.6 | AW152: 2 | AX152: 6.99 | AY152: ^^^ | AZ152: ^^^ | BA152: 3.17 | BB152: 2.16 | BC152: 0.23 | BD152: 1.8 | BE152: 3 | BF152: 1.1 | BG152: 3.36 | BH152: ^^^ | BI152: ^^^ | BJ152: 0.8 | BK152: 0 | BL152: ^^^ | BM152: ^^^ | BN152: ^^^ | BO152: ^^^ | BP152: ^^^ | BQ152: 3.9 | BR152: ^^^ | BS152: 1 | BT152: ^^^ | BU152: 0 | BV152: ^^^ | BW152: ^^^ | BX152: ^^^
A153: CFW70 | B153: F18 | C153: Community Based Mental Health Teams - Team Composition WTE | D153: Psychiatry - Consultant | E153: Assessment & Brief Intervention (incl PMHT) | F153: 0.1 | G153: 1.8 | H153: ^^^ | I153: 3 | J153: ^^^ | K153: ^^^ | L153: ^^^ | M153: ^^^ | N153: 9 | O153: 5.45 | P153: ^^^ | Q153: ^^^ | R153: ^^^ | S153: ^^^ | T153: ^^^ | U153: 4.28 | V153: ^^^ | W153: ^^^ | X153: ^^^ | Y153: 3.812790452 | Z153: 0 | AA153: ^^^ | AB153: ^^^ | AC153: ^^^ | AD153: 0 | AE153: 8.59559101 | AF153: ^^^ | AG153: 0.08 | AH153: ^^^ | AI153: ^^^ | AJ153: ^^^ | AK153: ^^^ | AL153: 1.6 | AM153: 8.85 | AN153: 0 | AO153: 12.9 | AP153: 0 | AQ153: 0.09 | AR153: ^^^ | AS153: ^^^ | AT153: 0.07 | AU153: ^^^ | AV153: 1 | AW153: 2 | AX153: 14.22 | AY153: 1 | AZ153: ^^^ | BA153: 2.14 | BB153: ^^^ | BC153: ^^^ | BD153: ^^^ | BE153: ^^^ | BF153: 2.5 | BG153: ^^^ | BH153: ^^^ | BI153: ^^^ | BJ153: 3.88 | BK153: 0 | BL153: 2.8 | BM153: ^^^ | BN153: ^^^ | BO153: ^^^ | BP153: ^^^ | BQ153: 0.1 | BR153: ^^^ | BS153: ^^^ | BT153: ^^^ | BU153: 1.77 | BV153: 3.83 | BW153: ^^^ | BX153: ^^^
A154: CFW71 | B154: G18 | C154: Community Based Mental Health Teams - Team Composition WTE | D154: Psychiatry - Consultant | E154: Rehabilitation and Recovery | F154: 11.66402715 | G154: 0 | H154: 1 | I154: ^^^ | J154: ^^^ | K154: ^^^ | L154: ^^^ | M154: ^^^ | N154: 7.6 | O154: ^^^ | P154: ^^^ | Q154: ^^^ | R154: 7.83 | S154: ^^^ | T154: ^^^ | U154: ^^^ | V154: ^^^ | W154: ^^^ | X154: ^^^ | Y154: 0.7883879363 | Z154: 0.38 | AA154: ^^^ | AB154: ^^^ | AC154: ^^^ | AD154: 0 | AE154: 0.02x | AF154: ^^^ | AG154: 0.29 | AH154: ^^^ | AI154: ^^^ | AJ154: ^^^ | AK154: ^^^ | AL154: ^^^ | AM154: ^^^ | AN154: 0 | AO154: ^^^ | AP154: ^^^ | AQ154: 0 | AR154: ^^^ | AS154: ^^^ | AT154: 0.02 | AU154: ^^^ | AV154: ^^^ | AW154: ^^^ | AX154: 5.7 | AY154: ^^^ | AZ154: ^^^ | BA154: 1.03 | BB154: 0.6 | BC154: 0.03 | BD154: ^^^ | BE154: ^^^ | BF154: ^^^ | BG154: ^^^ | BH154: ^^^ | BI154: 0.62 | BJ154: 4 | BK154: 0.1 | BL154: ^^^ | BM154: ^^^ | BN154: ^^^ | BO154: ^^^ | BP154: ^^^ | BQ154: ^^^ | BR154: ^^^ | BS154: ^^^ | BT154: ^^^ | BU154: 0.02 | BV154: ^^^ | BW154: ^^^ | BX154: ^^^
A155: CFW72 | B155: H18 | C155: Community Based Mental Health Teams - Team Composition WTE | D155: Psychiatry - Consultant | E155: Forensic | F155: ^^^ | G155: 0 | H155: ^^^ | I155: ^^^ | J155: 3.73 | K155: 0.41 | L155: ^^^ | M155: ^^^ | N155: ^^^ | O155: ^^^ | P155: 0.86 | Q155: 0 | R155: ^^^ | S155: ^^^ | T155: ^^^ | U155: ^^^ | V155: 0.9538 | W155: ^^^ | X155: 3.7 | Y155: 5.403135503 | Z155: 1.4 | AA155: 1.03 | AB155: ^^^ | AC155: ^^^ | AD155: 0 | AE155: 0.07x | AF155: 0.98 | AG155: 1 | AH155: ^^^ | AI155: ^^^ | AJ155: ^^^ | AK155: ^^^ | AL155: 1.4 | AM155: ^^^ | AN155: 0 | AO155: ^^^ | AP155: 0 | AQ155: 3.51 | AR155: 3 | AS155: ^^^ | AT155: 1.74 | AU155: ^^^ | AV155: ^^^ | AW155: 0 | AX155: 0.89 | AY155: ^^^ | AZ155: 3 | BA155: 0.93 | BB155: 0.17 | BC155: ^^^ | BD155: 0.9 | BE155: 2.9 | BF155: 2.6 | BG155: 2 | BH155: ^^^ | BI155: 0.1 | BJ155: 0.8 | BK155: 1 | BL155: ^^^ | BM155: ^^^ | BN155: ^^^ | BO155: ^^^ | BP155: ^^^ | BQ155: 5.37 | BR155: 2.5 | BS155: 1.4 | BT155: 0.49 | BU155: 0.79 | BV155: ^^^ | BW155: ^^^ | BX155: ^^^
A156: CFW73 | B156: I18 | C156: Community Based Mental Health Teams - Team Composition WTE | D156: Psychiatry - Consultant | E156: Eating Disorders | F156: 0.1 | G156: 1 | H156: ^^^ | I156: 0.52 | J156: 0.7 | K156: 0.77 | L156: ^^^ | M156: 1 | N156: ^^^ | O156: 0.9 | P156: 1.27 | Q156: 0 | R156: 0.53 | S156: ^^^ | T156: 1 | U156: 0.2 | V156: 0.4 | W156: ^^^ | X156: 0.6 | Y156: 0.3356907804 | Z156: 0 | AA156: 4.12 | AB156: ^^^ | AC156: ^^^ | AD156: 0 | AE156: 0.02x | AF156: 0.5 | AG156: 1.26 | AH156: 0.6 | AI156: ^^^ | AJ156: ^^^ | AK156: 0.55 | AL156: 1.4 | AM156: 0.6 | AN156: 0.2 | AO156: ^^^ | AP156: 0 | AQ156: 0 | AR156: 0.7 | AS156: 0.4 | AT156: 0 | AU156: ^^^ | AV156: ^^^ | AW156: 0.6 | AX156: 1.87 | AY156: ^^^ | AZ156: ^^^ | BA156: 0.67 | BB156: ^^^ | BC156: ^^^ | BD156: 1.8 | BE156: 1 | BF156: 0.53 | BG156: ^^^ | BH156: ^^^ | BI156: ^^^ | BJ156: 1 | BK156: 0 | BL156: ^^^ | BM156: ^^^ | BN156: ^^^ | BO156: ^^^ | BP156: ^^^ | BQ156: 1.7 | BR156: ^^^ | BS156: ^^^ | BT156: ^^^ | BU156: 0 | BV156: ^^^ | BW156: ^^^ | BX156: ^^^
A157: CFW74 | B157: J18 | C157: Community Based Mental Health Teams - Team Composition WTE | D157: Psychiatry - Consultant | E157: Mother and Baby | F157: 0.375 | G157: 0 | H157: ^^^ | I157: 1 | J157: 2.36 | K157: ^^^ | L157: ^^^ | M157: ^^^ | N157: ^^^ | O157: 0.9 | P157: 1.44 | Q157: ^^^ | R157: 1.4 | S157: ^^^ | T157: 0.4 | U157: 0.92 | V157: 2.1 | W157: ^^^ | X157: ^^^ | Y157: 0.08703094306 | Z157: 0 | AA157: 1 | AB157: 1.2 | AC157: ^^^ | AD157: 1.85 | AE157: ^^^ | AF157: 0.8 | AG157: 0.8 | AH157: 0.49 | AI157: ^^^ | AJ157: ^^^ | AK157: 0.5 | AL157: 1.7 | AM157: 1 | AN157: 0 | AO157: ^^^ | AP157: ^^^ | AQ157: 1.07 | AR157: 2.2 | AS157: ^^^ | AT157: 0.02 | AU157: ^^^ | AV157: ^^^ | AW157: 1 | AX157: 3.22 | AY157: ^^^ | AZ157: ^^^ | BA157: 0.5 | BB157: 1.2 | BC157: 1.87 | BD157: ^^^ | BE157: 3.1 | BF157: 0.6x | BG157: 2.77 | BH157: ^^^ | BI157: ^^^ | BJ157: 0.5 | BK157: ^^^ | BL157: ^^^ | BM157: ^^^ | BN157: ^^^ | BO157: ^^^ | BP157: ^^^ | BQ157: ^^^ | BR157: 0.4 | BS157: ^^^ | BT157: ^^^ | BU157: 0 | BV157: ^^^ | BW157: 0.3 | BX157: ^^^
A158: CFW75 | B158: K18 | C158: Community Based Mental Health Teams - Team Composition WTE | D158: Psychiatry - Consultant | E158: Older People | F158: 7.780231227 | G158: 7 | H158: 0 | I158: 15.99 | J158: 11.19 | K158: ^^^ | L158: 7 | M158: ^^^ | N158: 2 | O158: 6.84 | P158: 6.03 | Q158: 0 | R158: ^^^ | S158: ^^^ | T158: 0.31 | U158: 9.6 | V158: 12.18 | W158: 7 | X158: ^^^ | Y158: 0.7132790402 | Z158: 2.87 | AA158: 3.51 | AB158: 6.6 | AC158: ^^^ | AD158: 23 | AE158: 11.55 | AF158: ^^^ | AG158: 7.3 | AH158: 1 | AI158: ^^^ | AJ158: 5.85 | AK158: ^^^ | AL158: 13.62 | AM158: 12.2 | AN158: 0 | AO158: 9.5 | AP158: 2 | AQ158: 19.27 | AR158: 4.86 | AS158: ^^^ | AT158: 4.59 | AU158: ^^^ | AV158: 3.35 | AW158: 3.8 | AX158: 9.82 | AY158: 1.24 | AZ158: 4.25 | BA158: 9.16 | BB158: 6.09 | BC158: 12.29 | BD158: 16.45 | BE158: ^^^ | BF158: 19.9 | BG158: ^^^ | BH158: ^^^ | BI158: 2 | BJ158: ^^^ | BK158: 0 | BL158: 2 | BM158: ^^^ | BN158: ^^^ | BO158: ^^^ | BP158: ^^^ | BQ158: 12 | BR158: 5 | BS158: 6.51 | BT158: 2.38 | BU158: 4.5 | BV158: 2.1 | BW158: ^^^ | BX158: ^^^
A159: CFW76 | B159: L18 | C159: Community Based Mental Health Teams - Team Composition WTE | D159: Psychiatry - Consultant | E159: Memory Services | F159: 1.040304487 | G159: 1.5 | H159: ^^^ | I159: ^^^ | J159: 0.58 | K159: 3.05 | L159: ^^^ | M159: ^^^ | N159: 3.75 | O159: 6.6 | P159: 5.53 | Q159: ^^^ | R159: 4.15 | S159: ^^^ | T159: ^^^ | U159: 0.15 | V159: 1.48 | W159: ^^^ | X159: ^^^ | Y159: 10.85053355 | Z159: 2.98 | AA159: 5.87 | AB159: ^^^ | AC159: ^^^ | AD159: 0 | AE159: 6.5 | AF159: 4.615 | AG159: 0.29 | AH159: ^^^ | AI159: ^^^ | AJ159: ^^^ | AK159: 6.8 | AL159: 9.08 | AM159: 0 | AN159: 0 | AO159: ^^^ | AP159: 1.5 | AQ159: 6.13 | AR159: 0.4 | AS159: ^^^ | AT159: 3.47 | AU159: ^^^ | AV159: 3.75 | AW159: 0.6 | AX159: 1.19 | AY159: ^^^ | AZ159: ^^^ | BA159: 1 | BB159: 4 | BC159: ^^^ | BD159: ^^^ | BE159: 0.2 | BF159: ^^^ | BG159: 4.3 | BH159: ^^^ | BI159: ^^^ | BJ159: ^^^ | BK159: ^^^ | BL159: ^^^ | BM159: ^^^ | BN159: ^^^ | BO159: ^^^ | BP159: ^^^ | BQ159: ^^^ | BR159: ^^^ | BS159: ^^^ | BT159: ^^^ | BU159: ^^^ | BV159: 0.3 | BW159: ^^^ | BX159: ^^^
A160: CFW77 | B160: M18 | C160: Community Based Mental Health Teams - Team Composition WTE | D160: Psychiatry - Consultant | E160: Other Adult CMHTs | F160: 0.4841295281 | G160: 0 | H160: ^^^ | I160: ^^^ | J160: 9.62 | K160: 0.5 | L160: ^^^ | M160: 7.5 | N160: 5 | O160: 2.7 | P160: ^^^ | Q160: ^^^ | R160: 1.23 | S160: ^^^ | T160: ^^^ | U160: 2 | V160: ^^^ | W160: ^^^ | X160: 5.85 | Y160: 5.454057164 | Z160: 2.09 | AA160: 6.11 | AB160: ^^^ | AC160: ^^^ | AD160: 6.5 | AE160: 1.14 | AF160: 5.21 | AG160: 9.04 | AH160: ^^^ | AI160: 0.2 | AJ160: 0.4 | AK160: ^^^ | AL160: 3.7 | AM160: 3 | AN160: 0 | AO160: 1 | AP160: ^^^ | AQ160: 1.6 | AR160: ^^^ | AS160: ^^^ | AT160: 0 | AU160: ^^^ | AV160: 0 | AW160: 0.9 | AX160: 12.5 | AY160: ^^^ | AZ160: ^^^ | BA160: 10.75 | BB160: 0 | BC160: ^^^ | BD160: 2.65 | BE160: 0.65 | BF160: ^^^ | BG160: 1.11 | BH160: ^^^ | BI160: ^^^ | BJ160: 7.5 | BK160: 0 | BL160: ^^^ | BM160: ^^^ | BN160: ^^^ | BO160: ^^^ | BP160: ^^^ | BQ160: 1.2 | BR160: ^^^ | BS160: ^^^ | BT160: ^^^ | BU160: 0.35 | BV160: ^^^ | BW160: ^^^ | BX160: 4.1
A161: CFW78 | B161: N18 | C161: Community Based Mental Health Teams - Team Composition WTE | D161: Psychiatry - Consultant | E161: Totals | F161: 32.13781188 | G161: 23.6 | H161: 5.9 | I161: 35.41 | J161: 66.56 | K161: 22.74 | L161: 24.25 | M161: 9.5 | N161: 34.35 | O161: 42.08 | P161: 53.88 | Q161: 2.8 | R161: 32.52 | S161: 0 | T161: 36.79 | U161: 36.75 | V161: 34.7063 | W161: 18 | X161: 22.45 | Y161: 58.94070402 | Z161: 57.075 | AA161: 46.74 | AB161: 7.8 | AC161: 0 | AD161: 53.25 | AE161: 62.01 | AF161: 31.465 | AG161: 47.33 | AH161: 2.49 | AI161: 8.65 | AJ161: 9.25 | AK161: 30.36 | AL161: 68.94 | AM161: 46.1 | AN161: 0.2 | AO161: 33.4 | AP161: 15.3 | AQ161: 82.54 | AR161: 13.42 | AS161: 37.55 | AT161: 31.74 | AU161: 0 | AV161: 25.3 | AW161: 16.5 | AX161: 82.12 | AY161: 3.9 | AZ161: 18.01 | BA161: 53.33 | BB161: 44.01 | BC161: 41.88 | BD161: 43.95 | BE161: 65.73 | BF161: 59.73 | BG161: 30.57 | BH161: 0 | BI161: 5.2 | BJ161: 24.23 | BK161: 13.15 | BL161: 8.95 | BM161: 0 | BN161: 0 | BO161: 0 | BP161: 0 | BQ161: 76.57 | BR161: 15.9 | BS161: 16.89 | BT161: 6.45 | BU161: 17.01 | BV161: 11.69 | BW161: 0.3 | BX161: 11.9
A162: CFW820 | B162: B19 | C162: Community Based Mental Health Teams - Team Composition WTE | D162: Psychiatry - (Assoc Specialist, ST4-ST6, Organisation and Staff Grades) | E162: Generic CMHT | F162: ^^^ | G162: 2.6 | H162: 8.9 | I162: 5.67 | J162: 10.4 | K162: 8.71 | L162: 2 | M162: ^^^ | N162: 2 | O162: 2 | P162: 14.79 | Q162: 5.03 | R162: 10.11 | S162: ^^^ | T162: 5.48 | U162: ^^^ | V162: 1.5 | W162: 6 | X162: 21 | Y162: 8.084855031 | Z162: 37.7725 | AA162: 6.93 | AB162: ^^^ | AC162: ^^^ | AD162: 4 | AE162: 10.47 | AF162: 9.3 | AG162: 0.14x | AH162: ^^^ | AI162: 2.6 | AJ162: ^^^ | AK162: 5.06 | AL162: 5.7 | AM162: 4 | AN162: 0 | AO162: 3.8 | AP162: 2 | AQ162: 2.78 | AR162: ^^^ | AS162: ^^^ | AT162: 15.97 | AU162: ^^^ | AV162: 3 | AW162: 0.6 | AX162: 6.93 | AY162: 3.5 | AZ162: 3.63 | BA162: 11.92 | BB162: 25.64 | BC162: 6.63 | BD162: 9.8 | BE162: 26.82 | BF162: 14.25 | BG162: 5.62 | BH162: ^^^ | BI162: 2 | BJ162: 0 | BK162: 3.7 | BL162: 0.7 | BM162: ^^^ | BN162: ^^^ | BO162: ^^^ | BP162: ^^^ | BQ162: 13.6 | BR162: 22.9 | BS162: 3.29 | BT162: 1.12 | BU162: 14.7 | BV162: 0.92 | BW162: ^^^ | BX162: ^^^
A163: CFW821 | B163: C19 | C163: Community Based Mental Health Teams - Team Composition WTE | D163: Psychiatry - (Assoc Specialist, ST4-ST6, Organisation and Staff Grades) | E163: CRHT | F163: ^^^ | G163: 0.36 | H163: 3 | I163: 2.22 | J163: 8.55 | K163: 4.09 | L163: ^^^ | M163: ^^^ | N163: 2 | O163: 2 | P163: 4.01 | Q163: 0 | R163: 4.45 | S163: ^^^ | T163: 1 | U163: ^^^ | V163: ^^^ | W163: 2 | X163: ^^^ | Y163: 5.319581698 | Z163: 7.4575 | AA163: 3.08 | AB163: ^^^ | AC163: ^^^ | AD163: 0 | AE163: 6.650161609 | AF163: 5.3 | AG163: ^^^ | AH163: ^^^ | AI163: 1 | AJ163: ^^^ | AK163: 1 | AL163: 0.8 | AM163: 4.5 | AN163: 0 | AO163: ^^^ | AP163: 1 | AQ163: 3.33 | AR163: 0.89 | AS163: ^^^ | AT163: 3.56 | AU163: ^^^ | AV163: 0 | AW163: 0.75 | AX163: 8.53 | AY163: ^^^ | AZ163: ^^^ | BA163: 1.51 | BB163: 5.85 | BC163: 2.92 | BD163: 1.19 | BE163: 3.2 | BF163: ^^^ | BG163: 2.24 | BH163: ^^^ | BI163: ^^^ | BJ163: 3 | BK163: 2 | BL163: 2.7 | BM163: ^^^ | BN163: ^^^ | BO163: ^^^ | BP163: ^^^ | BQ163: ^^^ | BR163: 1 | BS163: ^^^ | BT163: ^^^ | BU163: 0.88 | BV163: ^^^ | BW163: ^^^ | BX163: 0.5
A164: CFW822 | B164: D19 | C164: Community Based Mental Health Teams - Team Composition WTE | D164: Psychiatry - (Assoc Specialist, ST4-ST6, Organisation and Staff Grades) | E164: Assertive Outreach | F164: 1.316666667 | G164: 0 | H164: ^^^ | I164: ^^^ | J164: 4.42 | K164: ^^^ | L164: ^^^ | M164: ^^^ | N164: 0.5 | O164: ^^^ | P164: ^^^ | Q164: ^^^ | R164: ^^^ | S164: ^^^ | T164: ^^^ | U164: ^^^ | V164: ^^^ | W164: ^^^ | X164: ^^^ | Y164: 0.209592902 | Z164: 0 | AA164: ^^^ | AB164: ^^^ | AC164: ^^^ | AD164: 0 | AE164: ^^^ | AF164: 1 | AG164: 1.8 | AH164: ^^^ | AI164: ^^^ | AJ164: ^^^ | AK164: ^^^ | AL164: ^^^ | AM164: ^^^ | AN164: 0 | AO164: ^^^ | AP164: ^^^ | AQ164: 0 | AR164: ^^^ | AS164: ^^^ | AT164: 0 | AU164: ^^^ | AV164: 1 | AW164: 0 | AX164: ^^^ | AY164: ^^^ | AZ164: ^^^ | BA164: ^^^ | BB164: ^^^ | BC164: 0.18 | BD164: ^^^ | BE164: 2 | BF164: ^^^ | BG164: ^^^ | BH164: ^^^ | BI164: ^^^ | BJ164: ^^^ | BK164: ^^^ | BL164: ^^^ | BM164: ^^^ | BN164: ^^^ | BO164: ^^^ | BP164: ^^^ | BQ164: ^^^ | BR164: ^^^ | BS164: ^^^ | BT164: ^^^ | BU164: 0 | BV164: ^^^ | BW164: ^^^ | BX164: ^^^
A165: CFW823 | B165: E19 | C165: Community Based Mental Health Teams - Team Composition WTE | D165: Psychiatry - (Assoc Specialist, ST4-ST6, Organisation and Staff Grades) | E165: Early Intervention (incl Early Onset Psychosis) | F165: 1 | G165: 0 | H165: 2.75 | I165: ^^^ | J165: 0 | K165: 0.78 | L165: ^^^ | M165: 1 | N165: 1 | O165: 0.5 | P165: 3.32 | Q165: 0 | R165: 1.903 | S165: ^^^ | T165: ^^^ | U165: ^^^ | V165: ^^^ | W165: 2 | X165: ^^^ | Y165: 3.134441302 | Z165: 7.62 | AA165: ^^^ | AB165: ^^^ | AC165: ^^^ | AD165: 0 | AE165: 1.6 | AF165: ^^^ | AG165: 1.8 | AH165: ^^^ | AI165: ^^^ | AJ165: 0.85 | AK165: ^^^ | AL165: ^^^ | AM165: 1 | AN165: 0 | AO165: ^^^ | AP165: 1 | AQ165: 0.69 | AR165: ^^^ | AS165: ^^^ | AT165: 1.14 | AU165: ^^^ | AV165: 1 | AW165: 0 | AX165: 3.5 | AY165: ^^^ | AZ165: ^^^ | BA165: 2.35 | BB165: 2.64 | BC165: 0.62 | BD165: 0.5 | BE165: 1.1 | BF165: ^^^ | BG165: 1.24 | BH165: ^^^ | BI165: ^^^ | BJ165: 0 | BK165: 0 | BL165: ^^^ | BM165: ^^^ | BN165: ^^^ | BO165: ^^^ | BP165: ^^^ | BQ165: ^^^ | BR165: ^^^ | BS165: ^^^ | BT165: ^^^ | BU165: 0 | BV165: ^^^ | BW165: ^^^ | BX165: ^^^
A166: CFW824 | B166: F19 | C166: Community Based Mental Health Teams - Team Composition WTE | D166: Psychiatry - (Assoc Specialist, ST4-ST6, Organisation and Staff Grades) | E166: Assessment & Brief Intervention (incl PMHT) | F166: ^^^ | G166: 0.6 | H166: 2.55 | I166: ^^^ | J166: ^^^ | K166: ^^^ | L166: ^^^ | M166: ^^^ | N166: 0.5 | O166: 0.5 | P166: ^^^ | Q166: ^^^ | R166: ^^^ | S166: ^^^ | T166: ^^^ | U166: ^^^ | V166: ^^^ | W166: ^^^ | X166: ^^^ | Y166: 1.71159674 | Z166: 0 | AA166: ^^^ | AB166: ^^^ | AC166: ^^^ | AD166: 0 | AE166: 4.539838391 | AF166: ^^^ | AG166: ^^^ | AH166: ^^^ | AI166: ^^^ | AJ166: ^^^ | AK166: ^^^ | AL166: 0 | AM166: 0.07x | AN166: 0 | AO166: 5 | AP166: 0 | AQ166: 0 | AR166: ^^^ | AS166: ^^^ | AT166: 0.06 | AU166: ^^^ | AV166: 0 | AW166: 0.35 | AX166: 5.35 | AY166: 0.5 | AZ166: ^^^ | BA166: ^^^ | BB166: ^^^ | BC166: ^^^ | BD166: ^^^ | BE166: ^^^ | BF166: ^^^ | BG166: ^^^ | BH166: ^^^ | BI166: ^^^ | BJ166: 1.5 | BK166: 0 | BL166: 2 | BM166: ^^^ | BN166: ^^^ | BO166: ^^^ | BP166: ^^^ | BQ166: ^^^ | BR166: ^^^ | BS166: ^^^ | BT166: ^^^ | BU166: 0.88 | BV166: 0.88 | BW166: ^^^ | BX166: ^^^
A167: CFW825 | B167: G19 | C167: Community Based Mental Health Teams - Team Composition WTE | D167: Psychiatry - (Assoc Specialist, ST4-ST6, Organisation and Staff Grades) | E167: Rehabilitation and Recovery | F167: 3.830851064 | G167: 0 | H167: 2 | I167: ^^^ | J167: ^^^ | K167: ^^^ | L167: ^^^ | M167: ^^^ | N167: 4 | O167: ^^^ | P167: ^^^ | Q167: ^^^ | R167: 4.07 | S167: ^^^ | T167: ^^^ | U167: ^^^ | V167: ^^^ | W167: ^^^ | X167: ^^^ | Y167: 0.9511819054 | Z167: 0 | AA167: ^^^ | AB167: ^^^ | AC167: ^^^ | AD167: 0 | AE167: 0 | AF167: ^^^ | AG167: 0.18 | AH167: ^^^ | AI167: ^^^ | AJ167: ^^^ | AK167: ^^^ | AL167: ^^^ | AM167: ^^^ | AN167: 0 | AO167: ^^^ | AP167: ^^^ | AQ167: 0 | AR167: ^^^ | AS167: ^^^ | AT167: 0 | AU167: ^^^ | AV167: ^^^ | AW167: ^^^ | AX167: 8.11 | AY167: ^^^ | AZ167: ^^^ | BA167: 2.27 | BB167: ^^^ | BC167: 0.01x | BD167: ^^^ | BE167: ^^^ | BF167: ^^^ | BG167: ^^^ | BH167: ^^^ | BI167: 0.5 | BJ167: 1 | BK167: 0.2 | BL167: ^^^ | BM167: ^^^ | BN167: ^^^ | BO167: ^^^ | BP167: ^^^ | BQ167: ^^^ | BR167: ^^^ | BS167: ^^^ | BT167: ^^^ | BU167: 0 | BV167: ^^^ | BW167: ^^^ | BX167: ^^^
A168: CFW826 | B168: H19 | C168: Community Based Mental Health Teams - Team Composition WTE | D168: Psychiatry - (Assoc Specialist, ST4-ST6, Organisation and Staff Grades) | E168: Forensic | F168: ^^^ | G168: 0 | H168: ^^^ | I168: ^^^ | J168: 0.75 | K168: 0.38 | L168: ^^^ | M168: 0.6 | N168: ^^^ | O168: ^^^ | P168: ^^^ | Q168: 0 | R168: ^^^ | S168: ^^^ | T168: ^^^ | U168: ^^^ | V168: ^^^ | W168: ^^^ | X168: 2.8 | Y168: 3.486378823 | Z168: 0 | AA168: ^^^ | AB168: ^^^ | AC168: ^^^ | AD168: 0 | AE168: 1.01 | AF168: ^^^ | AG168: 0.3 | AH168: ^^^ | AI168: ^^^ | AJ168: ^^^ | AK168: ^^^ | AL168: 1.3 | AM168: ^^^ | AN168: 0 | AO168: ^^^ | AP168: 0 | AQ168: 2.52 | AR168: ^^^ | AS168: ^^^ | AT168: 0.49 | AU168: ^^^ | AV168: ^^^ | AW168: 0 | AX168: 0.89 | AY168: ^^^ | AZ168: ^^^ | BA168: 1.12 | BB168: 0.17 | BC168: ^^^ | BD168: 0.4 | BE168: ^^^ | BF168: ^^^ | BG168: ^^^ | BH168: ^^^ | BI168: ^^^ | BJ168: 0 | BK168: 0 | BL168: ^^^ | BM168: ^^^ | BN168: ^^^ | BO168: ^^^ | BP168: ^^^ | BQ168: ^^^ | BR168: 3 | BS168: ^^^ | BT168: 0.16 | BU168: 1.05 | BV168: ^^^ | BW168: ^^^ | BX168: ^^^
A169: CFW827 | B169: I19 | C169: Community Based Mental Health Teams - Team Composition WTE | D169: Psychiatry - (Assoc Specialist, ST4-ST6, Organisation and Staff Grades) | E169: Eating Disorders | F169: ^^^ | G169: 0 | H169: 1 | I169: 0.33 | J169: 0.7 | K169: ^^^ | L169: ^^^ | M169: ^^^ | N169: ^^^ | O169: ^^^ | P169: ^^^ | Q169: 0 | R169: 0.537 | S169: ^^^ | T169: ^^^ | U169: 0.76 | V169: ^^^ | W169: ^^^ | X169: ^^^ | Y169: 0.4050074607 | Z169: 0 | AA169: 1.22 | AB169: ^^^ | AC169: ^^^ | AD169: 0 | AE169: 0 | AF169: 1 | AG169: ^^^ | AH169: ^^^ | AI169: ^^^ | AJ169: ^^^ | AK169: 0.4 | AL169: 1.3 | AM169: 0 | AN169: 0 | AO169: ^^^ | AP169: 0 | AQ169: 0 | AR169: ^^^ | AS169: 2.7 | AT169: 0 | AU169: ^^^ | AV169: ^^^ | AW169: 0 | AX169: 2.32 | AY169: ^^^ | AZ169: ^^^ | BA169: 1 | BB169: ^^^ | BC169: ^^^ | BD169: 0 | BE169: 0.37 | BF169: ^^^ | BG169: ^^^ | BH169: ^^^ | BI169: ^^^ | BJ169: 0.5 | BK169: 0 | BL169: ^^^ | BM169: ^^^ | BN169: ^^^ | BO169: ^^^ | BP169: ^^^ | BQ169: ^^^ | BR169: ^^^ | BS169: ^^^ | BT169: ^^^ | BU169: 0 | BV169: ^^^ | BW169: ^^^ | BX169: ^^^
A170: CFW828 | B170: J19 | C170: Community Based Mental Health Teams - Team Composition WTE | D170: Psychiatry - (Assoc Specialist, ST4-ST6, Organisation and Staff Grades) | E170: Mother and Baby | F170: ^^^ | G170: 0 | H170: ^^^ | I170: ^^^ | J170: 1.22 | K170: ^^^ | L170: ^^^ | M170: ^^^ | N170: ^^^ | O170: ^^^ | P170: ^^^ | Q170: ^^^ | R170: 0.002x | S170: ^^^ | T170: 0.2 | U170: ^^^ | V170: ^^^ | W170: ^^^ | X170: ^^^ | Y170: 0.1050019343 | Z170: 0 | AA170: ^^^ | AB170: ^^^ | AC170: ^^^ | AD170: 0 | AE170: ^^^ | AF170: 1 | AG170: ^^^ | AH170: ^^^ | AI170: ^^^ | AJ170: ^^^ | AK170: ^^^ | AL170: 0 | AM170: 1 | AN170: 0 | AO170: ^^^ | AP170: ^^^ | AQ170: 0.5 | AR170: ^^^ | AS170: ^^^ | AT170: 0 | AU170: ^^^ | AV170: ^^^ | AW170: 0 | AX170: 1.54 | AY170: ^^^ | AZ170: ^^^ | BA170: 0.8 | BB170: 0.03 | BC170: 0.85 | BD170: ^^^ | BE170: ^^^ | BF170: ^^^ | BG170: ^^^ | BH170: ^^^ | BI170: ^^^ | BJ170: 0 | BK170: ^^^ | BL170: ^^^ | BM170: ^^^ | BN170: ^^^ | BO170: ^^^ | BP170: ^^^ | BQ170: ^^^ | BR170: ^^^ | BS170: ^^^ | BT170: ^^^ | BU170: 0 | BV170: ^^^ | BW170: ^^^ | BX170: ^^^
A171: CFW829 | B171: K19 | C171: Community Based Mental Health Teams - Team Composition WTE | D171: Psychiatry - (Assoc Specialist, ST4-ST6, Organisation and Staff Grades) | E171: Older People | F171: 3.20625 | G171: 4.6 | H171: 10.8 | I171: 2.15 | J171: 11.21 | K171: 0.43 | L171: 4 | M171: ^^^ | N171: 1.5 | O171: 2.1 | P171: 4.57 | Q171: 0 | R171: ^^^ | S171: ^^^ | T171: ^^^ | U171: 1.4 | V171: 1.55 | W171: 3 | X171: ^^^ | Y171: 1.860563798 | Z171: 2.75 | AA171: 2.09 | AB171: 0.7 | AC171: ^^^ | AD171: 6.6 | AE171: 4.02 | AF171: ^^^ | AG171: 2.25 | AH171: ^^^ | AI171: ^^^ | AJ171: 1.25 | AK171: ^^^ | AL171: 4.02 | AM171: 6 | AN171: 0 | AO171: 4 | AP171: 0 | AQ171: 6.54 | AR171: 3.94 | AS171: ^^^ | AT171: 3.84 | AU171: ^^^ | AV171: 0.56 | AW171: 0.9 | AX171: 4.02 | AY171: 0.74 | AZ171: 0 | BA171: 5.29 | BB171: 5.61 | BC171: 8.56 | BD171: 4.3 | BE171: ^^^ | BF171: 13.01 | BG171: ^^^ | BH171: ^^^ | BI171: 1 | BJ171: ^^^ | BK171: 0 | BL171: 2.8 | BM171: ^^^ | BN171: ^^^ | BO171: ^^^ | BP171: ^^^ | BQ171: 3.7 | BR171: 8 | BS171: 2.1 | BT171: 0.75 | BU171: 6.02 | BV171: ^^^ | BW171: ^^^ | BX171: 0.7
A172: CFW830 | B172: L19 | C172: Community Based Mental Health Teams - Team Composition WTE | D172: Psychiatry - (Assoc Specialist, ST4-ST6, Organisation and Staff Grades) | E172: Memory Services | F172: 1.19375 | G172: 0.5 | H172: ^^^ | I172: ^^^ | J172: 0.18 | K172: 1.6 | L172: ^^^ | M172: ^^^ | N172: 1 | O172: 0.09 | P172: 5.26 | Q172: ^^^ | R172: 3.579 | S172: ^^^ | T172: 0.96x | U172: ^^^ | V172: 0.3 | W172: 1 | X172: ^^^ | Y172: 7.782059655 | Z172: 0.53 | AA172: 3.38 | AB172: ^^^ | AC172: ^^^ | AD172: 0 | AE172: 2.74 | AF172: 3 | AG172: 0.09 | AH172: ^^^ | AI172: ^^^ | AJ172: ^^^ | AK172: 5.84 | AL172: 2.68 | AM172: 0 | AN172: 0 | AO172: ^^^ | AP172: 0.5 | AQ172: 2.73 | AR172: 0.21 | AS172: ^^^ | AT172: 2.9 | AU172: ^^^ | AV172: 0.19 | AW172: 1.03 | AX172: 1.88 | AY172: ^^^ | AZ172: ^^^ | BA172: ^^^ | BB172: 3.03 | BC172: ^^^ | BD172: ^^^ | BE172: ^^^ | BF172: ^^^ | BG172: 3.8 | BH172: ^^^ | BI172: ^^^ | BJ172: ^^^ | BK172: ^^^ | BL172: ^^^ | BM172: ^^^ | BN172: ^^^ | BO172: ^^^ | BP172: ^^^ | BQ172: ^^^ | BR172: ^^^ | BS172: ^^^ | BT172: ^^^ | BU172: ^^^ | BV172: ^^^ | BW172: ^^^ | BX172: ^^^
A173: CFW831 | B173: M19 | C173: Community Based Mental Health Teams - Team Composition WTE | D173: Psychiatry - (Assoc Specialist, ST4-ST6, Organisation and Staff Grades) | E173: Other Adult CMHTs | F173: ^^^ | G173: 0 | H173: ^^^ | I173: ^^^ | J173: 0.7 | K173: 0.54 | L173: ^^^ | M173: 1 | N173: 1 | O173: ^^^ | P173: ^^^ | Q173: ^^^ | R173: 0.809 | S173: ^^^ | T173: ^^^ | U173: ^^^ | V173: ^^^ | W173: ^^^ | X173: 13.03 | Y173: 4.649880177 | Z173: 0.07 | AA173: 0.05 | AB173: ^^^ | AC173: ^^^ | AD173: 6 | AE173: 0.43 | AF173: 2.7 | AG173: ^^^ | AH173: ^^^ | AI173: 0.2 | AJ173: ^^^ | AK173: ^^^ | AL173: 0 | AM173: 1.6 | AN173: 0 | AO173: 0.8 | AP173: ^^^ | AQ173: 1.1 | AR173: ^^^ | AS173: ^^^ | AT173: 0 | AU173: ^^^ | AV173: 0 | AW173: 0 | AX173: 10.33 | AY173: ^^^ | AZ173: ^^^ | BA173: 7.7 | BB173: 0 | BC173: ^^^ | BD173: 0 | BE173: 0.1 | BF173: ^^^ | BG173: 0.41 | BH173: ^^^ | BI173: ^^^ | BJ173: 4 | BK173: 0 | BL173: ^^^ | BM173: ^^^ | BN173: ^^^ | BO173: ^^^ | BP173: ^^^ | BQ173: ^^^ | BR173: ^^^ | BS173: ^^^ | BT173: ^^^ | BU173: 0.44 | BV173: ^^^ | BW173: ^^^ | BX173: 0.2
A174: CFW832 | B174: N19 | C174: Community Based Mental Health Teams - Team Composition WTE | D174: Psychiatry - (Assoc Specialist, ST4-ST6, Organisation and Staff Grades) | E174: Totals | F174: 10.54751773 | G174: 8.66 | H174: 31 | I174: 10.37 | J174: 38.13 | K174: 16.53 | L174: 6 | M174: 2.6 | N174: 13.5 | O174: 7.19 | P174: 31.95 | Q174: 5.03 | R174: 25.458 | S174: 0 | T174: 6.68 | U174: 2.16 | V174: 3.35 | W174: 14 | X174: 36.83 | Y174: 37.70014143 | Z174: 56.2 | AA174: 16.75 | AB174: 0.7 | AC174: 0 | AD174: 16.6 | AE174: 31.46 | AF174: 23.3 | AG174: 6.42 | AH174: 0 | AI174: 3.8 | AJ174: 2.1 | AK174: 12.3 | AL174: 15.8 | AM174: 18.1 | AN174: 0 | AO174: 13.6 | AP174: 4.5 | AQ174: 20.19 | AR174: 5.04 | AS174: 2.7 | AT174: 27.96 | AU174: 0 | AV174: 5.75 | AW174: 3.63 | AX174: 53.4 | AY174: 4.74 | AZ174: 3.63 | BA174: 33.96 | BB174: 42.97 | BC174: 19.76 | BD174: 16.19 | BE174: 33.59 | BF174: 27.26 | BG174: 13.31 | BH174: 0 | BI174: 3.5 | BJ174: 10 | BK174: 5.9 | BL174: 8.2 | BM174: 0 | BN174: 0 | BO174: 0 | BP174: 0 | BQ174: 17.3 | BR174: 34.9 | BS174: 5.39 | BT174: 2.03 | BU174: 23.97 | BV174: 1.8 | BW174: 0 | BX174: 1.4
A175: CFW833 | B175: B20 | C175: Community Based Mental Health Teams - Team Composition WTE | D175: Psychiatry - Trainees (FY1, FY2, CT1-CT3) | E175: Generic CMHT | F175: ^^^ | G175: 0 | H175: 10.5 | I175: ^^^ | J175: 9.76 | K175: ^^^ | L175: ^^^ | M175: ^^^ | N175: 3 | O175: 5.1 | P175: 16.22 | Q175: 2.8 | R175: 0.73 | S175: ^^^ | T175: ^^^ | U175: ^^^ | V175: 1 | W175: 1 | X175: ^^^ | Y175: 5.056046181 | Z175: 10.2475 | AA175: 9.35 | AB175: ^^^ | AC175: ^^^ | AD175: 0 | AE175: 7.33 | AF175: ^^^ | AG175: 0.6 | AH175: ^^^ | AI175: ^^^ | AJ175: ^^^ | AK175: ^^^ | AL175: 0 | AM175: 5.88 | AN175: 0 | AO175: ^^^ | AP175: 0 | AQ175: 1.54 | AR175: ^^^ | AS175: ^^^ | AT175: 0 | AU175: ^^^ | AV175: 0.5 | AW175: 0 | AX175: 5.38 | AY175: 1 | AZ175: ^^^ | BA175: 9.64 | BB175: 5.07 | BC175: ^^^ | BD175: 12.2 | BE175: ^^^ | BF175: 25.4 | BG175: 11.91 | BH175: ^^^ | BI175: ^^^ | BJ175: 0 | BK175: 8.8 | BL175: 2.95 | BM175: ^^^ | BN175: ^^^ | BO175: ^^^ | BP175: ^^^ | BQ175: 26.2 | BR175: 2.4 | BS175: 7.58 | BT175: 2.67 | BU175: 3 | BV175: 7.18 | BW175: ^^^ | BX175: ^^^
A176: CFW834 | B176: C20 | C176: Community Based Mental Health Teams - Team Composition WTE | D176: Psychiatry - Trainees (FY1, FY2, CT1-CT3) | E176: CRHT | F176: ^^^ | G176: 1 | H176: 3 | I176: 0.02x | J176: 11.77 | K176: ^^^ | L176: ^^^ | M176: ^^^ | N176: 3 | O176: 1.03 | P176: 2.57 | Q176: 0 | R176: 2.03 | S176: ^^^ | T176: ^^^ | U176: ^^^ | V176: ^^^ | W176: ^^^ | X176: ^^^ | Y176: 2.077782188 | Z176: 3.2875 | AA176: 0.85 | AB176: ^^^ | AC176: ^^^ | AD176: 0 | AE176: 3.946524475 | AF176: ^^^ | AG176: 0.8 | AH176: ^^^ | AI176: ^^^ | AJ176: ^^^ | AK176: ^^^ | AL176: 0 | AM176: 2.22 | AN176: 0 | AO176: ^^^ | AP176: 0 | AQ176: 3.14 | AR176: 4 | AS176: ^^^ | AT176: 0 | AU176: ^^^ | AV176: 1.5 | AW176: 0 | AX176: 5.52 | AY176: ^^^ | AZ176: ^^^ | BA176: 1.99 | BB176: 3.28 | BC176: ^^^ | BD176: 3.96 | BE176: ^^^ | BF176: 2.5 | BG176: 6.04 | BH176: ^^^ | BI176: ^^^ | BJ176: 5 | BK176: 0 | BL176: 0 | BM176: ^^^ | BN176: ^^^ | BO176: ^^^ | BP176: ^^^ | BQ176: 0.7 | BR176: ^^^ | BS176: ^^^ | BT176: ^^^ | BU176: 0 | BV176: ^^^ | BW176: ^^^ | BX176: ^^^
A177: CFW835 | B177: D20 | C177: Community Based Mental Health Teams - Team Composition WTE | D177: Psychiatry - Trainees (FY1, FY2, CT1-CT3) | E177: Assertive Outreach | F177: ^^^ | G177: 0 | H177: ^^^ | I177: ^^^ | J177: 2.8 | K177: ^^^ | L177: ^^^ | M177: ^^^ | N177: 0 | O177: ^^^ | P177: ^^^ | Q177: ^^^ | R177: ^^^ | S177: ^^^ | T177: ^^^ | U177: ^^^ | V177: ^^^ | W177: ^^^ | X177: ^^^ | Y177: 0.1311877333 | Z177: 0 | AA177: ^^^ | AB177: ^^^ | AC177: ^^^ | AD177: 0 | AE177: ^^^ | AF177: ^^^ | AG177: ^^^ | AH177: ^^^ | AI177: ^^^ | AJ177: ^^^ | AK177: ^^^ | AL177: ^^^ | AM177: ^^^ | AN177: 0 | AO177: ^^^ | AP177: ^^^ | AQ177: 0 | AR177: ^^^ | AS177: ^^^ | AT177: 0 | AU177: ^^^ | AV177: 0 | AW177: 0 | AX177: ^^^ | AY177: ^^^ | AZ177: ^^^ | BA177: ^^^ | BB177: ^^^ | BC177: ^^^ | BD177: ^^^ | BE177: ^^^ | BF177: ^^^ | BG177: ^^^ | BH177: ^^^ | BI177: ^^^ | BJ177: ^^^ | BK177: ^^^ | BL177: ^^^ | BM177: ^^^ | BN177: ^^^ | BO177: ^^^ | BP177: ^^^ | BQ177: ^^^ | BR177: ^^^ | BS177: ^^^ | BT177: ^^^ | BU177: 0 | BV177: 0.42 | BW177: ^^^ | BX177: ^^^
A178: CFW836 | B178: E20 | C178: Community Based Mental Health Teams - Team Composition WTE | D178: Psychiatry - Trainees (FY1, FY2, CT1-CT3) | E178: Early Intervention (incl Early Onset Psychosis) | F178: ^^^ | G178: 0 | H178: 0 | I178: ^^^ | J178: 1.12 | K178: ^^^ | L178: ^^^ | M178: ^^^ | N178: 1 | O178: 0.71 | P178: 0.15 | Q178: 0 | R178: 0.97 | S178: ^^^ | T178: ^^^ | U178: ^^^ | V178: ^^^ | W178: ^^^ | X178: ^^^ | Y178: 1.96189969 | Z178: 2.84 | AA178: ^^^ | AB178: ^^^ | AC178: ^^^ | AD178: 0 | AE178: 0 | AF178: ^^^ | AG178: 1 | AH178: 0.5 | AI178: ^^^ | AJ178: ^^^ | AK178: ^^^ | AL178: ^^^ | AM178: 1.14 | AN178: 0 | AO178: ^^^ | AP178: 0 | AQ178: 0.65 | AR178: ^^^ | AS178: ^^^ | AT178: 0 | AU178: ^^^ | AV178: 0 | AW178: 0 | AX178: 6.04 | AY178: ^^^ | AZ178: ^^^ | BA178: 1.13 | BB178: 0.15 | BC178: ^^^ | BD178: 1 | BE178: ^^^ | BF178: ^^^ | BG178: 2.56 | BH178: ^^^ | BI178: ^^^ | BJ178: 0.8 | BK178: 0 | BL178: ^^^ | BM178: ^^^ | BN178: ^^^ | BO178: ^^^ | BP178: ^^^ | BQ178: 3.7 | BR178: ^^^ | BS178: ^^^ | BT178: ^^^ | BU178: 0 | BV178: ^^^ | BW178: ^^^ | BX178: ^^^
A179: CFW837 | B179: F20 | C179: Community Based Mental Health Teams - Team Composition WTE | D179: Psychiatry - Trainees (FY1, FY2, CT1-CT3) | E179: Assessment & Brief Intervention (incl PMHT) | F179: ^^^ | G179: 0 | H179: 2 | I179: ^^^ | J179: ^^^ | K179: ^^^ | L179: ^^^ | M179: ^^^ | N179: 6 | O179: 1.7 | P179: ^^^ | Q179: ^^^ | R179: ^^^ | S179: ^^^ | T179: ^^^ | U179: ^^^ | V179: ^^^ | W179: ^^^ | X179: ^^^ | Y179: 0.7270629964 | Z179: 0 | AA179: ^^^ | AB179: ^^^ | AC179: ^^^ | AD179: 0 | AE179: 3.063475525 | AF179: ^^^ | AG179: ^^^ | AH179: ^^^ | AI179: ^^^ | AJ179: ^^^ | AK179: ^^^ | AL179: 0 | AM179: 5.42 | AN179: 0 | AO179: ^^^ | AP179: 0 | AQ179: 0 | AR179: ^^^ | AS179: ^^^ | AT179: 0 | AU179: ^^^ | AV179: 0 | AW179: 0 | AX179: 4.56 | AY179: 1 | AZ179: ^^^ | BA179: ^^^ | BB179: ^^^ | BC179: ^^^ | BD179: ^^^ | BE179: ^^^ | BF179: ^^^ | BG179: ^^^ | BH179: ^^^ | BI179: ^^^ | BJ179: 0 | BK179: 0 | BL179: 0.3 | BM179: ^^^ | BN179: ^^^ | BO179: ^^^ | BP179: ^^^ | BQ179: 3.7 | BR179: ^^^ | BS179: ^^^ | BT179: ^^^ | BU179: 0 | BV179: 6.9 | BW179: ^^^ | BX179: ^^^
A180: CFW838 | B180: G20 | C180: Community Based Mental Health Teams - Team Composition WTE | D180: Psychiatry - Trainees (FY1, FY2, CT1-CT3) | E180: Rehabilitation and Recovery | F180: ^^^ | G180: 0 | H180: 1 | I180: ^^^ | J180: ^^^ | K180: ^^^ | L180: ^^^ | M180: ^^^ | N180: 4.5 | O180: ^^^ | P180: ^^^ | Q180: ^^^ | R180: 2.19 | S180: ^^^ | T180: ^^^ | U180: ^^^ | V180: ^^^ | W180: ^^^ | X180: ^^^ | Y180: 0.5953608014 | Z180: 0 | AA180: ^^^ | AB180: ^^^ | AC180: ^^^ | AD180: 0 | AE180: 0 | AF180: ^^^ | AG180: ^^^ | AH180: ^^^ | AI180: ^^^ | AJ180: ^^^ | AK180: ^^^ | AL180: ^^^ | AM180: ^^^ | AN180: 0 | AO180: ^^^ | AP180: ^^^ | AQ180: 0 | AR180: ^^^ | AS180: ^^^ | AT180: 0 | AU180: ^^^ | AV180: ^^^ | AW180: ^^^ | AX180: 6.8 | AY180: ^^^ | AZ180: ^^^ | BA180: 1.13 | BB180: ^^^ | BC180: ^^^ | BD180: ^^^ | BE180: ^^^ | BF180: ^^^ | BG180: ^^^ | BH180: ^^^ | BI180: ^^^ | BJ180: 6 | BK180: 0 | BL180: ^^^ | BM180: ^^^ | BN180: ^^^ | BO180: ^^^ | BP180: ^^^ | BQ180: ^^^ | BR180: ^^^ | BS180: ^^^ | BT180: ^^^ | BU180: 0 | BV180: ^^^ | BW180: ^^^ | BX180: ^^^
A181: CFW839 | B181: H20 | C181: Community Based Mental Health Teams - Team Composition WTE | D181: Psychiatry - Trainees (FY1, FY2, CT1-CT3) | E181: Forensic | F181: ^^^ | G181: 0 | H181: ^^^ | I181: ^^^ | J181: 0.7 | K181: ^^^ | L181: ^^^ | M181: ^^^ | N181: ^^^ | O181: ^^^ | P181: ^^^ | Q181: 0 | R181: ^^^ | S181: ^^^ | T181: ^^^ | U181: ^^^ | V181: ^^^ | W181: ^^^ | X181: ^^^ | Y181: 0.3044327105 | Z181: 0 | AA181: ^^^ | AB181: ^^^ | AC181: ^^^ | AD181: 0 | AE181: 0.67 | AF181: ^^^ | AG181: 0.5 | AH181: ^^^ | AI181: ^^^ | AJ181: ^^^ | AK181: ^^^ | AL181: 0 | AM181: ^^^ | AN181: 0 | AO181: ^^^ | AP181: 0 | AQ181: 1.92 | AR181: ^^^ | AS181: ^^^ | AT181: 1.39 | AU181: ^^^ | AV181: ^^^ | AW181: 0 | AX181: 0.41 | AY181: ^^^ | AZ181: ^^^ | BA181: ^^^ | BB181: 0.07 | BC181: ^^^ | BD181: 0 | BE181: ^^^ | BF181: ^^^ | BG181: ^^^ | BH181: ^^^ | BI181: ^^^ | BJ181: 2 | BK181: 0 | BL181: ^^^ | BM181: ^^^ | BN181: ^^^ | BO181: ^^^ | BP181: ^^^ | BQ181: 5.5 | BR181: ^^^ | BS181: ^^^ | BT181: ^^^ | BU181: 0 | BV181: ^^^ | BW181: ^^^ | BX181: ^^^
A182: CFW840 | B182: I20 | C182: Community Based Mental Health Teams - Team Composition WTE | D182: Psychiatry - Trainees (FY1, FY2, CT1-CT3) | E182: Eating Disorders | F182: ^^^ | G182: 0 | H182: 1.8 | I182: ^^^ | J182: 0.39 | K182: ^^^ | L182: ^^^ | M182: ^^^ | N182: ^^^ | O182: 0.76 | P182: ^^^ | Q182: 0 | R182: 0.01 | S182: ^^^ | T182: ^^^ | U182: ^^^ | V182: ^^^ | W182: ^^^ | X182: ^^^ | Y182: 0.2535010023 | Z182: 0 | AA182: 0.53 | AB182: ^^^ | AC182: ^^^ | AD182: 0 | AE182: 0.03 | AF182: ^^^ | AG182: 1 | AH182: ^^^ | AI182: ^^^ | AJ182: ^^^ | AK182: ^^^ | AL182: 0 | AM182: 0 | AN182: 0 | AO182: ^^^ | AP182: 0 | AQ182: 0 | AR182: ^^^ | AS182: ^^^ | AT182: 0 | AU182: ^^^ | AV182: ^^^ | AW182: 0 | AX182: 0.74 | AY182: ^^^ | AZ182: ^^^ | BA182: ^^^ | BB182: ^^^ | BC182: ^^^ | BD182: 0 | BE182: ^^^ | BF182: ^^^ | BG182: ^^^ | BH182: ^^^ | BI182: ^^^ | BJ182: 0 | BK182: 0 | BL182: ^^^ | BM182: ^^^ | BN182: ^^^ | BO182: ^^^ | BP182: ^^^ | BQ182: 0.7 | BR182: ^^^ | BS182: ^^^ | BT182: ^^^ | BU182: 0 | BV182: ^^^ | BW182: ^^^ | BX182: ^^^
A183: CFW841 | B183: J20 | C183: Community Based Mental Health Teams - Team Composition WTE | D183: Psychiatry - Trainees (FY1, FY2, CT1-CT3) | E183: Mother and Baby | F183: ^^^ | G183: 0 | H183: ^^^ | I183: ^^^ | J183: 0.35 | K183: ^^^ | L183: ^^^ | M183: ^^^ | N183: ^^^ | O183: 0.12 | P183: ^^^ | Q183: ^^^ | R183: 0.91 | S183: ^^^ | T183: ^^^ | U183: ^^^ | V183: ^^^ | W183: ^^^ | X183: ^^^ | Y183: 0.06572248208 | Z183: 0 | AA183: ^^^ | AB183: ^^^ | AC183: ^^^ | AD183: 0 | AE183: ^^^ | AF183: ^^^ | AG183: 0.3 | AH183: ^^^ | AI183: ^^^ | AJ183: ^^^ | AK183: ^^^ | AL183: 0 | AM183: 1.14 | AN183: 0 | AO183: ^^^ | AP183: ^^^ | AQ183: 0 | AR183: ^^^ | AS183: ^^^ | AT183: 0 | AU183: ^^^ | AV183: ^^^ | AW183: 0 | AX183: 1.67 | AY183: ^^^ | AZ183: ^^^ | BA183: 0.38 | BB183: 0.96 | BC183: ^^^ | BD183: ^^^ | BE183: ^^^ | BF183: ^^^ | BG183: ^^^ | BH183: ^^^ | BI183: ^^^ | BJ183: 0 | BK183: ^^^ | BL183: ^^^ | BM183: ^^^ | BN183: ^^^ | BO183: ^^^ | BP183: ^^^ | BQ183: 0.7 | BR183: ^^^ | BS183: ^^^ | BT183: ^^^ | BU183: 0 | BV183: ^^^ | BW183: ^^^ | BX183: ^^^
A184: CFW842 | B184: K20 | C184: Community Based Mental Health Teams - Team Composition WTE | D184: Psychiatry - Trainees (FY1, FY2, CT1-CT3) | E184: Older People | F184: ^^^ | G184: 0 | H184: 5.5 | I184: ^^^ | J184: 6.02 | K184: ^^^ | L184: ^^^ | M184: ^^^ | N184: 2.5 | O184: 2.97 | P184: 6.9 | Q184: 0 | R184: ^^^ | S184: ^^^ | T184: ^^^ | U184: ^^^ | V184: ^^^ | W184: 0.78 | X184: ^^^ | Y184: 0.5386413991 | Z184: 0.94 | AA184: 2.47 | AB184: ^^^ | AC184: ^^^ | AD184: 0 | AE184: 1.45 | AF184: ^^^ | AG184: ^^^ | AH184: 1.86 | AI184: ^^^ | AJ184: ^^^ | AK184: ^^^ | AL184: 0 | AM184: 4.56 | AN184: 0 | AO184: ^^^ | AP184: 0 | AQ184: 4.1 | AR184: ^^^ | AS184: ^^^ | AT184: 0 | AU184: ^^^ | AV184: 2.25 | AW184: 0 | AX184: 6.64 | AY184: ^^^ | AZ184: 0.5 | BA184: 3.35 | BB184: 3.83 | BC184: 0.66 | BD184: 0 | BE184: ^^^ | BF184: 11 | BG184: ^^^ | BH184: ^^^ | BI184: ^^^ | BJ184: ^^^ | BK184: 0 | BL184: 0 | BM184: ^^^ | BN184: ^^^ | BO184: ^^^ | BP184: ^^^ | BQ184: 15.4 | BR184: 3 | BS184: 2.73 | BT184: 1.77 | BU184: 0 | BV184: 1.8 | BW184: ^^^ | BX184: ^^^
A185: CFW843 | B185: L20 | C185: Community Based Mental Health Teams - Team Composition WTE | D185: Psychiatry - Trainees (FY1, FY2, CT1-CT3) | E185: Memory Services | F185: ^^^ | G185: 0 | H185: 1 | I185: ^^^ | J185: 1 | K185: ^^^ | L185: ^^^ | M185: ^^^ | N185: 2 | O185: 0.24 | P185: 1.08 | Q185: ^^^ | R185: 0.72 | S185: ^^^ | T185: ^^^ | U185: ^^^ | V185: ^^^ | W185: ^^^ | X185: ^^^ | Y185: 5.492438317 | Z185: 0.53 | AA185: 1.1 | AB185: ^^^ | AC185: ^^^ | AD185: 0 | AE185: 0.79 | AF185: ^^^ | AG185: ^^^ | AH185: ^^^ | AI185: ^^^ | AJ185: ^^^ | AK185: ^^^ | AL185: 0 | AM185: 0 | AN185: 0 | AO185: ^^^ | AP185: 0 | AQ185: 1.29 | AR185: ^^^ | AS185: ^^^ | AT185: 0 | AU185: ^^^ | AV185: 1.75 | AW185: 0 | AX185: 1.88 | AY185: ^^^ | AZ185: ^^^ | BA185: 1.13 | BB185: 2.12 | BC185: ^^^ | BD185: ^^^ | BE185: ^^^ | BF185: ^^^ | BG185: ^^^ | BH185: ^^^ | BI185: ^^^ | BJ185: ^^^ | BK185: ^^^ | BL185: ^^^ | BM185: ^^^ | BN185: ^^^ | BO185: ^^^ | BP185: ^^^ | BQ185: ^^^ | BR185: ^^^ | BS185: ^^^ | BT185: ^^^ | BU185: ^^^ | BV185: ^^^ | BW185: ^^^ | BX185: ^^^
A186: CFW844 | B186: M20 | C186: Community Based Mental Health Teams - Team Composition WTE | D186: Psychiatry - Trainees (FY1, FY2, CT1-CT3) | E186: Other Adult CMHTs | F186: ^^^ | G186: 0 | H186: ^^^ | I186: ^^^ | J186: 3.67 | K186: ^^^ | L186: ^^^ | M186: ^^^ | N186: 2 | O186: 0.51 | P186: ^^^ | Q186: ^^^ | R186: 0.67 | S186: ^^^ | T186: ^^^ | U186: ^^^ | V186: ^^^ | W186: ^^^ | X186: ^^^ | Y186: 2.910438448 | Z186: 0.36 | AA186: 2.94 | AB186: ^^^ | AC186: ^^^ | AD186: 0 | AE186: 0.16 | AF186: ^^^ | AG186: ^^^ | AH186: ^^^ | AI186: ^^^ | AJ186: ^^^ | AK186: ^^^ | AL186: 0 | AM186: 1.53 | AN186: 0 | AO186: ^^^ | AP186: ^^^ | AQ186: 0 | AR186: ^^^ | AS186: ^^^ | AT186: 0 | AU186: ^^^ | AV186: 0 | AW186: 0 | AX186: 7.44 | AY186: ^^^ | AZ186: ^^^ | BA186: 2.09 | BB186: 0 | BC186: ^^^ | BD186: 1 | BE186: ^^^ | BF186: ^^^ | BG186: 0.84 | BH186: ^^^ | BI186: ^^^ | BJ186: 3 | BK186: 0 | BL186: ^^^ | BM186: ^^^ | BN186: ^^^ | BO186: ^^^ | BP186: ^^^ | BQ186: 10.2 | BR186: ^^^ | BS186: ^^^ | BT186: ^^^ | BU186: 0 | BV186: ^^^ | BW186: ^^^ | BX186: ^^^
A187: CFW845 | B187: N20 | C187: Community Based Mental Health Teams - Team Composition WTE | D187: Psychiatry - Trainees (FY1, FY2, CT1-CT3) | E187: Totals | F187: 0 | G187: 1 | H187: 24.8 | I187: 0 | J187: 37.58 | K187: 0 | L187: 0 | M187: 0 | N187: 24 | O187: 13.14 | P187: 26.92 | Q187: 2.8 | R187: 8.23 | S187: 0 | T187: 0 | U187: 0 | V187: 1 | W187: 1.78 | X187: 0 | Y187: 20.11451395 | Z187: 18.205 | AA187: 17.24 | AB187: 0 | AC187: 0 | AD187: 0 | AE187: 17.44 | AF187: 0 | AG187: 4.2 | AH187: 2.36 | AI187: 0 | AJ187: 0 | AK187: 0 | AL187: 0 | AM187: 21.89 | AN187: 0 | AO187: 0 | AP187: 0 | AQ187: 12.64 | AR187: 4 | AS187: 0 | AT187: 1.39 | AU187: 0 | AV187: 6 | AW187: 0 | AX187: 47.08 | AY187: 2 | AZ187: 0.5 | BA187: 20.84 | BB187: 15.48 | BC187: 0.66 | BD187: 18.16 | BE187: 0 | BF187: 38.9 | BG187: 21.35 | BH187: 0 | BI187: 0 | BJ187: 16.8 | BK187: 8.8 | BL187: 3.25 | BM187: 0 | BN187: 0 | BO187: 0 | BP187: 0 | BQ187: 66.8 | BR187: 5.4 | BS187: 10.31 | BT187: 4.44 | BU187: 3 | BV187: 16.3 | BW187: 0 | BX187: 0
A188: CFW196 | B188: B21 | C188: Community Based Mental Health Teams - Team Composition WTE | D188: Psychotherapists | E188: Generic CMHT | F188: ^^^ | G188: 0.8 | H188: 3 | I188: ^^^ | J188: 1 | K188: ^^^ | L188: ^^^ | M188: ^^^ | N188: ^^^ | O188: ^^^ | P188: 3.75 | Q188: 0 | R188: ^^^ | S188: ^^^ | T188: ^^^ | U188: ^^^ | V188: ^^^ | W188: ^^^ | X188: 3.47 | Y188: 5.06 | Z188: 0 | AA188: 1.99 | AB188: ^^^ | AC188: ^^^ | AD188: 0 | AE188: 0 | AF188: ^^^ | AG188: 0.22 | AH188: ^^^ | AI188: ^^^ | AJ188: 5 | AK188: ^^^ | AL188: 18.28 | AM188: 0 | AN188: 0 | AO188: ^^^ | AP188: 0 | AQ188: 0 | AR188: ^^^ | AS188: 20.16 | AT188: 6.05 | AU188: ^^^ | AV188: 0 | AW188: 4.2 | AX188: 4.8 | AY188: ^^^ | AZ188: ^^^ | BA188: 2 | BB188: 12.61 | BC188: 1.16 | BD188: 0 | BE188: ^^^ | BF188: ^^^ | BG188: ^^^ | BH188: ^^^ | BI188: ^^^ | BJ188: 0 | BK188: 0 | BL188: 0 | BM188: ^^^ | BN188: ^^^ | BO188: ^^^ | BP188: ^^^ | BQ188: ^^^ | BR188: ^^^ | BS188: ^^^ | BT188: ^^^ | BU188: 0.8 | BV188: ^^^ | BW188: ^^^ | BX188: ^^^
A189: CFW197 | B189: C21 | C189: Community Based Mental Health Teams - Team Composition WTE | D189: Psychotherapists | E189: CRHT | F189: ^^^ | G189: 0 | H189: 1.5 | I189: ^^^ | J189: 0 | K189: ^^^ | L189: 16 | M189: ^^^ | N189: ^^^ | O189: ^^^ | P189: ^^^ | Q189: 0 | R189: ^^^ | S189: ^^^ | T189: ^^^ | U189: ^^^ | V189: ^^^ | W189: ^^^ | X189: 1.95 | Y189: ^^^ | Z189: 0 | AA189: ^^^ | AB189: ^^^ | AC189: ^^^ | AD189: 0 | AE189: ^^^ | AF189: ^^^ | AG189: ^^^ | AH189: ^^^ | AI189: ^^^ | AJ189: ^^^ | AK189: ^^^ | AL189: 0 | AM189: 0 | AN189: 0 | AO189: 1.4 | AP189: 0 | AQ189: 0 | AR189: ^^^ | AS189: ^^^ | AT189: 0.03 | AU189: ^^^ | AV189: 0 | AW189: 0 | AX189: 0.02x | AY189: ^^^ | AZ189: ^^^ | BA189: ^^^ | BB189: 0 | BC189: 0.4 | BD189: 0 | BE189: ^^^ | BF189: ^^^ | BG189: ^^^ | BH189: ^^^ | BI189: ^^^ | BJ189: 0 | BK189: 0 | BL189: 0 | BM189: ^^^ | BN189: ^^^ | BO189: ^^^ | BP189: ^^^ | BQ189: ^^^ | BR189: ^^^ | BS189: ^^^ | BT189: ^^^ | BU189: 0 | BV189: ^^^ | BW189: ^^^ | BX189: ^^^
A190: CFW198 | B190: D21 | C190: Community Based Mental Health Teams - Team Composition WTE | D190: Psychotherapists | E190: Assertive Outreach | F190: ^^^ | G190: 0 | H190: ^^^ | I190: ^^^ | J190: 0 | K190: ^^^ | L190: ^^^ | M190: ^^^ | N190: ^^^ | O190: ^^^ | P190: ^^^ | Q190: ^^^ | R190: ^^^ | S190: ^^^ | T190: ^^^ | U190: ^^^ | V190: ^^^ | W190: ^^^ | X190: ^^^ | Y190: ^^^ | Z190: 0 | AA190: ^^^ | AB190: ^^^ | AC190: ^^^ | AD190: 0 | AE190: ^^^ | AF190: ^^^ | AG190: 0.03 | AH190: ^^^ | AI190: ^^^ | AJ190: ^^^ | AK190: ^^^ | AL190: ^^^ | AM190: ^^^ | AN190: 0 | AO190: ^^^ | AP190: ^^^ | AQ190: 0 | AR190: ^^^ | AS190: 3 | AT190: 0 | AU190: ^^^ | AV190: 0 | AW190: 0 | AX190: ^^^ | AY190: ^^^ | AZ190: ^^^ | BA190: ^^^ | BB190: ^^^ | BC190: ^^^ | BD190: ^^^ | BE190: ^^^ | BF190: ^^^ | BG190: ^^^ | BH190: ^^^ | BI190: ^^^ | BJ190: ^^^ | BK190: ^^^ | BL190: ^^^ | BM190: ^^^ | BN190: ^^^ | BO190: ^^^ | BP190: ^^^ | BQ190: ^^^ | BR190: ^^^ | BS190: ^^^ | BT190: ^^^ | BU190: 0 | BV190: ^^^ | BW190: ^^^ | BX190: ^^^
A191: CFW199 | B191: E21 | C191: Community Based Mental Health Teams - Team Composition WTE | D191: Psychotherapists | E191: Early Intervention (incl Early Onset Psychosis) | F191: ^^^ | G191: 0 | H191: ^^^ | I191: ^^^ | J191: 0 | K191: ^^^ | L191: 3.8 | M191: ^^^ | N191: ^^^ | O191: ^^^ | P191: ^^^ | Q191: 0 | R191: ^^^ | S191: ^^^ | T191: ^^^ | U191: ^^^ | V191: ^^^ | W191: ^^^ | X191: ^^^ | Y191: ^^^ | Z191: 0 | AA191: ^^^ | AB191: ^^^ | AC191: ^^^ | AD191: 2.8 | AE191: 0 | AF191: ^^^ | AG191: ^^^ | AH191: ^^^ | AI191: ^^^ | AJ191: ^^^ | AK191: ^^^ | AL191: ^^^ | AM191: 0 | AN191: 0 | AO191: ^^^ | AP191: 0 | AQ191: 0 | AR191: ^^^ | AS191: ^^^ | AT191: 0.05 | AU191: ^^^ | AV191: 0 | AW191: 0 | AX191: 0 | AY191: ^^^ | AZ191: ^^^ | BA191: ^^^ | BB191: 0 | BC191: 0.32 | BD191: 0 | BE191: ^^^ | BF191: ^^^ | BG191: ^^^ | BH191: ^^^ | BI191: ^^^ | BJ191: 0 | BK191: 0 | BL191: ^^^ | BM191: ^^^ | BN191: ^^^ | BO191: ^^^ | BP191: ^^^ | BQ191: ^^^ | BR191: ^^^ | BS191: ^^^ | BT191: ^^^ | BU191: 0 | BV191: ^^^ | BW191: ^^^ | BX191: ^^^
A192: CFW200 | B192: F21 | C192: Community Based Mental Health Teams - Team Composition WTE | D192: Psychotherapists | E192: Assessment & Brief Intervention (incl PMHT) | F192: 75.75 | G192: 0 | H192: 1 | I192: 0.75 | J192: ^^^ | K192: ^^^ | L192: ^^^ | M192: 17.18 | N192: 0.2 | O192: ^^^ | P192: ^^^ | Q192: ^^^ | R192: ^^^ | S192: ^^^ | T192: ^^^ | U192: ^^^ | V192: ^^^ | W192: ^^^ | X192: ^^^ | Y192: ^^^ | Z192: 0 | AA192: ^^^ | AB192: ^^^ | AC192: ^^^ | AD192: 0 | AE192: 0 | AF192: ^^^ | AG192: 0.01x | AH192: ^^^ | AI192: ^^^ | AJ192: ^^^ | AK192: ^^^ | AL192: 0 | AM192: 0 | AN192: 0 | AO192: 33.3 | AP192: 0 | AQ192: 0 | AR192: ^^^ | AS192: ^^^ | AT192: 0 | AU192: ^^^ | AV192: 17.76 | AW192: 0 | AX192: 0 | AY192: ^^^ | AZ192: ^^^ | BA192: ^^^ | BB192: ^^^ | BC192: ^^^ | BD192: ^^^ | BE192: ^^^ | BF192: ^^^ | BG192: ^^^ | BH192: ^^^ | BI192: ^^^ | BJ192: 0 | BK192: 0 | BL192: 0 | BM192: ^^^ | BN192: ^^^ | BO192: ^^^ | BP192: ^^^ | BQ192: ^^^ | BR192: ^^^ | BS192: 3.8 | BT192: ^^^ | BU192: 0 | BV192: ^^^ | BW192: ^^^ | BX192: ^^^
A193: CFW201 | B193: G21 | C193: Community Based Mental Health Teams - Team Composition WTE | D193: Psychotherapists | E193: Rehabilitation and Recovery | F193: ^^^ | G193: 0 | H193: 1 | I193: ^^^ | J193: ^^^ | K193: ^^^ | L193: ^^^ | M193: ^^^ | N193: ^^^ | O193: ^^^ | P193: ^^^ | Q193: ^^^ | R193: ^^^ | S193: ^^^ | T193: ^^^ | U193: ^^^ | V193: ^^^ | W193: ^^^ | X193: ^^^ | Y193: ^^^ | Z193: 0 | AA193: ^^^ | AB193: ^^^ | AC193: ^^^ | AD193: 0 | AE193: ^^^ | AF193: ^^^ | AG193: ^^^ | AH193: ^^^ | AI193: ^^^ | AJ193: ^^^ | AK193: ^^^ | AL193: ^^^ | AM193: ^^^ | AN193: 0 | AO193: ^^^ | AP193: ^^^ | AQ193: 0 | AR193: ^^^ | AS193: ^^^ | AT193: 0.12 | AU193: ^^^ | AV193: ^^^ | AW193: ^^^ | AX193: 2.35 | AY193: ^^^ | AZ193: ^^^ | BA193: ^^^ | BB193: ^^^ | BC193: 0.01x | BD193: ^^^ | BE193: ^^^ | BF193: ^^^ | BG193: ^^^ | BH193: ^^^ | BI193: ^^^ | BJ193: 0 | BK193: 0 | BL193: ^^^ | BM193: ^^^ | BN193: ^^^ | BO193: ^^^ | BP193: ^^^ | BQ193: ^^^ | BR193: ^^^ | BS193: ^^^ | BT193: ^^^ | BU193: 0 | BV193: ^^^ | BW193: ^^^ | BX193: ^^^
A194: CFW202 | B194: H21 | C194: Community Based Mental Health Teams - Team Composition WTE | D194: Psychotherapists | E194: Forensic | F194: ^^^ | G194: 0 | H194: ^^^ | I194: ^^^ | J194: 0 | K194: ^^^ | L194: ^^^ | M194: ^^^ | N194: ^^^ | O194: ^^^ | P194: ^^^ | Q194: 0 | R194: ^^^ | S194: ^^^ | T194: ^^^ | U194: ^^^ | V194: ^^^ | W194: ^^^ | X194: ^^^ | Y194: ^^^ | Z194: 0 | AA194: ^^^ | AB194: ^^^ | AC194: ^^^ | AD194: 0 | AE194: ^^^ | AF194: ^^^ | AG194: ^^^ | AH194: ^^^ | AI194: ^^^ | AJ194: ^^^ | AK194: ^^^ | AL194: 3.61 | AM194: ^^^ | AN194: 0 | AO194: ^^^ | AP194: 0 | AQ194: 0 | AR194: ^^^ | AS194: ^^^ | AT194: ^^^ | AU194: ^^^ | AV194: ^^^ | AW194: 0 | AX194: 0 | AY194: ^^^ | AZ194: ^^^ | BA194: ^^^ | BB194: 0 | BC194: ^^^ | BD194: 0 | BE194: ^^^ | BF194: ^^^ | BG194: ^^^ | BH194: ^^^ | BI194: ^^^ | BJ194: 0 | BK194: 0 | BL194: ^^^ | BM194: ^^^ | BN194: ^^^ | BO194: ^^^ | BP194: ^^^ | BQ194: ^^^ | BR194: ^^^ | BS194: ^^^ | BT194: ^^^ | BU194: 0.6 | BV194: ^^^ | BW194: ^^^ | BX194: ^^^
A195: CFW203 | B195: I21 | C195: Community Based Mental Health Teams - Team Composition WTE | D195: Psychotherapists | E195: Eating Disorders | F195: 3 | G195: 1 | H195: 2 | I195: ^^^ | J195: 0 | K195: ^^^ | L195: ^^^ | M195: 1 | N195: ^^^ | O195: ^^^ | P195: 7.65 | Q195: 0 | R195: ^^^ | S195: ^^^ | T195: ^^^ | U195: ^^^ | V195: 0.6666666667 | W195: ^^^ | X195: 1.8 | Y195: 1 | Z195: 0 | AA195: ^^^ | AB195: ^^^ | AC195: ^^^ | AD195: 0 | AE195: ^^^ | AF195: ^^^ | AG195: 0.18 | AH195: ^^^ | AI195: ^^^ | AJ195: 1.8 | AK195: 0.9 | AL195: 3.61 | AM195: 1.9 | AN195: 0 | AO195: 2 | AP195: 0 | AQ195: 0 | AR195: ^^^ | AS195: ^^^ | AT195: 0 | AU195: ^^^ | AV195: ^^^ | AW195: 0 | AX195: 0 | AY195: ^^^ | AZ195: ^^^ | BA195: 1.6 | BB195: ^^^ | BC195: ^^^ | BD195: 0.36 | BE195: ^^^ | BF195: ^^^ | BG195: ^^^ | BH195: ^^^ | BI195: ^^^ | BJ195: 0 | BK195: 0 | BL195: ^^^ | BM195: ^^^ | BN195: ^^^ | BO195: ^^^ | BP195: ^^^ | BQ195: ^^^ | BR195: ^^^ | BS195: ^^^ | BT195: ^^^ | BU195: 0 | BV195: ^^^ | BW195: 0.8 | BX195: ^^^
A196: CFW204 | B196: J21 | C196: Community Based Mental Health Teams - Team Composition WTE | D196: Psychotherapists | E196: Mother and Baby | F196: ^^^ | G196: 0 | H196: ^^^ | I196: ^^^ | J196: 0 | K196: ^^^ | L196: 0.6 | M196: ^^^ | N196: ^^^ | O196: ^^^ | P196: 1.41 | Q196: ^^^ | R196: ^^^ | S196: ^^^ | T196: ^^^ | U196: ^^^ | V196: 0.37 | W196: ^^^ | X196: ^^^ | Y196: ^^^ | Z196: 0 | AA196: ^^^ | AB196: ^^^ | AC196: ^^^ | AD196: 0 | AE196: ^^^ | AF196: ^^^ | AG196: ^^^ | AH196: ^^^ | AI196: ^^^ | AJ196: ^^^ | AK196: ^^^ | AL196: 0.8 | AM196: 3.7 | AN196: 0 | AO196: ^^^ | AP196: ^^^ | AQ196: 0 | AR196: ^^^ | AS196: 0.75 | AT196: 0.08 | AU196: ^^^ | AV196: ^^^ | AW196: 0 | AX196: 0 | AY196: ^^^ | AZ196: ^^^ | BA196: ^^^ | BB196: 0 | BC196: ^^^ | BD196: ^^^ | BE196: ^^^ | BF196: ^^^ | BG196: ^^^ | BH196: ^^^ | BI196: ^^^ | BJ196: 0 | BK196: ^^^ | BL196: ^^^ | BM196: ^^^ | BN196: ^^^ | BO196: ^^^ | BP196: ^^^ | BQ196: ^^^ | BR196: ^^^ | BS196: ^^^ | BT196: ^^^ | BU196: 0 | BV196: ^^^ | BW196: ^^^ | BX196: ^^^
A197: CFW205 | B197: K21 | C197: Community Based Mental Health Teams - Team Composition WTE | D197: Psychotherapists | E197: Older People | F197: ^^^ | G197: 0 | H197: 14.8 | I197: ^^^ | J197: 0 | K197: ^^^ | L197: ^^^ | M197: 1.97 | N197: ^^^ | O197: ^^^ | P197: 1.25 | Q197: 0 | R197: ^^^ | S197: ^^^ | T197: ^^^ | U197: ^^^ | V197: ^^^ | W197: ^^^ | X197: ^^^ | Y197: ^^^ | Z197: 0 | AA197: ^^^ | AB197: ^^^ | AC197: ^^^ | AD197: 0.1x | AE197: ^^^ | AF197: ^^^ | AG197: ^^^ | AH197: ^^^ | AI197: ^^^ | AJ197: ^^^ | AK197: ^^^ | AL197: 0.66 | AM197: 0 | AN197: 0 | AO197: ^^^ | AP197: 0 | AQ197: 0 | AR197: ^^^ | AS197: ^^^ | AT197: 0 | AU197: ^^^ | AV197: 0 | AW197: 0 | AX197: 0.64 | AY197: ^^^ | AZ197: 0 | BA197: ^^^ | BB197: 0 | BC197: ^^^ | BD197: 0 | BE197: ^^^ | BF197: ^^^ | BG197: ^^^ | BH197: ^^^ | BI197: ^^^ | BJ197: ^^^ | BK197: 0 | BL197: 0 | BM197: ^^^ | BN197: ^^^ | BO197: ^^^ | BP197: ^^^ | BQ197: ^^^ | BR197: ^^^ | BS197: ^^^ | BT197: ^^^ | BU197: 0 | BV197: ^^^ | BW197: ^^^ | BX197: ^^^
A198: CFW206 | B198: L21 | C198: Community Based Mental Health Teams - Team Composition WTE | D198: Psychotherapists | E198: Memory Services | F198: ^^^ | G198: 0 | H198: ^^^ | I198: ^^^ | J198: 0 | K198: ^^^ | L198: ^^^ | M198: ^^^ | N198: ^^^ | O198: ^^^ | P198: ^^^ | Q198: ^^^ | R198: ^^^ | S198: ^^^ | T198: ^^^ | U198: ^^^ | V198: ^^^ | W198: ^^^ | X198: ^^^ | Y198: ^^^ | Z198: 0 | AA198: ^^^ | AB198: ^^^ | AC198: ^^^ | AD198: 0 | AE198: ^^^ | AF198: ^^^ | AG198: ^^^ | AH198: ^^^ | AI198: ^^^ | AJ198: ^^^ | AK198: ^^^ | AL198: 0.44 | AM198: 0 | AN198: 0 | AO198: ^^^ | AP198: 0 | AQ198: 0 | AR198: ^^^ | AS198: ^^^ | AT198: 0 | AU198: ^^^ | AV198: 0 | AW198: 0 | AX198: 0.16 | AY198: ^^^ | AZ198: ^^^ | BA198: ^^^ | BB198: 0 | BC198: ^^^ | BD198: ^^^ | BE198: ^^^ | BF198: ^^^ | BG198: ^^^ | BH198: ^^^ | BI198: ^^^ | BJ198: ^^^ | BK198: ^^^ | BL198: ^^^ | BM198: ^^^ | BN198: ^^^ | BO198: ^^^ | BP198: ^^^ | BQ198: ^^^ | BR198: ^^^ | BS198: ^^^ | BT198: ^^^ | BU198: ^^^ | BV198: ^^^ | BW198: ^^^ | BX198: ^^^
A199: CFW207 | B199: M21 | C199: Community Based Mental Health Teams - Team Composition WTE | D199: Psychotherapists | E199: Other Adult CMHTs | F199: 0.6 | G199: 0 | H199: ^^^ | I199: ^^^ | J199: 0.91 | K199: ^^^ | L199: ^^^ | M199: ^^^ | N199: 0.1 | O199: ^^^ | P199: ^^^ | Q199: ^^^ | R199: ^^^ | S199: ^^^ | T199: ^^^ | U199: 7.55 | V199: ^^^ | W199: ^^^ | X199: 102.48 | Y199: 6.9768 | Z199: 3.23 | AA199: ^^^ | AB199: 0.6 | AC199: ^^^ | AD199: 32.84 | AE199: ^^^ | AF199: ^^^ | AG199: 13.33 | AH199: ^^^ | AI199: 10.02 | AJ199: ^^^ | AK199: ^^^ | AL199: 0 | AM199: 5.89 | AN199: 0 | AO199: ^^^ | AP199: ^^^ | AQ199: 0 | AR199: ^^^ | AS199: ^^^ | AT199: 18.89 | AU199: ^^^ | AV199: 0 | AW199: 0 | AX199: 0.95 | AY199: ^^^ | AZ199: ^^^ | BA199: 5.34 | BB199: 0 | BC199: ^^^ | BD199: 7.16 | BE199: ^^^ | BF199: ^^^ | BG199: 1.7 | BH199: ^^^ | BI199: ^^^ | BJ199: 0 | BK199: 0 | BL199: ^^^ | BM199: ^^^ | BN199: ^^^ | BO199: ^^^ | BP199: ^^^ | BQ199: ^^^ | BR199: ^^^ | BS199: ^^^ | BT199: ^^^ | BU199: 0 | BV199: ^^^ | BW199: ^^^ | BX199: ^^^
A200: CFW208 | B200: N21 | C200: Community Based Mental Health Teams - Team Composition WTE | D200: Psychotherapists | E200: Totals | F200: 79.35 | G200: 1.8 | H200: 23.3 | I200: 0.75 | J200: 1.91 | K200: 0 | L200: 20.4 | M200: 20.15 | N200: 0.3 | O200: 0 | P200: 14.06 | Q200: 0 | R200: 0 | S200: 0 | T200: 0 | U200: 7.55 | V200: 1.036666667 | W200: 0 | X200: 109.7 | Y200: 13.0368 | Z200: 3.23 | AA200: 1.99 | AB200: 0.6 | AC200: 0 | AD200: 35.64 | AE200: 0 | AF200: 0 | AG200: 13.76 | AH200: 0 | AI200: 10.02 | AJ200: 6.8 | AK200: 0.9 | AL200: 27.4 | AM200: 11.49 | AN200: 0 | AO200: 36.7 | AP200: 0 | AQ200: 0 | AR200: 0 | AS200: 23.91 | AT200: 25.22 | AU200: 0 | AV200: 17.76 | AW200: 4.2 | AX200: 8.9 | AY200: 0 | AZ200: 0 | BA200: 8.94 | BB200: 12.61 | BC200: 1.88 | BD200: 7.52 | BE200: 0 | BF200: 0 | BG200: 1.7 | BH200: 0 | BI200: 0 | BJ200: 0 | BK200: 0 | BL200: 0 | BM200: 0 | BN200: 0 | BO200: 0 | BP200: 0 | BQ200: 0 | BR200: 0 | BS200: 3.8 | BT200: 0 | BU200: 1.4 | BV200: 0 | BW200: 0.8 | BX200: 0
A201: CFW144 | B201: B22 | C201: Community Based Mental Health Teams - Team Composition WTE | D201: Pharmacy staff | E201: Generic CMHT | F201: ^^^ | G201: 0 | H201: 3 | I201: ^^^ | J201: 0 | K201: ^^^ | L201: ^^^ | M201: ^^^ | N201: ^^^ | O201: ^^^ | P201: ^^^ | Q201: 0 | R201: ^^^ | S201: ^^^ | T201: ^^^ | U201: ^^^ | V201: ^^^ | W201: ^^^ | X201: ^^^ | Y201: 8.37 | Z201: 0 | AA201: ^^^ | AB201: ^^^ | AC201: ^^^ | AD201: 0 | AE201: ^^^ | AF201: ^^^ | AG201: ^^^ | AH201: ^^^ | AI201: 3 | AJ201: ^^^ | AK201: 2 | AL201: 0.4 | AM201: ^^^ | AN201: 0 | AO201: ^^^ | AP201: 0 | AQ201: 0 | AR201: ^^^ | AS201: ^^^ | AT201: 0 | AU201: ^^^ | AV201: 0 | AW201: 0 | AX201: ^^^ | AY201: ^^^ | AZ201: ^^^ | BA201: ^^^ | BB201: 0 | BC201: ^^^ | BD201: 0 | BE201: ^^^ | BF201: ^^^ | BG201: 0 | BH201: ^^^ | BI201: ^^^ | BJ201: 0 | BK201: 0 | BL201: 0 | BM201: ^^^ | BN201: ^^^ | BO201: ^^^ | BP201: ^^^ | BQ201: ^^^ | BR201: ^^^ | BS201: ^^^ | BT201: ^^^ | BU201: 3.12 | BV201: ^^^ | BW201: ^^^ | BX201: ^^^
A202: CFW145 | B202: C22 | C202: Community Based Mental Health Teams - Team Composition WTE | D202: Pharmacy staff | E202: CRHT | F202: ^^^ | G202: 0 | H202: ^^^ | I202: ^^^ | J202: 0 | K202: ^^^ | L202: ^^^ | M202: ^^^ | N202: ^^^ | O202: ^^^ | P202: ^^^ | Q202: 0 | R202: ^^^ | S202: ^^^ | T202: ^^^ | U202: ^^^ | V202: ^^^ | W202: ^^^ | X202: ^^^ | Y202: ^^^ | Z202: 0 | AA202: ^^^ | AB202: ^^^ | AC202: ^^^ | AD202: 0 | AE202: ^^^ | AF202: ^^^ | AG202: ^^^ | AH202: ^^^ | AI202: ^^^ | AJ202: ^^^ | AK202: ^^^ | AL202: 0 | AM202: ^^^ | AN202: 0 | AO202: 0.8 | AP202: 0 | AQ202: 0 | AR202: ^^^ | AS202: ^^^ | AT202: 0 | AU202: ^^^ | AV202: 0 | AW202: 0 | AX202: ^^^ | AY202: ^^^ | AZ202: ^^^ | BA202: ^^^ | BB202: 0 | BC202: ^^^ | BD202: 0 | BE202: ^^^ | BF202: ^^^ | BG202: 1.87 | BH202: ^^^ | BI202: ^^^ | BJ202: 0 | BK202: 0 | BL202: 1 | BM202: ^^^ | BN202: ^^^ | BO202: ^^^ | BP202: ^^^ | BQ202: ^^^ | BR202: ^^^ | BS202: ^^^ | BT202: ^^^ | BU202: 0.78 | BV202: ^^^ | BW202: ^^^ | BX202: ^^^
A203: CFW146 | B203: D22 | C203: Community Based Mental Health Teams - Team Composition WTE | D203: Pharmacy staff | E203: Assertive Outreach | F203: ^^^ | G203: 0 | H203: ^^^ | I203: ^^^ | J203: 0 | K203: ^^^ | L203: ^^^ | M203: ^^^ | N203: ^^^ | O203: ^^^ | P203: ^^^ | Q203: ^^^ | R203: ^^^ | S203: ^^^ | T203: ^^^ | U203: ^^^ | V203: ^^^ | W203: ^^^ | X203: ^^^ | Y203: ^^^ | Z203: 0 | AA203: ^^^ | AB203: ^^^ | AC203: ^^^ | AD203: 0 | AE203: ^^^ | AF203: ^^^ | AG203: ^^^ | AH203: ^^^ | AI203: 1 | AJ203: ^^^ | AK203: ^^^ | AL203: ^^^ | AM203: ^^^ | AN203: 0 | AO203: ^^^ | AP203: ^^^ | AQ203: 0 | AR203: ^^^ | AS203: ^^^ | AT203: 0 | AU203: ^^^ | AV203: 0 | AW203: 0 | AX203: ^^^ | AY203: ^^^ | AZ203: ^^^ | BA203: ^^^ | BB203: ^^^ | BC203: ^^^ | BD203: ^^^ | BE203: ^^^ | BF203: ^^^ | BG203: ^^^ | BH203: ^^^ | BI203: ^^^ | BJ203: ^^^ | BK203: ^^^ | BL203: ^^^ | BM203: ^^^ | BN203: ^^^ | BO203: ^^^ | BP203: ^^^ | BQ203: ^^^ | BR203: ^^^ | BS203: ^^^ | BT203: ^^^ | BU203: 0 | BV203: ^^^ | BW203: ^^^ | BX203: ^^^
... 335 more rows

Sheet CM (hidden)
F4: MH30 | G4: MH04 | H4: MH44 | I4: MH33 | J4: MH10 | K4: MH34 | L4: MH29 | M4: MH63 | N4: MH11 | O4: MH38 | P4: MH23 | Q4: MH12 | R4: MH40 | S4: MH39 | T4: MH56 | U4: MH27 | V4: MH05 | W4: MH53 | X4: MH48 | Y4: MH72 | Z4: MH74 | AA4: MH21 | AB4: MH06 | AC4: MH61 | AD4: MH25 | AE4: MH41 | AF4: MH57 | AG4: MH36 | AH4: MH02 | AI4: MH43 | AJ4: MH37 | AK4: MH18 | AL4: MH15 | AM4: MH65 | AN4: MH60 | AO4: MH42 | AP4: MH54 | AQ4: MH28 | AR4: MH24 | AS4: MH17 | AT4: MH35 | AU4: MH26 | AV4: MH66 | AW4: MH07 | AX4: MH09 | AY4: MH45 | AZ4: MH19 | BA4: MH22 | BB4: MH32 | BC4: MH20 | BD4: MH50 | BE4: MH03 | BF4: MH08 | BG4: MH52 | BH4: MH64 | BI4: MH69 | BJ4: MH68 | BK4: MH70 | BL4: MH84 | BM4: MH80 | BN4: MH81 | BO4: MH82 | BP4: MH31 | BQ4: MH16 | BR4: MH01 | BS4: MH55 | BT4: MH67 | BU4: MH51 | BV4: MH58 | BW4: MH59 | BX4: MH71
A5: Unique Ref. | B5: Cell Ref | C5: Title | D5: Sub Title | E5: Line | F5: Q39 | G5: Q39 | H5: Q36 | I5: Q38 | J5: Q34 | K5: Q34 | L5: Q32 | M5: Q35 | N5: Q36 | O5: Q31 | P5: Q36 | Q5: Q39 | R5: Q34 | S5: Q31 | T5: Q33 | U5: Q39 | V5: Q39 | W5: Q34 | X5: Q36 | Y5: Q35 | Z5: Q31 | AA5: Q35 | AB5: Q32 | AC5: Q38 | AD5: Q37 | AE5: Q31 | AF5: Q32 | AG5: Q33 | AH5: Q33 | AI5: Q39 | AJ5: Q31 | AK5: Q34 | AL5: Q35 | AM5: Q36 | AN5: Q34 | AO5: Q31 | AP5: Q33 | AQ5: Q32 | AR5: Q33 | AS5: Q38 | AT5: Q36 | AU5: Q31 | AV5: Q32 | AW5: Q32 | AX5: Q36 | AY5: Q38 | AZ5: Q39 | BA5: Q36 | BB5: Q32 | BC5: Q38 | BD5: Q37 | BE5: Q37 | BF5: Q32 | BG5: Q36 | BH5: Q34 | BI5: Q80 | BJ5: Q97 | BK5: Q97 | BL5: Q97 | BM5: Q70 | BN5: Q70 | BO5: Q70 | BP5: Q71 | BQ5: Q98 | BR5: Q99 | BS5: Q99 | BT5: Q99 | BU5: Q99 | BV5: Q99 | BW5: Q99 | BX5: Q99
A6: CM1 | B6: B6 | C6: Community Based Mental Health Teams - Profiles | D6: Community Team Population Served (Registered Population) | E6: Generic CMHT | F6: 512323 | G6: 1211736 | H6: 712618 | I6: 647217 | J6: 794234 | K6: 395406 | L6: 396893 | M6: 614721 | N6: ^^^ | O6: 900567 | P6: 1189943 | Q6: 340386 | R6: ^^^ | S6: 320377 | T6: 862478 | U6: 761049 | V6: 480926 | W6: 366461 | X6: 1180137 | Y6: 851443.6935 | Z6: 950188.3064 | AA6: 797183 | AB6: 373796 | AC6: ^^^ | AD6: 1151698.54 | AE6: 968915 | AF6: 706481 | AG6: 711023 | AH6: ^^^ | AI6: 178011 | AJ6: 551865 | AK6: 929575 | AL6: 1028610 | AM6: 733165 | AN6: 318112 | AO6: 662188.4083 | AP6: 479344 | AQ6: 967735 | AR6: 760770 | AS6: 1041045.561 | AT6: 570447 | AU6: 783814 | AV6: 469884 | AW6: 389893 | AX6: 1175016.621 | AY6: 151997 | AZ6: 470730 | BA6: 1005397 | BB6: 811732 | BC6: 930515.9961 | BD6: 890618 | BE6: 1455839 | BF6: 1235733 | BG6: 680824 | BH6: 345043 | BI6: 67952 | BJ6: ^^^ | BK6: 284517 | BL6: 220568 | BM6: ^^^ | BN6: ^^^ | BO6: ^^^ | BP6: ^^^ | BQ6: 858053 | BR6: 351961 | BS6: 500368 | BT6: 589085 | BU6: 343016 | BV6: 193014 | BW6: 231624 | BX6: 74238
A7: CM2 | B7: C6 | C7: Community Based Mental Health Teams - Profiles | D7: Community Team Population Served (Registered Population) | E7: CRHT | F7: 686973 | G7: 1546122 | H7: 712618 | I7: 647217 | J7: 998861 | K7: 395406 | L7: 488867 | M7: 614721 | N7: ^^^ | O7: 900567 | P7: 1189943 | Q7: 340386 | R7: ^^^ | S7: 438133 | T7: 862478 | U7: 761049 | V7: 480926 | W7: 366461 | X7: 1180137 | Y7: 1160640.576 | Z7: 950188.3064 | AA7: 797183 | AB7: 373796 | AC7: ^^^ | AD7: 1151698.54 | AE7: 968915 | AF7: 706481 | AG7: 711023 | AH7: ^^^ | AI7: 227466 | AJ7: ^^^ | AK7: ^^^ | AL7: 1028610 | AM7: 733165 | AN7: 318112 | AO7: 662188.4083 | AP7: 479344 | AQ7: 967735 | AR7: 760770 | AS7: ^^^ | AT7: 570447 | AU7: 990886 | AV7: 469884 | AW7: 389893 | AX7: 1175016.621 | AY7: 151997 | AZ7: 470730 | BA7: 1005397 | BB7: 811732 | BC7: 930515.9961 | BD7: 890618 | BE7: 1455839 | BF7: 1235733 | BG7: 680824 | BH7: 453339 | BI7: ^^^ | BJ7: 292155 | BK7: 284517 | BL7: 220568 | BM7: ^^^ | BN7: ^^^ | BO7: ^^^ | BP7: ^^^ | BQ7: 872806 | BR7: 351961 | BS7: 381278 | BT7: ^^^ | BU7: 414202 | BV7: 193014 | BW7: 231624 | BX7: 106980
A8: CM3 | B8: D6 | C8: Community Based Mental Health Teams - Profiles | D8: Community Team Population Served (Registered Population) | E8: Assertive Outreach | F8: 512323 | G8: ^^^ | H8: ^^^ | I8: ^^^ | J8: 998861 | K8: 395406 | L8: 396893 | M8: ^^^ | N8: ^^^ | O8: 900567 | P8: ^^^ | Q8: ^^^ | R8: ^^^ | S8: ^^^ | T8: 659802 | U8: ^^^ | V8: 480926 | W8: ^^^ | X8: 1180137 | Y8: 1160640.576 | Z8: 950188.3064 | AA8: 797183 | AB8: ^^^ | AC8: ^^^ | AD8: ^^^ | AE8: ^^^ | AF8: 706481 | AG8: 711023 | AH8: ^^^ | AI8: 178011 | AJ8: 551865 | AK8: ^^^ | AL8: ^^^ | AM8: 733165 | AN8: ^^^ | AO8: ^^^ | AP8: ^^^ | AQ8: ^^^ | AR8: 760770 | AS8: ^^^ | AT8: ^^^ | AU8: ^^^ | AV8: 469884 | AW8: 389893 | AX8: 1175016.621 | AY8: ^^^ | AZ8: 470730 | BA8: 1005397 | BB8: ^^^ | BC8: 930515.9961 | BD8: ^^^ | BE8: 1455839 | BF8: ^^^ | BG8: ^^^ | BH8: ^^^ | BI8: ^^^ | BJ8: 292155 | BK8: ^^^ | BL8: ^^^ | BM8: ^^^ | BN8: ^^^ | BO8: ^^^ | BP8: ^^^ | BQ8: ^^^ | BR8: 351961 | BS8: 381278 | BT8: ^^^ | BU8: ^^^ | BV8: 193014 | BW8: 231624 | BX8: ^^^
A9: CM4 | B9: E6 | C9: Community Based Mental Health Teams - Profiles | D9: Community Team Population Served (Registered Population) | E9: Early Intervention (incl Early Onset Psychosis) | F9: ^^^ | G9: 1211736 | H9: 712618 | I9: 647217 | J9: 57850 | K9: 395406 | L9: 396893 | M9: 614721 | N9: ^^^ | O9: 900567 | P9: 1189943 | Q9: 340386 | R9: ^^^ | S9: 320377 | T9: 659802 | U9: 761049 | V9: 480926 | W9: 366461 | X9: 1180137 | Y9: 1160640.576 | Z9: 950188.3064 | AA9: 797183 | AB9: 373796 | AC9: ^^^ | AD9: 1151698.54 | AE9: 968915 | AF9: ^^^ | AG9: 711023 | AH9: ^^^ | AI9: ^^^ | AJ9: 551865 | AK9: ^^^ | AL9: 1028610 | AM9: 733165 | AN9: 318112 | AO9: 662188.4083 | AP9: 479344 | AQ9: 967735 | AR9: 760770 | AS9: 1041045.561 | AT9: 570447 | AU9: 783814 | AV9: 469884 | AW9: 389893 | AX9: 1175016.621 | AY9: 151997 | AZ9: 470730 | BA9: 1005397 | BB9: 400680 | BC9: 930515.9961 | BD9: 890618 | BE9: 1087533 | BF9: 1235733 | BG9: 680824 | BH9: 345043 | BI9: ^^^ | BJ9: 292155 | BK9: 284517 | BL9: ^^^ | BM9: ^^^ | BN9: ^^^ | BO9: ^^^ | BP9: ^^^ | BQ9: 858053 | BR9: 351961 | BS9: 381278 | BT9: ^^^ | BU9: 92823 | BV9: 193014 | BW9: 49035 | BX9: ^^^
A10: CM5 | B10: F6 | C10: Community Based Mental Health Teams - Profiles | D10: Community Team Population Served (Registered Population) | E10: Assessment & Brief Intervention (incl PMHT) | F10: 686973 | G10: 1546122 | H10: 712618 | I10: 787710 | J10: 0 | K10: 395406 | L10: 488867 | M10: 614721 | N10: ^^^ | O10: 900567 | P10: ^^^ | Q10: ^^^ | R10: ^^^ | S10: ^^^ | T10: 659802 | U10: 761049 | V10: 480926 | W10: 366461 | X10: 1180137 | Y10: 1518426.978 | Z10: 950188.3064 | AA10: 797183 | AB10: 373796 | AC10: ^^^ | AD10: ^^^ | AE10: 968915 | AF10: ^^^ | AG10: 711023 | AH10: ^^^ | AI10: ^^^ | AJ10: 551865 | AK10: ^^^ | AL10: 1028610 | AM10: 733165 | AN10: 318112 | AO10: 662188.4083 | AP10: 479344 | AQ10: 184234 | AR10: 760770 | AS10: ^^^ | AT10: 570447 | AU10: ^^^ | AV10: 469884 | AW10: 389893 | AX10: 1175016.621 | AY10: 151997 | AZ10: 470730 | BA10: 1005397 | BB10: 1030626 | BC10: 930515.9961 | BD10: ^^^ | BE10: 1455839 | BF10: 1235733 | BG10: ^^^ | BH10: ^^^ | BI10: ^^^ | BJ10: 292155 | BK10: 284517 | BL10: 220568 | BM10: ^^^ | BN10: ^^^ | BO10: ^^^ | BP10: ^^^ | BQ10: 858053 | BR10: 459484 | BS10: 500368 | BT10: ^^^ | BU10: 489931 | BV10: 193104 | BW10: 231624 | BX10: ^^^
A11: CM6 | B11: G6 | C11: Community Based Mental Health Teams - Profiles | D11: Community Team Population Served (Registered Population) | E11: Rehabilitation and Recovery | F11: ^^^ | G11: 1546122 | H11: 712618 | I11: ^^^ | J11: 0 | K11: 395406 | L11: 488867 | M11: ^^^ | N11: ^^^ | O11: 900567 | P11: ^^^ | Q11: ^^^ | R11: ^^^ | S11: ^^^ | T11: 659802 | U11: 537602 | V11: 480926 | W11: ^^^ | X11: 1180137 | Y11: 1518426.978 | Z11: 950188.3064 | AA11: 797183 | AB11: ^^^ | AC11: ^^^ | AD11: 1151698.54 | AE11: 968915 | AF11: 706481 | AG11: 711023 | AH11: ^^^ | AI11: 178011 | AJ11: ^^^ | AK11: ^^^ | AL11: ^^^ | AM11: ^^^ | AN11: 318112 | AO11: 662188.4083 | AP11: ^^^ | AQ11: 967735 | AR11: 760770 | AS11: ^^^ | AT11: 570447 | AU11: 783814 | AV11: ^^^ | AW11: 389893 | AX11: 1175016.621 | AY11: ^^^ | AZ11: 470730 | BA11: 1005397 | BB11: 811732 | BC11: 930515.9961 | BD11: ^^^ | BE11: ^^^ | BF11: 890351 | BG11: ^^^ | BH11: 345043 | BI11: 67952 | BJ11: 292155 | BK11: 284517 | BL11: ^^^ | BM11: ^^^ | BN11: ^^^ | BO11: ^^^ | BP11: ^^^ | BQ11: 858053 | BR11: 459484 | BS11: 381278 | BT11: 589085 | BU11: 343016 | BV11: 193014 | BW11: ^^^ | BX11: ^^^
A12: CM7 | B12: H6 | C12: Community Based Mental Health Teams - Profiles | D12: Community Team Population Served (Registered Population) | E12: Forensic | F12: ^^^ | G12: 1546122 | H12: 1100629 | I12: ^^^ | J12: 0 | K12: 395406 | L12: ^^^ | M12: 614721 | N12: ^^^ | O12: 900567 | P12: 1189943 | Q12: 340386 | R12: ^^^ | S12: ^^^ | T12: 659802 | U12: ^^^ | V12: 480926 | W12: ^^^ | X12: 1180137 | Y12: 1518426.978 | Z12: 1702398 | AA12: 797183 | AB12: 492593.4481 | AC12: ^^^ | AD12: ^^^ | AE12: 968915 | AF12: ^^^ | AG12: 711023 | AH12: ^^^ | AI12: 178011 | AJ12: ^^^ | AK12: 929575 | AL12: 1028610 | AM12: ^^^ | AN12: ^^^ | AO12: 662188.4083 | AP12: 479344 | AQ12: 967735 | AR12: 760770 | AS12: 1041045.561 | AT12: 570447 | AU12: ^^^ | AV12: ^^^ | AW12: 389893 | AX12: 1175016.621 | AY12: ^^^ | AZ12: 470730 | BA12: 1005397 | BB12: 811732 | BC12: ^^^ | BD12: 890618 | BE12: ^^^ | BF12: 719762 | BG12: 1332046 | BH12: ^^^ | BI12: 67952 | BJ12: 292155 | BK12: 284517 | BL12: ^^^ | BM12: ^^^ | BN12: ^^^ | BO12: ^^^ | BP12: ^^^ | BQ12: 858053 | BR12: 1927400 | BS12: 381278 | BT12: 589085 | BU12: 343016 | BV12: 193014 | BW12: 231624 | BX12: ^^^
A13: CM8 | B13: I6 | C13: Community Based Mental Health Teams - Profiles | D13: Community Team Population Served (Registered Population) | E13: Eating Disorders | F13: 686973 | G13: 1546122 | H13: 1100629 | I13: 647217 | J13: 0 | K13: 395406 | L13: ^^^ | M13: 614721 | N13: ^^^ | O13: 900567 | P13: 1189943 | Q13: 340386 | R13: ^^^ | S13: 320377 | T13: 659802 | U13: 537602 | V13: 480926 | W13: 366461 | X13: 1180137 | Y13: 1518426.978 | Z13: 950188.3064 | AA13: 797183 | AB13: ^^^ | AC13: ^^^ | AD13: ^^^ | AE13: 968915 | AF13: ^^^ | AG13: 711023 | AH13: ^^^ | AI13: ^^^ | AJ13: 551865 | AK13: 929575 | AL13: 1028610 | AM13: 733165 | AN13: ^^^ | AO13: 662188.4083 | AP13: 479344 | AQ13: 967735 | AR13: 760770 | AS13: 1230264 | AT13: ^^^ | AU13: ^^^ | AV13: ^^^ | AW13: 389893 | AX13: 1175016.621 | AY13: ^^^ | AZ13: 470730 | BA13: 1005397 | BB13: ^^^ | BC13: 930515.9961 | BD13: 890618 | BE13: 1455839 | BF13: 1235733 | BG13: 680824 | BH13: 345043 | BI13: 67952 | BJ13: 292155 | BK13: 284517 | BL13: ^^^ | BM13: ^^^ | BN13: ^^^ | BO13: ^^^ | BP13: ^^^ | BQ13: 858053 | BR13: 459484 | BS13: 500368 | BT13: ^^^ | BU13: 343016 | BV13: 193014 | BW13: 231924 | BX13: ^^^
A14: CM9 | B14: J6 | C14: Community Based Mental Health Teams - Profiles | D14: Community Team Population Served (Registered Population) | E14: Mother and Baby | F14: ^^^ | G14: 1211736 | H14: ^^^ | I14: 647217 | J14: 0 | K14: ^^^ | L14: 396893 | M14: 614721 | N14: ^^^ | O14: ^^^ | P14: 1189943 | Q14: ^^^ | R14: ^^^ | S14: ^^^ | T14: 659802 | U14: 537602 | V14: 480926 | W14: ^^^ | X14: 1180137 | Y14: 1518426.978 | Z14: ^^^ | AA14: 797183 | AB14: ^^^ | AC14: ^^^ | AD14: 1151698.54 | AE14: ^^^ | AF14: ^^^ | AG14: 711023 | AH14: ^^^ | AI14: ^^^ | AJ14: 551865 | AK14: 929575 | AL14: ^^^ | AM14: 733165 | AN14: 318112 | AO14: 662188.4083 | AP14: ^^^ | AQ14: 967735 | AR14: 760770 | AS14: ^^^ | AT14: ^^^ | AU14: ^^^ | AV14: ^^^ | AW14: 389893 | AX14: 1175016.621 | AY14: ^^^ | AZ14: ^^^ | BA14: 1005397 | BB14: 811732 | BC14: 930515.9961 | BD14: ^^^ | BE14: 1455839 | BF14: 395038 | BG14: 680824 | BH14: 170584 | BI14: 67952 | BJ14: 292155 | BK14: ^^^ | BL14: ^^^ | BM14: ^^^ | BN14: ^^^ | BO14: ^^^ | BP14: ^^^ | BQ14: 858053 | BR14: 351961 | BS14: 381278 | BT14: ^^^ | BU14: 343016 | BV14: 193014 | BW14: ^^^ | BX14: ^^^
A15: CM10 | B15: K6 | C15: Community Based Mental Health Teams - Profiles | D15: Community Team Population Served (Registered Population) | E15: Older People | F15: 174650 | G15: 334386 | H15: 129983 | I15: 140492 | J15: 204627 | K15: 86169 | L15: 91974 | M15: 152259 | N15: 46187 | O15: 221361 | P15: 202562 | Q15: 340386 | R15: ^^^ | S15: 117757 | T15: 202676 | U15: 223447 | V15: 188689 | W15: 108546 | X15: 171616 | Y15: 357786.4019 | Z15: 187288.0669 | AA15: 202722 | AB15: 118797.7396 | AC15: ^^^ | AD15: 352314.9449 | AE15: 276982 | AF15: 127461 | AG15: 185251 | AH15: 210889 | AI15: 49455 | AJ15: 141726 | AK15: ^^^ | AL15: 382733 | AM15: 136681 | AN15: 94984 | AO15: 183337.1454 | AP15: 123274 | AQ15: 237912 | AR15: 202985 | AS15: 218710 | AT15: 131065 | AU15: 207072 | AV15: 141264 | AW15: 95627 | AX15: 138389 | AY15: 32070 | AZ15: 130287 | BA15: 145709 | BB15: 218894 | BC15: 286633 | BD15: 251118 | BE15: 368306 | BF15: 412961 | BG15: ^^^ | BH15: 108356 | BI15: 17099 | BJ15: ^^^ | BK15: 81651 | BL15: 67207 | BM15: ^^^ | BN15: ^^^ | BO15: ^^^ | BP15: ^^^ | BQ15: 193112 | BR15: 107523 | BS15: 119090 | BT15: 589085 | BU15: 79186 | BV15: 57827 | BW15: 92879 | BX15: 32742
A16: CM11 | B16: L6 | C16: Community Based Mental Health Teams - Profiles | D16: Community Team Population Served (Registered Population) | E16: Memory Services | F16: 686973 | G16: 233187 | H16: 129983 | I16: 787710 | J16: 998861 | K16: 86169 | L16: 91974 | M16: ^^^ | N16: ^^^ | O16: 221361 | P16: 202562 | Q16: ^^^ | R16: ^^^ | S16: ^^^ | T16: 202676 | U16: 223447 | V16: ^^^ | W16: 108546 | X16: 171616 | Y16: 357786.4019 | Z16: 187288.0669 | AA16: 202722 | AB16: 118797.7396 | AC16: ^^^ | AD16: ^^^ | AE16: 276982 | AF16: 127461 | AG16: 185251 | AH16: ^^^ | AI16: 227466 | AJ16: 141726 | AK16: 929575 | AL16: 382733 | AM16: 136681 | AN16: 94984 | AO16: 183337.1454 | AP16: 123274 | AQ16: 237912 | AR16: 202985 | AS16: 218710 | AT16: 131065 | AU16: 207072 | AV16: 141264 | AW16: 95627 | AX16: 138389 | AY16: 32070 | AZ16: 130287 | BA16: 145709 | BB16: 218894 | BC16: 286633 | BD16: ^^^ | BE16: 368306 | BF16: ^^^ | BG16: 98489 | BH16: ^^^ | BI16: 17099 | BJ16: ^^^ | BK16: ^^^ | BL16: ^^^ | BM16: ^^^ | BN16: ^^^ | BO16: ^^^ | BP16: ^^^ | BQ16: ^^^ | BR16: 107523 | BS16: 119090 | BT16: ^^^ | BU16: ^^^ | BV16: 193014 | BW16: 92879 | BX16: ^^^
A17: CM12 | B17: M6 | C17: Community Based Mental Health Teams - Profiles | D17: Community Team Population Served (Registered Population) | E17: Other Adult CMHTs | F17: 686973 | G17: 1546122 | H17: ^^^ | I17: ^^^ | J17: ^^^ | K17: 395406 | L17: ^^^ | M17: 614721 | N17: ^^^ | O17: 900567 | P17: ^^^ | Q17: ^^^ | R17: ^^^ | S17: ^^^ | T17: 659802 | U17: 761049 | V17: 480926 | W17: 366461 | X17: 1180137 | Y17: 851443.6935 | Z17: 950188.3064 | AA17: 797183 | AB17: 373796 | AC17: ^^^ | AD17: 352314.9449 | AE17: 968915 | AF17: ^^^ | AG17: 711023 | AH17: 584791 | AI17: ^^^ | AJ17: ^^^ | AK17: ^^^ | AL17: 1028610 | AM17: 733165 | AN17: ^^^ | AO17: 662188.4083 | AP17: ^^^ | AQ17: 967735 | AR17: 760770 | AS17: ^^^ | AT17: ^^^ | AU17: ^^^ | AV17: 107566 | AW17: 389893 | AX17: 1175016.621 | AY17: ^^^ | AZ17: ^^^ | BA17: 1005397 | BB17: ^^^ | BC17: 930515.9961 | BD17: 890618 | BE17: 1455839 | BF17: 1235733 | BG17: 680824 | BH17: ^^^ | BI17: ^^^ | BJ17: 292155 | BK17: 284517 | BL17: ^^^ | BM17: ^^^ | BN17: ^^^ | BO17: ^^^ | BP17: ^^^ | BQ17: 858053 | BR17: ^^^ | BS17: 119090 | BT17: 589085 | BU17: 343016 | BV17: 193014 | BW17: ^^^ | BX17: ^^^
A18: CM13 | B18: B7 | C18: Community Based Mental Health Teams - Profiles | D18: Community Team Population Served (Weighted Population). This applies a need weighting to the above registered population figure. Please contact NHSBN for more information. | E18: Generic CMHT | F18: 413536 | G18: 988996 | H18: 878945 | I18: 686287 | J18: 1351716 | K18: 506673 | L18: 489552 | M18: 491632 | N18: ^^^ | O18: 1278608 | P18: 1175340 | Q18: 231639 | R18: ^^^ | S18: 285892 | T18: 1067529 | U18: 836709 | V18: 523478 | W18: 380043 | X18: 1636789 | Y18: 935518.0309 | Z18: 1392706.237 | AA18: 786230 | AB18: 289957 | AC18: ^^^ | AD18: 993236.9812 | AE18: 1061071 | AF18: 839630 | AG18: 710605 | AH18: ^^^ | AI18: ^^^ | AJ18: 796315 | AK18: 870226 | AL18: 872511 | AM18: 754745 | AN18: 470190 | AO18: 680451.0515 | AP18: 586148 | AQ18: 950987 | AR18: 775369 | AS18: 1040330.893 | AT18: 796872 | AU18: 981656 | AV18: 444046 | AW18: 444078 | AX18: 2164895.381 | AY18: 155759 | AZ18: 529991 | BA18: 1376602 | BB18: 631027 | BC18: 865174 | BD18: 662344 | BE18: 1737709 | BF18: 1262996 | BG18: 884603 | BH18: 257541 | BI18: ^^^ | BJ18: ^^^ | BK18: ^^^ | BL18: ^^^ | BM18: ^^^ | BN18: ^^^ | BO18: ^^^ | BP18: ^^^ | BQ18: 1405601 | BR18: ^^^ | BS18: ^^^ | BT18: ^^^ | BU18: ^^^ | BV18: ^^^ | BW18: ^^^ | BX18: ^^^
A19: CM14 | B19: C7 | C19: Community Based Mental Health Teams - Profiles | D19: Community Team Population Served (Weighted Population). This applies a need weighting to the above registered population figure. Please contact NHSBN for more information. | E19: CRHT | F19: 731728 | G19: 1525074 | H19: 878945 | I19: 686287 | J19: 1819001 | K19: 506673 | L19: 661160 | M19: 491632 | N19: ^^^ | O19: 1278608 | P19: 1175340 | Q19: 231639 | R19: ^^^ | S19: 441187 | T19: 1067529 | U19: 836709 | V19: 523478 | W19: 380043 | X19: 1636789 | Y19: 1062781.857 | Z19: 1392706.237 | AA19: 786230 | AB19: 289957 | AC19: ^^^ | AD19: 993236.9812 | AE19: 1061071 | AF19: 839630 | AG19: 710605 | AH19: ^^^ | AI19: ^^^ | AJ19: ^^^ | AK19: ^^^ | AL19: 872511 | AM19: 754745 | AN19: 470190 | AO19: 680451.0515 | AP19: 586148 | AQ19: 950987 | AR19: 775369 | AS19: ^^^ | AT19: 796872 | AU19: 1339947 | AV19: 444046 | AW19: 444078 | AX19: 2164895.381 | AY19: 155759 | AZ19: 529991 | BA19: 1376602 | BB19: 631027 | BC19: 865174 | BD19: 662344 | BE19: 1737709 | BF19: 1262996 | BG19: 884603 | BH19: 355952 | BI19: ^^^ | BJ19: ^^^ | BK19: ^^^ | BL19: ^^^ | BM19: ^^^ | BN19: ^^^ | BO19: ^^^ | BP19: ^^^ | BQ19: 1429769 | BR19: ^^^ | BS19: ^^^ | BT19: ^^^ | BU19: ^^^ | BV19: ^^^ | BW19: ^^^ | BX19: ^^^
A20: CM15 | B20: D7 | C20: Community Based Mental Health Teams - Profiles | D20: Community Team Population Served (Weighted Population). This applies a need weighting to the above registered population figure. Please contact NHSBN for more information. | E20: Assertive Outreach | F20: 413536 | G20: ^^^ | H20: ^^^ | I20: ^^^ | J20: 1819001 | K20: 506673 | L20: 489552 | M20: ^^^ | N20: ^^^ | O20: 1278608 | P20: ^^^ | Q20: ^^^ | R20: ^^^ | S20: ^^^ | T20: 720061 | U20: ^^^ | V20: 523478 | W20: ^^^ | X20: 1636789 | Y20: 1062781.857 | Z20: 1392706.237 | AA20: 786230 | AB20: ^^^ | AC20: ^^^ | AD20: ^^^ | AE20: ^^^ | AF20: 839630 | AG20: 710605 | AH20: ^^^ | AI20: ^^^ | AJ20: 796315 | AK20: ^^^ | AL20: ^^^ | AM20: 754745 | AN20: ^^^ | AO20: ^^^ | AP20: ^^^ | AQ20: ^^^ | AR20: 775369 | AS20: ^^^ | AT20: ^^^ | AU20: ^^^ | AV20: 444046 | AW20: 444078 | AX20: 2164895.381 | AY20: ^^^ | AZ20: 529991 | BA20: 1376602 | BB20: ^^^ | BC20: 865174 | BD20: ^^^ | BE20: 1737709 | BF20: ^^^ | BG20: ^^^ | BH20: ^^^ | BI20: ^^^ | BJ20: ^^^ | BK20: ^^^ | BL20: ^^^ | BM20: ^^^ | BN20: ^^^ | BO20: ^^^ | BP20: ^^^ | BQ20: ^^^ | BR20: ^^^ | BS20: ^^^ | BT20: ^^^ | BU20: ^^^ | BV20: ^^^ | BW20: ^^^ | BX20: ^^^
A21: CM16 | B21: E7 | C21: Community Based Mental Health Teams - Profiles | D21: Community Team Population Served (Weighted Population). This applies a need weighting to the above registered population figure. Please contact NHSBN for more information. | E21: Early Intervention (incl Early Onset Psychosis) | F21: ^^^ | G21: 988996 | H21: 878945 | I21: 686287 | J21: 64236 | K21: 506673 | L21: 489552 | M21: 491632 | N21: ^^^ | O21: 1278608 | P21: 1175340 | Q21: 231639 | R21: ^^^ | S21: 285892 | T21: 720061 | U21: 836709 | V21: 523478 | W21: 380043 | X21: 1636789 | Y21: 1062781.857 | Z21: 1392706.237 | AA21: 786230 | AB21: 289957 | AC21: ^^^ | AD21: 993236.9812 | AE21: 1061071 | AF21: ^^^ | AG21: 710605 | AH21: ^^^ | AI21: ^^^ | AJ21: 796315 | AK21: ^^^ | AL21: 872511 | AM21: 754745 | AN21: 470190 | AO21: 680451.0515 | AP21: 586148 | AQ21: 950987 | AR21: 775369 | AS21: 1040330.893 | AT21: 796872 | AU21: 981656 | AV21: 444046 | AW21: 444078 | AX21: 2164895.381 | AY21: 155759 | AZ21: 529991 | BA21: 1376602 | BB21: 321449 | BC21: 865174 | BD21: 662344 | BE21: 1145834 | BF21: 1262996 | BG21: 884603 | BH21: 257541 | BI21: ^^^ | BJ21: ^^^ | BK21: ^^^ | BL21: ^^^ | BM21: ^^^ | BN21: ^^^ | BO21: ^^^ | BP21: ^^^ | BQ21: 1405601 | BR21: ^^^ | BS21: ^^^ | BT21: ^^^ | BU21: ^^^ | BV21: ^^^ | BW21: ^^^ | BX21: ^^^
A22: CM17 | B22: F7 | C22: Community Based Mental Health Teams - Profiles | D22: Community Team Population Served (Weighted Population). This applies a need weighting to the above registered population figure. Please contact NHSBN for more information. | E22: Assessment & Brief Intervention (incl PMHT) | F22: 731728 | G22: 1525074 | H22: 878945 | I22: 1031068 | J22: 0 | K22: 506673 | L22: 661160 | M22: 491632 | N22: ^^^ | O22: 1278608 | P22: ^^^ | Q22: ^^^ | R22: ^^^ | S22: ^^^ | T22: 720061 | U22: 836709 | V22: 523478 | W22: 380043 | X22: 1636789 | Y22: 1679205.23 | Z22: 1392706.237 | AA22: 786230 | AB22: 289957 | AC22: ^^^ | AD22: ^^^ | AE22: 1061071 | AF22: ^^^ | AG22: 710605 | AH22: ^^^ | AI22: ^^^ | AJ22: 796315 | AK22: ^^^ | AL22: 872511 | AM22: 754745 | AN22: 470190 | AO22: 680451.0515 | AP22: 586148 | AQ22: 177489 | AR22: 775369 | AS22: ^^^ | AT22: 769872 | AU22: ^^^ | AV22: 444046 | AW22: 444078 | AX22: 2164895.381 | AY22: 155759 | AZ22: 529991 | BA22: 1376602 | BB22: 982868 | BC22: 865174 | BD22: ^^^ | BE22: 1737709 | BF22: 1262996 | BG22: ^^^ | BH22: ^^^ | BI22: ^^^ | BJ22: ^^^ | BK22: ^^^ | BL22: ^^^ | BM22: ^^^ | BN22: ^^^ | BO22: ^^^ | BP22: ^^^ | BQ22: 1405601 | BR22: ^^^ | BS22: ^^^ | BT22: ^^^ | BU22: ^^^ | BV22: ^^^ | BW22: ^^^ | BX22: ^^^
A23: CM18 | B23: G7 | C23: Community Based Mental Health Teams - Profiles | D23: Community Team Population Served (Weighted Population). This applies a need weighting to the above registered population figure. Please contact NHSBN for more information. | E23: Rehabilitation and Recovery | F23: ^^^ | G23: 1525074 | H23: 878945 | I23: ^^^ | J23: 0 | K23: 506673 | L23: 661160 | M23: ^^^ | N23: ^^^ | O23: 1278608 | P23: ^^^ | Q23: ^^^ | R23: ^^^ | S23: ^^^ | T23: 720061 | U23: 519347 | V23: 523478 | W23: ^^^ | X23: 1636789 | Y23: 1679205.23 | Z23: 1392706.237 | AA23: 786230 | AB23: ^^^ | AC23: ^^^ | AD23: 993236.9812 | AE23: 1061071 | AF23: 839630 | AG23: 710605 | AH23: ^^^ | AI23: ^^^ | AJ23: ^^^ | AK23: ^^^ | AL23: ^^^ | AM23: ^^^ | AN23: 470190 | AO23: 680451.0515 | AP23: ^^^ | AQ23: 950987 | AR23: 775369 | AS23: ^^^ | AT23: 796872 | AU23: 981656 | AV23: ^^^ | AW23: 444078 | AX23: 2164895.381 | AY23: ^^^ | AZ23: 529991 | BA23: 1376602 | BB23: 631027 | BC23: 865174 | BD23: ^^^ | BE23: ^^^ | BF23: 958742 | BG23: ^^^ | BH23: 257541 | BI23: ^^^ | BJ23: ^^^ | BK23: ^^^ | BL23: ^^^ | BM23: ^^^ | BN23: ^^^ | BO23: ^^^ | BP23: ^^^ | BQ23: 1405601 | BR23: ^^^ | BS23: ^^^ | BT23: ^^^ | BU23: ^^^ | BV23: ^^^ | BW23: ^^^ | BX23: ^^^
A24: CM19 | B24: H7 | C24: Community Based Mental Health Teams - Profiles | D24: Community Team Population Served (Weighted Population). This applies a need weighting to the above registered population figure. Please contact NHSBN for more information. | E24: Forensic | F24: ^^^ | G24: 1525074 | H24: 1530062 | I24: ^^^ | J24: 0 | K24: 506673 | L24: ^^^ | M24: 491632 | N24: ^^^ | O24: 1278608 | P24: 1175340 | Q24: 231639 | R24: ^^^ | S24: ^^^ | T24: 720061 | U24: ^^^ | V24: 523478 | W24: ^^^ | X24: 1636789 | Y24: 1679205.23 | Z24: 2305251 | AA24: 786230 | AB24: 430242.0448 | AC24: ^^^ | AD24: ^^^ | AE24: 1061071 | AF24: ^^^ | AG24: 710605 | AH24: ^^^ | AI24: ^^^ | AJ24: ^^^ | AK24: 870226 | AL24: 872511 | AM24: ^^^ | AN24: ^^^ | AO24: 680451.0515 | AP24: 586148 | AQ24: 950987 | AR24: 775369 | AS24: 1040330.893 | AT24: 796872 | AU24: ^^^ | AV24: ^^^ | AW24: 444078 | AX24: 2164895.381 | AY24: ^^^ | AZ24: 529991 | BA24: 1376602 | BB24: 631027 | BC24: ^^^ | BD24: 662344 | BE24: ^^^ | BF24: 920916 | BG24: 1457378 | BH24: ^^^ | BI24: ^^^ | BJ24: ^^^ | BK24: ^^^ | BL24: ^^^ | BM24: ^^^ | BN24: ^^^ | BO24: ^^^ | BP24: ^^^ | BQ24: 1405601 | BR24: ^^^ | BS24: ^^^ | BT24: ^^^ | BU24: ^^^ | BV24: ^^^ | BW24: ^^^ | BX24: ^^^
A25: CM20 | B25: I7 | C25: Community Based Mental Health Teams - Profiles | D25: Community Team Population Served (Weighted Population). This applies a need weighting to the above registered population figure. Please contact NHSBN for more information. | E25: Eating Disorders | F25: 731728 | G25: 1525074 | H25: 1530062 | I25: 686287 | J25: 0 | K25: 506673 | L25: ^^^ | M25: 491632 | N25: ^^^ | O25: 1278608 | P25: 1175340 | Q25: 231639 | R25: ^^^ | S25: 285892 | T25: 720061 | U25: 519347 | V25: 523478 | W25: 380043 | X25: 1636789 | Y25: 1679205.23 | Z25: 1392706.237 | AA25: 786230 | AB25: ^^^ | AC25: ^^^ | AD25: ^^^ | AE25: 1061071 | AF25: ^^^ | AG25: 710605 | AH25: ^^^ | AI25: ^^^ | AJ25: 796315 | AK25: 870226 | AL25: 872511 | AM25: 754745 | AN25: ^^^ | AO25: 680451.0515 | AP25: 586148 | AQ25: 950987 | AR25: 775369 | AS25: 1229344 | AT25: ^^^ | AU25: ^^^ | AV25: ^^^ | AW25: 444078 | AX25: 2164895.381 | AY25: ^^^ | AZ25: 529991 | BA25: 1376602 | BB25: ^^^ | BC25: 865174 | BD25: 662344 | BE25: 1737709 | BF25: 1262996 | BG25: 884603 | BH25: 257541 | BI25: ^^^ | BJ25: ^^^ | BK25: ^^^ | BL25: ^^^ | BM25: ^^^ | BN25: ^^^ | BO25: ^^^ | BP25: ^^^ | BQ25: 1405601 | BR25: ^^^ | BS25: ^^^ | BT25: ^^^ | BU25: ^^^ | BV25: ^^^ | BW25: ^^^ | BX25: ^^^
A26: CM21 | B26: J7 | C26: Community Based Mental Health Teams - Profiles | D26: Community Team Population Served (Weighted Population). This applies a need weighting to the above registered population figure. Please contact NHSBN for more information. | E26: Mother and Baby | F26: ^^^ | G26: 988996 | H26: ^^^ | I26: 686287 | J26: 0 | K26: ^^^ | L26: 488867 | M26: 491632 | N26: ^^^ | O26: ^^^ | P26: 1175340 | Q26: ^^^ | R26: ^^^ | S26: ^^^ | T26: 720061 | U26: 519347 | V26: 523478 | W26: ^^^ | X26: 1636789 | Y26: 1679205.23 | Z26: ^^^ | AA26: 786230 | AB26: ^^^ | AC26: ^^^ | AD26: 993236.9812 | AE26: ^^^ | AF26: ^^^ | AG26: 710605 | AH26: ^^^ | AI26: ^^^ | AJ26: 796315 | AK26: 870226 | AL26: ^^^ | AM26: 754745 | AN26: 470190 | AO26: 680451.0515 | AP26: ^^^ | AQ26: 950987 | AR26: 775369 | AS26: ^^^ | AT26: ^^^ | AU26: ^^^ | AV26: ^^^ | AW26: 444078 | AX26: 2164895.381 | AY26: ^^^ | AZ26: ^^^ | BA26: 1376602 | BB26: 631027 | BC26: 865174 | BD26: ^^^ | BE26: 1737709 | BF26: 457933 | BG26: 884603 | BH26: 127325 | BI26: ^^^ | BJ26: ^^^ | BK26: ^^^ | BL26: ^^^ | BM26: ^^^ | BN26: ^^^ | BO26: ^^^ | BP26: ^^^ | BQ26: 1405601 | BR26: ^^^ | BS26: ^^^ | BT26: ^^^ | BU26: ^^^ | BV26: ^^^ | BW26: ^^^ | BX26: ^^^
A27: CM22 | B27: K7 | C27: Community Based Mental Health Teams - Profiles | D27: Community Team Population Served (Weighted Population). This applies a need weighting to the above registered population figure. Please contact NHSBN for more information. | E27: Older People | F27: 318192 | G27: 536078 | H27: 255047 | I27: 344241 | J27: 467285 | K27: 169439 | L27: 171608 | M27: 239548 | N27: 132777 | O27: 450140 | P27: 310725 | Q27: 231639 | R27: ^^^ | S27: 155295 | T27: 347468 | U27: 317362 | V27: 279905 | W27: 164778 | X27: 382247 | Y27: 616423.3733 | Z27: 429746.8606 | AA27: 381920 | AB27: 140284.6101 | AC27: ^^^ | AD27: 518213.7241 | AE27: 411398 | AF27: 254818 | AG27: 285213 | AH27: 296246 | AI27: ^^^ | AJ27: 291160 | AK27: ^^^ | AL27: 528790 | AM27: 235778 | AN27: 178731 | AO27: 342990.9715 | AP27: 251755 | AQ27: 493196 | AR27: 374914 | AS27: 329814 | AT27: 241288 | AU27: 358291 | AV27: 228501 | AW27: 185143 | AX27: 336897 | AY27: 62670 | AZ27: 206707 | BA27: 308628 | BB27: 351841 | BC27: 411492 | BD27: 419384 | BE27: 591875 | BF27: 848239 | BG27: ^^^ | BH27: 98410 | BI27: ^^^ | BJ27: ^^^ | BK27: ^^^ | BL27: ^^^ | BM27: ^^^ | BN27: ^^^ | BO27: ^^^ | BP27: ^^^ | BQ27: 465004 | BR27: ^^^ | BS27: ^^^ | BT27: ^^^ | BU27: ^^^ | BV27: ^^^ | BW27: ^^^ | BX27: ^^^
A28: CM23 | B28: L7 | C28: Community Based Mental Health Teams - Profiles | D28: Community Team Population Served (Weighted Population). This applies a need weighting to the above registered population figure. Please contact NHSBN for more information. | E28: Memory Services | F28: 731728 | G28: 362824 | H28: 255047 | I28: 1031068 | J28: 1819001 | K28: 169439 | L28: 171608 | M28: ^^^ | N28: ^^^ | O28: 450140 | P28: 310725 | Q28: ^^^ | R28: ^^^ | S28: ^^^ | T28: 347468 | U28: 317362 | V28: ^^^ | W28: 164778 | X28: 382247 | Y28: 616423.3733 | Z28: 429746.8606 | AA28: 381920 | AB28: 140284.6101 | AC28: ^^^ | AD28: ^^^ | AE28: 411398 | AF28: 254818 | AG28: 285213 | AH28: ^^^ | AI28: ^^^ | AJ28: 291160 | AK28: 870226 | AL28: 528790 | AM28: 235778 | AN28: 178731 | AO28: 342990.9715 | AP28: 251755 | AQ28: 493196 | AR28: 374914 | AS28: 329814 | AT28: 241288 | AU28: 358291 | AV28: 228501 | AW28: 185143 | AX28: 336897 | AY28: 62670 | AZ28: 206707 | BA28: 308628 | BB28: 351841 | BC28: 411492 | BD28: ^^^ | BE28: 591875 | BF28: ^^^ | BG28: 200307 | BH28: ^^^ | BI28: ^^^ | BJ28: ^^^ | BK28: ^^^ | BL28: ^^^ | BM28: ^^^ | BN28: ^^^ | BO28: ^^^ | BP28: ^^^ | BQ28: ^^^ | BR28: ^^^ | BS28: ^^^ | BT28: ^^^ | BU28: ^^^ | BV28: ^^^ | BW28: ^^^ | BX28: ^^^
A29: CM24 | B29: M7 | C29: Community Based Mental Health Teams - Profiles | D29: Community Team Population Served (Weighted Population). This applies a need weighting to the above registered population figure. Please contact NHSBN for more information. | E29: Other Adult CMHTs | F29: 731728 | G29: 1525074 | H29: ^^^ | I29: ^^^ | J29: ^^^ | K29: 506673 | L29: ^^^ | M29: 491632 | N29: ^^^ | O29: 1278608 | P29: ^^^ | Q29: ^^^ | R29: ^^^ | S29: ^^^ | T29: 720061 | U29: 836709 | V29: 523478 | W29: 380043 | X29: 1636789 | Y29: 935518.0309 | Z29: 1392706.237 | AA29: 786230 | AB29: 289957 | AC29: ^^^ | AD29: 518213.7241 | AE29: 1061071 | AF29: ^^^ | AG29: 710605 | AH29: 492050 | AI29: ^^^ | AJ29: ^^^ | AK29: ^^^ | AL29: 872511 | AM29: 754745 | AN29: ^^^ | AO29: 680451.0515 | AP29: ^^^ | AQ29: 950987 | AR29: 775369 | AS29: ^^^ | AT29: ^^^ | AU29: ^^^ | AV29: 88104 | AW29: 444078 | AX29: 2164895.381 | AY29: ^^^ | AZ29: ^^^ | BA29: 1376602 | BB29: ^^^ | BC29: 865174 | BD29: 662344 | BE29: 1737709 | BF29: 1262996 | BG29: 884603 | BH29: ^^^ | BI29: ^^^ | BJ29: ^^^ | BK29: ^^^ | BL29: ^^^ | BM29: ^^^ | BN29: ^^^ | BO29: ^^^ | BP29: ^^^ | BQ29: 1405601 | BR29: ^^^ | BS29: ^^^ | BT29: ^^^ | BU29: ^^^ | BV29: ^^^ | BW29: ^^^ | BX29: ^^^
A30: CM25 | B30: B11 | C30: Caseload for Community Mental Health Teams | D30: Total caseload for Community Mental Health Teams as at 31/03/18 or most recent census period (number of patients on caseload) | E30: Generic CMHT | F30: 2455 | G30: 6244 | H30: 3760 | I30: 7409 | J30: 14513 | K30: 2474 | L30: 5620 | M30: 2441 | N30: 2302 | O30: 5091 | P30: 10249 | Q30: 3555 | R30: 5689 | S30: 3082 | T30: 7616 | U30: 4958 | V30: 5638 | W30: 2378 | X30: 13486 | Y30: 4524 | Z30: 7765 | AA30: 7792 | AB30: 2014 | AC30: 1659 | AD30: 10349 | AE30: 8542 | AF30: 4582 | AG30: 7775 | AH30: 1511 | AI30: 2147 | AJ30: 11599 | AK30: 6914 | AL30: 8023 | AM30: 2508 | AN30: 6898 | AO30: 4135 | AP30: 3602 | AQ30: 9762 | AR30: 6572 | AS30: 4719 | AT30: ^^^ | AU30: 5648 | AV30: 3444 | AW30: 1438 | AX30: 4628 | AY30: 1713 | AZ30: 1379 | BA30: 4678 | BB30: 8597 | BC30: 6786 | BD30: 4920 | BE30: 10974 | BF30: 11527 | BG30: 7874 | BH30: 2436 | BI30: 379 | BJ30: ^^^ | BK30: 5681 | BL30: 1388 | BM30: ^^^ | BN30: ^^^ | BO30: ^^^ | BP30: ^^^ | BQ30: 13592 | BR30: 2327 | BS30: 2636 | BT30: 4383 | BU30: 3869 | BV30: 1209 | BW30: 3446 | BX30: 681
